Workbook

Sheet 1. Program Details
A1: Program Details | C1: Comments | D1: Highlighting Key
A2: Form Approved OMB NO: 0920-1365 Exp. Date: 7/31/2025 Public reporting burden of this collection of information is estimated at 1 hour per response, including the time for reviewing instructions, searching existing data sources, gathering, and maintaining the data needed, and completing and reviewing the collection of information. An agency may not conduct or sponsor, and a person is not required to respond to a collection of information unless it displays a currently valid OMB control number. Send comments regarding this burden estimate or any other aspect of this collection of information, including suggestions for reducing this burden to CDC/Information Collection Review Office, 1600 Clifton Road, NE, MS H21-8, Atlanta, GA 30333; Attn: PRA (0920-1365).
A3: 1A. Program Name | B3: Rhode Island | E3: Orange = Enter program information
E4: Yellow = Automatically populated and/or to be entered by CDC
A5: 1B. Program Director | E5: Blue - Enter any comments, feedback, or questions
A6: Name | E6: Light Gray = Examples for reference or N/A
A7: Telephone
A8: Email
A10: 1C. Primary financial/administrative contact person
A11: Name
A12: Telephone
A13: Email

Sheet 2.Total Allocated Program Funds
A1: Worksheet for Recording the Total Funds Allocated to Your Program Per Award Year (All Funds Including CDC Core SIPP Award and Other Federal or Non-Federal Funds Allocated to Core SIPP Strategies and Topics) (reference user guide - pg. 6) | H1: Highlighting Key
B2: Year 3 (08/01/2023 - 07/31/2024) | I2: Orange = Enter program information
A3: 2A. CDC Core SIPP Funding | B3: $ Amount | C3: Comments | I3: Yellow = Automatically populated and/or to be entered by CDC
A4: Total CDC Core SIPP funding for current year* | B4: $250,000.00 | I4: Blue - Enter any comments, feedback, or questions
A5: Unobligated funds carried forward from previous year | I5: Light Gray = Examples for reference or N/A
A6: Amount of funds unobligated for the current year
A7: Total CDC Core SIPP funding allocated: | B7: =SUM(B4:B5)-(B6) -> $250,000.00
A8: * Core SIPP funds are defined as those funds that were awarded directly by CDC through CDC-RFA-CE21-2101.
B10: Year 2 (08/01/2022 - 07/31/2023)
F11: Comments
A12: 2B. Source of other funding (other federal or non-federal) allocated to Core SIPP Strategies and Topics | B12: $ Amount | C12: Strategy (select all that apply) | D12: Topic (select all that apply) | E12: Rationale for Procuring Other Funds (select all that apply)
A13: * While cost sharing or matching funds were not required for this program, leveraging other resources and related ongoing efforts to promote sustainability was strongly encouraged in the NOFO.
A14: (e.g.) Non-CDC Federal Funds | B14: $100,000.00 | C14: Data and Surveillance; Collaborations and Partnerships | D14: Transportation Safety | E14: These funds enabled expansion of the scope of implementation and were newly available following receipt of the CDC grant award.
A15: (e.g.) Private Grants | B15: $5,000.00 | C15: Collaborations and Partnerships | D15: Adverse Childhood Experiences (ACEs); Transportation Safety; Traumatic Brain Injury | E15: These funds enabled expansion of the scope of implementation and were already available prior to receipt of the CDC grant award.
C16: Collaborations and Partnerships; Assessment and Evaluation | I16: =COUNTA(_xlfn.TEXTSPLIT(D16,";")) -> 1
A36: Total other funding: | B36: =SUM(B16:B35) -> $0.00
A38: Total funding allocated (2a + 2b): | B38: =SUM(B7+B36) -> $250,000.00

Sheet 3A. In-Kind Labor
B1: Worksheet for Estimating the Value of In-Kind (Non-paid) Labor Contributions Per Award Year (reference user guide - pg. 7) | J1: Highlighting Key
B2: Year 3 (08/01/2023 - 07/31/2024) | K2: Orange = Enter program information
B3: 3A. Labor (Non-paid) In-Kind Contributions | C3: Hours Contributed | D3: $ Value | E3: Total | F3: Strategy (select all that apply) | G3: Topic (select all that apply) | H3: Comments | K3: Yellow = Automatically populated and/or to be entered by CDC
B4: (e.g.) Student intern | C4: 240 | D4: $10.00 | E4: =C4*D4 -> $2,400.00 | F4: Data and Surveillance | G4: Transportation Safety; Traumatic Brain Injury | K4: Blue - Enter any comments, feedback, or questions
D5: =IFERROR(INDEX('BLS Wage Rates'!$A$3:$Z$65,MATCH('3A. In-Kind Labor '!$B5,'BLS Wage Rates'!$A$3:$A$65,0),MATCH('1. Program Details'!$B$3,'BLS Wage Rates'!$A$3:$Z$3,0)),0) -> $0.00 | E5: =C5*D5 -> $0.00 | K5: Light Gray = Examples for reference or N/A
D6: =IFERROR(INDEX('BLS Wage Rates'!$A$3:$Z$65,MATCH('3A. In-Kind Labor '!$B6,'BLS Wage Rates'!$A$3:$A$65,0),MATCH('1. Program Details'!$B$3,'BLS Wage Rates'!$A$3:$Z$3,0)),0) -> $0.00 | E6: =C6*D6 -> $0.00
D7: =IFERROR(INDEX('BLS Wage Rates'!$A$3:$Z$65,MATCH('3A. In-Kind Labor '!$B7,'BLS Wage Rates'!$A$3:$A$65,0),MATCH('1. Program Details'!$B$3,'BLS Wage Rates'!$A$3:$Z$3,0)),0) -> $0.00 | E7: $0.00
D8: =IFERROR(INDEX('BLS Wage Rates'!$A$3:$Z$65,MATCH('3A. In-Kind Labor '!$B8,'BLS Wage Rates'!$A$3:$A$65,0),MATCH('1. Program Details'!$B$3,'BLS Wage Rates'!$A$3:$Z$3,0)),0) -> $0.00 | E8: $0.00
D9: =IFERROR(INDEX('BLS Wage Rates'!$A$3:$Z$65,MATCH('3A. In-Kind Labor '!$B9,'BLS Wage Rates'!$A$3:$A$65,0),MATCH('1. Program Details'!$B$3,'BLS Wage Rates'!$A$3:$Z$3,0)),0) -> $0.00 | E9: $0.00
D10: =IFERROR(INDEX('BLS Wage Rates'!$A$3:$Z$65,MATCH('3A. In-Kind Labor '!$B10,'BLS Wage Rates'!$A$3:$A$65,0),MATCH('1. Program Details'!$B$3,'BLS Wage Rates'!$A$3:$Z$3,0)),0) -> $0.00 | E10: $0.00
D11: =IFERROR(INDEX('BLS Wage Rates'!$A$3:$Z$65,MATCH('3A. In-Kind Labor '!$B11,'BLS Wage Rates'!$A$3:$A$65,0),MATCH('1. Program Details'!$B$3,'BLS Wage Rates'!$A$3:$Z$3,0)),0) -> $0.00 | E11: $0.00
D12: =IFERROR(INDEX('BLS Wage Rates'!$A$3:$Z$65,MATCH('3A. In-Kind Labor '!$B12,'BLS Wage Rates'!$A$3:$A$65,0),MATCH('1. Program Details'!$B$3,'BLS Wage Rates'!$A$3:$Z$3,0)),0) -> $0.00 | E12: $0.00
D13: =IFERROR(INDEX('BLS Wage Rates'!$A$3:$Z$65,MATCH('3A. In-Kind Labor '!$B13,'BLS Wage Rates'!$A$3:$A$65,0),MATCH('1. Program Details'!$B$3,'BLS Wage Rates'!$A$3:$Z$3,0)),0) -> $0.00 | E13: $0.00
D14: =IFERROR(INDEX('BLS Wage Rates'!$A$3:$Z$65,MATCH('3A. In-Kind Labor '!$B14,'BLS Wage Rates'!$A$3:$A$65,0),MATCH('1. Program Details'!$B$3,'BLS Wage Rates'!$A$3:$Z$3,0)),0) -> $0.00 | E14: $0.00
D15: =IFERROR(INDEX('BLS Wage Rates'!$A$3:$Z$65,MATCH('3A. In-Kind Labor '!$B15,'BLS Wage Rates'!$A$3:$A$65,0),MATCH('1. Program Details'!$B$3,'BLS Wage Rates'!$A$3:$Z$3,0)),0) -> $0.00 | E15: $0.00
D16: =IFERROR(INDEX('BLS Wage Rates'!$A$3:$Z$65,MATCH('3A. In-Kind Labor '!$B16,'BLS Wage Rates'!$A$3:$A$65,0),MATCH('1. Program Details'!$B$3,'BLS Wage Rates'!$A$3:$Z$3,0)),0) -> $0.00 | E16: $0.00
D17: =IFERROR(INDEX('BLS Wage Rates'!$A$3:$Z$65,MATCH('3A. In-Kind Labor '!$B17,'BLS Wage Rates'!$A$3:$A$65,0),MATCH('1. Program Details'!$B$3,'BLS Wage Rates'!$A$3:$Z$3,0)),0) -> $0.00 | E17: $0.00
D18: =IFERROR(INDEX('BLS Wage Rates'!$A$3:$Z$65,MATCH('3A. In-Kind Labor '!$B18,'BLS Wage Rates'!$A$3:$A$65,0),MATCH('1. Program Details'!$B$3,'BLS Wage Rates'!$A$3:$Z$3,0)),0) -> $0.00 | E18: $0.00
D19: =IFERROR(INDEX('BLS Wage Rates'!$A$3:$Z$65,MATCH('3A. In-Kind Labor '!$B19,'BLS Wage Rates'!$A$3:$A$65,0),MATCH('1. Program Details'!$B$3,'BLS Wage Rates'!$A$3:$Z$3,0)),0) -> $0.00 | E19: $0.00
D20: =IFERROR(INDEX('BLS Wage Rates'!$A$3:$Z$65,MATCH('3A. In-Kind Labor '!$B20,'BLS Wage Rates'!$A$3:$A$65,0),MATCH('1. Program Details'!$B$3,'BLS Wage Rates'!$A$3:$Z$3,0)),0) -> $0.00 | E20: $0.00
D21: =IFERROR(INDEX('BLS Wage Rates'!$A$3:$Z$65,MATCH('3A. In-Kind Labor '!$B21,'BLS Wage Rates'!$A$3:$A$65,0),MATCH('1. Program Details'!$B$3,'BLS Wage Rates'!$A$3:$Z$3,0)),0) -> $0.00 | E21: $0.00
D22: =IFERROR(INDEX('BLS Wage Rates'!$A$3:$Z$65,MATCH('3A. In-Kind Labor '!$B22,'BLS Wage Rates'!$A$3:$A$65,0),MATCH('1. Program Details'!$B$3,'BLS Wage Rates'!$A$3:$Z$3,0)),0) -> $0.00 | E22: $0.00
D23: =IFERROR(INDEX('BLS Wage Rates'!$A$3:$Z$65,MATCH('3A. In-Kind Labor '!$B23,'BLS Wage Rates'!$A$3:$A$65,0),MATCH('1. Program Details'!$B$3,'BLS Wage Rates'!$A$3:$Z$3,0)),0) -> $0.00 | E23: $0.00
D24: =IFERROR(INDEX('BLS Wage Rates'!$A$3:$Z$65,MATCH('3A. In-Kind Labor '!$B24,'BLS Wage Rates'!$A$3:$A$65,0),MATCH('1. Program Details'!$B$3,'BLS Wage Rates'!$A$3:$Z$3,0)),0) -> $0.00 | E24: $0.00
D25: =IFERROR(INDEX('BLS Wage Rates'!$A$3:$Z$65,MATCH('3A. In-Kind Labor '!$B25,'BLS Wage Rates'!$A$3:$A$65,0),MATCH('1. Program Details'!$B$3,'BLS Wage Rates'!$A$3:$Z$3,0)),0) -> $0.00 | E25: $0.00
D26: =IFERROR(INDEX('BLS Wage Rates'!$A$3:$Z$65,MATCH('3A. In-Kind Labor '!$B26,'BLS Wage Rates'!$A$3:$A$65,0),MATCH('1. Program Details'!$B$3,'BLS Wage Rates'!$A$3:$Z$3,0)),0) -> $0.00 | E26: $0.00
D27: =IFERROR(INDEX('BLS Wage Rates'!$A$3:$Z$65,MATCH('3A. In-Kind Labor '!$B27,'BLS Wage Rates'!$A$3:$A$65,0),MATCH('1. Program Details'!$B$3,'BLS Wage Rates'!$A$3:$Z$3,0)),0) -> $0.00 | E27: $0.00
D28: =IFERROR(INDEX('BLS Wage Rates'!$A$3:$Z$65,MATCH('3A. In-Kind Labor '!$B28,'BLS Wage Rates'!$A$3:$A$65,0),MATCH('1. Program Details'!$B$3,'BLS Wage Rates'!$A$3:$Z$3,0)),0) -> $0.00 | E28: $0.00
D29: =IFERROR(INDEX('BLS Wage Rates'!$A$3:$Z$65,MATCH('3A. In-Kind Labor '!$B29,'BLS Wage Rates'!$A$3:$A$65,0),MATCH('1. Program Details'!$B$3,'BLS Wage Rates'!$A$3:$Z$3,0)),0) -> $0.00 | E29: $0.00
D30: =IFERROR(INDEX('BLS Wage Rates'!$A$3:$Z$65,MATCH('3A. In-Kind Labor '!$B30,'BLS Wage Rates'!$A$3:$A$65,0),MATCH('1. Program Details'!$B$3,'BLS Wage Rates'!$A$3:$Z$3,0)),0) -> $0.00 | E30: $0.00
D31: =IFERROR(INDEX('BLS Wage Rates'!$A$3:$Z$65,MATCH('3A. In-Kind Labor '!$B31,'BLS Wage Rates'!$A$3:$A$65,0),MATCH('1. Program Details'!$B$3,'BLS Wage Rates'!$A$3:$Z$3,0)),0) -> $0.00 | E31: $0.00
D32: =IFERROR(INDEX('BLS Wage Rates'!$A$3:$Z$65,MATCH('3A. In-Kind Labor '!$B32,'BLS Wage Rates'!$A$3:$A$65,0),MATCH('1. Program Details'!$B$3,'BLS Wage Rates'!$A$3:$Z$3,0)),0) -> $0.00 | E32: $0.00
D33: =IFERROR(INDEX('BLS Wage Rates'!$A$3:$Z$65,MATCH('3A. In-Kind Labor '!$B33,'BLS Wage Rates'!$A$3:$A$65,0),MATCH('1. Program Details'!$B$3,'BLS Wage Rates'!$A$3:$Z$3,0)),0) -> $0.00 | E33: $0.00
D34: =IFERROR(INDEX('BLS Wage Rates'!$A$3:$Z$65,MATCH('3A. In-Kind Labor '!$B34,'BLS Wage Rates'!$A$3:$A$65,0),MATCH('1. Program Details'!$B$3,'BLS Wage Rates'!$A$3:$Z$3,0)),0) -> $0.00 | E34: $0.00
D35: =IFERROR(INDEX('BLS Wage Rates'!$A$3:$Z$65,MATCH('3A. In-Kind Labor '!$B35,'BLS Wage Rates'!$A$3:$A$65,0),MATCH('1. Program Details'!$B$3,'BLS Wage Rates'!$A$3:$Z$3,0)),0) -> $0.00 | E35: $0.00
C36: Total: | E36: =SUM(E5:E35) -> $0.00

Sheet 3B. In-Kind Non-Labor
B1: Worksheet for Estimating the Value of In-Kind Non-(Non-paid) Labor Contributions Per Award Year (reference user guide - pg. 7) | J1: Highlighting Key
B2: Year 3 (08/01/2023 - 07/31/2024) | K2: Orange = Enter program information
B3: 3B. Non-Labor (Non-paid) In-Kind Contributions | C3: # of Units | D3: $ Value per unit | E3: Total Cost | F3: Strategy (select all that apply) | G3: Topic (select all that apply) | H3: Comments | K3: Yellow = Automatically populated and/or to be entered by CDC
B4: (e.g.) Donated rental facility for campaign kick-off event | C4: 1 | D4: $300.00 | E4: =C4*D4 -> $300.00 | F4: Data and Surveillance; Collaborations and Partnerships | G4: Other Topic (please specify in comments) | K4: Blue - Enter any comments, feedback, or questions
B5: (e.g.) Dell Laptops | C5: 5 | D5: $500.00 | E5: =C5*D5 -> $2,500.00 | F5: Assessment and Evaluation | G5: Adverse Childhood Experiences (ACEs); Transportation Safety | K5: Light Gray = Examples for reference or N/A
E6: =C6*D6 -> $0.00
E7: =C7*D7 -> $0.00
E8: $0.00
E9: $0.00
E10: $0.00
E11: $0.00
E12: $0.00
E13: $0.00
E14: $0.00
E15: $0.00
E16: $0.00
E17: $0.00
E18: $0.00
E19: $0.00
E20: $0.00
E21: $0.00
E22: $0.00
E23: $0.00
E24: $0.00
E25: $0.00
E26: $0.00
E27: $0.00
E28: $0.00
E29: $0.00
E30: $0.00
E31: $0.00
E32: $0.00
E33: $0.00
E34: $0.00
E35: $0.00
E36: $0.00
B37: Total: | E37: =SUM(E6:E36) -> $0.00

Sheet 4. Personnel
A1: Worksheet for Estimating Personnel Costs Per Award Year (reference user guide - pg. 8) | N1: Highlighting Key
A2: Year 3 (08/01/2023 - 07/31/2024) | C2: FTE % (a full- time employee is 100%) | D2: % Time Spent on Core SIPP | E2: Months employed in program year | F2: Salary (salaries are the total annual salaries paid to staff - not just the amounts related to Core SIPP activities) | I2: Total Salary Allocated to Core SIPP (Column C x Column D x Column H) | J2: % of Total Core SIPP Cost (Column I) covered by non-Core SIPP Funding (i.e. was paid by one of your reported "other sources of funding") | K2: Comments | O2: Orange = Enter program information
B3: Personnel | F3: Annual FTE Base Salary | G3: Annual FTE Fringe | H3: Total Annual FTE Salary | O3: Yellow = Automatically populated and/or to be entered by CDC
A4: (e.g) | B4: Project Director | C4: 100.00% | D4: 75.00% | E4: 12 | F4: $50,000.00 | G4: $15,000.00 | H4: =SUM(F4:G4)*E4/12 -> $65,000.00 | I4: =H4*C4*D4 -> $48,750.00 | J4: 50% | O4: Blue - Enter any comments, feedback, or questions
A5: (e.g) | B5: Epidemiologist | C5: 100.00% | D5: 50.00% | E5: 9 | F5: $30,000.00 | G5: $15,000.00 | H5: =SUM(F5:G5)*E5/12 -> $33,750.00 | I5: =H5*C5*D5 -> $16,875.00 | J5: 0% | O5: Light Gray = Examples for reference or N/A
A6: 1 | H6: =SUM(F6:G6)*E6/12 -> $0.00 | I6: =H6*C6*D6 -> $0.00
A7: =A6+1 -> 2 | H7: =SUM(F7:G7)*E7/12 -> $0.00 | I7: =H7*C7*D7 -> $0.00
A8: =A7+1 -> 3 | H8: =SUM(F8:G8)*(E8/12) -> $0.00 | I8: $0.00
A9: 4 | H9: =SUM(F9:G9)*(E9/12) -> $0.00 | I9: $0.00
A10: 5 | H10: $0.00 | I10: $0.00
A11: 6 | H11: $0.00 | I11: $0.00
A12: 7 | H12: $0.00 | I12: $0.00
A13: 8 | H13: $0.00 | I13: $0.00
A14: 9 | H14: $0.00 | I14: $0.00
A15: 10 | H15: $0.00 | I15: $0.00
A16: 11 | H16: $0.00 | I16: $0.00
A17: 12 | H17: $0.00 | I17: $0.00
A18: 13 | H18: $0.00 | I18: $0.00
A19: 14 | H19: $0.00 | I19: $0.00
A20: 15 | H20: $0.00 | I20: $0.00
A21: 16 | H21: =SUM(F21:G21)*(E21/12) -> $0.00 | I21: =H21*C21*D21 -> $0.00
A22: 17 | H22: $0.00 | I22: $0.00
A23: 18 | H23: $0.00 | I23: $0.00
A24: 19 | H24: $0.00 | I24: $0.00
A25: 20 | H25: $0.00 | I25: $0.00
A26: 21 | H26: $0.00 | I26: $0.00
A27: 22 | H27: $0.00 | I27: $0.00
A28: 23 | H28: =SUM(F28:G28)*(E28/12) -> $0.00 | I28: =H28*C28*D28 -> $0.00
A29: 24 | H29: $0.00 | I29: $0.00
A30: 25 | H30: $0.00 | I30: $0.00
A31: 26 | H31: $0.00 | I31: $0.00
A32: 27 | H32: $0.00 | I32: $0.00
A33: 28 | H33: $0.00 | I33: $0.00
A34: 29 | H34: $0.00 | I34: $0.00
A35: 30 | H35: $0.00 | I35: $0.00
A36: 31 | H36: $0.00 | I36: $0.00
A37: 32 | H37: $0.00 | I37: $0.00
A38: 33 | H38: $0.00 | I38: $0.00
A39: 34 | H39: $0.00 | I39: $0.00
A40: 35 | H40: $0.00 | I40: $0.00
E41: Total: | F41: =SUM(F6:F40) -> $0 | G41: =SUM(G6:G40) -> $0 | H41: =SUM(H6:H40) -> $0 | I41: =SUM(I6:I40) -> $0

Sheet 5. Personnel Strategies
A1: Worksheet for recording percentage of time spent on each specific strategy, by each staff member, per award year (reference user guide - pg. 9) | D1: Year 3 (08/01/2023 - 07/31/2024) | AM1: Comments
B3: ='4. Personnel '!B4 -> Project Director | C3: ='4. Personnel '!B5 -> Epidemiologist | D3: =TRANSPOSE('4. Personnel '!B6:B40) -> 0 | E3: 0 | F3: 0 | G3: 0 | H3: 0 | I3: 0 | J3: 0 | K3: 0 | L3: 0 | M3: 0 | N3: 0 | O3: 0 | P3: 0 | Q3: 0 | R3: 0 | S3: 0 | T3: 0 | U3: 0 | V3: 0 | W3: 0 | X3: 0 | Y3: 0 | Z3: 0 | AA3: 0 | AB3: 0 | AC3: 0 | AD3: 0 | AE3: 0 | AF3: 0 | AG3: 0 | AH3: 0 | AI3: 0 | AJ3: 0 | AK3: 0 | AL3: 0
A4: Data and Surveillance | B4: 25.00% | C4: 50.00%
A5: Collaborations and Partnerships | B5: 25.00%
A6: Assessment and Evaluation | B6: 50.00% | C6: 50.00%
A7: Total (Column total must sum to 100%) | B7: =SUM(B4:B6) -> 100% | C7: 100% | D7: 0% | E7: 0% | F7: 0% | G7: 0% | H7: 0% | I7: 0% | J7: 0% | K7: 0% | L7: 0% | M7: 0% | N7: 0% | O7: 0% | P7: 0% | Q7: 0% | R7: 0% | S7: 0% | T7: 0% | U7: 0% | V7: 0% | W7: 0% | X7: 0% | Y7: 0% | Z7: 0% | AA7: 0% | AB7: 0% | AC7: 0% | AD7: 0% | AE7: 0% | AF7: 0% | AG7: 0% | AH7: 0% | AI7: 0% | AJ7: 0% | AK7: 0% | AL7: 0%
A8: Comments
A9: Check: Total= 100% for each staff member (otherwise 0%) | D9: =IF(D3=0,IF(D7=0%,"ok","ERROR"),IF(D7=100%,"ok","ERROR")) -> ok | E9: ok | F9: ok | G9: ok | H9: ok | I9: ok | J9: ok | K9: ok | L9: ok | M9: ok | N9: ok | O9: ok | P9: ok | Q9: ok | R9: ok | S9: ok | T9: ok | U9: ok | V9: ok | W9: ok | X9: ok | Y9: ok | Z9: ok | AA9: ok | AB9: ok | AC9: ok | AD9: ok | AE9: ok | AF9: ok | AG9: ok | AH9: ok | AI9: ok | AJ9: ok | AK9: ok | AL9: ok

Sheet 6. Personnel Topics
A1: Worksheet for recording percentage of time spent on each specific topic, by each staff member, per award year (reference user guide - pg. 10) | D1: Year 3 (08/01/2023 - 07/31/2024) | AM1: Comments
B3: ='4. Personnel '!B4 -> Project Director | C3: ='4. Personnel '!B5 -> Epidemiologist | D3: =TRANSPOSE('4. Personnel '!B6:B40) -> 0 | E3: 0 | F3: 0 | G3: 0 | H3: 0 | I3: 0 | J3: 0 | K3: 0 | L3: 0 | M3: 0 | N3: 0 | O3: 0 | P3: 0 | Q3: 0 | R3: 0 | S3: 0 | T3: 0 | U3: 0 | V3: 0 | W3: 0 | X3: 0 | Y3: 0 | Z3: 0 | AA3: 0 | AB3: 0 | AC3: 0 | AD3: 0 | AE3: 0 | AF3: 0 | AG3: 0 | AH3: 0 | AI3: 0 | AJ3: 0 | AK3: 0 | AL3: 0
A4: Adverse Childhood Experiences (ACEs) | B4: 25.00% | C4: 33.33%
A5: Transportation Safety | B5: 25.00% | C5: 33.33%
A6: Traumatic Brain Injury | B6: 25.00% | C6: 33.34%
A7: Other Topic (please specify in comments) | B7: 25.00% | AM7: Suicide Prevention
A8: Other Topic (please specify in comments)
A9: Other Topic (please specify in comments)
A10: Total (Column total must sum to 100%) | B10: =SUM(B4:B9) -> 100% | C10: 100% | D10: 0% | E10: =SUM(E4:E9) -> 0% | F10: 0% | G10: 0% | H10: 0% | I10: 0% | J10: 0% | K10: 0% | L10: 0% | M10: 0% | N10: 0% | O10: 0% | P10: 0% | Q10: 0% | R10: 0% | S10: 0% | T10: 0% | U10: 0% | V10: 0% | W10: 0% | X10: 0% | Y10: 0% | Z10: 0% | AA10: 0% | AB10: 0% | AC10: 0% | AD10: 0% | AE10: 0% | AF10: 0% | AG10: 0% | AH10: 0% | AI10: 0% | AJ10: 0% | AK10: 0% | AL10: 0%
A11: Comments
A12: Check: Total= 100% for each staff member (otherwise 0%) | D12: =IF(D3=0,IF(D10=0%,"ok","ERROR"),IF(D10=100%,"ok","ERROR")) -> ok | E12: =IF(E3=0,IF(E10=0%,"ok","ERROR"),IF(E10=100%,"ok","ERROR")) -> ok | F12: ok | G12: ok | H12: ok | I12: ok | J12: ok | K12: ok | L12: ok | M12: ok | N12: ok | O12: ok | P12: ok | Q12: ok | R12: ok | S12: ok | T12: ok | U12: ok | V12: ok | W12: ok | X12: ok | Y12: ok | Z12: ok | AA12: ok | AB12: ok | AC12: ok | AD12: ok | AE12: ok | AF12: ok | AG12: ok | AH12: ok | AI12: ok | AJ12: ok | AK12: ok | AL12: ok

Sheet 7. Consultant Costs
A1: Worksheet for Estimating Consultant Costs Per Award Year (reference user guide - pg. 11) | I1: Highlighting Key
A2: Year 3 (08/01/2023 - 07/31/2024) | J2: Orange = Enter program information
B3: Type of Good/Service Purchased | C3: Annual Payment | D3: Strategy (select all that apply) | E3: Topic (select all that apply) | F3: % of Payment covered by non-Core SIPP Funding (i.e. was paid by one of your reported "other sources of funding" | G3: Comments | J3: Yellow = Automatically populated and/or to be entered by CDC
A4: (e.g.) | B4: Software Developer | C4: $10,000.00 | D4: Data and Surveillance; Collaborations and Partnerships | E4: Adverse Childhood Experiences (ACEs) | F4: 50.0% | J4: Blue - Enter any comments, feedback, or questions
A5: (e.g.) | B5: Communications Advisor | C5: $25,000.00 | D5: Assessment and Evaluation | E5: Transportation Safety; Other Topic (please specify in comments) | F5: 75.0% | J5: Light Gray = Examples for reference or N/A
A6: 1
A7: =A6+1 -> 2
A8: =A7+1 -> 3
A9: 4
A10: 5
A11: 6
A12: 7
A13: 8
A14: 9
A15: 10
A16: 11
A17: 12
A18: 13
A19: 14
A20: 15
A21: 16
A22: 17
A23: 18
A24: 19
A25: 20
A26: 21
A27: 22
A28: 23
A29: 24
A30: 25
B31: Total | C31: =SUM(C6:C30) -> $0.00

Sheet 8. Contracts
A1: Worksheet for Estimating Contracts Per Award Year (reference user guide - pg. 12)
A2: Year 3 (08/01/2023 - 07/31/2024) | I2: Highlighting Key
B3: Type of Good/Service Purchased | C3: Contract Amount | D3: Strategy (select all that apply) | E3: Topic (select all that apply) | F3: % of Payment covered by non-Core SIPP Funding (i.e. was paid by one of your reported "other sources of funding" | G3: Comments | J3: Orange = Enter program information
A4: (e.g.) | B4: Sub-award to University for evaluation | C4: $50,000.00 | D4: Assessment and Evaluation; Data and Surveillance | E4: Adverse Childhood Experiences (ACEs) | F4: 50.00% | J4: Yellow = Automatically populated and/or to be entered by CDC
A5: (e.g.) | B5: Marketing Vendor | C5: $25,000.00 | D5: Collaborations and Partnerships | E5: Transportation Safety; Traumatic Brain Injury | F5: 60.00% | J5: Blue - Enter any comments, feedback, or questions
A6: 1 | J6: Light Gray = Examples for reference or N/A
A7: =A6+1 -> 2
A8: =A7+1 -> 3
A9: 4
A10: 5
A11: 6
A12: 7
A13: 8
A14: 9
A15: 10
A16: 11
A17: 12
A18: 13
A19: 14
A20: 15
A21: 16
A22: 17
A23: 18
A24: 19
A25: 20
A26: 21
A27: 22
A28: 23
A29: 24
A30: 25
B31: Total : | C31: =SUM(C6:C30) -> $0.00

Sheet 9. Supplies
B1: Worksheet for Estimating Training and Material Costs Per Award Year (reference user guide - pg. 13) | M1: Highlighting Key
B2: Year 3 (08/01/2023 - 07/31/2024) | N2: Orange = Enter program information
B3: Category | C3: Type of Good/Service Purchased | D3: # Units | E3: Cost per Unit ($) | F3: Total Cost | G3: Total Cost (Enter total here only if # units and cost per unit are unknown) | H3: Strategy (select all that apply) | I3: Topic (select all that apply) | J3: % of Payment covered by non-Core SIPP Funding (i.e. was paid by one of your reported "other sources of funding" | K3: Comments | N3: Yellow = Automatically populated and/or to be entered by CDC
B4: Office Equipment | C4: (e.g.) Dell Computers | D4: 5 | E4: $1,200.00 | F4: =D4*E4 -> $6,000.00 | H4: Data and Surveillance | I4: Traumatic Brain Injury | J4: 20% | N4: Blue - Enter any comments, feedback, or questions
B5: Postage/Mailing | C5: (e.g.) Stamps | D5: 500 | E5: $0.45 | F5: $225.00 | H5: Assessment and Evaluation | I5: Adverse Childhood Experiences (ACEs); Other Topic (please specify in comments) | J5: 30% | N5: Light Gray = Examples for reference or N/A
B6: Software | C6: (e.g) NVivo | D6: 2 | E6: $400.00 | F6: $800.00 | H6: Collaborations and Partnerships; Data and Surveillance | I6: Transportation Safety | J6: 75%
B7: Incentives/Stipends | C7: (e.g) Gift Cards | D7: 50 | E7: $20.00 | F7: $1,000.00 | H7: Assessment and Evaluation | I7: Other Topic (please specify in comments) | J7: 100%
B8: Training Fees | C8: (e.g.) ACEs Training | D8: 1 | E8: $300.00 | F8: $300.00 | H8: Data and Surveillance; Assessment and Evaluation; Collaborations and Partnerships | I8: Adverse Childhood Experiences (ACEs); Transportation Safety; Traumatic Brain Injury | J8: 100%
A9: 1 | F9: =D9*E9 -> $0.00
A10: =A9+1 -> 2 | F10: $0.00
A11: =A10+1 -> 3 | F11: $0.00
A12: 4 | F12: $0.00
A13: 5 | F13: $0.00
A14: 6 | F14: $0.00
A15: 7 | F15: $0.00
A16: 8 | F16: $0.00
A17: 9 | F17: $0.00
A18: 10 | F18: $0.00
A19: 11 | F19: $0.00
A20: 12 | F20: $0.00
A21: 13 | F21: $0.00
A22: 14 | F22: $0.00
A23: 15 | F23: $0.00
A24: 16 | F24: $0.00
A25: 17 | F25: $0.00
A26: 18 | F26: $0.00
A27: 19 | F27: $0.00
A28: 20 | F28: $0.00
A29: 21 | F29: $0.00
A30: 22 | F30: $0.00
A31: 23 | F31: $0.00
A32: 24 | F32: $0.00
A33: 25 | F33: $0.00
A34: 26 | F34: $0.00
A35: 27 | F35: $0.00
A36: 28 | F36: $0.00
A37: 29 | F37: $0.00
A38: 30 | F38: $0.00
A39: 31 | F39: $0.00
A40: 32 | F40: $0.00
A41: 33 | F41: $0.00
A42: 34 | F42: $0.00
A43: 35 | F43: $0.00
A44: 36 | F44: $0.00
A45: 37 | F45: $0.00
A46: 38 | F46: $0.00
A47: 39 | F47: $0.00
A48: 40 | F48: $0.00
A49: 41 | F49: $0.00
A50: 42 | F50: $0.00
A51: 43 | F51: $0.00
A52: 44 | F52: $0.00
A53: 45 | F53: $0.00
A54: 46 | F54: $0.00
A55: 47 | F55: $0.00
A56: 48 | F56: $0.00
A57: 49 | F57: $0.00
A58: 50 | F58: $0.00
D59: Total : | F59: =SUM(F9:F58) -> $0.00 | G59: =SUM(G9:G58) -> $0.00

Sheet 10a. Travel (Local)
A1: Worksheet for Estimating Local Transportation Costs Per Award Year (reference user guide - pg. 14) | P1: Highlighting Key
A2: Year 3 (08/01/2023 - 07/31/2024) | Q2: Orange = Enter program information
B3: Local Transportation | C3: Event Description | D3: Mileage (POV only) | E3: POV Mileage Rate | F3: Rental Car Fee | G3: Bus/Train Transit Fare | H3: Taxi/Lyft/Uber Fare | I3: Parking Fees | J3: Strategy (select all that apply) | K3: Topic (select all that apply) | L3: Total Cost | M3: % of Payment covered by non-Core SIPP Funding (i.e. was paid by one of your reported "other sources of funding" | N3: Comments | Q3: Yellow = Automatically populated and/or to be entered by CDC
B4: (e.g) Personally Owned Vehicle (POV) | C4: Training | D4: 26.2 | E4: 0.55 | I4: $10.00 | J4: Data and Surveillance | K4: Other Topic (please specify in comments) | L4: =(D4*E4)+SUM(F4:I4) -> $24.28 | M4: 25% | Q4: Blue - Enter any comments, feedback, or questions
B5: (e.g.) Train | G5: $35.00 | J5: Collaborations and Partnerships; Assessment and Evaluation | K5: Traumatic Brain Injury | L5: =(D5*E5)+SUM(F5:I5) -> $35.00 | M5: 100% | Q5: Light Gray = Examples for reference or N/A
A6: 1 | L6: $0.00
A7: =A6+1 -> 2 | L7: $0.00
A8: =A7+1 -> 3 | L8: $0.00
A9: 4 | L9: $0.00
A10: 5 | L10: $0.00
A11: 6 | L11: $0.00
A12: 7 | L12: $0.00
A13: 8 | L13: $0.00
A14: 9 | L14: $0.00
A15: 10 | L15: $0.00
A16: 11 | L16: $0.00
A17: 12 | L17: $0.00
A18: 13 | L18: $0.00
A19: 14 | L19: $0.00
A20: 15 | L20: $0.00
A21: 16 | L21: $0.00
A22: 17 | L22: $0.00
A23: 18 | L23: $0.00
A24: 19 | L24: $0.00
A25: 20 | L25: $0.00
A26: 21 | L26: $0.00
A27: 22 | L27: $0.00
A28: 23 | L28: $0.00
A29: 24 | L29: $0.00
A30: 25 | L30: $0.00
A31: 26 | L31: $0.00
A32: 27 | L32: $0.00
A33: 28 | L33: $0.00
A34: 29 | L34: $0.00
A35: 30 | L35: $0.00
A36: 31 | L36: $0.00
A37: 32 | L37: $0.00
A38: 33 | L38: $0.00
A39: 34 | L39: $0.00
A40: 35 | L40: =(D40*E40)+(F40+G40) -> $0.00
B41: Total: | L41: =SUM(L6:L40) -> $0.00

Sheet 10b. Travel (Non-Local)
B1: Worksheet for Estimating Non-Local Travel and Transportation Costs Per Award Year (reference user guide - pg. 14) | L1: Highlighting Key
B2: Year 3 (08/01/2023 - 07/31/2024) | M2: Orange = Enter program information
B3: Travel | C3: # People/Units | D3: Cost per Person/Unit ($) | E3: Total Cost | F3: Total Cost (Enter total here only if # units and cost per unit are unknown) | G3: Strategy (select all that apply) | H3: Topic (select all that apply) | I3: % of Payment covered by non-Core SIPP Funding (i.e. was paid by one of your reported "other sources of funding" | J3: Comments | M3: Yellow = Automatically populated and/or to be entered by CDC
B4: APHA Conference | C4: 4 | D4: $1,200.00 | E4: =C4*D4 -> $4,800.00 | G4: Data and Surveillance; Collaborations and Partnerships | H4: Adverse Childhood Experiences (ACEs) | I4: 60% | M4: Blue - Enter any comments, feedback, or questions
B5: Safe States Meeting | C5: 3 | D5: $550.00 | E5: $1,650.00 | G5: Assessment and Evaluation | H5: Transportation Safety; Other Topic (please specify in comments) | I5: 0% | M5: Light Gray = Examples for reference or N/A
A6: 1 | E6: $0.00
A7: =A6+1 -> 2 | E7: $0.00
A8: =A7+1 -> 3 | E8: $0.00
A9: 4 | E9: $0.00
A10: 5 | E10: $0.00
A11: 6 | E11: $0.00
A12: 7 | E12: $0.00
A13: 8 | E13: $0.00
A14: 9 | E14: $0.00
A15: 10 | E15: $0.00
A16: 11 | E16: $0.00
A17: 12 | E17: $0.00
A18: 13 | E18: $0.00
A19: 14 | E19: $0.00
A20: 15 | E20: $0.00
A21: 16 | E21: $0.00
A22: 17 | E22: $0.00
A23: 18 | E23: $0.00
A24: 19 | E24: $0.00
A25: 20 | E25: $0.00
A26: 21 | E26: $0.00
A27: 22 | E27: $0.00
A28: 23 | E28: $0.00
A29: 24 | E29: $0.00
A30: 25 | E30: $0.00
A31: 26 | E31: $0.00
A32: 27 | E32: $0.00
A33: 28 | E33: $0.00
A34: 29 | E34: $0.00
A35: 30 | E35: $0.00
A36: 31 | E36: $0.00
A37: 32 | E37: $0.00
A38: 33 | E38: $0.00
A39: 34 | E39: $0.00
A40: 35 | E40: $0.00
C41: Total : | E41: =SUM(E6:E40) -> $0.00 | F41: =SUM(F6:F40) -> $0.00

Sheet 11. Administrative
A1: Worksheet for Estimating Administrative (Overhead) Costs Per Award Year (reference user guide - pg. 15) | H1: Highlighting Key
A2: Year 3 (08/01/2023 - 07/31/2024) | F2: Comments | I2: Orange = Enter program information
A3: 11A. Allocation Methodology | B3: Yes/No | C3: % | D3: $ Amount | E3: % of Payment covered by non-Core SIPP Funding (i.e. was paid by one of your reported "other sources of funding" | I3: Yellow = Automatically populated and/or to be entered by CDC
A4: Is administrative overhead charged as a proportion of direct cost? (Yes/No)→ | B4: No | I4: Blue - Enter any comments, feedback, or questions
A5: — If yes, please indicate indirect cost rate (%) in percent column and dollar amount in amount column → | I5: Light Gray = Examples for reference or N/A
A6: — If no, please provide lump-sum payment amount in amount column and proceed to Section 11B. →
A7: Other: please specify in comments
C8: Total 11A : | D8: =SUM(D5:D7) -> $0.00
A9: 11B. If lump sum payment, indicate by Yes/No if the following costs are included in the administrative or overhead costs reported above. If these are paid for as specific line item charges in addition to the administrative costs, please provide the dollar amount in the amount column. | B9: Yes/No (If no, please provide amount in amount column) | D9: $ Amount | E9: % of Payment covered by non-Core SIPP Funding (i.e. was paid by one of your reported "other sources of funding"
A10: Rent for office space
A11: Utilities (Water, Gas, Electric)
A12: Repairs/maintenance
A13: Network connection/maintenance (i.e. internet connection charge)
A14: Phone Service (i.e. local phone service, long distance or cell phone charges)
A15: Shared office equipment
A16: Other costs: Please specify in comments
C17: Total 11B : | D17: =SUM(D10:D16) -> $0.00
B18: Total Administrative Overhead | D18: =SUM(D8+D17) -> $0.00

Sheet 12.Partner Involvement
B1: Worksheet for Estimating the Value of Partner Involvement Per Award Year (reference user guide - pg. 16) | J1: Highlighting Key
B2: Year 3 (08/01/2023 - 07/31/2024) | K2: Orange = Enter program information
B3: Meeting Date | C3: Please provide a brief description of the meeting: | D3: How many partners attended the meeting (Do not include Core SIPP personnel/staff of the health department) | E3: Meeting duration (How many hours (on average) is each meeting?) | F3: Please select the roles that best describe the meeting attendees: | G3: Strategy (select all that apply) | H3: Topic (select all that apply) | I3: Comments | K3: Yellow = Automatically populated and/or to be entered by CDC
A4: (e.g.) | B4: 2021-01-31 | C4: Meeting A was a meeting with the physician board of Hospital X to discuss rates and prevention strategis of motor vehicle deaths. | D4: 25 | E4: 1 | F4: Medical Director | G4: Data and Surveillance; Collaborations and Partnerships | H4: Transportation Safety | K4: Blue - Enter any comments, feedback, or questions
A5: (e.g.) | B5: 2021-01-31 | C5: Meeting B was a tabling event where students from high schools across the county were provided pamphlets on suicide prevention. | D5: 10 | E5: 1 | F5: Health Program Coordinator | G5: Data and Surveillance | H5: Other Topic (please specify in comments); Adverse Childhood Experiences (ACEs) | I5: Other Strategy: Outreach Other Topic: Suicide prevention | K5: Light Gray = Examples for reference or N/A
A6: 1
A7: 2
A8: 3
A9: 4
A10: 5
A11: 6
A12: 7
A13: 8
A14: 9
A15: 10
A16: 11
A17: 12
A18: 13
A19: 14
A20: 15
A21: 16
A22: 17
A23: 18
A24: 19
A25: 20
A26: 21
A27: 22
A28: 23
A29: 24
A30: 25
A31: 26
A32: 27
A33: 28
A34: 29
A35: 30
A36: 31
A37: 32
A38: 33
A39: 34
A40: 35
A41: 36
A42: 37
A43: 38
A44: 39
A45: 40
A46: 41
A47: 42
A48: 43
A49: 44
A50: 45
A51: 46
A52: 47
A53: 48
A54: 49
A55: 50
A56: 51
A57: 52
A58: 53
A59: 54
A60: 55
A61: 56
A62: 57
A63: 58
A64: 59
A65: 60
A66: 61
A67: 62
A68: 63
A69: 64
A70: 65
A71: 66
A72: 67
A73: 68
A74: 69
A75: 70
A76: 71
A77: 72
A78: 73
A79: 74
A80: 75
A81: 76
A82: 77
A83: 78
A84: 79
A85: 80
A86: 81
A87: 82
A88: 83
A89: 84
A90: 85
A91: 86
A92: 87
A93: 88
A94: 89
A95: 90
A96: 91
A97: 92
A98: 93
A99: 94
A100: 95
A101: 96
A102: 97
A103: 98
A104: 99
A105: 100
A106: 101
A107: 102
A108: 103
A109: 104
A110: 105
A111: 106
A112: 107
A113: 108
A114: 109
A115: 110
A116: 111
A117: 112
A118: 113
A119: 114
A120: 115
A121: 116
A122: 117
A123: 118
A124: 119
A125: 120
A126: 121
A127: 122
A128: 123
A129: 124
A130: 125
A131: 126
A132: 127
A133: 128
A134: 129
A135: 130
A136: 131
A137: 132
A138: 133
A139: 134
A140: 135
A141: 136
A142: 137
A143: 138
A144: 139
A145: 140
A146: 141
A147: 142
A148: 143
A149: 144
A150: 145
A151: 146
A152: 147
A153: 148
A154: 149
A155: 150
A156: 151
A157: 152
A158: 153
A159: 154
A160: 155
A161: 156
A162: 157
A163: 158
A164: 159
A165: 160
A166: 161
A167: 162
A168: 163
A169: 164
A170: 165
A171: 166
A172: 167
A173: 168
A174: 169
A175: 170
A176: 171
A177: 172
A178: 173
A179: 174
A180: 175
A181: 176
A182: 177
A183: 178
A184: 179
A185: 180
A186: 181
A187: 182
A188: 183
A189: 184
A190: 185
A191: 186
A192: 187
A193: 188
A194: 189
A195: 190
A196: 191
A197: 192
A198: 193
A199: 194
A200: 195
... 800 more rows

Sheet Check
A1: Expenditures by Category | B1: Core SIPP Funded | C1: Leverage Funded | D1: Total
A2: Personnel | B2: ='4. Personnel '!I41-Check!C2 -> 0 | C2: =SUMPRODUCT('4. Personnel '!$I$6:$I$40,'4. Personnel '!$J$6:$J$40) -> 0 | D2: =SUM(B2:C2) -> 0
A3: Consultants | B3: ='7. Consultant Costs'!C31-Check!C3 -> 0 | C3: =SUMPRODUCT('7. Consultant Costs'!$C$6:$C$30,'7. Consultant Costs'!$F$6:$F$30) -> 0 | D3: =SUM(B3:C3) -> 0
A4: Contracts | B4: ='8. Contracts'!C31-Check!C4 -> 0 | C4: =SUMPRODUCT('8. Contracts'!$C$6:$C$30,'8. Contracts'!$F$6:$F$30) -> 0 | D4: 0
A5: Supplies | B5: =SUM('9. Supplies'!F59:G59)-Check!C5 -> 0 | C5: =SUMPRODUCT('9. Supplies'!$F$9:$F$58,'9. Supplies'!$J$9:$J$58)+SUMPRODUCT('9. Supplies'!$G$9:$G$58,'9. Supplies'!$J$9:$J$58) -> 0 | D5: 0
A6: Travel | B6: =SUM('10a. Travel (Local)'!L41,'10b. Travel (Non-Local)'!E41:F41)-Check!C6 -> 0 | C6: =SUMPRODUCT('10a. Travel (Local)'!$L$6:$L$40,'10a. Travel (Local)'!$M$6:$M$40)+SUMPRODUCT('10b. Travel (Non-Local)'!$E$6:$E$40,'10b. Travel (Non-Local)'!$I$6:$I$40)+SUMPRODUCT('10b. Travel (Non-Local)'!$F$6:$F$40,'10b. Travel (Non-Local)'!$I$6:$I$40) -> 0 | D6: 0
A7: Administrative | B7: ='11. Administrative'!D18-Check!C7 -> 0 | C7: =SUMPRODUCT('11. Administrative'!$D$10:$D$16,'11. Administrative'!$E$10:$E$16)+('11. Administrative'!D8*'11. Administrative'!E8) -> 0 | D7: 0
A8: Total Expenditures (excludes in-kind) | B8: =SUM(B2:B7) -> 0 | C8: =SUM(C2:C7) -> 0 | D8: 0
A10: Total Reported Funding | B10: ='2.Total Allocated Program Funds'!B7 -> $250,000.00 | C10: ='2.Total Allocated Program Funds'!B36 -> 0 | D10: =SUM(B10:C10) -> $250,000.00
A12: Do Expenditures match Reported Funding? | B12: =IF(AND(B13<5%,B13>-5%),"ok","ERROR") -> ok | C12: =IF(AND(C13<5%,C13>-5%),"ok","ERROR") -> ok | D12: =IF(AND(D13<5%,D13>-5%),"ok","ERROR") -> ok
A13: % Difference | B13: =IF(B8>0,(B10-B8)/B10,0) -> 0% | C13: =IF(C8>0,(C10-C8)/C10,0) -> 0% | D13: 0%

Sheet Inputs
A1: Source:
A2: Program Name: | B2: Other Funding Sources: | C2: Strategies: | D2: Topics: | E2: Rationale for Procuring Leveraged Funds: | F2: Personnel: | G2: Supply Cost Categories: | H2: Transportation Categories: | I2: Other values:
A3: Alaska | B3: Non-Core SIPP CDC Funds | C3: Data and Surveillance | D3: Adverse Childhood Experiences (ACEs) | E3: The required scope of implementation could not have been achieved without these funds, which were newly acquired for this program following receipt of the CDC award. | F3: Administrative Assistant | G3: Capital materials (1-time expense or major purchase) | H3: Bicycle/Scooter | I3: Yes
A4: California | B4: Non-CDC Federal Funds | C4: Collaborations and Partnerships | D4: Transportation Safety | E4: The required scope of implementation could not have been achieved without these funds, which were were already available prior to receipt of the CDC award. | F4: AmeriCorps Volunteer | G4: Continuing Education/Professional Development | H4: Bus | I4: No
A5: Colorado | B5: State Government Funds | C5: Assessment and Evaluation | D5: Traumatic Brain Injury | E5: These funds enabled expansion of the scope of implementation or exceeding proposal expectations, and were newly acquired for this program following receipt of the CDC award. | F5: Assistant Director | G5: Curriculum/Educational Materials | H5: Personally Owned Vehicle (POV)
A6: Georgia | B6: City or County Funds | D6: Other Topic (please specify in comments) | E6: These funds enabled expansion of the scope of implementation or exceeding proposal expectations, and were already available prior to receipt of the CDC award. | F6: Clerk | G6: Food and Drinks | H6: Rental Car
A7: Illinois | B7: Private Grants | F7: Communications Specialist | G7: Incentives/Stipends | H7: Taxi/Uber/Lyft
A8: Kansas | B8: Corporate Sponsors/Donors | F8: Community Health Educator | G8: Marketing/Promotional Materials | H8: Train
A9: Kentucky | B9: Other (please specify in comments) | F9: Community Health Liaison | G9: Meeting Space | H9: Other (please specify in comments)
A10: Maryland | F10: Community Health Worker | G10: Membership Fees
A11: Massachusetts | F11: Community Outreach Coordinator | G11: Office Equipment
A12: Minnesota | F12: Community Outreach Worker | G12: Postage/Mailing
A13: Mississippi | F13: County Attorney | G13: Small Office Supplies
A14: Montana | F14: Data Analyst | G14: Software/Data
A15: Nebraska | F15: Data Manager | G15: Training Fees
A16: New Mexico | F16: Data Specialist | G16: Translation Services
A17: New York | F17: Director/Deputy Director | G17: Other Supplies (please specify in comments)
A18: North Carolina | F18: Economist
A19: Ohio | F19: Epidemiologist
A20: Oregon | F20: Evaluation Coordinator
A21: Rhode Island | F21: Evaluator
A22: South Carolina | F22: Executive Director, CEO
A23: Tennessee | F23: Fellow
A24: Virginia | F24: Finance Supervisor/Manager
A25: Washington | F25: Financial Services Consultant
A26: Test Program | F26: Fiscal/Financial Analyst
F27: Fiscal/Financial Specialist
F28: Grants Manager
F29: Health Educator
F30: Health Policy Analyst
F31: Health Program Administrator
F32: Health Program Coordinator
F33: Implementation Specialist
F34: Injury Prevention Specialist
F35: Management Analyst
F36: Medical Doctor
F37: Office Manager
F38: Operations & Policy Analyst
F39: Other (please specify in comments)
F40: Police Assistant Chief
F41: Police Commander
F42: Police Officer
F43: Prevention Manager
F44: Principal Investigator
F45: Program Administrator
F46: Program Aide
F47: Program Analyst
F48: Program Assistant
F49: Program Director
F50: Program Manager
F51: Program Site Liaison
F52: Program Specialist
F53: Project Coordinator
F54: Project Director
F55: Project Manager
F56: Public Health Specialist
F57: School Resource Officer
F58: Scientist
F59: Student Intern
F60: Teacher
F61: Trainer
F62: Safety Trainer
F63: Violence Prevention Advocate
F64: Violence Prevention Specialist
F65: Youth Coordinator

Sheet Validation Rules
A1: Error Condition | B1: Error Message
A2: Worksheet Name
A3: Error Condition referencing columns | B3: Message displayed when an error occurs
A5: Program Details (1)
A6: Cells B2, B5-B7, and B10-B12 must have data entered | B6: Required cells are missing values
A8: Total Program Funds (2B)
A9: Under 2B, if data is entered in column A - rows 16 - 35, values must be entered in corresponding rows in columns B, C, D, and E | B9: Required cells are missing values
A10: Total other funding value must be >=0 | B10: $ Value must be positive
A11: Total funding allocated (2A +2B) value must be >=0 | B11: $ Value must be positive
A13: In-kind Labor (3A)
A14: Hours Contributed must be <= 2080 | B14: Hours Contributed cannot be more than 2080
A15: If data is entered in column B - rows 5 - 35, values must be entered in corresponding rows in columns C, F, and G | B15: Required cells are missing values
A16: Column C cannot have negative values | B16: $ Value must be positive
A17: Total (cell E36) value must be >=0 | B17: $ Value must >=0
A19: In-kind Non-Labor (3B)
A20: If data is entered in column B - rows 6 - 36, values must be entered in corresponding rows in columns C, D, F, and G | B20: Required cells are missing values
A21: Columns C and D cannot have negative values | B21: $ Value must be positive
A22: Total (cell E37) value must be >=0 | B22: $ Value must be >=0
A24: Personnel (4)
A25: FTE % must be <= 100% | B25: FTE % must not to exceed 100%
A26: % Time Spent on Core SIPP must be <= 100% | B26: % Time Spent on Core SIPP Strategies and/or Topics must not exceed 100%
A27: Months employed in program year must be <=12 | B27: Months employed in program year must not exceed 12 months
A28: % of Total Core SIPP Cost (Column I) covered by non-Core SIPP Funding must be <= 100% | B28: % Salary paid by other source must not to exceed 100%
A29: Total (cells H41 and I41) values must be >=0 | B29: $ Value must be >=0
A31: Personnel Strategies (5)
A32: % Time Spent on each specific strategy per personnel selected must sum to 100% | B32: % Time Spent on each selected Core SIPP Strategy must sum to and not exceed 100%
A33: Total Row must be <=100% | B33: Total % must not exceed 100%
A35: Personnel Topics (6)
A36: % Time Spent on each specific topic per personnel selected must sum to 100% | B36: % Time Spent on each selected Core SIPP Topic must sum to and not exceed 100%
A37: Total Row must be <=100% | B37: Total % must not exceed 100%
A39: Consultant Costs (7)
A40: % of Payment covered by non-Core SIPP funding must be <=100% | B40: % must not exceed 100%
A41: If data is entered in column B - rows 6 - 30, values must be entered in corresponding rows in columns C, D, E, and F | B41: Required cells are missing values
A42: Total (cell C31) value must be >=0 | B42: $ Value must be >=0
A44: Contracts (8)
A45: % of Payment covered by non-Core SIPP funding must be <=100% | B45: % must not exceed 100%
A46: If data is entered in column B - rows 6 - 30, values must be entered in corresponding rows in columns C, D, E, and F | B46: Required cells are missing values
A47: Total (cell C31) value must be >=0 | B47: $ Value must be >=0
A49: Supplies (9)
A50: If data is entered in column B - rows 9-58, values must be entered in corresponding rows in columns C, H, and I; values must also be entered in corresponding rows in columns D and E or in column G. | B50: Required cells are missing values
A51: Total (cell F59) value must be >=0 | B51: $ Value must be >=0
A52: Total (cell G59) value must be >=0 | B52: $ Value must be >=0
A53: % of Payment covered by non-Core SIPP funding must be <=100% | B53: % must not exceed 100%
A55: Travel Local (10A)
A56: Total (cell L41) value must be >=0 | B56: $ Value must be >=0
A57: % of Payment covered by non-Core SIPP funding must be <=100% | B57: % must not exceed 100%
A59: Travel Non-Local (10B)
A60: Total (cell E41) value must be >=0 | B60: $ Value must be >=0
A61: Total (cell F41) value must be >=0 | B61: $ Value must be >=0
A62: % of Payment covered by non-Core SIPP funding must be <=100% | B62: % must not exceed 100%
A64: Administrative (11)
A65: If yes in section 11A - cell B4, then data must be entered in cells C5 and D5 | B65: Required cells are missing values
A66: Cell C5 must be <100% | B66: Total % must not exceed 100%
A67: If no in section 11A - cell B4, then data must be entered in cell D6 and section 11B - cells B10 - B16 must be selected. | B67: Required cells are missing values
A68: If no in section 11B - cells B10-B16, then data in corresponding cells C10-C16 must be entered | B68: Required cells are missing values
A69: Total (cell D18) value must be >=0 | B69: $ Value must be >=0
A70: % of Payment covered by non-Core SIPP funding must be <=100% | B70: % must not exceed 100%
A72: Partner Involvement (12)
A73: If data is entered in column B or C - rows 6-1000, values must be entered in corresponding rows in columns D, E, F, G, H; values must also be entered in corresponding rows in columns B or C | B73: Required cells are missing values
A74: Values in column D must be numeric | B74: Required cells contain non-numeric data
A75: Values in column E must be numeric | B75: Required cells contain non-numeric data

Sheet Master
A1: ='1. Program Details'!B3 -> Rhode Island | B1: Program Year 3 (08/01/2023 - 07/31/2024)
A3: Total Allocated Program Funding | B3: ='2.Total Allocated Program Funds'!B38 -> $250,000
A5: % Total Funding From Other Sources | B5: ='2.Total Allocated Program Funds'!B36/'2.Total Allocated Program Funds'!B38 -> 0.0%
A7: Distribution of Funding From Other Sources
A8: =Inputs!B3 -> Non-Core SIPP CDC Funds | B8: =SUMIF('2.Total Allocated Program Funds'!A16:A35, "Non-Core SIPP CDC Funds", '2.Total Allocated Program Funds'!B16:B35)/B3 -> 0.0%
A9: =Inputs!B4 -> Non-CDC Federal Funds | B9: =SUMIF('2.Total Allocated Program Funds'!A16:A35, "Non-CDC Federal Funds", '2.Total Allocated Program Funds'!B16:B35)/B3 -> 0.0%
A10: =Inputs!B5 -> State Government Funds | B10: =SUMIF('2.Total Allocated Program Funds'!A16:A35, "State Government Funds", '2.Total Allocated Program Funds'!B16:B35)/B3 -> 0.0%
A11: =Inputs!B6 -> City or County Funds | B11: =SUMIF('2.Total Allocated Program Funds'!A16:A35, "City or County Funds", '2.Total Allocated Program Funds'!B16:B35)/B3 -> 0.0%
A12: =Inputs!B7 -> Private Grants | B12: =SUMIF('2.Total Allocated Program Funds'!A16:A35, "Private Grants", '2.Total Allocated Program Funds'!B16:B35)/B3 -> 0.0%
A13: =Inputs!B8 -> Corporate Sponsors/Donors | B13: =SUMIF('2.Total Allocated Program Funds'!A16:A35, "Corporate Sponsors/Donors", '2.Total Allocated Program Funds'!B16:B35)/B3 -> 0.0%
A14: =Inputs!B9 -> Other (please specify in comments) | B14: =SUMIF('2.Total Allocated Program Funds'!A16:A35, "Forfeiture Funds", '2.Total Allocated Program Funds'!B16:B35)/B3 -> 0.0%
A15: Other | B15: =SUMIF('2.Total Allocated Program Funds'!A16:A35, "Other (please specify in comments)", '2.Total Allocated Program Funds'!B16:B35)/B3 -> 0.0%
A17: Allocation of Funding From Other Sources
A18: $ Allocated for Data and Surveillance | B18: =SUM('Strategy & Topic Master'!$A$3:$A$22) -> $0
A19: $ Allocated for Collaboration and Partnerships | B19: =SUM('Strategy & Topic Master'!$B$3:$B$22) -> $0
A20: $ Allocated for Assessment and Evaluation | B20: =SUM('Strategy & Topic Master'!$C$3:$C$22) -> $0
A22: $ Allocated for Adverse Childhood Experiences (ACEs) | B22: =SUM('Strategy & Topic Master'!$E$3:$E$22) -> $0
A23: $ Allocated for Transportation Safety | B23: =SUM('Strategy & Topic Master'!$F$3:$F$22) -> $0
A24: $ Allocated for Traumatic Brain Injury | B24: =SUM('Strategy & Topic Master'!$G$3:$G$22) -> $0
A25: $ Allocated for Other Topics | B25: =SUM('Strategy & Topic Master'!$H$3:$H$22) -> $0
A28: Total Costs
A30: In-Kind Contributions
A31: Labor In-Kind | B31: ='3A. In-Kind Labor '!E36 -> $0
A32: Non-Labor In-Kind | B32: ='3B. In-Kind Non-Labor'!E37 -> $0
A33: Total In-Kind Contributions | B33: =SUM(B31:B32) -> $0
A35: In-kind Contributions by Strategy
A36: In-Kind Data and Surveillance | B36: =SUM('Strategy & Topic Master'!$A$26:$A$56) -> $0
A37: In-Kind Collaborations and Partnerships | B37: =SUM('Strategy & Topic Master'!$B$26:$B$56) -> $0
A38: In-Kind Assessment and Evaluation | B38: =SUM('Strategy & Topic Master'!$C$26:$C$56) -> $0
A40: In-Kind Contributions by Topic
A41: In-Kind Adverse Childhood Experiences (ACEs) | B41: =SUM('Strategy & Topic Master'!$E$26:$E$56) -> $0
A42: In-Kind Transportation Safety | B42: =SUM('Strategy & Topic Master'!$F$26:$F$56) -> $0
A43: In-Kind Traumatic Brain Injury | B43: =SUM('Strategy & Topic Master'!$G$26:$G$56) -> $0
A44: In-Kind Other Topics | B44: =SUM('Strategy & Topic Master'!$H$26:$H$56) -> $0
A46: Personnel Costs | B46: ='4. Personnel '!I41 -> $0
A48: Personnel Costs by Strategy
A49: Data and Surveillance | B49: =SUM('Personnel Master'!D2:D36) -> $0
A50: Collaborations and Partnerships | B50: =SUM('Personnel Master'!E2:E36) -> $0
A51: Assessment and Evaluation | B51: =SUM('Personnel Master'!F2:F36) -> $0
A53: Personnel Costs by Topic
A54: Adverse Childhood Experiences (ACEs) | B54: =SUM('Personnel Master'!H2:H36) -> $0
A55: Transportation Safety | B55: =SUM('Personnel Master'!I2:I36) -> $0
A56: Traumatic Brain Injury | B56: =SUM('Personnel Master'!J2:J36) -> $0
A57: Other Topics | B57: =SUM('Personnel Master'!K2:M36) -> $0
A59: Consultant Costs | B59: ='7. Consultant Costs'!C31 -> $0
A61: Consultant Costs by Strategy
A62: Data and Surveillance | B62: =SUM('Strategy & Topic Master'!$A$60:$A$84) -> $0
A63: Collaborations and Partnerships | B63: =SUM('Strategy & Topic Master'!$B$60:$B$84) -> $0
A64: Assessment and Evaluation | B64: =SUM('Strategy & Topic Master'!$C$60:$C$84) -> $0
A66: Consultant Costs by Topic
A67: Adverse Childhood Experiences (ACEs) | B67: =SUM('Strategy & Topic Master'!$E$60:$E$84) -> $0
A68: Transportation Safety | B68: =SUM('Strategy & Topic Master'!$F$60:$F$84) -> $0
A69: Traumatic Brain Injury | B69: =SUM('Strategy & Topic Master'!$G$60:$G$84) -> $0
A70: Other Topics | B70: =SUM('Strategy & Topic Master'!$H$60:$H$84) -> $0
A72: Contract Costs | B72: ='8. Contracts'!C31 -> $0
A74: Contract Costs by Strategy
A75: Data and Surveillance | B75: =SUM('Strategy & Topic Master'!$A$88:$A$112) -> $0
A76: Collaborations and Partnerships | B76: =SUM('Strategy & Topic Master'!$B$88:$B$112) -> $0
A77: Assessment and Evaluation | B77: =SUM('Strategy & Topic Master'!$C$88:$C$112) -> $0
A79: Contract Costs by Topic
A80: Adverse Childhood Experiences (ACEs) | B80: =SUM('Strategy & Topic Master'!$E$88:$E$112) -> $0
A81: Transportation Safety | B81: =SUM('Strategy & Topic Master'!$F$88:$F$112) -> $0
A82: Traumatic Brain Injury | B82: =SUM('Strategy & Topic Master'!$G$88:$G$112) -> $0
A83: Other Topics | B83: =SUM('Strategy & Topic Master'!$H$88:$H$112) -> $0
A85: Supply Costs | B85: ='9. Supplies'!F59 +'9. Supplies'!G59 -> $0
A87: Supply Costs by Strategy
A88: Data and Surveillance | B88: =SUM('Strategy & Topic Master'!$A$116:$A$165) -> $0
A89: Collaborations and Partnerships | B89: =SUM('Strategy & Topic Master'!$B$116:$B$165) -> $0
A90: Assessment and Evaluation | B90: =SUM('Strategy & Topic Master'!$C$116:$C$165) -> $0
A92: Supply Costs by Topic
A93: Adverse Childhood Experiences (ACEs) | B93: =SUM('Strategy & Topic Master'!$E$116:$E$165) -> $0
A94: Transportation Safety | B94: =SUM('Strategy & Topic Master'!$F$116:$F$165) -> $0
A95: Traumatic Brain Injury | B95: =SUM('Strategy & Topic Master'!$G$116:$G$165) -> $0
A96: Other Topics | B96: =SUM('Strategy & Topic Master'!$H$116:$H$165) -> $0
A98: Transportation Costs | B98: ='10a. Travel (Local)'!L41+SUM('10b. Travel (Non-Local)'!E41:F41) -> $0
A100: Transportation Costs by Strategy
A101: Data and Surveillance | B101: =SUM('Strategy & Topic Master'!$A$169:$A$203) -> $0
A102: Collaborations and Partnerships | B102: =SUM('Strategy & Topic Master'!$B$169:$B$203) -> $0
A103: Assessment and Evaluation | B103: =SUM('Strategy & Topic Master'!$C$169:$C$203) -> $0
A105: Transportation Costs by Topic
A106: Adverse Childhood Experiences (ACEs) | B106: =SUM('Strategy & Topic Master'!$E$169:$E$203) -> $0
A107: Transportation Safety | B107: =SUM('Strategy & Topic Master'!$F$169:$F$203) -> $0
A108: Traumatic Brain Injury | B108: =SUM('Strategy & Topic Master'!$G$169:$G$203) -> $0
A109: Other Topics | B109: =SUM('Strategy & Topic Master'!$H$169:$H$203) -> $0
A111: Administrative Costs | B111: ='11. Administrative'!D18 -> $0
A113: TOTAL COSTS | B113: =SUM(B33+B46+B59+B72+B85+B98+B111) -> $0
A114: % of Total Costs as In-kind Contributions | B114: =IFERROR(B33/B113,"") -> 
A115: Total Explicit Costs (excludes in-kind contributions) | B115: =B113-B33 -> $0
A117: Check: Do Total Explicit Costs= Total Allocated Program Funding? | B117: =IF(B115=B3,"ok",B3-B115) -> $250,000.00
A121: Calculated Partnership Hours | B121: =SUMPRODUCT('12.Partner Involvement'!$D$6:$D$1000,'12.Partner Involvement'!$E$6:$E$1000) -> 0
A123: Calculated Partnership Hours by Strategy
A124: Data and Surveillance | B124: =SUM('Strategy & Topic Master'!$A$207:$A$1201) -> 0
A125: Collaborations and Partnerships | B125: =SUM('Strategy & Topic Master'!$B$207:$B$1201) -> 0
A126: Assessment and Evaluation | B126: =SUM('Strategy & Topic Master'!$C$207:$C$1201) -> 0
A128: Calculated Partnership Hours by Topic
A129: Adverse Childhood Experiences (ACEs) | B129: =SUM('Strategy & Topic Master'!$E$207:$E$1201) -> 0
A130: Transportation Safety | B130: =SUM('Strategy & Topic Master'!$F$207:$F$1201) -> 0
A131: Traumatic Brain Injury | B131: =SUM('Strategy & Topic Master'!$G$207:$G$1201) -> 0
A132: Other Topics | B132: =SUM('Strategy & Topic Master'!$H$207:$H$1201) -> 0

Sheet Personnel Master
B1: Labor | C1: Core SIPP Amount | D1: Data and Surveillance | E1: Collaborations and Partnerships | F1: Assessment and Evaluation | H1: Adverse Childhood Experiences (ACEs) | I1: Transportation Safety | J1: Traumatic Brain Injury | K1: Other Topic | L1: Other Topic | M1: Other Topic
A2: 1 | B2: ='4. Personnel '!B6 | C2: ='4. Personnel '!I6 -> $0.00 | D2: =C2*'5. Personnel Strategies'!D4 -> $0.00 | E2: =C2*'5. Personnel Strategies'!D5 -> $0.00 | F2: =C2*'5. Personnel Strategies'!D6 -> $0.00 | H2: =$C$2*'6. Personnel Topics'!D4 -> $0.00 | I2: =$C$2*'6. Personnel Topics'!D5 -> $0.00 | J2: =$C$2*'6. Personnel Topics'!D6 -> $0.00 | K2: =$C$2*'6. Personnel Topics'!D7 -> $0.00 | L2: =$C$2*'6. Personnel Topics'!D8 -> $0.00 | M2: =$C$2*'6. Personnel Topics'!D9 -> $0.00
A3: =A2+1 -> 2 | B3: ='4. Personnel '!B7 | C3: ='4. Personnel '!I7 -> $0.00 | D3: =C3*'5. Personnel Strategies'!E4 -> $0.00 | E3: =C3*'5. Personnel Strategies'!E5 -> $0.00 | F3: =C3*'5. Personnel Strategies'!E6 -> $0.00 | H3: =$C$3*'6. Personnel Topics'!E4 -> $0.00 | I3: =$C$3*'6. Personnel Topics'!E5 -> $0.00 | J3: =$C$3*'6. Personnel Topics'!E6 -> $0.00 | K3: =$C$3*'6. Personnel Topics'!E7 -> $0.00 | L3: =$C$3*'6. Personnel Topics'!E8 -> $0.00 | M3: =$C$3*'6. Personnel Topics'!E9 -> $0.00
A4: =A3+1 -> 3 | B4: ='4. Personnel '!B8 | C4: ='4. Personnel '!I8 -> $0.00 | D4: =C4*'5. Personnel Strategies'!F4 -> $0.00 | E4: =C4*'5. Personnel Strategies'!F5 -> $0.00 | F4: =C4*'5. Personnel Strategies'!F6 -> $0.00 | H4: =$C$4*'6. Personnel Topics'!F4 -> $0.00 | I4: =$C$4*'6. Personnel Topics'!F5 -> $0.00 | J4: =$C$4*'6. Personnel Topics'!F6 -> $0.00 | K4: =$C$4*'6. Personnel Topics'!F7 -> $0.00 | L4: =$C$4*'6. Personnel Topics'!F8 -> $0.00 | M4: =$C$4*'6. Personnel Topics'!F9 -> $0.00
A5: 4 | B5: ='4. Personnel '!B9 | C5: ='4. Personnel '!I9 -> $0.00 | D5: =C5*'5. Personnel Strategies'!G4 -> $0.00 | E5: =C5*'5. Personnel Strategies'!G5 -> $0.00 | F5: =C5*'5. Personnel Strategies'!G6 -> $0.00 | H5: =$C$5*'6. Personnel Topics'!G4 -> $0.00 | I5: =$C$5*'6. Personnel Topics'!G5 -> $0.00 | J5: =$C$5*'6. Personnel Topics'!G6 -> $0.00 | K5: =$C$5*'6. Personnel Topics'!G7 -> $0.00 | L5: =$C$5*'6. Personnel Topics'!G8 -> $0.00 | M5: =$C$5*'6. Personnel Topics'!G9 -> $0.00
A6: 5 | B6: ='4. Personnel '!B10 | C6: ='4. Personnel '!I10 -> $0.00 | D6: =C6*'5. Personnel Strategies'!H4 -> $0.00 | E6: =C6*'5. Personnel Strategies'!H5 -> $0.00 | F6: =C6*'5. Personnel Strategies'!H6 -> $0.00 | H6: =$C$6*'6. Personnel Topics'!H4 -> $0.00 | I6: =$C$6*'6. Personnel Topics'!H5 -> $0.00 | J6: =$C$6*'6. Personnel Topics'!H6 -> $0.00 | K6: =$C$6*'6. Personnel Topics'!H7 -> $0.00 | L6: =$C$6*'6. Personnel Topics'!H8 -> $0.00 | M6: =$C$6*'6. Personnel Topics'!H9 -> $0.00
A7: 6 | B7: ='4. Personnel '!B11 | C7: ='4. Personnel '!I11 -> $0.00 | D7: =C7*'5. Personnel Strategies'!I4 -> $0.00 | E7: =C7*'5. Personnel Strategies'!I5 -> $0.00 | F7: =C7*'5. Personnel Strategies'!I6 -> $0.00 | H7: =$C$7*'6. Personnel Topics'!I4 -> $0.00 | I7: =$C$7*'6. Personnel Topics'!I5 -> $0.00 | J7: =$C$7*'6. Personnel Topics'!I6 -> $0.00 | K7: =$C$7*'6. Personnel Topics'!I7 -> $0.00 | L7: =$C$7*'6. Personnel Topics'!I8 -> $0.00 | M7: =$C$7*'6. Personnel Topics'!I9 -> $0.00
A8: 7 | B8: ='4. Personnel '!B12 | C8: ='4. Personnel '!I12 -> $0.00 | D8: =C8*'5. Personnel Strategies'!J4 -> $0.00 | E8: =C8*'5. Personnel Strategies'!J5 -> $0.00 | F8: =C8*'5. Personnel Strategies'!J6 -> $0.00 | H8: =$C$8*'6. Personnel Topics'!J4 -> $0.00 | I8: =$C$8*'6. Personnel Topics'!J5 -> $0.00 | J8: =$C$8*'6. Personnel Topics'!J6 -> $0.00 | K8: =$C$8*'6. Personnel Topics'!J7 -> $0.00 | L8: =$C$8*'6. Personnel Topics'!J8 -> $0.00 | M8: =$C$8*'6. Personnel Topics'!J9 -> $0.00
A9: 8 | B9: ='4. Personnel '!B13 | C9: ='4. Personnel '!I13 -> $0.00 | D9: =C9*'5. Personnel Strategies'!K4 -> $0.00 | E9: =C9*'5. Personnel Strategies'!K5 -> $0.00 | F9: =C9*'5. Personnel Strategies'!K6 -> $0.00 | H9: =$C$9*'6. Personnel Topics'!K4 -> $0.00 | I9: =$C$9*'6. Personnel Topics'!K5 -> $0.00 | J9: =$C$9*'6. Personnel Topics'!K6 -> $0.00 | K9: =$C$9*'6. Personnel Topics'!K7 -> $0.00 | L9: =$C$9*'6. Personnel Topics'!K8 -> $0.00 | M9: =$C$9*'6. Personnel Topics'!K9 -> $0.00
A10: 9 | B10: ='4. Personnel '!B14 | C10: ='4. Personnel '!I14 -> $0.00 | D10: =C10*'5. Personnel Strategies'!L4 -> $0.00 | E10: =C10*'5. Personnel Strategies'!L5 -> $0.00 | F10: =C10*'5. Personnel Strategies'!L6 -> $0.00 | H10: =$C$10*'6. Personnel Topics'!L4 -> $0.00 | I10: =$C$10*'6. Personnel Topics'!L5 -> $0.00 | J10: =$C$10*'6. Personnel Topics'!L6 -> $0.00 | K10: =$C$10*'6. Personnel Topics'!L7 -> $0.00 | L10: =$C$10*'6. Personnel Topics'!L8 -> $0.00 | M10: =$C$10*'6. Personnel Topics'!L9 -> $0.00
A11: 10 | B11: ='4. Personnel '!B15 | C11: ='4. Personnel '!I15 -> $0.00 | D11: =C11*'5. Personnel Strategies'!M4 -> $0.00 | E11: =C11*'5. Personnel Strategies'!M5 -> $0.00 | F11: =C11*'5. Personnel Strategies'!M6 -> $0.00 | H11: =$C$11*'6. Personnel Topics'!M4 -> $0.00 | I11: =$C$11*'6. Personnel Topics'!M5 -> $0.00 | J11: =$C$11*'6. Personnel Topics'!M6 -> $0.00 | K11: =$C$11*'6. Personnel Topics'!M7 -> $0.00 | L11: =$C$11*'6. Personnel Topics'!M8 -> $0.00 | M11: =$C$11*'6. Personnel Topics'!M9 -> $0.00
A12: 11 | B12: ='4. Personnel '!B16 | C12: ='4. Personnel '!I16 -> $0.00 | D12: =C12*'5. Personnel Strategies'!N4 -> $0.00 | E12: =C12*'5. Personnel Strategies'!N5 -> $0.00 | F12: =C12*'5. Personnel Strategies'!N6 -> $0.00 | H12: =$C$12*'6. Personnel Topics'!N4 -> $0.00 | I12: =$C$12*'6. Personnel Topics'!N5 -> $0.00 | J12: =$C$12*'6. Personnel Topics'!N6 -> $0.00 | K12: =$C$12*'6. Personnel Topics'!N7 -> $0.00 | L12: =$C$12*'6. Personnel Topics'!N8 -> $0.00 | M12: =$C$12*'6. Personnel Topics'!N9 -> $0.00
A13: 12 | B13: ='4. Personnel '!B17 | C13: ='4. Personnel '!I17 -> $0.00 | D13: =C13*'5. Personnel Strategies'!O4 -> $0.00 | E13: =C13*'5. Personnel Strategies'!O5 -> $0.00 | F13: =C13*'5. Personnel Strategies'!O6 -> $0.00 | H13: =$C$13*'6. Personnel Topics'!O4 -> $0.00 | I13: =$C$13*'6. Personnel Topics'!O5 -> $0.00 | J13: =$C$13*'6. Personnel Topics'!O6 -> $0.00 | K13: =$C$13*'6. Personnel Topics'!O7 -> $0.00 | L13: =$C$13*'6. Personnel Topics'!O8 -> $0.00 | M13: =$C$13*'6. Personnel Topics'!O9 -> $0.00
A14: 13 | B14: ='4. Personnel '!B18 | C14: ='4. Personnel '!I18 -> $0.00 | D14: =C14*'5. Personnel Strategies'!P4 -> $0.00 | E14: =C14*'5. Personnel Strategies'!P5 -> $0.00 | F14: =C14*'5. Personnel Strategies'!P6 -> $0.00 | H14: =$C$14*'6. Personnel Topics'!P4 -> $0.00 | I14: =$C$14*'6. Personnel Topics'!P5 -> $0.00 | J14: =$C$14*'6. Personnel Topics'!P6 -> $0.00 | K14: =$C$14*'6. Personnel Topics'!P7 -> $0.00 | L14: =$C$14*'6. Personnel Topics'!P8 -> $0.00 | M14: =$C$14*'6. Personnel Topics'!P9 -> $0.00
A15: 14 | B15: ='4. Personnel '!B19 | C15: ='4. Personnel '!I19 -> $0.00 | D15: =C15*'5. Personnel Strategies'!Q4 -> $0.00 | E15: =C15*'5. Personnel Strategies'!Q5 -> $0.00 | F15: =C15*'5. Personnel Strategies'!Q6 -> $0.00 | H15: =$C$15*'6. Personnel Topics'!Q4 -> $0.00 | I15: =$C$15*'6. Personnel Topics'!Q5 -> $0.00 | J15: =$C$15*'6. Personnel Topics'!Q6 -> $0.00 | K15: =$C$15*'6. Personnel Topics'!Q7 -> $0.00 | L15: =$C$15*'6. Personnel Topics'!Q8 -> $0.00 | M15: =$C$15*'6. Personnel Topics'!Q9 -> $0.00
A16: 15 | B16: ='4. Personnel '!B20 | C16: ='4. Personnel '!I20 -> $0.00 | D16: =C16*'5. Personnel Strategies'!R4 -> $0.00 | E16: =C16*'5. Personnel Strategies'!R5 -> $0.00 | F16: =C16*'5. Personnel Strategies'!R6 -> $0.00 | H16: =$C$16*'6. Personnel Topics'!R4 -> $0.00 | I16: =$C$16*'6. Personnel Topics'!R5 -> $0.00 | J16: =$C$16*'6. Personnel Topics'!R6 -> $0.00 | K16: =$C$16*'6. Personnel Topics'!R7 -> $0.00 | L16: =$C$16*'6. Personnel Topics'!R8 -> $0.00 | M16: =$C$16*'6. Personnel Topics'!R9 -> $0.00
A17: 16 | B17: ='4. Personnel '!B21 | C17: ='4. Personnel '!I21 -> $0.00 | D17: =$C$17*'5. Personnel Strategies'!S4 -> $0.00 | E17: =$C$17*'5. Personnel Strategies'!S5 -> $0.00 | F17: =$C$17*'5. Personnel Strategies'!S6 -> $0.00 | H17: =$C$17*'6. Personnel Topics'!S4 -> $0.00 | I17: =$C$17*'6. Personnel Topics'!S5 -> $0.00 | J17: =$C$17*'6. Personnel Topics'!S6 -> $0.00 | K17: =$C$17*'6. Personnel Topics'!S7 -> $0.00 | L17: =$C$17*'6. Personnel Topics'!S8 -> $0.00 | M17: =$C$17*'6. Personnel Topics'!S9 -> $0.00
A18: 17 | B18: ='4. Personnel '!B22 | C18: ='4. Personnel '!I22 -> $0.00 | D18: =$C$18*'5. Personnel Strategies'!T4 -> $0.00 | E18: =$C$18*'5. Personnel Strategies'!T5 -> $0.00 | F18: =$C$18*'5. Personnel Strategies'!T6 -> $0.00 | H18: =$C$18*'6. Personnel Topics'!T4 -> $0.00 | I18: =$C$18*'6. Personnel Topics'!T5 -> $0.00 | J18: =$C$18*'6. Personnel Topics'!T6 -> $0.00 | K18: =$C$18*'6. Personnel Topics'!T7 -> $0.00 | L18: =$C$18*'6. Personnel Topics'!T8 -> $0.00 | M18: =$C$18*'6. Personnel Topics'!T9 -> $0.00
A19: 18 | B19: ='4. Personnel '!B23 | C19: ='4. Personnel '!I23 -> $0.00 | D19: =$C$19*'5. Personnel Strategies'!U4 -> $0.00 | E19: =$C$19*'5. Personnel Strategies'!U5 -> $0.00 | F19: =$C$19*'5. Personnel Strategies'!U6 -> $0.00 | H19: =$C$19*'6. Personnel Topics'!U4 -> $0.00 | I19: =$C$19*'6. Personnel Topics'!U5 -> $0.00 | J19: =$C$19*'6. Personnel Topics'!U6 -> $0.00 | K19: =$C$19*'6. Personnel Topics'!U7 -> $0.00 | L19: =$C$19*'6. Personnel Topics'!U8 -> $0.00 | M19: =$C$19*'6. Personnel Topics'!U9 -> $0.00
A20: 19 | B20: ='4. Personnel '!B24 | C20: ='4. Personnel '!I24 -> $0.00 | D20: =$C$20*'5. Personnel Strategies'!V4 -> $0.00 | E20: =$C$20*'5. Personnel Strategies'!V5 -> $0.00 | F20: =$C$20*'5. Personnel Strategies'!V6 -> $0.00 | H20: =$C$20*'6. Personnel Topics'!V4 -> $0.00 | I20: =$C$20*'6. Personnel Topics'!V5 -> $0.00 | J20: =$C$20*'6. Personnel Topics'!V6 -> $0.00 | K20: =$C$20*'6. Personnel Topics'!V7 -> $0.00 | L20: =$C$20*'6. Personnel Topics'!V8 -> $0.00 | M20: =$C$20*'6. Personnel Topics'!V9 -> $0.00
A21: 20 | B21: ='4. Personnel '!B25 | C21: ='4. Personnel '!I25 -> $0.00 | D21: =$C21*'5. Personnel Strategies'!W4 -> $0.00 | E21: =$C21*'5. Personnel Strategies'!W$5 -> $0.00 | F21: =$C21*'5. Personnel Strategies'!W$6 -> $0.00 | H21: =$C21*'6. Personnel Topics'!W$4 -> $0.00 | I21: =$C21*'6. Personnel Topics'!W$5 -> $0.00 | J21: =$C21*'6. Personnel Topics'!W$6 -> $0.00 | K21: =$C21*'6. Personnel Topics'!W$7 -> $0.00 | L21: =$C21*'6. Personnel Topics'!W$8 -> $0.00 | M21: =$C21*'6. Personnel Topics'!W$9 -> $0.00
A22: 21 | B22: ='4. Personnel '!B26 | C22: ='4. Personnel '!I26 -> $0.00 | D22: =$C22*'5. Personnel Strategies'!X$4 -> $0.00 | E22: =$C22*'5. Personnel Strategies'!X$5 -> $0.00 | F22: =$C22*'5. Personnel Strategies'!X$6 -> $0.00 | H22: =$C22*'6. Personnel Topics'!X$4 -> $0.00 | I22: =$C22*'6. Personnel Topics'!X$5 -> $0.00 | J22: =$C22*'6. Personnel Topics'!X$6 -> $0.00 | K22: =$C22*'6. Personnel Topics'!X$7 -> $0.00 | L22: =$C22*'6. Personnel Topics'!X$8 -> $0.00 | M22: =$C22*'6. Personnel Topics'!X$9 -> $0.00
A23: 22 | B23: ='4. Personnel '!B27 | C23: ='4. Personnel '!I27 -> $0.00 | D23: =$C23*'5. Personnel Strategies'!Y$4 -> $0.00 | E23: =$C23*'5. Personnel Strategies'!Y$5 -> $0.00 | F23: =$C23*'5. Personnel Strategies'!Y$6 -> $0.00 | H23: =$C23*'6. Personnel Topics'!Y$4 -> $0.00 | I23: =$C23*'6. Personnel Topics'!Y$5 -> $0.00 | J23: =$C23*'6. Personnel Topics'!Y$6 -> $0.00 | K23: =$C23*'6. Personnel Topics'!Y$7 -> $0.00 | L23: =$C23*'6. Personnel Topics'!Y$8 -> $0.00 | M23: =$C23*'6. Personnel Topics'!Y$9 -> $0.00
A24: 23 | B24: ='4. Personnel '!B28 | C24: ='4. Personnel '!I28 -> $0.00 | D24: =$C24*'5. Personnel Strategies'!Z$4 -> $0.00 | E24: =$C24*'5. Personnel Strategies'!Z$5 -> $0.00 | F24: =$C24*'5. Personnel Strategies'!Z$6 -> $0.00 | H24: =$C24*'6. Personnel Topics'!Z$4 -> $0.00 | I24: =$C24*'6. Personnel Topics'!Z$5 -> $0.00 | J24: =$C24*'6. Personnel Topics'!Z$6 -> $0.00 | K24: =$C24*'6. Personnel Topics'!Z$7 -> $0.00 | L24: =$C24*'6. Personnel Topics'!Z$8 -> $0.00 | M24: =$C24*'6. Personnel Topics'!Z$9 -> $0.00
A25: 24 | B25: ='4. Personnel '!B29 | C25: ='4. Personnel '!I29 -> $0.00 | D25: =$C25*'5. Personnel Strategies'!AA$4 -> $0.00 | E25: =$C25*'5. Personnel Strategies'!AA$5 -> $0.00 | F25: =$C25*'5. Personnel Strategies'!AA$6 -> $0.00 | H25: =$C25*'6. Personnel Topics'!AA$4 -> $0.00 | I25: =$C25*'6. Personnel Topics'!AA$5 -> $0.00 | J25: =$C25*'6. Personnel Topics'!AA$6 -> $0.00 | K25: =$C25*'6. Personnel Topics'!AA$7 -> $0.00 | L25: =$C25*'6. Personnel Topics'!AA$8 -> $0.00 | M25: =$C25*'6. Personnel Topics'!AA$9 -> $0.00
A26: 25 | B26: ='4. Personnel '!B30 | C26: ='4. Personnel '!I30 -> $0.00 | D26: =$C26*'5. Personnel Strategies'!AB$4 -> $0.00 | E26: =$C26*'5. Personnel Strategies'!AB$5 -> $0.00 | F26: =$C26*'5. Personnel Strategies'!AB$6 -> $0.00 | H26: =$C26*'6. Personnel Topics'!AB$4 -> $0.00 | I26: =$C26*'6. Personnel Topics'!AB$5 -> $0.00 | J26: =$C26*'6. Personnel Topics'!AB$6 -> $0.00 | K26: =$C26*'6. Personnel Topics'!AB$7 -> $0.00 | L26: =$C26*'6. Personnel Topics'!AB$8 -> $0.00 | M26: =$C26*'6. Personnel Topics'!AB$9 -> $0.00
A27: 26 | B27: ='4. Personnel '!B31 | C27: ='4. Personnel '!I31 -> $0.00 | D27: =$C27*'5. Personnel Strategies'!AC$4 -> $0.00 | E27: =$C27*'5. Personnel Strategies'!AC$5 -> $0.00 | F27: =$C27*'5. Personnel Strategies'!AC$6 -> $0.00 | H27: =$C27*'6. Personnel Topics'!AC$4 -> $0.00 | I27: =$C27*'6. Personnel Topics'!AC$5 -> $0.00 | J27: =$C27*'6. Personnel Topics'!AC$6 -> $0.00 | K27: =$C27*'6. Personnel Topics'!AC$7 -> $0.00 | L27: =$C27*'6. Personnel Topics'!AC$8 -> $0.00 | M27: =$C27*'6. Personnel Topics'!AC$9 -> $0.00
A28: 27 | B28: ='4. Personnel '!B32 | C28: ='4. Personnel '!I32 -> $0.00 | D28: =$C28*'5. Personnel Strategies'!AD$4 -> $0.00 | E28: =$C28*'5. Personnel Strategies'!AD$5 -> $0.00 | F28: =$C28*'5. Personnel Strategies'!AD$6 -> $0.00 | H28: =$C28*'6. Personnel Topics'!AD$4 -> $0.00 | I28: =$C28*'6. Personnel Topics'!AD$5 -> $0.00 | J28: =$C28*'6. Personnel Topics'!AD$6 -> $0.00 | K28: =$C28*'6. Personnel Topics'!AD$7 -> $0.00 | L28: =$C28*'6. Personnel Topics'!AD$8 -> $0.00 | M28: =$C28*'6. Personnel Topics'!AD$9 -> $0.00
A29: 28 | B29: ='4. Personnel '!B33 | C29: ='4. Personnel '!I33 -> $0.00 | D29: =$C29*'5. Personnel Strategies'!AE$4 -> $0.00 | E29: =$C29*'5. Personnel Strategies'!AE$5 -> $0.00 | F29: =$C29*'5. Personnel Strategies'!AE$6 -> $0.00 | H29: =$C29*'6. Personnel Topics'!AE$4 -> $0.00 | I29: =$C29*'6. Personnel Topics'!AE$5 -> $0.00 | J29: =$C29*'6. Personnel Topics'!AE$6 -> $0.00 | K29: =$C29*'6. Personnel Topics'!AE$7 -> $0.00 | L29: =$C29*'6. Personnel Topics'!AE$8 -> $0.00 | M29: =$C29*'6. Personnel Topics'!AE$9 -> $0.00
A30: 29 | B30: ='4. Personnel '!B34 | C30: ='4. Personnel '!I34 -> $0.00 | D30: =$C30*'5. Personnel Strategies'!AF$4 -> $0.00 | E30: =$C30*'5. Personnel Strategies'!AF$5 -> $0.00 | F30: =$C30*'5. Personnel Strategies'!AF$6 -> $0.00 | H30: =$C30*'6. Personnel Topics'!AF$4 -> $0.00 | I30: =$C30*'6. Personnel Topics'!AF$5 -> $0.00 | J30: =$C30*'6. Personnel Topics'!AF$6 -> $0.00 | K30: =$C30*'6. Personnel Topics'!AF$7 -> $0.00 | L30: =$C30*'6. Personnel Topics'!AF$8 -> $0.00 | M30: =$C30*'6. Personnel Topics'!AF$9 -> $0.00
A31: 30 | B31: ='4. Personnel '!B35 | C31: ='4. Personnel '!I35 -> $0.00 | D31: =$C31*'5. Personnel Strategies'!AG$4 -> $0.00 | E31: =$C31*'5. Personnel Strategies'!AG$5 -> $0.00 | F31: =$C31*'5. Personnel Strategies'!AG$6 -> $0.00 | H31: =$C31*'6. Personnel Topics'!AG$4 -> $0.00 | I31: =$C31*'6. Personnel Topics'!AG$5 -> $0.00 | J31: =$C31*'6. Personnel Topics'!AG$6 -> $0.00 | K31: =$C31*'6. Personnel Topics'!AG$7 -> $0.00 | L31: =$C31*'6. Personnel Topics'!AG$8 -> $0.00 | M31: =$C31*'6. Personnel Topics'!AG$9 -> $0.00
A32: 31 | B32: ='4. Personnel '!B36 | C32: ='4. Personnel '!I36 -> $0.00 | D32: =$C32*'5. Personnel Strategies'!AH$4 -> $0.00 | E32: =$C32*'5. Personnel Strategies'!AH$5 -> $0.00 | F32: =$C32*'5. Personnel Strategies'!AH$6 -> $0.00 | H32: =$C32*'6. Personnel Topics'!AH$4 -> $0.00 | I32: =$C32*'6. Personnel Topics'!AH$5 -> $0.00 | J32: =$C32*'6. Personnel Topics'!AH$6 -> $0.00 | K32: =$C32*'6. Personnel Topics'!AH$7 -> $0.00 | L32: =$C32*'6. Personnel Topics'!AH$8 -> $0.00 | M32: =$C32*'6. Personnel Topics'!AH$9 -> $0.00
A33: 32 | B33: ='4. Personnel '!B37 | C33: ='4. Personnel '!I37 -> $0.00 | D33: =$C33*'5. Personnel Strategies'!AI$4 -> $0.00 | E33: =$C33*'5. Personnel Strategies'!AI$5 -> $0.00 | F33: =$C33*'5. Personnel Strategies'!AI$6 -> $0.00 | H33: =$C33*'6. Personnel Topics'!AI$4 -> $0.00 | I33: =$C33*'6. Personnel Topics'!AI$5 -> $0.00 | J33: =$C33*'6. Personnel Topics'!AI$6 -> $0.00 | K33: =$C33*'6. Personnel Topics'!AI$7 -> $0.00 | L33: =$C33*'6. Personnel Topics'!AI$8 -> $0.00 | M33: =$C33*'6. Personnel Topics'!AI$9 -> $0.00
A34: 33 | B34: ='4. Personnel '!B38 | C34: ='4. Personnel '!I38 -> $0.00 | D34: =$C34*'5. Personnel Strategies'!AJ$4 -> $0.00 | E34: =$C34*'5. Personnel Strategies'!AJ$5 -> $0.00 | F34: =$C34*'5. Personnel Strategies'!AJ$6 -> $0.00 | H34: =$C34*'6. Personnel Topics'!AJ$4 -> $0.00 | I34: =$C34*'6. Personnel Topics'!AJ$5 -> $0.00 | J34: =$C34*'6. Personnel Topics'!AJ$6 -> $0.00 | K34: =$C34*'6. Personnel Topics'!AJ$7 -> $0.00 | L34: =$C34*'6. Personnel Topics'!AJ$8 -> $0.00 | M34: =$C34*'6. Personnel Topics'!AJ$9 -> $0.00
A35: 34 | B35: ='4. Personnel '!B39 | C35: ='4. Personnel '!I39 -> $0.00 | D35: =$C35*'5. Personnel Strategies'!AK$4 -> $0.00 | E35: =$C35*'5. Personnel Strategies'!AK$5 -> $0.00 | F35: =$C35*'5. Personnel Strategies'!AK$6 -> $0.00 | H35: =$C35*'6. Personnel Topics'!AK$4 -> $0.00 | I35: =$C35*'6. Personnel Topics'!AK$5 -> $0.00 | J35: =$C35*'6. Personnel Topics'!AK$6 -> $0.00 | K35: =$C35*'6. Personnel Topics'!AK$7 -> $0.00 | L35: =$C35*'6. Personnel Topics'!AK$8 -> $0.00 | M35: =$C35*'6. Personnel Topics'!AK$9 -> $0.00
A36: 35 | B36: ='4. Personnel '!B40 | C36: ='4. Personnel '!I40 -> $0.00 | D36: =$C36*'5. Personnel Strategies'!AL$4 -> $0.00 | E36: =$C36*'5. Personnel Strategies'!AL$5 -> $0.00 | F36: =$C36*'5. Personnel Strategies'!AL$6 -> $0.00 | H36: =$C36*'6. Personnel Topics'!AL$4 -> $0.00 | I36: =$C36*'6. Personnel Topics'!AL$5 -> $0.00 | J36: =$C36*'6. Personnel Topics'!AL$6 -> $0.00 | K36: =$C36*'6. Personnel Topics'!AL$7 -> $0.00 | L36: =$C36*'6. Personnel Topics'!AL$8 -> $0.00 | M36: =$C36*'6. Personnel Topics'!AL$9 -> $0.00

Sheet Strategy & Topic Master
A1: Sources of Funding (Tab 2)- Allocation by Strategy | E1: Sources of Funding (Tab 2)- Allocation by Topic
A2: Data and Surveillance | B2: Collaborations and Partnerships | C2: Assessment and Evaluation | E2: Adverse Childhood Experiences (ACEs) | F2: Transportation Safety | G2: Traumatic Brain Injury | H2: Other Topic (please specify in comments)
A3: =IF(ISNUMBER(SEARCH(A$2,'2.Total Allocated Program Funds'!$C16))=TRUE,('2.Total Allocated Program Funds'!$B16/COUNTA(_xlfn.TEXTSPLIT('2.Total Allocated Program Funds'!$C16,";"))),"") ->  | B3: =IF(ISNUMBER(SEARCH(B$2,'2.Total Allocated Program Funds'!$C16))=TRUE,('2.Total Allocated Program Funds'!$B16/COUNTA(_xlfn.TEXTSPLIT('2.Total Allocated Program Funds'!$C16,";"))),"") -> 0 | C3: =IF(ISNUMBER(SEARCH(C$2,'2.Total Allocated Program Funds'!$C16))=TRUE,('2.Total Allocated Program Funds'!$B16/COUNTA(_xlfn.TEXTSPLIT('2.Total Allocated Program Funds'!$C16,";"))),"") -> 0 | E3: =IF(ISNUMBER(SEARCH(E$2,'2.Total Allocated Program Funds'!$D16))=TRUE,('2.Total Allocated Program Funds'!$B16/COUNTA(_xlfn.TEXTSPLIT('2.Total Allocated Program Funds'!$D16,";"))),"") ->  | F3: =IF(ISNUMBER(SEARCH(F$2,'2.Total Allocated Program Funds'!$D16))=TRUE,('2.Total Allocated Program Funds'!$B16/COUNTA(_xlfn.TEXTSPLIT('2.Total Allocated Program Funds'!$D16,";"))),"") ->  | G3: =IF(ISNUMBER(SEARCH(G$2,'2.Total Allocated Program Funds'!$D16))=TRUE,('2.Total Allocated Program Funds'!$B16/COUNTA(_xlfn.TEXTSPLIT('2.Total Allocated Program Funds'!$D16,";"))),"") ->  | H3: =IF(ISNUMBER(SEARCH(H$2,'2.Total Allocated Program Funds'!$D16))=TRUE,('2.Total Allocated Program Funds'!$B16/COUNTA(_xlfn.TEXTSPLIT('2.Total Allocated Program Funds'!$D16,";"))),"") -> 
A4: =IF(ISNUMBER(SEARCH(A$2,'2.Total Allocated Program Funds'!$C17))=TRUE,('2.Total Allocated Program Funds'!$B17/COUNTA(_xlfn.TEXTSPLIT('2.Total Allocated Program Funds'!$C17,";"))),"") ->  | B4: =IF(ISNUMBER(SEARCH(B$2,'2.Total Allocated Program Funds'!$C17))=TRUE,('2.Total Allocated Program Funds'!$B17/COUNTA(_xlfn.TEXTSPLIT('2.Total Allocated Program Funds'!$C17,";"))),"") ->  | C4: =IF(ISNUMBER(SEARCH(C$2,'2.Total Allocated Program Funds'!$C17))=TRUE,('2.Total Allocated Program Funds'!$B17/COUNTA(_xlfn.TEXTSPLIT('2.Total Allocated Program Funds'!$C17,";"))),"") ->  | E4: =IF(ISNUMBER(SEARCH(E$2,'2.Total Allocated Program Funds'!$D17))=TRUE,('2.Total Allocated Program Funds'!$B17/COUNTA(_xlfn.TEXTSPLIT('2.Total Allocated Program Funds'!$D17,";"))),"") ->  | F4: =IF(ISNUMBER(SEARCH(F$2,'2.Total Allocated Program Funds'!$D17))=TRUE,('2.Total Allocated Program Funds'!$B17/COUNTA(_xlfn.TEXTSPLIT('2.Total Allocated Program Funds'!$D17,";"))),"") ->  | G4: =IF(ISNUMBER(SEARCH(G$2,'2.Total Allocated Program Funds'!$D17))=TRUE,('2.Total Allocated Program Funds'!$B17/COUNTA(_xlfn.TEXTSPLIT('2.Total Allocated Program Funds'!$D17,";"))),"") ->  | H4: =IF(ISNUMBER(SEARCH(H$2,'2.Total Allocated Program Funds'!$D17))=TRUE,('2.Total Allocated Program Funds'!$B17/COUNTA(_xlfn.TEXTSPLIT('2.Total Allocated Program Funds'!$D17,";"))),"") -> 
A5: =IF(ISNUMBER(SEARCH(A$2,'2.Total Allocated Program Funds'!$C18))=TRUE,('2.Total Allocated Program Funds'!$B18/COUNTA(_xlfn.TEXTSPLIT('2.Total Allocated Program Funds'!$C18,";"))),"") ->  | B5: =IF(ISNUMBER(SEARCH(B$2,'2.Total Allocated Program Funds'!$C18))=TRUE,('2.Total Allocated Program Funds'!$B18/COUNTA(_xlfn.TEXTSPLIT('2.Total Allocated Program Funds'!$C18,";"))),"") ->  | C5: =IF(ISNUMBER(SEARCH(C$2,'2.Total Allocated Program Funds'!$C18))=TRUE,('2.Total Allocated Program Funds'!$B18/COUNTA(_xlfn.TEXTSPLIT('2.Total Allocated Program Funds'!$C18,";"))),"") ->  | E5: =IF(ISNUMBER(SEARCH(E$2,'2.Total Allocated Program Funds'!$D18))=TRUE,('2.Total Allocated Program Funds'!$B18/COUNTA(_xlfn.TEXTSPLIT('2.Total Allocated Program Funds'!$D18,";"))),"") ->  | F5: =IF(ISNUMBER(SEARCH(F$2,'2.Total Allocated Program Funds'!$D18))=TRUE,('2.Total Allocated Program Funds'!$B18/COUNTA(_xlfn.TEXTSPLIT('2.Total Allocated Program Funds'!$D18,";"))),"") ->  | G5: =IF(ISNUMBER(SEARCH(G$2,'2.Total Allocated Program Funds'!$D18))=TRUE,('2.Total Allocated Program Funds'!$B18/COUNTA(_xlfn.TEXTSPLIT('2.Total Allocated Program Funds'!$D18,";"))),"") ->  | H5: =IF(ISNUMBER(SEARCH(H$2,'2.Total Allocated Program Funds'!$D18))=TRUE,('2.Total Allocated Program Funds'!$B18/COUNTA(_xlfn.TEXTSPLIT('2.Total Allocated Program Funds'!$D18,";"))),"") -> 
A6: =IF(ISNUMBER(SEARCH(A$2,'2.Total Allocated Program Funds'!$C19))=TRUE,('2.Total Allocated Program Funds'!$B19/COUNTA(_xlfn.TEXTSPLIT('2.Total Allocated Program Funds'!$C19,";"))),"") ->  | B6: =IF(ISNUMBER(SEARCH(B$2,'2.Total Allocated Program Funds'!$C19))=TRUE,('2.Total Allocated Program Funds'!$B19/COUNTA(_xlfn.TEXTSPLIT('2.Total Allocated Program Funds'!$C19,";"))),"") ->  | C6: =IF(ISNUMBER(SEARCH(C$2,'2.Total Allocated Program Funds'!$C19))=TRUE,('2.Total Allocated Program Funds'!$B19/COUNTA(_xlfn.TEXTSPLIT('2.Total Allocated Program Funds'!$C19,";"))),"") ->  | E6: =IF(ISNUMBER(SEARCH(E$2,'2.Total Allocated Program Funds'!$D19))=TRUE,('2.Total Allocated Program Funds'!$B19/COUNTA(_xlfn.TEXTSPLIT('2.Total Allocated Program Funds'!$D19,";"))),"") ->  | F6: =IF(ISNUMBER(SEARCH(F$2,'2.Total Allocated Program Funds'!$D19))=TRUE,('2.Total Allocated Program Funds'!$B19/COUNTA(_xlfn.TEXTSPLIT('2.Total Allocated Program Funds'!$D19,";"))),"") ->  | G6: =IF(ISNUMBER(SEARCH(G$2,'2.Total Allocated Program Funds'!$D19))=TRUE,('2.Total Allocated Program Funds'!$B19/COUNTA(_xlfn.TEXTSPLIT('2.Total Allocated Program Funds'!$D19,";"))),"") ->  | H6: =IF(ISNUMBER(SEARCH(H$2,'2.Total Allocated Program Funds'!$D19))=TRUE,('2.Total Allocated Program Funds'!$B19/COUNTA(_xlfn.TEXTSPLIT('2.Total Allocated Program Funds'!$D19,";"))),"") -> 
A7: =IF(ISNUMBER(SEARCH(A$2,'2.Total Allocated Program Funds'!$C20))=TRUE,('2.Total Allocated Program Funds'!$B20/COUNTA(_xlfn.TEXTSPLIT('2.Total Allocated Program Funds'!$C20,";"))),"") ->  | B7: =IF(ISNUMBER(SEARCH(B$2,'2.Total Allocated Program Funds'!$C20))=TRUE,('2.Total Allocated Program Funds'!$B20/COUNTA(_xlfn.TEXTSPLIT('2.Total Allocated Program Funds'!$C20,";"))),"") ->  | C7: =IF(ISNUMBER(SEARCH(C$2,'2.Total Allocated Program Funds'!$C20))=TRUE,('2.Total Allocated Program Funds'!$B20/COUNTA(_xlfn.TEXTSPLIT('2.Total Allocated Program Funds'!$C20,";"))),"") ->  | E7: =IF(ISNUMBER(SEARCH(E$2,'2.Total Allocated Program Funds'!$D20))=TRUE,('2.Total Allocated Program Funds'!$B20/COUNTA(_xlfn.TEXTSPLIT('2.Total Allocated Program Funds'!$D20,";"))),"") ->  | F7: =IF(ISNUMBER(SEARCH(F$2,'2.Total Allocated Program Funds'!$D20))=TRUE,('2.Total Allocated Program Funds'!$B20/COUNTA(_xlfn.TEXTSPLIT('2.Total Allocated Program Funds'!$D20,";"))),"") ->  | G7: =IF(ISNUMBER(SEARCH(G$2,'2.Total Allocated Program Funds'!$D20))=TRUE,('2.Total Allocated Program Funds'!$B20/COUNTA(_xlfn.TEXTSPLIT('2.Total Allocated Program Funds'!$D20,";"))),"") ->  | H7: =IF(ISNUMBER(SEARCH(H$2,'2.Total Allocated Program Funds'!$D20))=TRUE,('2.Total Allocated Program Funds'!$B20/COUNTA(_xlfn.TEXTSPLIT('2.Total Allocated Program Funds'!$D20,";"))),"") -> 
A8: =IF(ISNUMBER(SEARCH(A$2,'2.Total Allocated Program Funds'!$C21))=TRUE,('2.Total Allocated Program Funds'!$B21/COUNTA(_xlfn.TEXTSPLIT('2.Total Allocated Program Funds'!$C21,";"))),"") ->  | B8: =IF(ISNUMBER(SEARCH(B$2,'2.Total Allocated Program Funds'!$C21))=TRUE,('2.Total Allocated Program Funds'!$B21/COUNTA(_xlfn.TEXTSPLIT('2.Total Allocated Program Funds'!$C21,";"))),"") ->  | C8: =IF(ISNUMBER(SEARCH(C$2,'2.Total Allocated Program Funds'!$C21))=TRUE,('2.Total Allocated Program Funds'!$B21/COUNTA(_xlfn.TEXTSPLIT('2.Total Allocated Program Funds'!$C21,";"))),"") ->  | E8: =IF(ISNUMBER(SEARCH(E$2,'2.Total Allocated Program Funds'!$D21))=TRUE,('2.Total Allocated Program Funds'!$B21/COUNTA(_xlfn.TEXTSPLIT('2.Total Allocated Program Funds'!$D21,";"))),"") ->  | F8: =IF(ISNUMBER(SEARCH(F$2,'2.Total Allocated Program Funds'!$D21))=TRUE,('2.Total Allocated Program Funds'!$B21/COUNTA(_xlfn.TEXTSPLIT('2.Total Allocated Program Funds'!$D21,";"))),"") ->  | G8: =IF(ISNUMBER(SEARCH(G$2,'2.Total Allocated Program Funds'!$D21))=TRUE,('2.Total Allocated Program Funds'!$B21/COUNTA(_xlfn.TEXTSPLIT('2.Total Allocated Program Funds'!$D21,";"))),"") ->  | H8: =IF(ISNUMBER(SEARCH(H$2,'2.Total Allocated Program Funds'!$D21))=TRUE,('2.Total Allocated Program Funds'!$B21/COUNTA(_xlfn.TEXTSPLIT('2.Total Allocated Program Funds'!$D21,";"))),"") -> 
A9: =IF(ISNUMBER(SEARCH(A$2,'2.Total Allocated Program Funds'!$C22))=TRUE,('2.Total Allocated Program Funds'!$B22/COUNTA(_xlfn.TEXTSPLIT('2.Total Allocated Program Funds'!$C22,";"))),"") ->  | B9: =IF(ISNUMBER(SEARCH(B$2,'2.Total Allocated Program Funds'!$C22))=TRUE,('2.Total Allocated Program Funds'!$B22/COUNTA(_xlfn.TEXTSPLIT('2.Total Allocated Program Funds'!$C22,";"))),"") ->  | C9: =IF(ISNUMBER(SEARCH(C$2,'2.Total Allocated Program Funds'!$C22))=TRUE,('2.Total Allocated Program Funds'!$B22/COUNTA(_xlfn.TEXTSPLIT('2.Total Allocated Program Funds'!$C22,";"))),"") ->  | E9: =IF(ISNUMBER(SEARCH(E$2,'2.Total Allocated Program Funds'!$D22))=TRUE,('2.Total Allocated Program Funds'!$B22/COUNTA(_xlfn.TEXTSPLIT('2.Total Allocated Program Funds'!$D22,";"))),"") ->  | F9: =IF(ISNUMBER(SEARCH(F$2,'2.Total Allocated Program Funds'!$D22))=TRUE,('2.Total Allocated Program Funds'!$B22/COUNTA(_xlfn.TEXTSPLIT('2.Total Allocated Program Funds'!$D22,";"))),"") ->  | G9: =IF(ISNUMBER(SEARCH(G$2,'2.Total Allocated Program Funds'!$D22))=TRUE,('2.Total Allocated Program Funds'!$B22/COUNTA(_xlfn.TEXTSPLIT('2.Total Allocated Program Funds'!$D22,";"))),"") ->  | H9: =IF(ISNUMBER(SEARCH(H$2,'2.Total Allocated Program Funds'!$D22))=TRUE,('2.Total Allocated Program Funds'!$B22/COUNTA(_xlfn.TEXTSPLIT('2.Total Allocated Program Funds'!$D22,";"))),"") -> 
A10: =IF(ISNUMBER(SEARCH(A$2,'2.Total Allocated Program Funds'!$C23))=TRUE,('2.Total Allocated Program Funds'!$B23/COUNTA(_xlfn.TEXTSPLIT('2.Total Allocated Program Funds'!$C23,";"))),"") ->  | B10: =IF(ISNUMBER(SEARCH(B$2,'2.Total Allocated Program Funds'!$C23))=TRUE,('2.Total Allocated Program Funds'!$B23/COUNTA(_xlfn.TEXTSPLIT('2.Total Allocated Program Funds'!$C23,";"))),"") ->  | C10: =IF(ISNUMBER(SEARCH(C$2,'2.Total Allocated Program Funds'!$C23))=TRUE,('2.Total Allocated Program Funds'!$B23/COUNTA(_xlfn.TEXTSPLIT('2.Total Allocated Program Funds'!$C23,";"))),"") ->  | E10: =IF(ISNUMBER(SEARCH(E$2,'2.Total Allocated Program Funds'!$D23))=TRUE,('2.Total Allocated Program Funds'!$B23/COUNTA(_xlfn.TEXTSPLIT('2.Total Allocated Program Funds'!$D23,";"))),"") ->  | F10: =IF(ISNUMBER(SEARCH(F$2,'2.Total Allocated Program Funds'!$D23))=TRUE,('2.Total Allocated Program Funds'!$B23/COUNTA(_xlfn.TEXTSPLIT('2.Total Allocated Program Funds'!$D23,";"))),"") ->  | G10: =IF(ISNUMBER(SEARCH(G$2,'2.Total Allocated Program Funds'!$D23))=TRUE,('2.Total Allocated Program Funds'!$B23/COUNTA(_xlfn.TEXTSPLIT('2.Total Allocated Program Funds'!$D23,";"))),"") ->  | H10: =IF(ISNUMBER(SEARCH(H$2,'2.Total Allocated Program Funds'!$D23))=TRUE,('2.Total Allocated Program Funds'!$B23/COUNTA(_xlfn.TEXTSPLIT('2.Total Allocated Program Funds'!$D23,";"))),"") -> 
A11: =IF(ISNUMBER(SEARCH(A$2,'2.Total Allocated Program Funds'!$C24))=TRUE,('2.Total Allocated Program Funds'!$B24/COUNTA(_xlfn.TEXTSPLIT('2.Total Allocated Program Funds'!$C24,";"))),"") ->  | B11: =IF(ISNUMBER(SEARCH(B$2,'2.Total Allocated Program Funds'!$C24))=TRUE,('2.Total Allocated Program Funds'!$B24/COUNTA(_xlfn.TEXTSPLIT('2.Total Allocated Program Funds'!$C24,";"))),"") ->  | C11: =IF(ISNUMBER(SEARCH(C$2,'2.Total Allocated Program Funds'!$C24))=TRUE,('2.Total Allocated Program Funds'!$B24/COUNTA(_xlfn.TEXTSPLIT('2.Total Allocated Program Funds'!$C24,";"))),"") ->  | E11: =IF(ISNUMBER(SEARCH(E$2,'2.Total Allocated Program Funds'!$D24))=TRUE,('2.Total Allocated Program Funds'!$B24/COUNTA(_xlfn.TEXTSPLIT('2.Total Allocated Program Funds'!$D24,";"))),"") ->  | F11: =IF(ISNUMBER(SEARCH(F$2,'2.Total Allocated Program Funds'!$D24))=TRUE,('2.Total Allocated Program Funds'!$B24/COUNTA(_xlfn.TEXTSPLIT('2.Total Allocated Program Funds'!$D24,";"))),"") ->  | G11: =IF(ISNUMBER(SEARCH(G$2,'2.Total Allocated Program Funds'!$D24))=TRUE,('2.Total Allocated Program Funds'!$B24/COUNTA(_xlfn.TEXTSPLIT('2.Total Allocated Program Funds'!$D24,";"))),"") ->  | H11: =IF(ISNUMBER(SEARCH(H$2,'2.Total Allocated Program Funds'!$D24))=TRUE,('2.Total Allocated Program Funds'!$B24/COUNTA(_xlfn.TEXTSPLIT('2.Total Allocated Program Funds'!$D24,";"))),"") -> 
A12: =IF(ISNUMBER(SEARCH(A$2,'2.Total Allocated Program Funds'!$C25))=TRUE,('2.Total Allocated Program Funds'!$B25/COUNTA(_xlfn.TEXTSPLIT('2.Total Allocated Program Funds'!$C25,";"))),"") ->  | B12: =IF(ISNUMBER(SEARCH(B$2,'2.Total Allocated Program Funds'!$C25))=TRUE,('2.Total Allocated Program Funds'!$B25/COUNTA(_xlfn.TEXTSPLIT('2.Total Allocated Program Funds'!$C25,";"))),"") ->  | C12: =IF(ISNUMBER(SEARCH(C$2,'2.Total Allocated Program Funds'!$C25))=TRUE,('2.Total Allocated Program Funds'!$B25/COUNTA(_xlfn.TEXTSPLIT('2.Total Allocated Program Funds'!$C25,";"))),"") ->  | E12: =IF(ISNUMBER(SEARCH(E$2,'2.Total Allocated Program Funds'!$D25))=TRUE,('2.Total Allocated Program Funds'!$B25/COUNTA(_xlfn.TEXTSPLIT('2.Total Allocated Program Funds'!$D25,";"))),"") ->  | F12: =IF(ISNUMBER(SEARCH(F$2,'2.Total Allocated Program Funds'!$D25))=TRUE,('2.Total Allocated Program Funds'!$B25/COUNTA(_xlfn.TEXTSPLIT('2.Total Allocated Program Funds'!$D25,";"))),"") ->  | G12: =IF(ISNUMBER(SEARCH(G$2,'2.Total Allocated Program Funds'!$D25))=TRUE,('2.Total Allocated Program Funds'!$B25/COUNTA(_xlfn.TEXTSPLIT('2.Total Allocated Program Funds'!$D25,";"))),"") ->  | H12: =IF(ISNUMBER(SEARCH(H$2,'2.Total Allocated Program Funds'!$D25))=TRUE,('2.Total Allocated Program Funds'!$B25/COUNTA(_xlfn.TEXTSPLIT('2.Total Allocated Program Funds'!$D25,";"))),"") -> 
A13: =IF(ISNUMBER(SEARCH(A$2,'2.Total Allocated Program Funds'!$C26))=TRUE,('2.Total Allocated Program Funds'!$B26/COUNTA(_xlfn.TEXTSPLIT('2.Total Allocated Program Funds'!$C26,";"))),"") ->  | B13: =IF(ISNUMBER(SEARCH(B$2,'2.Total Allocated Program Funds'!$C26))=TRUE,('2.Total Allocated Program Funds'!$B26/COUNTA(_xlfn.TEXTSPLIT('2.Total Allocated Program Funds'!$C26,";"))),"") ->  | C13: =IF(ISNUMBER(SEARCH(C$2,'2.Total Allocated Program Funds'!$C26))=TRUE,('2.Total Allocated Program Funds'!$B26/COUNTA(_xlfn.TEXTSPLIT('2.Total Allocated Program Funds'!$C26,";"))),"") ->  | E13: =IF(ISNUMBER(SEARCH(E$2,'2.Total Allocated Program Funds'!$D26))=TRUE,('2.Total Allocated Program Funds'!$B26/COUNTA(_xlfn.TEXTSPLIT('2.Total Allocated Program Funds'!$D26,";"))),"") ->  | F13: =IF(ISNUMBER(SEARCH(F$2,'2.Total Allocated Program Funds'!$D26))=TRUE,('2.Total Allocated Program Funds'!$B26/COUNTA(_xlfn.TEXTSPLIT('2.Total Allocated Program Funds'!$D26,";"))),"") ->  | G13: =IF(ISNUMBER(SEARCH(G$2,'2.Total Allocated Program Funds'!$D26))=TRUE,('2.Total Allocated Program Funds'!$B26/COUNTA(_xlfn.TEXTSPLIT('2.Total Allocated Program Funds'!$D26,";"))),"") ->  | H13: =IF(ISNUMBER(SEARCH(H$2,'2.Total Allocated Program Funds'!$D26))=TRUE,('2.Total Allocated Program Funds'!$B26/COUNTA(_xlfn.TEXTSPLIT('2.Total Allocated Program Funds'!$D26,";"))),"") -> 
A14: =IF(ISNUMBER(SEARCH(A$2,'2.Total Allocated Program Funds'!$C27))=TRUE,('2.Total Allocated Program Funds'!$B27/COUNTA(_xlfn.TEXTSPLIT('2.Total Allocated Program Funds'!$C27,";"))),"") ->  | B14: =IF(ISNUMBER(SEARCH(B$2,'2.Total Allocated Program Funds'!$C27))=TRUE,('2.Total Allocated Program Funds'!$B27/COUNTA(_xlfn.TEXTSPLIT('2.Total Allocated Program Funds'!$C27,";"))),"") ->  | C14: =IF(ISNUMBER(SEARCH(C$2,'2.Total Allocated Program Funds'!$C27))=TRUE,('2.Total Allocated Program Funds'!$B27/COUNTA(_xlfn.TEXTSPLIT('2.Total Allocated Program Funds'!$C27,";"))),"") ->  | E14: =IF(ISNUMBER(SEARCH(E$2,'2.Total Allocated Program Funds'!$D27))=TRUE,('2.Total Allocated Program Funds'!$B27/COUNTA(_xlfn.TEXTSPLIT('2.Total Allocated Program Funds'!$D27,";"))),"") ->  | F14: =IF(ISNUMBER(SEARCH(F$2,'2.Total Allocated Program Funds'!$D27))=TRUE,('2.Total Allocated Program Funds'!$B27/COUNTA(_xlfn.TEXTSPLIT('2.Total Allocated Program Funds'!$D27,";"))),"") ->  | G14: =IF(ISNUMBER(SEARCH(G$2,'2.Total Allocated Program Funds'!$D27))=TRUE,('2.Total Allocated Program Funds'!$B27/COUNTA(_xlfn.TEXTSPLIT('2.Total Allocated Program Funds'!$D27,";"))),"") ->  | H14: =IF(ISNUMBER(SEARCH(H$2,'2.Total Allocated Program Funds'!$D27))=TRUE,('2.Total Allocated Program Funds'!$B27/COUNTA(_xlfn.TEXTSPLIT('2.Total Allocated Program Funds'!$D27,";"))),"") -> 
A15: =IF(ISNUMBER(SEARCH(A$2,'2.Total Allocated Program Funds'!$C28))=TRUE,('2.Total Allocated Program Funds'!$B28/COUNTA(_xlfn.TEXTSPLIT('2.Total Allocated Program Funds'!$C28,";"))),"") ->  | B15: =IF(ISNUMBER(SEARCH(B$2,'2.Total Allocated Program Funds'!$C28))=TRUE,('2.Total Allocated Program Funds'!$B28/COUNTA(_xlfn.TEXTSPLIT('2.Total Allocated Program Funds'!$C28,";"))),"") ->  | C15: =IF(ISNUMBER(SEARCH(C$2,'2.Total Allocated Program Funds'!$C28))=TRUE,('2.Total Allocated Program Funds'!$B28/COUNTA(_xlfn.TEXTSPLIT('2.Total Allocated Program Funds'!$C28,";"))),"") ->  | E15: =IF(ISNUMBER(SEARCH(E$2,'2.Total Allocated Program Funds'!$D28))=TRUE,('2.Total Allocated Program Funds'!$B28/COUNTA(_xlfn.TEXTSPLIT('2.Total Allocated Program Funds'!$D28,";"))),"") ->  | F15: =IF(ISNUMBER(SEARCH(F$2,'2.Total Allocated Program Funds'!$D28))=TRUE,('2.Total Allocated Program Funds'!$B28/COUNTA(_xlfn.TEXTSPLIT('2.Total Allocated Program Funds'!$D28,";"))),"") ->  | G15: =IF(ISNUMBER(SEARCH(G$2,'2.Total Allocated Program Funds'!$D28))=TRUE,('2.Total Allocated Program Funds'!$B28/COUNTA(_xlfn.TEXTSPLIT('2.Total Allocated Program Funds'!$D28,";"))),"") ->  | H15: =IF(ISNUMBER(SEARCH(H$2,'2.Total Allocated Program Funds'!$D28))=TRUE,('2.Total Allocated Program Funds'!$B28/COUNTA(_xlfn.TEXTSPLIT('2.Total Allocated Program Funds'!$D28,";"))),"") -> 
A16: =IF(ISNUMBER(SEARCH(A$2,'2.Total Allocated Program Funds'!$C29))=TRUE,('2.Total Allocated Program Funds'!$B29/COUNTA(_xlfn.TEXTSPLIT('2.Total Allocated Program Funds'!$C29,";"))),"") ->  | B16: =IF(ISNUMBER(SEARCH(B$2,'2.Total Allocated Program Funds'!$C29))=TRUE,('2.Total Allocated Program Funds'!$B29/COUNTA(_xlfn.TEXTSPLIT('2.Total Allocated Program Funds'!$C29,";"))),"") ->  | C16: =IF(ISNUMBER(SEARCH(C$2,'2.Total Allocated Program Funds'!$C29))=TRUE,('2.Total Allocated Program Funds'!$B29/COUNTA(_xlfn.TEXTSPLIT('2.Total Allocated Program Funds'!$C29,";"))),"") ->  | E16: =IF(ISNUMBER(SEARCH(E$2,'2.Total Allocated Program Funds'!$D29))=TRUE,('2.Total Allocated Program Funds'!$B29/COUNTA(_xlfn.TEXTSPLIT('2.Total Allocated Program Funds'!$D29,";"))),"") ->  | F16: =IF(ISNUMBER(SEARCH(F$2,'2.Total Allocated Program Funds'!$D29))=TRUE,('2.Total Allocated Program Funds'!$B29/COUNTA(_xlfn.TEXTSPLIT('2.Total Allocated Program Funds'!$D29,";"))),"") ->  | G16: =IF(ISNUMBER(SEARCH(G$2,'2.Total Allocated Program Funds'!$D29))=TRUE,('2.Total Allocated Program Funds'!$B29/COUNTA(_xlfn.TEXTSPLIT('2.Total Allocated Program Funds'!$D29,";"))),"") ->  | H16: =IF(ISNUMBER(SEARCH(H$2,'2.Total Allocated Program Funds'!$D29))=TRUE,('2.Total Allocated Program Funds'!$B29/COUNTA(_xlfn.TEXTSPLIT('2.Total Allocated Program Funds'!$D29,";"))),"") -> 
A17: =IF(ISNUMBER(SEARCH(A$2,'2.Total Allocated Program Funds'!$C30))=TRUE,('2.Total Allocated Program Funds'!$B30/COUNTA(_xlfn.TEXTSPLIT('2.Total Allocated Program Funds'!$C30,";"))),"") ->  | B17: =IF(ISNUMBER(SEARCH(B$2,'2.Total Allocated Program Funds'!$C30))=TRUE,('2.Total Allocated Program Funds'!$B30/COUNTA(_xlfn.TEXTSPLIT('2.Total Allocated Program Funds'!$C30,";"))),"") ->  | C17: =IF(ISNUMBER(SEARCH(C$2,'2.Total Allocated Program Funds'!$C30))=TRUE,('2.Total Allocated Program Funds'!$B30/COUNTA(_xlfn.TEXTSPLIT('2.Total Allocated Program Funds'!$C30,";"))),"") ->  | E17: =IF(ISNUMBER(SEARCH(E$2,'2.Total Allocated Program Funds'!$D30))=TRUE,('2.Total Allocated Program Funds'!$B30/COUNTA(_xlfn.TEXTSPLIT('2.Total Allocated Program Funds'!$D30,";"))),"") ->  | F17: =IF(ISNUMBER(SEARCH(F$2,'2.Total Allocated Program Funds'!$D30))=TRUE,('2.Total Allocated Program Funds'!$B30/COUNTA(_xlfn.TEXTSPLIT('2.Total Allocated Program Funds'!$D30,";"))),"") ->  | G17: =IF(ISNUMBER(SEARCH(G$2,'2.Total Allocated Program Funds'!$D30))=TRUE,('2.Total Allocated Program Funds'!$B30/COUNTA(_xlfn.TEXTSPLIT('2.Total Allocated Program Funds'!$D30,";"))),"") ->  | H17: =IF(ISNUMBER(SEARCH(H$2,'2.Total Allocated Program Funds'!$D30))=TRUE,('2.Total Allocated Program Funds'!$B30/COUNTA(_xlfn.TEXTSPLIT('2.Total Allocated Program Funds'!$D30,";"))),"") -> 
A18: =IF(ISNUMBER(SEARCH(A$2,'2.Total Allocated Program Funds'!$C31))=TRUE,('2.Total Allocated Program Funds'!$B31/COUNTA(_xlfn.TEXTSPLIT('2.Total Allocated Program Funds'!$C31,";"))),"") ->  | B18: =IF(ISNUMBER(SEARCH(B$2,'2.Total Allocated Program Funds'!$C31))=TRUE,('2.Total Allocated Program Funds'!$B31/COUNTA(_xlfn.TEXTSPLIT('2.Total Allocated Program Funds'!$C31,";"))),"") ->  | C18: =IF(ISNUMBER(SEARCH(C$2,'2.Total Allocated Program Funds'!$C31))=TRUE,('2.Total Allocated Program Funds'!$B31/COUNTA(_xlfn.TEXTSPLIT('2.Total Allocated Program Funds'!$C31,";"))),"") ->  | E18: =IF(ISNUMBER(SEARCH(E$2,'2.Total Allocated Program Funds'!$D31))=TRUE,('2.Total Allocated Program Funds'!$B31/COUNTA(_xlfn.TEXTSPLIT('2.Total Allocated Program Funds'!$D31,";"))),"") ->  | F18: =IF(ISNUMBER(SEARCH(F$2,'2.Total Allocated Program Funds'!$D31))=TRUE,('2.Total Allocated Program Funds'!$B31/COUNTA(_xlfn.TEXTSPLIT('2.Total Allocated Program Funds'!$D31,";"))),"") ->  | G18: =IF(ISNUMBER(SEARCH(G$2,'2.Total Allocated Program Funds'!$D31))=TRUE,('2.Total Allocated Program Funds'!$B31/COUNTA(_xlfn.TEXTSPLIT('2.Total Allocated Program Funds'!$D31,";"))),"") ->  | H18: =IF(ISNUMBER(SEARCH(H$2,'2.Total Allocated Program Funds'!$D31))=TRUE,('2.Total Allocated Program Funds'!$B31/COUNTA(_xlfn.TEXTSPLIT('2.Total Allocated Program Funds'!$D31,";"))),"") -> 
A19: =IF(ISNUMBER(SEARCH(A$2,'2.Total Allocated Program Funds'!$C32))=TRUE,('2.Total Allocated Program Funds'!$B32/COUNTA(_xlfn.TEXTSPLIT('2.Total Allocated Program Funds'!$C32,";"))),"") ->  | B19: =IF(ISNUMBER(SEARCH(B$2,'2.Total Allocated Program Funds'!$C32))=TRUE,('2.Total Allocated Program Funds'!$B32/COUNTA(_xlfn.TEXTSPLIT('2.Total Allocated Program Funds'!$C32,";"))),"") ->  | C19: =IF(ISNUMBER(SEARCH(C$2,'2.Total Allocated Program Funds'!$C32))=TRUE,('2.Total Allocated Program Funds'!$B32/COUNTA(_xlfn.TEXTSPLIT('2.Total Allocated Program Funds'!$C32,";"))),"") ->  | E19: =IF(ISNUMBER(SEARCH(E$2,'2.Total Allocated Program Funds'!$D32))=TRUE,('2.Total Allocated Program Funds'!$B32/COUNTA(_xlfn.TEXTSPLIT('2.Total Allocated Program Funds'!$D32,";"))),"") ->  | F19: =IF(ISNUMBER(SEARCH(F$2,'2.Total Allocated Program Funds'!$D32))=TRUE,('2.Total Allocated Program Funds'!$B32/COUNTA(_xlfn.TEXTSPLIT('2.Total Allocated Program Funds'!$D32,";"))),"") ->  | G19: =IF(ISNUMBER(SEARCH(G$2,'2.Total Allocated Program Funds'!$D32))=TRUE,('2.Total Allocated Program Funds'!$B32/COUNTA(_xlfn.TEXTSPLIT('2.Total Allocated Program Funds'!$D32,";"))),"") ->  | H19: =IF(ISNUMBER(SEARCH(H$2,'2.Total Allocated Program Funds'!$D32))=TRUE,('2.Total Allocated Program Funds'!$B32/COUNTA(_xlfn.TEXTSPLIT('2.Total Allocated Program Funds'!$D32,";"))),"") -> 
A20: =IF(ISNUMBER(SEARCH(A$2,'2.Total Allocated Program Funds'!$C33))=TRUE,('2.Total Allocated Program Funds'!$B33/COUNTA(_xlfn.TEXTSPLIT('2.Total Allocated Program Funds'!$C33,";"))),"") ->  | B20: =IF(ISNUMBER(SEARCH(B$2,'2.Total Allocated Program Funds'!$C33))=TRUE,('2.Total Allocated Program Funds'!$B33/COUNTA(_xlfn.TEXTSPLIT('2.Total Allocated Program Funds'!$C33,";"))),"") ->  | C20: =IF(ISNUMBER(SEARCH(C$2,'2.Total Allocated Program Funds'!$C33))=TRUE,('2.Total Allocated Program Funds'!$B33/COUNTA(_xlfn.TEXTSPLIT('2.Total Allocated Program Funds'!$C33,";"))),"") ->  | E20: =IF(ISNUMBER(SEARCH(E$2,'2.Total Allocated Program Funds'!$D33))=TRUE,('2.Total Allocated Program Funds'!$B33/COUNTA(_xlfn.TEXTSPLIT('2.Total Allocated Program Funds'!$D33,";"))),"") ->  | F20: =IF(ISNUMBER(SEARCH(F$2,'2.Total Allocated Program Funds'!$D33))=TRUE,('2.Total Allocated Program Funds'!$B33/COUNTA(_xlfn.TEXTSPLIT('2.Total Allocated Program Funds'!$D33,";"))),"") ->  | G20: =IF(ISNUMBER(SEARCH(G$2,'2.Total Allocated Program Funds'!$D33))=TRUE,('2.Total Allocated Program Funds'!$B33/COUNTA(_xlfn.TEXTSPLIT('2.Total Allocated Program Funds'!$D33,";"))),"") ->  | H20: =IF(ISNUMBER(SEARCH(H$2,'2.Total Allocated Program Funds'!$D33))=TRUE,('2.Total Allocated Program Funds'!$B33/COUNTA(_xlfn.TEXTSPLIT('2.Total Allocated Program Funds'!$D33,";"))),"") -> 
A21: =IF(ISNUMBER(SEARCH(A$2,'2.Total Allocated Program Funds'!$C34))=TRUE,('2.Total Allocated Program Funds'!$B34/COUNTA(_xlfn.TEXTSPLIT('2.Total Allocated Program Funds'!$C34,";"))),"") ->  | B21: =IF(ISNUMBER(SEARCH(B$2,'2.Total Allocated Program Funds'!$C34))=TRUE,('2.Total Allocated Program Funds'!$B34/COUNTA(_xlfn.TEXTSPLIT('2.Total Allocated Program Funds'!$C34,";"))),"") ->  | C21: =IF(ISNUMBER(SEARCH(C$2,'2.Total Allocated Program Funds'!$C34))=TRUE,('2.Total Allocated Program Funds'!$B34/COUNTA(_xlfn.TEXTSPLIT('2.Total Allocated Program Funds'!$C34,";"))),"") ->  | E21: =IF(ISNUMBER(SEARCH(E$2,'2.Total Allocated Program Funds'!$D34))=TRUE,('2.Total Allocated Program Funds'!$B34/COUNTA(_xlfn.TEXTSPLIT('2.Total Allocated Program Funds'!$D34,";"))),"") ->  | F21: =IF(ISNUMBER(SEARCH(F$2,'2.Total Allocated Program Funds'!$D34))=TRUE,('2.Total Allocated Program Funds'!$B34/COUNTA(_xlfn.TEXTSPLIT('2.Total Allocated Program Funds'!$D34,";"))),"") ->  | G21: =IF(ISNUMBER(SEARCH(G$2,'2.Total Allocated Program Funds'!$D34))=TRUE,('2.Total Allocated Program Funds'!$B34/COUNTA(_xlfn.TEXTSPLIT('2.Total Allocated Program Funds'!$D34,";"))),"") ->  | H21: =IF(ISNUMBER(SEARCH(H$2,'2.Total Allocated Program Funds'!$D34))=TRUE,('2.Total Allocated Program Funds'!$B34/COUNTA(_xlfn.TEXTSPLIT('2.Total Allocated Program Funds'!$D34,";"))),"") -> 
A22: =IF(ISNUMBER(SEARCH(A$2,'2.Total Allocated Program Funds'!$C35))=TRUE,('2.Total Allocated Program Funds'!$B35/COUNTA(_xlfn.TEXTSPLIT('2.Total Allocated Program Funds'!$C35,";"))),"") ->  | B22: =IF(ISNUMBER(SEARCH(B$2,'2.Total Allocated Program Funds'!$C35))=TRUE,('2.Total Allocated Program Funds'!$B35/COUNTA(_xlfn.TEXTSPLIT('2.Total Allocated Program Funds'!$C35,";"))),"") ->  | C22: =IF(ISNUMBER(SEARCH(C$2,'2.Total Allocated Program Funds'!$C35))=TRUE,('2.Total Allocated Program Funds'!$B35/COUNTA(_xlfn.TEXTSPLIT('2.Total Allocated Program Funds'!$C35,";"))),"") ->  | E22: =IF(ISNUMBER(SEARCH(E$2,'2.Total Allocated Program Funds'!$D35))=TRUE,('2.Total Allocated Program Funds'!$B35/COUNTA(_xlfn.TEXTSPLIT('2.Total Allocated Program Funds'!$D35,";"))),"") ->  | F22: =IF(ISNUMBER(SEARCH(F$2,'2.Total Allocated Program Funds'!$D35))=TRUE,('2.Total Allocated Program Funds'!$B35/COUNTA(_xlfn.TEXTSPLIT('2.Total Allocated Program Funds'!$D35,";"))),"") ->  | G22: =IF(ISNUMBER(SEARCH(G$2,'2.Total Allocated Program Funds'!$D35))=TRUE,('2.Total Allocated Program Funds'!$B35/COUNTA(_xlfn.TEXTSPLIT('2.Total Allocated Program Funds'!$D35,";"))),"") ->  | H22: =IF(ISNUMBER(SEARCH(H$2,'2.Total Allocated Program Funds'!$D35))=TRUE,('2.Total Allocated Program Funds'!$B35/COUNTA(_xlfn.TEXTSPLIT('2.Total Allocated Program Funds'!$D35,";"))),"") -> 
A24: In-Kind Resources (Tabs 3A + 3B)- Allocation by Strategy | E24: In-Kind Resources (Tabs 3A + 3B)- Allocation by Topic
A25: Data and Surveillance | B25: Collaborations and Partnerships | C25: Assessment and Evaluation | E25: Adverse Childhood Experiences (ACEs) | F25: Transportation Safety | G25: Traumatic Brain Injury | H25: Other Topic (please specify in comments)
A26: =IF(ISNUMBER(SEARCH(A$2,'3A. In-Kind Labor '!$F5))=TRUE,('3A. In-Kind Labor '!$E5/COUNTA(_xlfn.TEXTSPLIT('3A. In-Kind Labor '!$F5,";"))),0)+IF(ISNUMBER(SEARCH(A$2,'3B. In-Kind Non-Labor'!$F6))=TRUE,('3B. In-Kind Non-Labor'!$E6/COUNTA(_xlfn.TEXTSPLIT('3B. In-Kind Non-Labor'!$F6,";"))),0) -> 0 | B26: =IF(ISNUMBER(SEARCH(B$2,'3A. In-Kind Labor '!$F5))=TRUE,('3A. In-Kind Labor '!$E5/COUNTA(_xlfn.TEXTSPLIT('3A. In-Kind Labor '!$F5,";"))),0)+IF(ISNUMBER(SEARCH(B$2,'3B. In-Kind Non-Labor'!$F6))=TRUE,('3B. In-Kind Non-Labor'!$E6/COUNTA(_xlfn.TEXTSPLIT('3B. In-Kind Non-Labor'!$F6,";"))),0) -> 0 | C26: =IF(ISNUMBER(SEARCH(C$2,'3A. In-Kind Labor '!$F5))=TRUE,('3A. In-Kind Labor '!$E5/COUNTA(_xlfn.TEXTSPLIT('3A. In-Kind Labor '!$F5,";"))),0)+IF(ISNUMBER(SEARCH(C$2,'3B. In-Kind Non-Labor'!$F6))=TRUE,('3B. In-Kind Non-Labor'!$E6/COUNTA(_xlfn.TEXTSPLIT('3B. In-Kind Non-Labor'!$F6,";"))),0) -> 0 | E26: =IF(ISNUMBER(SEARCH(E$2,'3A. In-Kind Labor '!$G5))=TRUE,('3A. In-Kind Labor '!$E5/COUNTA(_xlfn.TEXTSPLIT('3A. In-Kind Labor '!$G5,";"))),0)+IF(ISNUMBER(SEARCH(E$2,'3B. In-Kind Non-Labor'!$G6))=TRUE,('3B. In-Kind Non-Labor'!$E6/COUNTA(_xlfn.TEXTSPLIT('3B. In-Kind Non-Labor'!$G6,";"))),0) -> 0 | F26: =IF(ISNUMBER(SEARCH(F$2,'3A. In-Kind Labor '!$G5))=TRUE,('3A. In-Kind Labor '!$E5/COUNTA(_xlfn.TEXTSPLIT('3A. In-Kind Labor '!$G5,";"))),0)+IF(ISNUMBER(SEARCH(F$2,'3B. In-Kind Non-Labor'!$G6))=TRUE,('3B. In-Kind Non-Labor'!$E6/COUNTA(_xlfn.TEXTSPLIT('3B. In-Kind Non-Labor'!$G6,";"))),0) -> 0 | G26: =IF(ISNUMBER(SEARCH(G$2,'3A. In-Kind Labor '!$G5))=TRUE,('3A. In-Kind Labor '!$E5/COUNTA(_xlfn.TEXTSPLIT('3A. In-Kind Labor '!$G5,";"))),0)+IF(ISNUMBER(SEARCH(G$2,'3B. In-Kind Non-Labor'!$G6))=TRUE,('3B. In-Kind Non-Labor'!$E6/COUNTA(_xlfn.TEXTSPLIT('3B. In-Kind Non-Labor'!$G6,";"))),0) -> 0 | H26: =IF(ISNUMBER(SEARCH(H$2,'3A. In-Kind Labor '!$G5))=TRUE,('3A. In-Kind Labor '!$E5/COUNTA(_xlfn.TEXTSPLIT('3A. In-Kind Labor '!$G5,";"))),0)+IF(ISNUMBER(SEARCH(H$2,'3B. In-Kind Non-Labor'!$G6))=TRUE,('3B. In-Kind Non-Labor'!$E6/COUNTA(_xlfn.TEXTSPLIT('3B. In-Kind Non-Labor'!$G6,";"))),0) -> 0
A27: =IF(ISNUMBER(SEARCH(A$2,'3A. In-Kind Labor '!$F6))=TRUE,('3A. In-Kind Labor '!$E6/COUNTA(_xlfn.TEXTSPLIT('3A. In-Kind Labor '!$F6,";"))),0)+IF(ISNUMBER(SEARCH(A$2,'3B. In-Kind Non-Labor'!$F7))=TRUE,('3B. In-Kind Non-Labor'!$E7/COUNTA(_xlfn.TEXTSPLIT('3B. In-Kind Non-Labor'!$F7,";"))),0) -> 0 | B27: =IF(ISNUMBER(SEARCH(B$2,'3A. In-Kind Labor '!$F6))=TRUE,('3A. In-Kind Labor '!$E6/COUNTA(_xlfn.TEXTSPLIT('3A. In-Kind Labor '!$F6,";"))),0)+IF(ISNUMBER(SEARCH(B$2,'3B. In-Kind Non-Labor'!$F7))=TRUE,('3B. In-Kind Non-Labor'!$E7/COUNTA(_xlfn.TEXTSPLIT('3B. In-Kind Non-Labor'!$F7,";"))),0) -> 0 | C27: =IF(ISNUMBER(SEARCH(C$2,'3A. In-Kind Labor '!$F6))=TRUE,('3A. In-Kind Labor '!$E6/COUNTA(_xlfn.TEXTSPLIT('3A. In-Kind Labor '!$F6,";"))),0)+IF(ISNUMBER(SEARCH(C$2,'3B. In-Kind Non-Labor'!$F7))=TRUE,('3B. In-Kind Non-Labor'!$E7/COUNTA(_xlfn.TEXTSPLIT('3B. In-Kind Non-Labor'!$F7,";"))),0) -> 0 | E27: =IF(ISNUMBER(SEARCH(E$2,'3A. In-Kind Labor '!$G6))=TRUE,('3A. In-Kind Labor '!$E6/COUNTA(_xlfn.TEXTSPLIT('3A. In-Kind Labor '!$G6,";"))),0)+IF(ISNUMBER(SEARCH(E$2,'3B. In-Kind Non-Labor'!$G7))=TRUE,('3B. In-Kind Non-Labor'!$E7/COUNTA(_xlfn.TEXTSPLIT('3B. In-Kind Non-Labor'!$G7,";"))),0) -> 0 | F27: =IF(ISNUMBER(SEARCH(F$2,'3A. In-Kind Labor '!$G6))=TRUE,('3A. In-Kind Labor '!$E6/COUNTA(_xlfn.TEXTSPLIT('3A. In-Kind Labor '!$G6,";"))),0)+IF(ISNUMBER(SEARCH(F$2,'3B. In-Kind Non-Labor'!$G7))=TRUE,('3B. In-Kind Non-Labor'!$E7/COUNTA(_xlfn.TEXTSPLIT('3B. In-Kind Non-Labor'!$G7,";"))),0) -> 0 | G27: =IF(ISNUMBER(SEARCH(G$2,'3A. In-Kind Labor '!$G6))=TRUE,('3A. In-Kind Labor '!$E6/COUNTA(_xlfn.TEXTSPLIT('3A. In-Kind Labor '!$G6,";"))),0)+IF(ISNUMBER(SEARCH(G$2,'3B. In-Kind Non-Labor'!$G7))=TRUE,('3B. In-Kind Non-Labor'!$E7/COUNTA(_xlfn.TEXTSPLIT('3B. In-Kind Non-Labor'!$G7,";"))),0) -> 0 | H27: =IF(ISNUMBER(SEARCH(H$2,'3A. In-Kind Labor '!$G6))=TRUE,('3A. In-Kind Labor '!$E6/COUNTA(_xlfn.TEXTSPLIT('3A. In-Kind Labor '!$G6,";"))),0)+IF(ISNUMBER(SEARCH(H$2,'3B. In-Kind Non-Labor'!$G7))=TRUE,('3B. In-Kind Non-Labor'!$E7/COUNTA(_xlfn.TEXTSPLIT('3B. In-Kind Non-Labor'!$G7,";"))),0) -> 0
A28: =IF(ISNUMBER(SEARCH(A$2,'3A. In-Kind Labor '!$F7))=TRUE,('3A. In-Kind Labor '!$E7/COUNTA(_xlfn.TEXTSPLIT('3A. In-Kind Labor '!$F7,";"))),0)+IF(ISNUMBER(SEARCH(A$2,'3B. In-Kind Non-Labor'!$F8))=TRUE,('3B. In-Kind Non-Labor'!$E8/COUNTA(_xlfn.TEXTSPLIT('3B. In-Kind Non-Labor'!$F8,";"))),0) -> 0 | B28: =IF(ISNUMBER(SEARCH(B$2,'3A. In-Kind Labor '!$F7))=TRUE,('3A. In-Kind Labor '!$E7/COUNTA(_xlfn.TEXTSPLIT('3A. In-Kind Labor '!$F7,";"))),0)+IF(ISNUMBER(SEARCH(B$2,'3B. In-Kind Non-Labor'!$F8))=TRUE,('3B. In-Kind Non-Labor'!$E8/COUNTA(_xlfn.TEXTSPLIT('3B. In-Kind Non-Labor'!$F8,";"))),0) -> 0 | C28: =IF(ISNUMBER(SEARCH(C$2,'3A. In-Kind Labor '!$F7))=TRUE,('3A. In-Kind Labor '!$E7/COUNTA(_xlfn.TEXTSPLIT('3A. In-Kind Labor '!$F7,";"))),0)+IF(ISNUMBER(SEARCH(C$2,'3B. In-Kind Non-Labor'!$F8))=TRUE,('3B. In-Kind Non-Labor'!$E8/COUNTA(_xlfn.TEXTSPLIT('3B. In-Kind Non-Labor'!$F8,";"))),0) -> 0 | E28: =IF(ISNUMBER(SEARCH(E$2,'3A. In-Kind Labor '!$G7))=TRUE,('3A. In-Kind Labor '!$E7/COUNTA(_xlfn.TEXTSPLIT('3A. In-Kind Labor '!$G7,";"))),0)+IF(ISNUMBER(SEARCH(E$2,'3B. In-Kind Non-Labor'!$G8))=TRUE,('3B. In-Kind Non-Labor'!$E8/COUNTA(_xlfn.TEXTSPLIT('3B. In-Kind Non-Labor'!$G8,";"))),0) -> 0 | F28: =IF(ISNUMBER(SEARCH(F$2,'3A. In-Kind Labor '!$G7))=TRUE,('3A. In-Kind Labor '!$E7/COUNTA(_xlfn.TEXTSPLIT('3A. In-Kind Labor '!$G7,";"))),0)+IF(ISNUMBER(SEARCH(F$2,'3B. In-Kind Non-Labor'!$G8))=TRUE,('3B. In-Kind Non-Labor'!$E8/COUNTA(_xlfn.TEXTSPLIT('3B. In-Kind Non-Labor'!$G8,";"))),0) -> 0 | G28: =IF(ISNUMBER(SEARCH(G$2,'3A. In-Kind Labor '!$G7))=TRUE,('3A. In-Kind Labor '!$E7/COUNTA(_xlfn.TEXTSPLIT('3A. In-Kind Labor '!$G7,";"))),0)+IF(ISNUMBER(SEARCH(G$2,'3B. In-Kind Non-Labor'!$G8))=TRUE,('3B. In-Kind Non-Labor'!$E8/COUNTA(_xlfn.TEXTSPLIT('3B. In-Kind Non-Labor'!$G8,";"))),0) -> 0 | H28: =IF(ISNUMBER(SEARCH(H$2,'3A. In-Kind Labor '!$G7))=TRUE,('3A. In-Kind Labor '!$E7/COUNTA(_xlfn.TEXTSPLIT('3A. In-Kind Labor '!$G7,";"))),0)+IF(ISNUMBER(SEARCH(H$2,'3B. In-Kind Non-Labor'!$G8))=TRUE,('3B. In-Kind Non-Labor'!$E8/COUNTA(_xlfn.TEXTSPLIT('3B. In-Kind Non-Labor'!$G8,";"))),0) -> 0
A29: =IF(ISNUMBER(SEARCH(A$2,'3A. In-Kind Labor '!$F8))=TRUE,('3A. In-Kind Labor '!$E8/COUNTA(_xlfn.TEXTSPLIT('3A. In-Kind Labor '!$F8,";"))),0)+IF(ISNUMBER(SEARCH(A$2,'3B. In-Kind Non-Labor'!$F9))=TRUE,('3B. In-Kind Non-Labor'!$E9/COUNTA(_xlfn.TEXTSPLIT('3B. In-Kind Non-Labor'!$F9,";"))),0) -> 0 | B29: =IF(ISNUMBER(SEARCH(B$2,'3A. In-Kind Labor '!$F8))=TRUE,('3A. In-Kind Labor '!$E8/COUNTA(_xlfn.TEXTSPLIT('3A. In-Kind Labor '!$F8,";"))),0)+IF(ISNUMBER(SEARCH(B$2,'3B. In-Kind Non-Labor'!$F9))=TRUE,('3B. In-Kind Non-Labor'!$E9/COUNTA(_xlfn.TEXTSPLIT('3B. In-Kind Non-Labor'!$F9,";"))),0) -> 0 | C29: =IF(ISNUMBER(SEARCH(C$2,'3A. In-Kind Labor '!$F8))=TRUE,('3A. In-Kind Labor '!$E8/COUNTA(_xlfn.TEXTSPLIT('3A. In-Kind Labor '!$F8,";"))),0)+IF(ISNUMBER(SEARCH(C$2,'3B. In-Kind Non-Labor'!$F9))=TRUE,('3B. In-Kind Non-Labor'!$E9/COUNTA(_xlfn.TEXTSPLIT('3B. In-Kind Non-Labor'!$F9,";"))),0) -> 0 | E29: =IF(ISNUMBER(SEARCH(E$2,'3A. In-Kind Labor '!$G8))=TRUE,('3A. In-Kind Labor '!$E8/COUNTA(_xlfn.TEXTSPLIT('3A. In-Kind Labor '!$G8,";"))),0)+IF(ISNUMBER(SEARCH(E$2,'3B. In-Kind Non-Labor'!$G9))=TRUE,('3B. In-Kind Non-Labor'!$E9/COUNTA(_xlfn.TEXTSPLIT('3B. In-Kind Non-Labor'!$G9,";"))),0) -> 0 | F29: =IF(ISNUMBER(SEARCH(F$2,'3A. In-Kind Labor '!$G8))=TRUE,('3A. In-Kind Labor '!$E8/COUNTA(_xlfn.TEXTSPLIT('3A. In-Kind Labor '!$G8,";"))),0)+IF(ISNUMBER(SEARCH(F$2,'3B. In-Kind Non-Labor'!$G9))=TRUE,('3B. In-Kind Non-Labor'!$E9/COUNTA(_xlfn.TEXTSPLIT('3B. In-Kind Non-Labor'!$G9,";"))),0) -> 0 | G29: =IF(ISNUMBER(SEARCH(G$2,'3A. In-Kind Labor '!$G8))=TRUE,('3A. In-Kind Labor '!$E8/COUNTA(_xlfn.TEXTSPLIT('3A. In-Kind Labor '!$G8,";"))),0)+IF(ISNUMBER(SEARCH(G$2,'3B. In-Kind Non-Labor'!$G9))=TRUE,('3B. In-Kind Non-Labor'!$E9/COUNTA(_xlfn.TEXTSPLIT('3B. In-Kind Non-Labor'!$G9,";"))),0) -> 0 | H29: =IF(ISNUMBER(SEARCH(H$2,'3A. In-Kind Labor '!$G8))=TRUE,('3A. In-Kind Labor '!$E8/COUNTA(_xlfn.TEXTSPLIT('3A. In-Kind Labor '!$G8,";"))),0)+IF(ISNUMBER(SEARCH(H$2,'3B. In-Kind Non-Labor'!$G9))=TRUE,('3B. In-Kind Non-Labor'!$E9/COUNTA(_xlfn.TEXTSPLIT('3B. In-Kind Non-Labor'!$G9,";"))),0) -> 0
A30: =IF(ISNUMBER(SEARCH(A$2,'3A. In-Kind Labor '!$F9))=TRUE,('3A. In-Kind Labor '!$E9/COUNTA(_xlfn.TEXTSPLIT('3A. In-Kind Labor '!$F9,";"))),0)+IF(ISNUMBER(SEARCH(A$2,'3B. In-Kind Non-Labor'!$F10))=TRUE,('3B. In-Kind Non-Labor'!$E10/COUNTA(_xlfn.TEXTSPLIT('3B. In-Kind Non-Labor'!$F10,";"))),0) -> 0 | B30: =IF(ISNUMBER(SEARCH(B$2,'3A. In-Kind Labor '!$F9))=TRUE,('3A. In-Kind Labor '!$E9/COUNTA(_xlfn.TEXTSPLIT('3A. In-Kind Labor '!$F9,";"))),0)+IF(ISNUMBER(SEARCH(B$2,'3B. In-Kind Non-Labor'!$F10))=TRUE,('3B. In-Kind Non-Labor'!$E10/COUNTA(_xlfn.TEXTSPLIT('3B. In-Kind Non-Labor'!$F10,";"))),0) -> 0 | C30: =IF(ISNUMBER(SEARCH(C$2,'3A. In-Kind Labor '!$F9))=TRUE,('3A. In-Kind Labor '!$E9/COUNTA(_xlfn.TEXTSPLIT('3A. In-Kind Labor '!$F9,";"))),0)+IF(ISNUMBER(SEARCH(C$2,'3B. In-Kind Non-Labor'!$F10))=TRUE,('3B. In-Kind Non-Labor'!$E10/COUNTA(_xlfn.TEXTSPLIT('3B. In-Kind Non-Labor'!$F10,";"))),0) -> 0 | E30: =IF(ISNUMBER(SEARCH(E$2,'3A. In-Kind Labor '!$G9))=TRUE,('3A. In-Kind Labor '!$E9/COUNTA(_xlfn.TEXTSPLIT('3A. In-Kind Labor '!$G9,";"))),0)+IF(ISNUMBER(SEARCH(E$2,'3B. In-Kind Non-Labor'!$G10))=TRUE,('3B. In-Kind Non-Labor'!$E10/COUNTA(_xlfn.TEXTSPLIT('3B. In-Kind Non-Labor'!$G10,";"))),0) -> 0 | F30: =IF(ISNUMBER(SEARCH(F$2,'3A. In-Kind Labor '!$G9))=TRUE,('3A. In-Kind Labor '!$E9/COUNTA(_xlfn.TEXTSPLIT('3A. In-Kind Labor '!$G9,";"))),0)+IF(ISNUMBER(SEARCH(F$2,'3B. In-Kind Non-Labor'!$G10))=TRUE,('3B. In-Kind Non-Labor'!$E10/COUNTA(_xlfn.TEXTSPLIT('3B. In-Kind Non-Labor'!$G10,";"))),0) -> 0 | G30: =IF(ISNUMBER(SEARCH(G$2,'3A. In-Kind Labor '!$G9))=TRUE,('3A. In-Kind Labor '!$E9/COUNTA(_xlfn.TEXTSPLIT('3A. In-Kind Labor '!$G9,";"))),0)+IF(ISNUMBER(SEARCH(G$2,'3B. In-Kind Non-Labor'!$G10))=TRUE,('3B. In-Kind Non-Labor'!$E10/COUNTA(_xlfn.TEXTSPLIT('3B. In-Kind Non-Labor'!$G10,";"))),0) -> 0 | H30: =IF(ISNUMBER(SEARCH(H$2,'3A. In-Kind Labor '!$G9))=TRUE,('3A. In-Kind Labor '!$E9/COUNTA(_xlfn.TEXTSPLIT('3A. In-Kind Labor '!$G9,";"))),0)+IF(ISNUMBER(SEARCH(H$2,'3B. In-Kind Non-Labor'!$G10))=TRUE,('3B. In-Kind Non-Labor'!$E10/COUNTA(_xlfn.TEXTSPLIT('3B. In-Kind Non-Labor'!$G10,";"))),0) -> 0
A31: =IF(ISNUMBER(SEARCH(A$2,'3A. In-Kind Labor '!$F10))=TRUE,('3A. In-Kind Labor '!$E10/COUNTA(_xlfn.TEXTSPLIT('3A. In-Kind Labor '!$F10,";"))),0)+IF(ISNUMBER(SEARCH(A$2,'3B. In-Kind Non-Labor'!$F11))=TRUE,('3B. In-Kind Non-Labor'!$E11/COUNTA(_xlfn.TEXTSPLIT('3B. In-Kind Non-Labor'!$F11,";"))),0) -> 0 | B31: =IF(ISNUMBER(SEARCH(B$2,'3A. In-Kind Labor '!$F10))=TRUE,('3A. In-Kind Labor '!$E10/COUNTA(_xlfn.TEXTSPLIT('3A. In-Kind Labor '!$F10,";"))),0)+IF(ISNUMBER(SEARCH(B$2,'3B. In-Kind Non-Labor'!$F11))=TRUE,('3B. In-Kind Non-Labor'!$E11/COUNTA(_xlfn.TEXTSPLIT('3B. In-Kind Non-Labor'!$F11,";"))),0) -> 0 | C31: =IF(ISNUMBER(SEARCH(C$2,'3A. In-Kind Labor '!$F10))=TRUE,('3A. In-Kind Labor '!$E10/COUNTA(_xlfn.TEXTSPLIT('3A. In-Kind Labor '!$F10,";"))),0)+IF(ISNUMBER(SEARCH(C$2,'3B. In-Kind Non-Labor'!$F11))=TRUE,('3B. In-Kind Non-Labor'!$E11/COUNTA(_xlfn.TEXTSPLIT('3B. In-Kind Non-Labor'!$F11,";"))),0) -> 0 | E31: =IF(ISNUMBER(SEARCH(E$2,'3A. In-Kind Labor '!$G10))=TRUE,('3A. In-Kind Labor '!$E10/COUNTA(_xlfn.TEXTSPLIT('3A. In-Kind Labor '!$G10,";"))),0)+IF(ISNUMBER(SEARCH(E$2,'3B. In-Kind Non-Labor'!$G11))=TRUE,('3B. In-Kind Non-Labor'!$E11/COUNTA(_xlfn.TEXTSPLIT('3B. In-Kind Non-Labor'!$G11,";"))),0) -> 0 | F31: =IF(ISNUMBER(SEARCH(F$2,'3A. In-Kind Labor '!$G10))=TRUE,('3A. In-Kind Labor '!$E10/COUNTA(_xlfn.TEXTSPLIT('3A. In-Kind Labor '!$G10,";"))),0)+IF(ISNUMBER(SEARCH(F$2,'3B. In-Kind Non-Labor'!$G11))=TRUE,('3B. In-Kind Non-Labor'!$E11/COUNTA(_xlfn.TEXTSPLIT('3B. In-Kind Non-Labor'!$G11,";"))),0) -> 0 | G31: =IF(ISNUMBER(SEARCH(G$2,'3A. In-Kind Labor '!$G10))=TRUE,('3A. In-Kind Labor '!$E10/COUNTA(_xlfn.TEXTSPLIT('3A. In-Kind Labor '!$G10,";"))),0)+IF(ISNUMBER(SEARCH(G$2,'3B. In-Kind Non-Labor'!$G11))=TRUE,('3B. In-Kind Non-Labor'!$E11/COUNTA(_xlfn.TEXTSPLIT('3B. In-Kind Non-Labor'!$G11,";"))),0) -> 0 | H31: =IF(ISNUMBER(SEARCH(H$2,'3A. In-Kind Labor '!$G10))=TRUE,('3A. In-Kind Labor '!$E10/COUNTA(_xlfn.TEXTSPLIT('3A. In-Kind Labor '!$G10,";"))),0)+IF(ISNUMBER(SEARCH(H$2,'3B. In-Kind Non-Labor'!$G11))=TRUE,('3B. In-Kind Non-Labor'!$E11/COUNTA(_xlfn.TEXTSPLIT('3B. In-Kind Non-Labor'!$G11,";"))),0) -> 0
A32: =IF(ISNUMBER(SEARCH(A$2,'3A. In-Kind Labor '!$F11))=TRUE,('3A. In-Kind Labor '!$E11/COUNTA(_xlfn.TEXTSPLIT('3A. In-Kind Labor '!$F11,";"))),0)+IF(ISNUMBER(SEARCH(A$2,'3B. In-Kind Non-Labor'!$F12))=TRUE,('3B. In-Kind Non-Labor'!$E12/COUNTA(_xlfn.TEXTSPLIT('3B. In-Kind Non-Labor'!$F12,";"))),0) -> 0 | B32: =IF(ISNUMBER(SEARCH(B$2,'3A. In-Kind Labor '!$F11))=TRUE,('3A. In-Kind Labor '!$E11/COUNTA(_xlfn.TEXTSPLIT('3A. In-Kind Labor '!$F11,";"))),0)+IF(ISNUMBER(SEARCH(B$2,'3B. In-Kind Non-Labor'!$F12))=TRUE,('3B. In-Kind Non-Labor'!$E12/COUNTA(_xlfn.TEXTSPLIT('3B. In-Kind Non-Labor'!$F12,";"))),0) -> 0 | C32: =IF(ISNUMBER(SEARCH(C$2,'3A. In-Kind Labor '!$F11))=TRUE,('3A. In-Kind Labor '!$E11/COUNTA(_xlfn.TEXTSPLIT('3A. In-Kind Labor '!$F11,";"))),0)+IF(ISNUMBER(SEARCH(C$2,'3B. In-Kind Non-Labor'!$F12))=TRUE,('3B. In-Kind Non-Labor'!$E12/COUNTA(_xlfn.TEXTSPLIT('3B. In-Kind Non-Labor'!$F12,";"))),0) -> 0 | E32: =IF(ISNUMBER(SEARCH(E$2,'3A. In-Kind Labor '!$G11))=TRUE,('3A. In-Kind Labor '!$E11/COUNTA(_xlfn.TEXTSPLIT('3A. In-Kind Labor '!$G11,";"))),0)+IF(ISNUMBER(SEARCH(E$2,'3B. In-Kind Non-Labor'!$G12))=TRUE,('3B. In-Kind Non-Labor'!$E12/COUNTA(_xlfn.TEXTSPLIT('3B. In-Kind Non-Labor'!$G12,";"))),0) -> 0 | F32: =IF(ISNUMBER(SEARCH(F$2,'3A. In-Kind Labor '!$G11))=TRUE,('3A. In-Kind Labor '!$E11/COUNTA(_xlfn.TEXTSPLIT('3A. In-Kind Labor '!$G11,";"))),0)+IF(ISNUMBER(SEARCH(F$2,'3B. In-Kind Non-Labor'!$G12))=TRUE,('3B. In-Kind Non-Labor'!$E12/COUNTA(_xlfn.TEXTSPLIT('3B. In-Kind Non-Labor'!$G12,";"))),0) -> 0 | G32: =IF(ISNUMBER(SEARCH(G$2,'3A. In-Kind Labor '!$G11))=TRUE,('3A. In-Kind Labor '!$E11/COUNTA(_xlfn.TEXTSPLIT('3A. In-Kind Labor '!$G11,";"))),0)+IF(ISNUMBER(SEARCH(G$2,'3B. In-Kind Non-Labor'!$G12))=TRUE,('3B. In-Kind Non-Labor'!$E12/COUNTA(_xlfn.TEXTSPLIT('3B. In-Kind Non-Labor'!$G12,";"))),0) -> 0 | H32: =IF(ISNUMBER(SEARCH(H$2,'3A. In-Kind Labor '!$G11))=TRUE,('3A. In-Kind Labor '!$E11/COUNTA(_xlfn.TEXTSPLIT('3A. In-Kind Labor '!$G11,";"))),0)+IF(ISNUMBER(SEARCH(H$2,'3B. In-Kind Non-Labor'!$G12))=TRUE,('3B. In-Kind Non-Labor'!$E12/COUNTA(_xlfn.TEXTSPLIT('3B. In-Kind Non-Labor'!$G12,";"))),0) -> 0
A33: =IF(ISNUMBER(SEARCH(A$2,'3A. In-Kind Labor '!$F12))=TRUE,('3A. In-Kind Labor '!$E12/COUNTA(_xlfn.TEXTSPLIT('3A. In-Kind Labor '!$F12,";"))),0)+IF(ISNUMBER(SEARCH(A$2,'3B. In-Kind Non-Labor'!$F13))=TRUE,('3B. In-Kind Non-Labor'!$E13/COUNTA(_xlfn.TEXTSPLIT('3B. In-Kind Non-Labor'!$F13,";"))),0) -> 0 | B33: =IF(ISNUMBER(SEARCH(B$2,'3A. In-Kind Labor '!$F12))=TRUE,('3A. In-Kind Labor '!$E12/COUNTA(_xlfn.TEXTSPLIT('3A. In-Kind Labor '!$F12,";"))),0)+IF(ISNUMBER(SEARCH(B$2,'3B. In-Kind Non-Labor'!$F13))=TRUE,('3B. In-Kind Non-Labor'!$E13/COUNTA(_xlfn.TEXTSPLIT('3B. In-Kind Non-Labor'!$F13,";"))),0) -> 0 | C33: =IF(ISNUMBER(SEARCH(C$2,'3A. In-Kind Labor '!$F12))=TRUE,('3A. In-Kind Labor '!$E12/COUNTA(_xlfn.TEXTSPLIT('3A. In-Kind Labor '!$F12,";"))),0)+IF(ISNUMBER(SEARCH(C$2,'3B. In-Kind Non-Labor'!$F13))=TRUE,('3B. In-Kind Non-Labor'!$E13/COUNTA(_xlfn.TEXTSPLIT('3B. In-Kind Non-Labor'!$F13,";"))),0) -> 0 | E33: =IF(ISNUMBER(SEARCH(E$2,'3A. In-Kind Labor '!$G12))=TRUE,('3A. In-Kind Labor '!$E12/COUNTA(_xlfn.TEXTSPLIT('3A. In-Kind Labor '!$G12,";"))),0)+IF(ISNUMBER(SEARCH(E$2,'3B. In-Kind Non-Labor'!$G13))=TRUE,('3B. In-Kind Non-Labor'!$E13/COUNTA(_xlfn.TEXTSPLIT('3B. In-Kind Non-Labor'!$G13,";"))),0) -> 0 | F33: =IF(ISNUMBER(SEARCH(F$2,'3A. In-Kind Labor '!$G12))=TRUE,('3A. In-Kind Labor '!$E12/COUNTA(_xlfn.TEXTSPLIT('3A. In-Kind Labor '!$G12,";"))),0)+IF(ISNUMBER(SEARCH(F$2,'3B. In-Kind Non-Labor'!$G13))=TRUE,('3B. In-Kind Non-Labor'!$E13/COUNTA(_xlfn.TEXTSPLIT('3B. In-Kind Non-Labor'!$G13,";"))),0) -> 0 | G33: =IF(ISNUMBER(SEARCH(G$2,'3A. In-Kind Labor '!$G12))=TRUE,('3A. In-Kind Labor '!$E12/COUNTA(_xlfn.TEXTSPLIT('3A. In-Kind Labor '!$G12,";"))),0)+IF(ISNUMBER(SEARCH(G$2,'3B. In-Kind Non-Labor'!$G13))=TRUE,('3B. In-Kind Non-Labor'!$E13/COUNTA(_xlfn.TEXTSPLIT('3B. In-Kind Non-Labor'!$G13,";"))),0) -> 0 | H33: =IF(ISNUMBER(SEARCH(H$2,'3A. In-Kind Labor '!$G12))=TRUE,('3A. In-Kind Labor '!$E12/COUNTA(_xlfn.TEXTSPLIT('3A. In-Kind Labor '!$G12,";"))),0)+IF(ISNUMBER(SEARCH(H$2,'3B. In-Kind Non-Labor'!$G13))=TRUE,('3B. In-Kind Non-Labor'!$E13/COUNTA(_xlfn.TEXTSPLIT('3B. In-Kind Non-Labor'!$G13,";"))),0) -> 0
A34: =IF(ISNUMBER(SEARCH(A$2,'3A. In-Kind Labor '!$F13))=TRUE,('3A. In-Kind Labor '!$E13/COUNTA(_xlfn.TEXTSPLIT('3A. In-Kind Labor '!$F13,";"))),0)+IF(ISNUMBER(SEARCH(A$2,'3B. In-Kind Non-Labor'!$F14))=TRUE,('3B. In-Kind Non-Labor'!$E14/COUNTA(_xlfn.TEXTSPLIT('3B. In-Kind Non-Labor'!$F14,";"))),0) -> 0 | B34: =IF(ISNUMBER(SEARCH(B$2,'3A. In-Kind Labor '!$F13))=TRUE,('3A. In-Kind Labor '!$E13/COUNTA(_xlfn.TEXTSPLIT('3A. In-Kind Labor '!$F13,";"))),0)+IF(ISNUMBER(SEARCH(B$2,'3B. In-Kind Non-Labor'!$F14))=TRUE,('3B. In-Kind Non-Labor'!$E14/COUNTA(_xlfn.TEXTSPLIT('3B. In-Kind Non-Labor'!$F14,";"))),0) -> 0 | C34: =IF(ISNUMBER(SEARCH(C$2,'3A. In-Kind Labor '!$F13))=TRUE,('3A. In-Kind Labor '!$E13/COUNTA(_xlfn.TEXTSPLIT('3A. In-Kind Labor '!$F13,";"))),0)+IF(ISNUMBER(SEARCH(C$2,'3B. In-Kind Non-Labor'!$F14))=TRUE,('3B. In-Kind Non-Labor'!$E14/COUNTA(_xlfn.TEXTSPLIT('3B. In-Kind Non-Labor'!$F14,";"))),0) -> 0 | E34: =IF(ISNUMBER(SEARCH(E$2,'3A. In-Kind Labor '!$G13))=TRUE,('3A. In-Kind Labor '!$E13/COUNTA(_xlfn.TEXTSPLIT('3A. In-Kind Labor '!$G13,";"))),0)+IF(ISNUMBER(SEARCH(E$2,'3B. In-Kind Non-Labor'!$G14))=TRUE,('3B. In-Kind Non-Labor'!$E14/COUNTA(_xlfn.TEXTSPLIT('3B. In-Kind Non-Labor'!$G14,";"))),0) -> 0 | F34: =IF(ISNUMBER(SEARCH(F$2,'3A. In-Kind Labor '!$G13))=TRUE,('3A. In-Kind Labor '!$E13/COUNTA(_xlfn.TEXTSPLIT('3A. In-Kind Labor '!$G13,";"))),0)+IF(ISNUMBER(SEARCH(F$2,'3B. In-Kind Non-Labor'!$G14))=TRUE,('3B. In-Kind Non-Labor'!$E14/COUNTA(_xlfn.TEXTSPLIT('3B. In-Kind Non-Labor'!$G14,";"))),0) -> 0 | G34: =IF(ISNUMBER(SEARCH(G$2,'3A. In-Kind Labor '!$G13))=TRUE,('3A. In-Kind Labor '!$E13/COUNTA(_xlfn.TEXTSPLIT('3A. In-Kind Labor '!$G13,";"))),0)+IF(ISNUMBER(SEARCH(G$2,'3B. In-Kind Non-Labor'!$G14))=TRUE,('3B. In-Kind Non-Labor'!$E14/COUNTA(_xlfn.TEXTSPLIT('3B. In-Kind Non-Labor'!$G14,";"))),0) -> 0 | H34: =IF(ISNUMBER(SEARCH(H$2,'3A. In-Kind Labor '!$G13))=TRUE,('3A. In-Kind Labor '!$E13/COUNTA(_xlfn.TEXTSPLIT('3A. In-Kind Labor '!$G13,";"))),0)+IF(ISNUMBER(SEARCH(H$2,'3B. In-Kind Non-Labor'!$G14))=TRUE,('3B. In-Kind Non-Labor'!$E14/COUNTA(_xlfn.TEXTSPLIT('3B. In-Kind Non-Labor'!$G14,";"))),0) -> 0
A35: =IF(ISNUMBER(SEARCH(A$2,'3A. In-Kind Labor '!$F14))=TRUE,('3A. In-Kind Labor '!$E14/COUNTA(_xlfn.TEXTSPLIT('3A. In-Kind Labor '!$F14,";"))),0)+IF(ISNUMBER(SEARCH(A$2,'3B. In-Kind Non-Labor'!$F15))=TRUE,('3B. In-Kind Non-Labor'!$E15/COUNTA(_xlfn.TEXTSPLIT('3B. In-Kind Non-Labor'!$F15,";"))),0) -> 0 | B35: =IF(ISNUMBER(SEARCH(B$2,'3A. In-Kind Labor '!$F14))=TRUE,('3A. In-Kind Labor '!$E14/COUNTA(_xlfn.TEXTSPLIT('3A. In-Kind Labor '!$F14,";"))),0)+IF(ISNUMBER(SEARCH(B$2,'3B. In-Kind Non-Labor'!$F15))=TRUE,('3B. In-Kind Non-Labor'!$E15/COUNTA(_xlfn.TEXTSPLIT('3B. In-Kind Non-Labor'!$F15,";"))),0) -> 0 | C35: =IF(ISNUMBER(SEARCH(C$2,'3A. In-Kind Labor '!$F14))=TRUE,('3A. In-Kind Labor '!$E14/COUNTA(_xlfn.TEXTSPLIT('3A. In-Kind Labor '!$F14,";"))),0)+IF(ISNUMBER(SEARCH(C$2,'3B. In-Kind Non-Labor'!$F15))=TRUE,('3B. In-Kind Non-Labor'!$E15/COUNTA(_xlfn.TEXTSPLIT('3B. In-Kind Non-Labor'!$F15,";"))),0) -> 0 | E35: =IF(ISNUMBER(SEARCH(E$2,'3A. In-Kind Labor '!$G14))=TRUE,('3A. In-Kind Labor '!$E14/COUNTA(_xlfn.TEXTSPLIT('3A. In-Kind Labor '!$G14,";"))),0)+IF(ISNUMBER(SEARCH(E$2,'3B. In-Kind Non-Labor'!$G15))=TRUE,('3B. In-Kind Non-Labor'!$E15/COUNTA(_xlfn.TEXTSPLIT('3B. In-Kind Non-Labor'!$G15,";"))),0) -> 0 | F35: =IF(ISNUMBER(SEARCH(F$2,'3A. In-Kind Labor '!$G14))=TRUE,('3A. In-Kind Labor '!$E14/COUNTA(_xlfn.TEXTSPLIT('3A. In-Kind Labor '!$G14,";"))),0)+IF(ISNUMBER(SEARCH(F$2,'3B. In-Kind Non-Labor'!$G15))=TRUE,('3B. In-Kind Non-Labor'!$E15/COUNTA(_xlfn.TEXTSPLIT('3B. In-Kind Non-Labor'!$G15,";"))),0) -> 0 | G35: =IF(ISNUMBER(SEARCH(G$2,'3A. In-Kind Labor '!$G14))=TRUE,('3A. In-Kind Labor '!$E14/COUNTA(_xlfn.TEXTSPLIT('3A. In-Kind Labor '!$G14,";"))),0)+IF(ISNUMBER(SEARCH(G$2,'3B. In-Kind Non-Labor'!$G15))=TRUE,('3B. In-Kind Non-Labor'!$E15/COUNTA(_xlfn.TEXTSPLIT('3B. In-Kind Non-Labor'!$G15,";"))),0) -> 0 | H35: =IF(ISNUMBER(SEARCH(H$2,'3A. In-Kind Labor '!$G14))=TRUE,('3A. In-Kind Labor '!$E14/COUNTA(_xlfn.TEXTSPLIT('3A. In-Kind Labor '!$G14,";"))),0)+IF(ISNUMBER(SEARCH(H$2,'3B. In-Kind Non-Labor'!$G15))=TRUE,('3B. In-Kind Non-Labor'!$E15/COUNTA(_xlfn.TEXTSPLIT('3B. In-Kind Non-Labor'!$G15,";"))),0) -> 0
A36: =IF(ISNUMBER(SEARCH(A$2,'3A. In-Kind Labor '!$F15))=TRUE,('3A. In-Kind Labor '!$E15/COUNTA(_xlfn.TEXTSPLIT('3A. In-Kind Labor '!$F15,";"))),0)+IF(ISNUMBER(SEARCH(A$2,'3B. In-Kind Non-Labor'!$F16))=TRUE,('3B. In-Kind Non-Labor'!$E16/COUNTA(_xlfn.TEXTSPLIT('3B. In-Kind Non-Labor'!$F16,";"))),0) -> 0 | B36: =IF(ISNUMBER(SEARCH(B$2,'3A. In-Kind Labor '!$F15))=TRUE,('3A. In-Kind Labor '!$E15/COUNTA(_xlfn.TEXTSPLIT('3A. In-Kind Labor '!$F15,";"))),0)+IF(ISNUMBER(SEARCH(B$2,'3B. In-Kind Non-Labor'!$F16))=TRUE,('3B. In-Kind Non-Labor'!$E16/COUNTA(_xlfn.TEXTSPLIT('3B. In-Kind Non-Labor'!$F16,";"))),0) -> 0 | C36: =IF(ISNUMBER(SEARCH(C$2,'3A. In-Kind Labor '!$F15))=TRUE,('3A. In-Kind Labor '!$E15/COUNTA(_xlfn.TEXTSPLIT('3A. In-Kind Labor '!$F15,";"))),0)+IF(ISNUMBER(SEARCH(C$2,'3B. In-Kind Non-Labor'!$F16))=TRUE,('3B. In-Kind Non-Labor'!$E16/COUNTA(_xlfn.TEXTSPLIT('3B. In-Kind Non-Labor'!$F16,";"))),0) -> 0 | E36: =IF(ISNUMBER(SEARCH(E$2,'3A. In-Kind Labor '!$G15))=TRUE,('3A. In-Kind Labor '!$E15/COUNTA(_xlfn.TEXTSPLIT('3A. In-Kind Labor '!$G15,";"))),0)+IF(ISNUMBER(SEARCH(E$2,'3B. In-Kind Non-Labor'!$G16))=TRUE,('3B. In-Kind Non-Labor'!$E16/COUNTA(_xlfn.TEXTSPLIT('3B. In-Kind Non-Labor'!$G16,";"))),0) -> 0 | F36: =IF(ISNUMBER(SEARCH(F$2,'3A. In-Kind Labor '!$G15))=TRUE,('3A. In-Kind Labor '!$E15/COUNTA(_xlfn.TEXTSPLIT('3A. In-Kind Labor '!$G15,";"))),0)+IF(ISNUMBER(SEARCH(F$2,'3B. In-Kind Non-Labor'!$G16))=TRUE,('3B. In-Kind Non-Labor'!$E16/COUNTA(_xlfn.TEXTSPLIT('3B. In-Kind Non-Labor'!$G16,";"))),0) -> 0 | G36: =IF(ISNUMBER(SEARCH(G$2,'3A. In-Kind Labor '!$G15))=TRUE,('3A. In-Kind Labor '!$E15/COUNTA(_xlfn.TEXTSPLIT('3A. In-Kind Labor '!$G15,";"))),0)+IF(ISNUMBER(SEARCH(G$2,'3B. In-Kind Non-Labor'!$G16))=TRUE,('3B. In-Kind Non-Labor'!$E16/COUNTA(_xlfn.TEXTSPLIT('3B. In-Kind Non-Labor'!$G16,";"))),0) -> 0 | H36: =IF(ISNUMBER(SEARCH(H$2,'3A. In-Kind Labor '!$G15))=TRUE,('3A. In-Kind Labor '!$E15/COUNTA(_xlfn.TEXTSPLIT('3A. In-Kind Labor '!$G15,";"))),0)+IF(ISNUMBER(SEARCH(H$2,'3B. In-Kind Non-Labor'!$G16))=TRUE,('3B. In-Kind Non-Labor'!$E16/COUNTA(_xlfn.TEXTSPLIT('3B. In-Kind Non-Labor'!$G16,";"))),0) -> 0
A37: =IF(ISNUMBER(SEARCH(A$2,'3A. In-Kind Labor '!$F16))=TRUE,('3A. In-Kind Labor '!$E16/COUNTA(_xlfn.TEXTSPLIT('3A. In-Kind Labor '!$F16,";"))),0)+IF(ISNUMBER(SEARCH(A$2,'3B. In-Kind Non-Labor'!$F17))=TRUE,('3B. In-Kind Non-Labor'!$E17/COUNTA(_xlfn.TEXTSPLIT('3B. In-Kind Non-Labor'!$F17,";"))),0) -> 0 | B37: =IF(ISNUMBER(SEARCH(B$2,'3A. In-Kind Labor '!$F16))=TRUE,('3A. In-Kind Labor '!$E16/COUNTA(_xlfn.TEXTSPLIT('3A. In-Kind Labor '!$F16,";"))),0)+IF(ISNUMBER(SEARCH(B$2,'3B. In-Kind Non-Labor'!$F17))=TRUE,('3B. In-Kind Non-Labor'!$E17/COUNTA(_xlfn.TEXTSPLIT('3B. In-Kind Non-Labor'!$F17,";"))),0) -> 0 | C37: =IF(ISNUMBER(SEARCH(C$2,'3A. In-Kind Labor '!$F16))=TRUE,('3A. In-Kind Labor '!$E16/COUNTA(_xlfn.TEXTSPLIT('3A. In-Kind Labor '!$F16,";"))),0)+IF(ISNUMBER(SEARCH(C$2,'3B. In-Kind Non-Labor'!$F17))=TRUE,('3B. In-Kind Non-Labor'!$E17/COUNTA(_xlfn.TEXTSPLIT('3B. In-Kind Non-Labor'!$F17,";"))),0) -> 0 | E37: =IF(ISNUMBER(SEARCH(E$2,'3A. In-Kind Labor '!$G16))=TRUE,('3A. In-Kind Labor '!$E16/COUNTA(_xlfn.TEXTSPLIT('3A. In-Kind Labor '!$G16,";"))),0)+IF(ISNUMBER(SEARCH(E$2,'3B. In-Kind Non-Labor'!$G17))=TRUE,('3B. In-Kind Non-Labor'!$E17/COUNTA(_xlfn.TEXTSPLIT('3B. In-Kind Non-Labor'!$G17,";"))),0) -> 0 | F37: =IF(ISNUMBER(SEARCH(F$2,'3A. In-Kind Labor '!$G16))=TRUE,('3A. In-Kind Labor '!$E16/COUNTA(_xlfn.TEXTSPLIT('3A. In-Kind Labor '!$G16,";"))),0)+IF(ISNUMBER(SEARCH(F$2,'3B. In-Kind Non-Labor'!$G17))=TRUE,('3B. In-Kind Non-Labor'!$E17/COUNTA(_xlfn.TEXTSPLIT('3B. In-Kind Non-Labor'!$G17,";"))),0) -> 0 | G37: =IF(ISNUMBER(SEARCH(G$2,'3A. In-Kind Labor '!$G16))=TRUE,('3A. In-Kind Labor '!$E16/COUNTA(_xlfn.TEXTSPLIT('3A. In-Kind Labor '!$G16,";"))),0)+IF(ISNUMBER(SEARCH(G$2,'3B. In-Kind Non-Labor'!$G17))=TRUE,('3B. In-Kind Non-Labor'!$E17/COUNTA(_xlfn.TEXTSPLIT('3B. In-Kind Non-Labor'!$G17,";"))),0) -> 0 | H37: =IF(ISNUMBER(SEARCH(H$2,'3A. In-Kind Labor '!$G16))=TRUE,('3A. In-Kind Labor '!$E16/COUNTA(_xlfn.TEXTSPLIT('3A. In-Kind Labor '!$G16,";"))),0)+IF(ISNUMBER(SEARCH(H$2,'3B. In-Kind Non-Labor'!$G17))=TRUE,('3B. In-Kind Non-Labor'!$E17/COUNTA(_xlfn.TEXTSPLIT('3B. In-Kind Non-Labor'!$G17,";"))),0) -> 0
A38: =IF(ISNUMBER(SEARCH(A$2,'3A. In-Kind Labor '!$F17))=TRUE,('3A. In-Kind Labor '!$E17/COUNTA(_xlfn.TEXTSPLIT('3A. In-Kind Labor '!$F17,";"))),0)+IF(ISNUMBER(SEARCH(A$2,'3B. In-Kind Non-Labor'!$F18))=TRUE,('3B. In-Kind Non-Labor'!$E18/COUNTA(_xlfn.TEXTSPLIT('3B. In-Kind Non-Labor'!$F18,";"))),0) -> 0 | B38: =IF(ISNUMBER(SEARCH(B$2,'3A. In-Kind Labor '!$F17))=TRUE,('3A. In-Kind Labor '!$E17/COUNTA(_xlfn.TEXTSPLIT('3A. In-Kind Labor '!$F17,";"))),0)+IF(ISNUMBER(SEARCH(B$2,'3B. In-Kind Non-Labor'!$F18))=TRUE,('3B. In-Kind Non-Labor'!$E18/COUNTA(_xlfn.TEXTSPLIT('3B. In-Kind Non-Labor'!$F18,";"))),0) -> 0 | C38: =IF(ISNUMBER(SEARCH(C$2,'3A. In-Kind Labor '!$F17))=TRUE,('3A. In-Kind Labor '!$E17/COUNTA(_xlfn.TEXTSPLIT('3A. In-Kind Labor '!$F17,";"))),0)+IF(ISNUMBER(SEARCH(C$2,'3B. In-Kind Non-Labor'!$F18))=TRUE,('3B. In-Kind Non-Labor'!$E18/COUNTA(_xlfn.TEXTSPLIT('3B. In-Kind Non-Labor'!$F18,";"))),0) -> 0 | E38: =IF(ISNUMBER(SEARCH(E$2,'3A. In-Kind Labor '!$G17))=TRUE,('3A. In-Kind Labor '!$E17/COUNTA(_xlfn.TEXTSPLIT('3A. In-Kind Labor '!$G17,";"))),0)+IF(ISNUMBER(SEARCH(E$2,'3B. In-Kind Non-Labor'!$G18))=TRUE,('3B. In-Kind Non-Labor'!$E18/COUNTA(_xlfn.TEXTSPLIT('3B. In-Kind Non-Labor'!$G18,";"))),0) -> 0 | F38: =IF(ISNUMBER(SEARCH(F$2,'3A. In-Kind Labor '!$G17))=TRUE,('3A. In-Kind Labor '!$E17/COUNTA(_xlfn.TEXTSPLIT('3A. In-Kind Labor '!$G17,";"))),0)+IF(ISNUMBER(SEARCH(F$2,'3B. In-Kind Non-Labor'!$G18))=TRUE,('3B. In-Kind Non-Labor'!$E18/COUNTA(_xlfn.TEXTSPLIT('3B. In-Kind Non-Labor'!$G18,";"))),0) -> 0 | G38: =IF(ISNUMBER(SEARCH(G$2,'3A. In-Kind Labor '!$G17))=TRUE,('3A. In-Kind Labor '!$E17/COUNTA(_xlfn.TEXTSPLIT('3A. In-Kind Labor '!$G17,";"))),0)+IF(ISNUMBER(SEARCH(G$2,'3B. In-Kind Non-Labor'!$G18))=TRUE,('3B. In-Kind Non-Labor'!$E18/COUNTA(_xlfn.TEXTSPLIT('3B. In-Kind Non-Labor'!$G18,";"))),0) -> 0 | H38: =IF(ISNUMBER(SEARCH(H$2,'3A. In-Kind Labor '!$G17))=TRUE,('3A. In-Kind Labor '!$E17/COUNTA(_xlfn.TEXTSPLIT('3A. In-Kind Labor '!$G17,";"))),0)+IF(ISNUMBER(SEARCH(H$2,'3B. In-Kind Non-Labor'!$G18))=TRUE,('3B. In-Kind Non-Labor'!$E18/COUNTA(_xlfn.TEXTSPLIT('3B. In-Kind Non-Labor'!$G18,";"))),0) -> 0
A39: =IF(ISNUMBER(SEARCH(A$2,'3A. In-Kind Labor '!$F18))=TRUE,('3A. In-Kind Labor '!$E18/COUNTA(_xlfn.TEXTSPLIT('3A. In-Kind Labor '!$F18,";"))),0)+IF(ISNUMBER(SEARCH(A$2,'3B. In-Kind Non-Labor'!$F19))=TRUE,('3B. In-Kind Non-Labor'!$E19/COUNTA(_xlfn.TEXTSPLIT('3B. In-Kind Non-Labor'!$F19,";"))),0) -> 0 | B39: =IF(ISNUMBER(SEARCH(B$2,'3A. In-Kind Labor '!$F18))=TRUE,('3A. In-Kind Labor '!$E18/COUNTA(_xlfn.TEXTSPLIT('3A. In-Kind Labor '!$F18,";"))),0)+IF(ISNUMBER(SEARCH(B$2,'3B. In-Kind Non-Labor'!$F19))=TRUE,('3B. In-Kind Non-Labor'!$E19/COUNTA(_xlfn.TEXTSPLIT('3B. In-Kind Non-Labor'!$F19,";"))),0) -> 0 | C39: =IF(ISNUMBER(SEARCH(C$2,'3A. In-Kind Labor '!$F18))=TRUE,('3A. In-Kind Labor '!$E18/COUNTA(_xlfn.TEXTSPLIT('3A. In-Kind Labor '!$F18,";"))),0)+IF(ISNUMBER(SEARCH(C$2,'3B. In-Kind Non-Labor'!$F19))=TRUE,('3B. In-Kind Non-Labor'!$E19/COUNTA(_xlfn.TEXTSPLIT('3B. In-Kind Non-Labor'!$F19,";"))),0) -> 0 | E39: =IF(ISNUMBER(SEARCH(E$2,'3A. In-Kind Labor '!$G18))=TRUE,('3A. In-Kind Labor '!$E18/COUNTA(_xlfn.TEXTSPLIT('3A. In-Kind Labor '!$G18,";"))),0)+IF(ISNUMBER(SEARCH(E$2,'3B. In-Kind Non-Labor'!$G19))=TRUE,('3B. In-Kind Non-Labor'!$E19/COUNTA(_xlfn.TEXTSPLIT('3B. In-Kind Non-Labor'!$G19,";"))),0) -> 0 | F39: =IF(ISNUMBER(SEARCH(F$2,'3A. In-Kind Labor '!$G18))=TRUE,('3A. In-Kind Labor '!$E18/COUNTA(_xlfn.TEXTSPLIT('3A. In-Kind Labor '!$G18,";"))),0)+IF(ISNUMBER(SEARCH(F$2,'3B. In-Kind Non-Labor'!$G19))=TRUE,('3B. In-Kind Non-Labor'!$E19/COUNTA(_xlfn.TEXTSPLIT('3B. In-Kind Non-Labor'!$G19,";"))),0) -> 0 | G39: =IF(ISNUMBER(SEARCH(G$2,'3A. In-Kind Labor '!$G18))=TRUE,('3A. In-Kind Labor '!$E18/COUNTA(_xlfn.TEXTSPLIT('3A. In-Kind Labor '!$G18,";"))),0)+IF(ISNUMBER(SEARCH(G$2,'3B. In-Kind Non-Labor'!$G19))=TRUE,('3B. In-Kind Non-Labor'!$E19/COUNTA(_xlfn.TEXTSPLIT('3B. In-Kind Non-Labor'!$G19,";"))),0) -> 0 | H39: =IF(ISNUMBER(SEARCH(H$2,'3A. In-Kind Labor '!$G18))=TRUE,('3A. In-Kind Labor '!$E18/COUNTA(_xlfn.TEXTSPLIT('3A. In-Kind Labor '!$G18,";"))),0)+IF(ISNUMBER(SEARCH(H$2,'3B. In-Kind Non-Labor'!$G19))=TRUE,('3B. In-Kind Non-Labor'!$E19/COUNTA(_xlfn.TEXTSPLIT('3B. In-Kind Non-Labor'!$G19,";"))),0) -> 0
A40: =IF(ISNUMBER(SEARCH(A$2,'3A. In-Kind Labor '!$F19))=TRUE,('3A. In-Kind Labor '!$E19/COUNTA(_xlfn.TEXTSPLIT('3A. In-Kind Labor '!$F19,";"))),0)+IF(ISNUMBER(SEARCH(A$2,'3B. In-Kind Non-Labor'!$F20))=TRUE,('3B. In-Kind Non-Labor'!$E20/COUNTA(_xlfn.TEXTSPLIT('3B. In-Kind Non-Labor'!$F20,";"))),0) -> 0 | B40: =IF(ISNUMBER(SEARCH(B$2,'3A. In-Kind Labor '!$F19))=TRUE,('3A. In-Kind Labor '!$E19/COUNTA(_xlfn.TEXTSPLIT('3A. In-Kind Labor '!$F19,";"))),0)+IF(ISNUMBER(SEARCH(B$2,'3B. In-Kind Non-Labor'!$F20))=TRUE,('3B. In-Kind Non-Labor'!$E20/COUNTA(_xlfn.TEXTSPLIT('3B. In-Kind Non-Labor'!$F20,";"))),0) -> 0 | C40: =IF(ISNUMBER(SEARCH(C$2,'3A. In-Kind Labor '!$F19))=TRUE,('3A. In-Kind Labor '!$E19/COUNTA(_xlfn.TEXTSPLIT('3A. In-Kind Labor '!$F19,";"))),0)+IF(ISNUMBER(SEARCH(C$2,'3B. In-Kind Non-Labor'!$F20))=TRUE,('3B. In-Kind Non-Labor'!$E20/COUNTA(_xlfn.TEXTSPLIT('3B. In-Kind Non-Labor'!$F20,";"))),0) -> 0 | E40: =IF(ISNUMBER(SEARCH(E$2,'3A. In-Kind Labor '!$G19))=TRUE,('3A. In-Kind Labor '!$E19/COUNTA(_xlfn.TEXTSPLIT('3A. In-Kind Labor '!$G19,";"))),0)+IF(ISNUMBER(SEARCH(E$2,'3B. In-Kind Non-Labor'!$G20))=TRUE,('3B. In-Kind Non-Labor'!$E20/COUNTA(_xlfn.TEXTSPLIT('3B. In-Kind Non-Labor'!$G20,";"))),0) -> 0 | F40: =IF(ISNUMBER(SEARCH(F$2,'3A. In-Kind Labor '!$G19))=TRUE,('3A. In-Kind Labor '!$E19/COUNTA(_xlfn.TEXTSPLIT('3A. In-Kind Labor '!$G19,";"))),0)+IF(ISNUMBER(SEARCH(F$2,'3B. In-Kind Non-Labor'!$G20))=TRUE,('3B. In-Kind Non-Labor'!$E20/COUNTA(_xlfn.TEXTSPLIT('3B. In-Kind Non-Labor'!$G20,";"))),0) -> 0 | G40: =IF(ISNUMBER(SEARCH(G$2,'3A. In-Kind Labor '!$G19))=TRUE,('3A. In-Kind Labor '!$E19/COUNTA(_xlfn.TEXTSPLIT('3A. In-Kind Labor '!$G19,";"))),0)+IF(ISNUMBER(SEARCH(G$2,'3B. In-Kind Non-Labor'!$G20))=TRUE,('3B. In-Kind Non-Labor'!$E20/COUNTA(_xlfn.TEXTSPLIT('3B. In-Kind Non-Labor'!$G20,";"))),0) -> 0 | H40: =IF(ISNUMBER(SEARCH(H$2,'3A. In-Kind Labor '!$G19))=TRUE,('3A. In-Kind Labor '!$E19/COUNTA(_xlfn.TEXTSPLIT('3A. In-Kind Labor '!$G19,";"))),0)+IF(ISNUMBER(SEARCH(H$2,'3B. In-Kind Non-Labor'!$G20))=TRUE,('3B. In-Kind Non-Labor'!$E20/COUNTA(_xlfn.TEXTSPLIT('3B. In-Kind Non-Labor'!$G20,";"))),0) -> 0
A41: =IF(ISNUMBER(SEARCH(A$2,'3A. In-Kind Labor '!$F20))=TRUE,('3A. In-Kind Labor '!$E20/COUNTA(_xlfn.TEXTSPLIT('3A. In-Kind Labor '!$F20,";"))),0)+IF(ISNUMBER(SEARCH(A$2,'3B. In-Kind Non-Labor'!$F21))=TRUE,('3B. In-Kind Non-Labor'!$E21/COUNTA(_xlfn.TEXTSPLIT('3B. In-Kind Non-Labor'!$F21,";"))),0) -> 0 | B41: =IF(ISNUMBER(SEARCH(B$2,'3A. In-Kind Labor '!$F20))=TRUE,('3A. In-Kind Labor '!$E20/COUNTA(_xlfn.TEXTSPLIT('3A. In-Kind Labor '!$F20,";"))),0)+IF(ISNUMBER(SEARCH(B$2,'3B. In-Kind Non-Labor'!$F21))=TRUE,('3B. In-Kind Non-Labor'!$E21/COUNTA(_xlfn.TEXTSPLIT('3B. In-Kind Non-Labor'!$F21,";"))),0) -> 0 | C41: =IF(ISNUMBER(SEARCH(C$2,'3A. In-Kind Labor '!$F20))=TRUE,('3A. In-Kind Labor '!$E20/COUNTA(_xlfn.TEXTSPLIT('3A. In-Kind Labor '!$F20,";"))),0)+IF(ISNUMBER(SEARCH(C$2,'3B. In-Kind Non-Labor'!$F21))=TRUE,('3B. In-Kind Non-Labor'!$E21/COUNTA(_xlfn.TEXTSPLIT('3B. In-Kind Non-Labor'!$F21,";"))),0) -> 0 | E41: =IF(ISNUMBER(SEARCH(E$2,'3A. In-Kind Labor '!$G20))=TRUE,('3A. In-Kind Labor '!$E20/COUNTA(_xlfn.TEXTSPLIT('3A. In-Kind Labor '!$G20,";"))),0)+IF(ISNUMBER(SEARCH(E$2,'3B. In-Kind Non-Labor'!$G21))=TRUE,('3B. In-Kind Non-Labor'!$E21/COUNTA(_xlfn.TEXTSPLIT('3B. In-Kind Non-Labor'!$G21,";"))),0) -> 0 | F41: =IF(ISNUMBER(SEARCH(F$2,'3A. In-Kind Labor '!$G20))=TRUE,('3A. In-Kind Labor '!$E20/COUNTA(_xlfn.TEXTSPLIT('3A. In-Kind Labor '!$G20,";"))),0)+IF(ISNUMBER(SEARCH(F$2,'3B. In-Kind Non-Labor'!$G21))=TRUE,('3B. In-Kind Non-Labor'!$E21/COUNTA(_xlfn.TEXTSPLIT('3B. In-Kind Non-Labor'!$G21,";"))),0) -> 0 | G41: =IF(ISNUMBER(SEARCH(G$2,'3A. In-Kind Labor '!$G20))=TRUE,('3A. In-Kind Labor '!$E20/COUNTA(_xlfn.TEXTSPLIT('3A. In-Kind Labor '!$G20,";"))),0)+IF(ISNUMBER(SEARCH(G$2,'3B. In-Kind Non-Labor'!$G21))=TRUE,('3B. In-Kind Non-Labor'!$E21/COUNTA(_xlfn.TEXTSPLIT('3B. In-Kind Non-Labor'!$G21,";"))),0) -> 0 | H41: =IF(ISNUMBER(SEARCH(H$2,'3A. In-Kind Labor '!$G20))=TRUE,('3A. In-Kind Labor '!$E20/COUNTA(_xlfn.TEXTSPLIT('3A. In-Kind Labor '!$G20,";"))),0)+IF(ISNUMBER(SEARCH(H$2,'3B. In-Kind Non-Labor'!$G21))=TRUE,('3B. In-Kind Non-Labor'!$E21/COUNTA(_xlfn.TEXTSPLIT('3B. In-Kind Non-Labor'!$G21,";"))),0) -> 0
A42: =IF(ISNUMBER(SEARCH(A$2,'3A. In-Kind Labor '!$F21))=TRUE,('3A. In-Kind Labor '!$E21/COUNTA(_xlfn.TEXTSPLIT('3A. In-Kind Labor '!$F21,";"))),0)+IF(ISNUMBER(SEARCH(A$2,'3B. In-Kind Non-Labor'!$F22))=TRUE,('3B. In-Kind Non-Labor'!$E22/COUNTA(_xlfn.TEXTSPLIT('3B. In-Kind Non-Labor'!$F22,";"))),0) -> 0 | B42: =IF(ISNUMBER(SEARCH(B$2,'3A. In-Kind Labor '!$F21))=TRUE,('3A. In-Kind Labor '!$E21/COUNTA(_xlfn.TEXTSPLIT('3A. In-Kind Labor '!$F21,";"))),0)+IF(ISNUMBER(SEARCH(B$2,'3B. In-Kind Non-Labor'!$F22))=TRUE,('3B. In-Kind Non-Labor'!$E22/COUNTA(_xlfn.TEXTSPLIT('3B. In-Kind Non-Labor'!$F22,";"))),0) -> 0 | C42: =IF(ISNUMBER(SEARCH(C$2,'3A. In-Kind Labor '!$F21))=TRUE,('3A. In-Kind Labor '!$E21/COUNTA(_xlfn.TEXTSPLIT('3A. In-Kind Labor '!$F21,";"))),0)+IF(ISNUMBER(SEARCH(C$2,'3B. In-Kind Non-Labor'!$F22))=TRUE,('3B. In-Kind Non-Labor'!$E22/COUNTA(_xlfn.TEXTSPLIT('3B. In-Kind Non-Labor'!$F22,";"))),0) -> 0 | E42: =IF(ISNUMBER(SEARCH(E$2,'3A. In-Kind Labor '!$G21))=TRUE,('3A. In-Kind Labor '!$E21/COUNTA(_xlfn.TEXTSPLIT('3A. In-Kind Labor '!$G21,";"))),0)+IF(ISNUMBER(SEARCH(E$2,'3B. In-Kind Non-Labor'!$G22))=TRUE,('3B. In-Kind Non-Labor'!$E22/COUNTA(_xlfn.TEXTSPLIT('3B. In-Kind Non-Labor'!$G22,";"))),0) -> 0 | F42: =IF(ISNUMBER(SEARCH(F$2,'3A. In-Kind Labor '!$G21))=TRUE,('3A. In-Kind Labor '!$E21/COUNTA(_xlfn.TEXTSPLIT('3A. In-Kind Labor '!$G21,";"))),0)+IF(ISNUMBER(SEARCH(F$2,'3B. In-Kind Non-Labor'!$G22))=TRUE,('3B. In-Kind Non-Labor'!$E22/COUNTA(_xlfn.TEXTSPLIT('3B. In-Kind Non-Labor'!$G22,";"))),0) -> 0 | G42: =IF(ISNUMBER(SEARCH(G$2,'3A. In-Kind Labor '!$G21))=TRUE,('3A. In-Kind Labor '!$E21/COUNTA(_xlfn.TEXTSPLIT('3A. In-Kind Labor '!$G21,";"))),0)+IF(ISNUMBER(SEARCH(G$2,'3B. In-Kind Non-Labor'!$G22))=TRUE,('3B. In-Kind Non-Labor'!$E22/COUNTA(_xlfn.TEXTSPLIT('3B. In-Kind Non-Labor'!$G22,";"))),0) -> 0 | H42: =IF(ISNUMBER(SEARCH(H$2,'3A. In-Kind Labor '!$G21))=TRUE,('3A. In-Kind Labor '!$E21/COUNTA(_xlfn.TEXTSPLIT('3A. In-Kind Labor '!$G21,";"))),0)+IF(ISNUMBER(SEARCH(H$2,'3B. In-Kind Non-Labor'!$G22))=TRUE,('3B. In-Kind Non-Labor'!$E22/COUNTA(_xlfn.TEXTSPLIT('3B. In-Kind Non-Labor'!$G22,";"))),0) -> 0
A43: =IF(ISNUMBER(SEARCH(A$2,'3A. In-Kind Labor '!$F22))=TRUE,('3A. In-Kind Labor '!$E22/COUNTA(_xlfn.TEXTSPLIT('3A. In-Kind Labor '!$F22,";"))),0)+IF(ISNUMBER(SEARCH(A$2,'3B. In-Kind Non-Labor'!$F23))=TRUE,('3B. In-Kind Non-Labor'!$E23/COUNTA(_xlfn.TEXTSPLIT('3B. In-Kind Non-Labor'!$F23,";"))),0) -> 0 | B43: =IF(ISNUMBER(SEARCH(B$2,'3A. In-Kind Labor '!$F22))=TRUE,('3A. In-Kind Labor '!$E22/COUNTA(_xlfn.TEXTSPLIT('3A. In-Kind Labor '!$F22,";"))),0)+IF(ISNUMBER(SEARCH(B$2,'3B. In-Kind Non-Labor'!$F23))=TRUE,('3B. In-Kind Non-Labor'!$E23/COUNTA(_xlfn.TEXTSPLIT('3B. In-Kind Non-Labor'!$F23,";"))),0) -> 0 | C43: =IF(ISNUMBER(SEARCH(C$2,'3A. In-Kind Labor '!$F22))=TRUE,('3A. In-Kind Labor '!$E22/COUNTA(_xlfn.TEXTSPLIT('3A. In-Kind Labor '!$F22,";"))),0)+IF(ISNUMBER(SEARCH(C$2,'3B. In-Kind Non-Labor'!$F23))=TRUE,('3B. In-Kind Non-Labor'!$E23/COUNTA(_xlfn.TEXTSPLIT('3B. In-Kind Non-Labor'!$F23,";"))),0) -> 0 | E43: =IF(ISNUMBER(SEARCH(E$2,'3A. In-Kind Labor '!$G22))=TRUE,('3A. In-Kind Labor '!$E22/COUNTA(_xlfn.TEXTSPLIT('3A. In-Kind Labor '!$G22,";"))),0)+IF(ISNUMBER(SEARCH(E$2,'3B. In-Kind Non-Labor'!$G23))=TRUE,('3B. In-Kind Non-Labor'!$E23/COUNTA(_xlfn.TEXTSPLIT('3B. In-Kind Non-Labor'!$G23,";"))),0) -> 0 | F43: =IF(ISNUMBER(SEARCH(F$2,'3A. In-Kind Labor '!$G22))=TRUE,('3A. In-Kind Labor '!$E22/COUNTA(_xlfn.TEXTSPLIT('3A. In-Kind Labor '!$G22,";"))),0)+IF(ISNUMBER(SEARCH(F$2,'3B. In-Kind Non-Labor'!$G23))=TRUE,('3B. In-Kind Non-Labor'!$E23/COUNTA(_xlfn.TEXTSPLIT('3B. In-Kind Non-Labor'!$G23,";"))),0) -> 0 | G43: =IF(ISNUMBER(SEARCH(G$2,'3A. In-Kind Labor '!$G22))=TRUE,('3A. In-Kind Labor '!$E22/COUNTA(_xlfn.TEXTSPLIT('3A. In-Kind Labor '!$G22,";"))),0)+IF(ISNUMBER(SEARCH(G$2,'3B. In-Kind Non-Labor'!$G23))=TRUE,('3B. In-Kind Non-Labor'!$E23/COUNTA(_xlfn.TEXTSPLIT('3B. In-Kind Non-Labor'!$G23,";"))),0) -> 0 | H43: =IF(ISNUMBER(SEARCH(H$2,'3A. In-Kind Labor '!$G22))=TRUE,('3A. In-Kind Labor '!$E22/COUNTA(_xlfn.TEXTSPLIT('3A. In-Kind Labor '!$G22,";"))),0)+IF(ISNUMBER(SEARCH(H$2,'3B. In-Kind Non-Labor'!$G23))=TRUE,('3B. In-Kind Non-Labor'!$E23/COUNTA(_xlfn.TEXTSPLIT('3B. In-Kind Non-Labor'!$G23,";"))),0) -> 0
A44: =IF(ISNUMBER(SEARCH(A$2,'3A. In-Kind Labor '!$F23))=TRUE,('3A. In-Kind Labor '!$E23/COUNTA(_xlfn.TEXTSPLIT('3A. In-Kind Labor '!$F23,";"))),0)+IF(ISNUMBER(SEARCH(A$2,'3B. In-Kind Non-Labor'!$F24))=TRUE,('3B. In-Kind Non-Labor'!$E24/COUNTA(_xlfn.TEXTSPLIT('3B. In-Kind Non-Labor'!$F24,";"))),0) -> 0 | B44: =IF(ISNUMBER(SEARCH(B$2,'3A. In-Kind Labor '!$F23))=TRUE,('3A. In-Kind Labor '!$E23/COUNTA(_xlfn.TEXTSPLIT('3A. In-Kind Labor '!$F23,";"))),0)+IF(ISNUMBER(SEARCH(B$2,'3B. In-Kind Non-Labor'!$F24))=TRUE,('3B. In-Kind Non-Labor'!$E24/COUNTA(_xlfn.TEXTSPLIT('3B. In-Kind Non-Labor'!$F24,";"))),0) -> 0 | C44: =IF(ISNUMBER(SEARCH(C$2,'3A. In-Kind Labor '!$F23))=TRUE,('3A. In-Kind Labor '!$E23/COUNTA(_xlfn.TEXTSPLIT('3A. In-Kind Labor '!$F23,";"))),0)+IF(ISNUMBER(SEARCH(C$2,'3B. In-Kind Non-Labor'!$F24))=TRUE,('3B. In-Kind Non-Labor'!$E24/COUNTA(_xlfn.TEXTSPLIT('3B. In-Kind Non-Labor'!$F24,";"))),0) -> 0 | E44: =IF(ISNUMBER(SEARCH(E$2,'3A. In-Kind Labor '!$G23))=TRUE,('3A. In-Kind Labor '!$E23/COUNTA(_xlfn.TEXTSPLIT('3A. In-Kind Labor '!$G23,";"))),0)+IF(ISNUMBER(SEARCH(E$2,'3B. In-Kind Non-Labor'!$G24))=TRUE,('3B. In-Kind Non-Labor'!$E24/COUNTA(_xlfn.TEXTSPLIT('3B. In-Kind Non-Labor'!$G24,";"))),0) -> 0 | F44: =IF(ISNUMBER(SEARCH(F$2,'3A. In-Kind Labor '!$G23))=TRUE,('3A. In-Kind Labor '!$E23/COUNTA(_xlfn.TEXTSPLIT('3A. In-Kind Labor '!$G23,";"))),0)+IF(ISNUMBER(SEARCH(F$2,'3B. In-Kind Non-Labor'!$G24))=TRUE,('3B. In-Kind Non-Labor'!$E24/COUNTA(_xlfn.TEXTSPLIT('3B. In-Kind Non-Labor'!$G24,";"))),0) -> 0 | G44: =IF(ISNUMBER(SEARCH(G$2,'3A. In-Kind Labor '!$G23))=TRUE,('3A. In-Kind Labor '!$E23/COUNTA(_xlfn.TEXTSPLIT('3A. In-Kind Labor '!$G23,";"))),0)+IF(ISNUMBER(SEARCH(G$2,'3B. In-Kind Non-Labor'!$G24))=TRUE,('3B. In-Kind Non-Labor'!$E24/COUNTA(_xlfn.TEXTSPLIT('3B. In-Kind Non-Labor'!$G24,";"))),0) -> 0 | H44: =IF(ISNUMBER(SEARCH(H$2,'3A. In-Kind Labor '!$G23))=TRUE,('3A. In-Kind Labor '!$E23/COUNTA(_xlfn.TEXTSPLIT('3A. In-Kind Labor '!$G23,";"))),0)+IF(ISNUMBER(SEARCH(H$2,'3B. In-Kind Non-Labor'!$G24))=TRUE,('3B. In-Kind Non-Labor'!$E24/COUNTA(_xlfn.TEXTSPLIT('3B. In-Kind Non-Labor'!$G24,";"))),0) -> 0
A45: =IF(ISNUMBER(SEARCH(A$2,'3A. In-Kind Labor '!$F24))=TRUE,('3A. In-Kind Labor '!$E24/COUNTA(_xlfn.TEXTSPLIT('3A. In-Kind Labor '!$F24,";"))),0)+IF(ISNUMBER(SEARCH(A$2,'3B. In-Kind Non-Labor'!$F25))=TRUE,('3B. In-Kind Non-Labor'!$E25/COUNTA(_xlfn.TEXTSPLIT('3B. In-Kind Non-Labor'!$F25,";"))),0) -> 0 | B45: =IF(ISNUMBER(SEARCH(B$2,'3A. In-Kind Labor '!$F24))=TRUE,('3A. In-Kind Labor '!$E24/COUNTA(_xlfn.TEXTSPLIT('3A. In-Kind Labor '!$F24,";"))),0)+IF(ISNUMBER(SEARCH(B$2,'3B. In-Kind Non-Labor'!$F25))=TRUE,('3B. In-Kind Non-Labor'!$E25/COUNTA(_xlfn.TEXTSPLIT('3B. In-Kind Non-Labor'!$F25,";"))),0) -> 0 | C45: =IF(ISNUMBER(SEARCH(C$2,'3A. In-Kind Labor '!$F24))=TRUE,('3A. In-Kind Labor '!$E24/COUNTA(_xlfn.TEXTSPLIT('3A. In-Kind Labor '!$F24,";"))),0)+IF(ISNUMBER(SEARCH(C$2,'3B. In-Kind Non-Labor'!$F25))=TRUE,('3B. In-Kind Non-Labor'!$E25/COUNTA(_xlfn.TEXTSPLIT('3B. In-Kind Non-Labor'!$F25,";"))),0) -> 0 | E45: =IF(ISNUMBER(SEARCH(E$2,'3A. In-Kind Labor '!$G24))=TRUE,('3A. In-Kind Labor '!$E24/COUNTA(_xlfn.TEXTSPLIT('3A. In-Kind Labor '!$G24,";"))),0)+IF(ISNUMBER(SEARCH(E$2,'3B. In-Kind Non-Labor'!$G25))=TRUE,('3B. In-Kind Non-Labor'!$E25/COUNTA(_xlfn.TEXTSPLIT('3B. In-Kind Non-Labor'!$G25,";"))),0) -> 0 | F45: =IF(ISNUMBER(SEARCH(F$2,'3A. In-Kind Labor '!$G24))=TRUE,('3A. In-Kind Labor '!$E24/COUNTA(_xlfn.TEXTSPLIT('3A. In-Kind Labor '!$G24,";"))),0)+IF(ISNUMBER(SEARCH(F$2,'3B. In-Kind Non-Labor'!$G25))=TRUE,('3B. In-Kind Non-Labor'!$E25/COUNTA(_xlfn.TEXTSPLIT('3B. In-Kind Non-Labor'!$G25,";"))),0) -> 0 | G45: =IF(ISNUMBER(SEARCH(G$2,'3A. In-Kind Labor '!$G24))=TRUE,('3A. In-Kind Labor '!$E24/COUNTA(_xlfn.TEXTSPLIT('3A. In-Kind Labor '!$G24,";"))),0)+IF(ISNUMBER(SEARCH(G$2,'3B. In-Kind Non-Labor'!$G25))=TRUE,('3B. In-Kind Non-Labor'!$E25/COUNTA(_xlfn.TEXTSPLIT('3B. In-Kind Non-Labor'!$G25,";"))),0) -> 0 | H45: =IF(ISNUMBER(SEARCH(H$2,'3A. In-Kind Labor '!$G24))=TRUE,('3A. In-Kind Labor '!$E24/COUNTA(_xlfn.TEXTSPLIT('3A. In-Kind Labor '!$G24,";"))),0)+IF(ISNUMBER(SEARCH(H$2,'3B. In-Kind Non-Labor'!$G25))=TRUE,('3B. In-Kind Non-Labor'!$E25/COUNTA(_xlfn.TEXTSPLIT('3B. In-Kind Non-Labor'!$G25,";"))),0) -> 0
A46: =IF(ISNUMBER(SEARCH(A$2,'3A. In-Kind Labor '!$F25))=TRUE,('3A. In-Kind Labor '!$E25/COUNTA(_xlfn.TEXTSPLIT('3A. In-Kind Labor '!$F25,";"))),0)+IF(ISNUMBER(SEARCH(A$2,'3B. In-Kind Non-Labor'!$F26))=TRUE,('3B. In-Kind Non-Labor'!$E26/COUNTA(_xlfn.TEXTSPLIT('3B. In-Kind Non-Labor'!$F26,";"))),0) -> 0 | B46: =IF(ISNUMBER(SEARCH(B$2,'3A. In-Kind Labor '!$F25))=TRUE,('3A. In-Kind Labor '!$E25/COUNTA(_xlfn.TEXTSPLIT('3A. In-Kind Labor '!$F25,";"))),0)+IF(ISNUMBER(SEARCH(B$2,'3B. In-Kind Non-Labor'!$F26))=TRUE,('3B. In-Kind Non-Labor'!$E26/COUNTA(_xlfn.TEXTSPLIT('3B. In-Kind Non-Labor'!$F26,";"))),0) -> 0 | C46: =IF(ISNUMBER(SEARCH(C$2,'3A. In-Kind Labor '!$F25))=TRUE,('3A. In-Kind Labor '!$E25/COUNTA(_xlfn.TEXTSPLIT('3A. In-Kind Labor '!$F25,";"))),0)+IF(ISNUMBER(SEARCH(C$2,'3B. In-Kind Non-Labor'!$F26))=TRUE,('3B. In-Kind Non-Labor'!$E26/COUNTA(_xlfn.TEXTSPLIT('3B. In-Kind Non-Labor'!$F26,";"))),0) -> 0 | E46: =IF(ISNUMBER(SEARCH(E$2,'3A. In-Kind Labor '!$G25))=TRUE,('3A. In-Kind Labor '!$E25/COUNTA(_xlfn.TEXTSPLIT('3A. In-Kind Labor '!$G25,";"))),0)+IF(ISNUMBER(SEARCH(E$2,'3B. In-Kind Non-Labor'!$G26))=TRUE,('3B. In-Kind Non-Labor'!$E26/COUNTA(_xlfn.TEXTSPLIT('3B. In-Kind Non-Labor'!$G26,";"))),0) -> 0 | F46: =IF(ISNUMBER(SEARCH(F$2,'3A. In-Kind Labor '!$G25))=TRUE,('3A. In-Kind Labor '!$E25/COUNTA(_xlfn.TEXTSPLIT('3A. In-Kind Labor '!$G25,";"))),0)+IF(ISNUMBER(SEARCH(F$2,'3B. In-Kind Non-Labor'!$G26))=TRUE,('3B. In-Kind Non-Labor'!$E26/COUNTA(_xlfn.TEXTSPLIT('3B. In-Kind Non-Labor'!$G26,";"))),0) -> 0 | G46: =IF(ISNUMBER(SEARCH(G$2,'3A. In-Kind Labor '!$G25))=TRUE,('3A. In-Kind Labor '!$E25/COUNTA(_xlfn.TEXTSPLIT('3A. In-Kind Labor '!$G25,";"))),0)+IF(ISNUMBER(SEARCH(G$2,'3B. In-Kind Non-Labor'!$G26))=TRUE,('3B. In-Kind Non-Labor'!$E26/COUNTA(_xlfn.TEXTSPLIT('3B. In-Kind Non-Labor'!$G26,";"))),0) -> 0 | H46: =IF(ISNUMBER(SEARCH(H$2,'3A. In-Kind Labor '!$G25))=TRUE,('3A. In-Kind Labor '!$E25/COUNTA(_xlfn.TEXTSPLIT('3A. In-Kind Labor '!$G25,";"))),0)+IF(ISNUMBER(SEARCH(H$2,'3B. In-Kind Non-Labor'!$G26))=TRUE,('3B. In-Kind Non-Labor'!$E26/COUNTA(_xlfn.TEXTSPLIT('3B. In-Kind Non-Labor'!$G26,";"))),0) -> 0
A47: =IF(ISNUMBER(SEARCH(A$2,'3A. In-Kind Labor '!$F26))=TRUE,('3A. In-Kind Labor '!$E26/COUNTA(_xlfn.TEXTSPLIT('3A. In-Kind Labor '!$F26,";"))),0)+IF(ISNUMBER(SEARCH(A$2,'3B. In-Kind Non-Labor'!$F27))=TRUE,('3B. In-Kind Non-Labor'!$E27/COUNTA(_xlfn.TEXTSPLIT('3B. In-Kind Non-Labor'!$F27,";"))),0) -> 0 | B47: =IF(ISNUMBER(SEARCH(B$2,'3A. In-Kind Labor '!$F26))=TRUE,('3A. In-Kind Labor '!$E26/COUNTA(_xlfn.TEXTSPLIT('3A. In-Kind Labor '!$F26,";"))),0)+IF(ISNUMBER(SEARCH(B$2,'3B. In-Kind Non-Labor'!$F27))=TRUE,('3B. In-Kind Non-Labor'!$E27/COUNTA(_xlfn.TEXTSPLIT('3B. In-Kind Non-Labor'!$F27,";"))),0) -> 0 | C47: =IF(ISNUMBER(SEARCH(C$2,'3A. In-Kind Labor '!$F26))=TRUE,('3A. In-Kind Labor '!$E26/COUNTA(_xlfn.TEXTSPLIT('3A. In-Kind Labor '!$F26,";"))),0)+IF(ISNUMBER(SEARCH(C$2,'3B. In-Kind Non-Labor'!$F27))=TRUE,('3B. In-Kind Non-Labor'!$E27/COUNTA(_xlfn.TEXTSPLIT('3B. In-Kind Non-Labor'!$F27,";"))),0) -> 0 | E47: =IF(ISNUMBER(SEARCH(E$2,'3A. In-Kind Labor '!$G26))=TRUE,('3A. In-Kind Labor '!$E26/COUNTA(_xlfn.TEXTSPLIT('3A. In-Kind Labor '!$G26,";"))),0)+IF(ISNUMBER(SEARCH(E$2,'3B. In-Kind Non-Labor'!$G27))=TRUE,('3B. In-Kind Non-Labor'!$E27/COUNTA(_xlfn.TEXTSPLIT('3B. In-Kind Non-Labor'!$G27,";"))),0) -> 0 | F47: =IF(ISNUMBER(SEARCH(F$2,'3A. In-Kind Labor '!$G26))=TRUE,('3A. In-Kind Labor '!$E26/COUNTA(_xlfn.TEXTSPLIT('3A. In-Kind Labor '!$G26,";"))),0)+IF(ISNUMBER(SEARCH(F$2,'3B. In-Kind Non-Labor'!$G27))=TRUE,('3B. In-Kind Non-Labor'!$E27/COUNTA(_xlfn.TEXTSPLIT('3B. In-Kind Non-Labor'!$G27,";"))),0) -> 0 | G47: =IF(ISNUMBER(SEARCH(G$2,'3A. In-Kind Labor '!$G26))=TRUE,('3A. In-Kind Labor '!$E26/COUNTA(_xlfn.TEXTSPLIT('3A. In-Kind Labor '!$G26,";"))),0)+IF(ISNUMBER(SEARCH(G$2,'3B. In-Kind Non-Labor'!$G27))=TRUE,('3B. In-Kind Non-Labor'!$E27/COUNTA(_xlfn.TEXTSPLIT('3B. In-Kind Non-Labor'!$G27,";"))),0) -> 0 | H47: =IF(ISNUMBER(SEARCH(H$2,'3A. In-Kind Labor '!$G26))=TRUE,('3A. In-Kind Labor '!$E26/COUNTA(_xlfn.TEXTSPLIT('3A. In-Kind Labor '!$G26,";"))),0)+IF(ISNUMBER(SEARCH(H$2,'3B. In-Kind Non-Labor'!$G27))=TRUE,('3B. In-Kind Non-Labor'!$E27/COUNTA(_xlfn.TEXTSPLIT('3B. In-Kind Non-Labor'!$G27,";"))),0) -> 0
A48: =IF(ISNUMBER(SEARCH(A$2,'3A. In-Kind Labor '!$F27))=TRUE,('3A. In-Kind Labor '!$E27/COUNTA(_xlfn.TEXTSPLIT('3A. In-Kind Labor '!$F27,";"))),0)+IF(ISNUMBER(SEARCH(A$2,'3B. In-Kind Non-Labor'!$F28))=TRUE,('3B. In-Kind Non-Labor'!$E28/COUNTA(_xlfn.TEXTSPLIT('3B. In-Kind Non-Labor'!$F28,";"))),0) -> 0 | B48: =IF(ISNUMBER(SEARCH(B$2,'3A. In-Kind Labor '!$F27))=TRUE,('3A. In-Kind Labor '!$E27/COUNTA(_xlfn.TEXTSPLIT('3A. In-Kind Labor '!$F27,";"))),0)+IF(ISNUMBER(SEARCH(B$2,'3B. In-Kind Non-Labor'!$F28))=TRUE,('3B. In-Kind Non-Labor'!$E28/COUNTA(_xlfn.TEXTSPLIT('3B. In-Kind Non-Labor'!$F28,";"))),0) -> 0 | C48: =IF(ISNUMBER(SEARCH(C$2,'3A. In-Kind Labor '!$F27))=TRUE,('3A. In-Kind Labor '!$E27/COUNTA(_xlfn.TEXTSPLIT('3A. In-Kind Labor '!$F27,";"))),0)+IF(ISNUMBER(SEARCH(C$2,'3B. In-Kind Non-Labor'!$F28))=TRUE,('3B. In-Kind Non-Labor'!$E28/COUNTA(_xlfn.TEXTSPLIT('3B. In-Kind Non-Labor'!$F28,";"))),0) -> 0 | E48: =IF(ISNUMBER(SEARCH(E$2,'3A. In-Kind Labor '!$G27))=TRUE,('3A. In-Kind Labor '!$E27/COUNTA(_xlfn.TEXTSPLIT('3A. In-Kind Labor '!$G27,";"))),0)+IF(ISNUMBER(SEARCH(E$2,'3B. In-Kind Non-Labor'!$G28))=TRUE,('3B. In-Kind Non-Labor'!$E28/COUNTA(_xlfn.TEXTSPLIT('3B. In-Kind Non-Labor'!$G28,";"))),0) -> 0 | F48: =IF(ISNUMBER(SEARCH(F$2,'3A. In-Kind Labor '!$G27))=TRUE,('3A. In-Kind Labor '!$E27/COUNTA(_xlfn.TEXTSPLIT('3A. In-Kind Labor '!$G27,";"))),0)+IF(ISNUMBER(SEARCH(F$2,'3B. In-Kind Non-Labor'!$G28))=TRUE,('3B. In-Kind Non-Labor'!$E28/COUNTA(_xlfn.TEXTSPLIT('3B. In-Kind Non-Labor'!$G28,";"))),0) -> 0 | G48: =IF(ISNUMBER(SEARCH(G$2,'3A. In-Kind Labor '!$G27))=TRUE,('3A. In-Kind Labor '!$E27/COUNTA(_xlfn.TEXTSPLIT('3A. In-Kind Labor '!$G27,";"))),0)+IF(ISNUMBER(SEARCH(G$2,'3B. In-Kind Non-Labor'!$G28))=TRUE,('3B. In-Kind Non-Labor'!$E28/COUNTA(_xlfn.TEXTSPLIT('3B. In-Kind Non-Labor'!$G28,";"))),0) -> 0 | H48: =IF(ISNUMBER(SEARCH(H$2,'3A. In-Kind Labor '!$G27))=TRUE,('3A. In-Kind Labor '!$E27/COUNTA(_xlfn.TEXTSPLIT('3A. In-Kind Labor '!$G27,";"))),0)+IF(ISNUMBER(SEARCH(H$2,'3B. In-Kind Non-Labor'!$G28))=TRUE,('3B. In-Kind Non-Labor'!$E28/COUNTA(_xlfn.TEXTSPLIT('3B. In-Kind Non-Labor'!$G28,";"))),0) -> 0
A49: =IF(ISNUMBER(SEARCH(A$2,'3A. In-Kind Labor '!$F28))=TRUE,('3A. In-Kind Labor '!$E28/COUNTA(_xlfn.TEXTSPLIT('3A. In-Kind Labor '!$F28,";"))),0)+IF(ISNUMBER(SEARCH(A$2,'3B. In-Kind Non-Labor'!$F29))=TRUE,('3B. In-Kind Non-Labor'!$E29/COUNTA(_xlfn.TEXTSPLIT('3B. In-Kind Non-Labor'!$F29,";"))),0) -> 0 | B49: =IF(ISNUMBER(SEARCH(B$2,'3A. In-Kind Labor '!$F28))=TRUE,('3A. In-Kind Labor '!$E28/COUNTA(_xlfn.TEXTSPLIT('3A. In-Kind Labor '!$F28,";"))),0)+IF(ISNUMBER(SEARCH(B$2,'3B. In-Kind Non-Labor'!$F29))=TRUE,('3B. In-Kind Non-Labor'!$E29/COUNTA(_xlfn.TEXTSPLIT('3B. In-Kind Non-Labor'!$F29,";"))),0) -> 0 | C49: =IF(ISNUMBER(SEARCH(C$2,'3A. In-Kind Labor '!$F28))=TRUE,('3A. In-Kind Labor '!$E28/COUNTA(_xlfn.TEXTSPLIT('3A. In-Kind Labor '!$F28,";"))),0)+IF(ISNUMBER(SEARCH(C$2,'3B. In-Kind Non-Labor'!$F29))=TRUE,('3B. In-Kind Non-Labor'!$E29/COUNTA(_xlfn.TEXTSPLIT('3B. In-Kind Non-Labor'!$F29,";"))),0) -> 0 | E49: =IF(ISNUMBER(SEARCH(E$2,'3A. In-Kind Labor '!$G28))=TRUE,('3A. In-Kind Labor '!$E28/COUNTA(_xlfn.TEXTSPLIT('3A. In-Kind Labor '!$G28,";"))),0)+IF(ISNUMBER(SEARCH(E$2,'3B. In-Kind Non-Labor'!$G29))=TRUE,('3B. In-Kind Non-Labor'!$E29/COUNTA(_xlfn.TEXTSPLIT('3B. In-Kind Non-Labor'!$G29,";"))),0) -> 0 | F49: =IF(ISNUMBER(SEARCH(F$2,'3A. In-Kind Labor '!$G28))=TRUE,('3A. In-Kind Labor '!$E28/COUNTA(_xlfn.TEXTSPLIT('3A. In-Kind Labor '!$G28,";"))),0)+IF(ISNUMBER(SEARCH(F$2,'3B. In-Kind Non-Labor'!$G29))=TRUE,('3B. In-Kind Non-Labor'!$E29/COUNTA(_xlfn.TEXTSPLIT('3B. In-Kind Non-Labor'!$G29,";"))),0) -> 0 | G49: =IF(ISNUMBER(SEARCH(G$2,'3A. In-Kind Labor '!$G28))=TRUE,('3A. In-Kind Labor '!$E28/COUNTA(_xlfn.TEXTSPLIT('3A. In-Kind Labor '!$G28,";"))),0)+IF(ISNUMBER(SEARCH(G$2,'3B. In-Kind Non-Labor'!$G29))=TRUE,('3B. In-Kind Non-Labor'!$E29/COUNTA(_xlfn.TEXTSPLIT('3B. In-Kind Non-Labor'!$G29,";"))),0) -> 0 | H49: =IF(ISNUMBER(SEARCH(H$2,'3A. In-Kind Labor '!$G28))=TRUE,('3A. In-Kind Labor '!$E28/COUNTA(_xlfn.TEXTSPLIT('3A. In-Kind Labor '!$G28,";"))),0)+IF(ISNUMBER(SEARCH(H$2,'3B. In-Kind Non-Labor'!$G29))=TRUE,('3B. In-Kind Non-Labor'!$E29/COUNTA(_xlfn.TEXTSPLIT('3B. In-Kind Non-Labor'!$G29,";"))),0) -> 0
A50: =IF(ISNUMBER(SEARCH(A$2,'3A. In-Kind Labor '!$F29))=TRUE,('3A. In-Kind Labor '!$E29/COUNTA(_xlfn.TEXTSPLIT('3A. In-Kind Labor '!$F29,";"))),0)+IF(ISNUMBER(SEARCH(A$2,'3B. In-Kind Non-Labor'!$F30))=TRUE,('3B. In-Kind Non-Labor'!$E30/COUNTA(_xlfn.TEXTSPLIT('3B. In-Kind Non-Labor'!$F30,";"))),0) -> 0 | B50: =IF(ISNUMBER(SEARCH(B$2,'3A. In-Kind Labor '!$F29))=TRUE,('3A. In-Kind Labor '!$E29/COUNTA(_xlfn.TEXTSPLIT('3A. In-Kind Labor '!$F29,";"))),0)+IF(ISNUMBER(SEARCH(B$2,'3B. In-Kind Non-Labor'!$F30))=TRUE,('3B. In-Kind Non-Labor'!$E30/COUNTA(_xlfn.TEXTSPLIT('3B. In-Kind Non-Labor'!$F30,";"))),0) -> 0 | C50: =IF(ISNUMBER(SEARCH(C$2,'3A. In-Kind Labor '!$F29))=TRUE,('3A. In-Kind Labor '!$E29/COUNTA(_xlfn.TEXTSPLIT('3A. In-Kind Labor '!$F29,";"))),0)+IF(ISNUMBER(SEARCH(C$2,'3B. In-Kind Non-Labor'!$F30))=TRUE,('3B. In-Kind Non-Labor'!$E30/COUNTA(_xlfn.TEXTSPLIT('3B. In-Kind Non-Labor'!$F30,";"))),0) -> 0 | E50: =IF(ISNUMBER(SEARCH(E$2,'3A. In-Kind Labor '!$G29))=TRUE,('3A. In-Kind Labor '!$E29/COUNTA(_xlfn.TEXTSPLIT('3A. In-Kind Labor '!$G29,";"))),0)+IF(ISNUMBER(SEARCH(E$2,'3B. In-Kind Non-Labor'!$G30))=TRUE,('3B. In-Kind Non-Labor'!$E30/COUNTA(_xlfn.TEXTSPLIT('3B. In-Kind Non-Labor'!$G30,";"))),0) -> 0 | F50: =IF(ISNUMBER(SEARCH(F$2,'3A. In-Kind Labor '!$G29))=TRUE,('3A. In-Kind Labor '!$E29/COUNTA(_xlfn.TEXTSPLIT('3A. In-Kind Labor '!$G29,";"))),0)+IF(ISNUMBER(SEARCH(F$2,'3B. In-Kind Non-Labor'!$G30))=TRUE,('3B. In-Kind Non-Labor'!$E30/COUNTA(_xlfn.TEXTSPLIT('3B. In-Kind Non-Labor'!$G30,";"))),0) -> 0 | G50: =IF(ISNUMBER(SEARCH(G$2,'3A. In-Kind Labor '!$G29))=TRUE,('3A. In-Kind Labor '!$E29/COUNTA(_xlfn.TEXTSPLIT('3A. In-Kind Labor '!$G29,";"))),0)+IF(ISNUMBER(SEARCH(G$2,'3B. In-Kind Non-Labor'!$G30))=TRUE,('3B. In-Kind Non-Labor'!$E30/COUNTA(_xlfn.TEXTSPLIT('3B. In-Kind Non-Labor'!$G30,";"))),0) -> 0 | H50: =IF(ISNUMBER(SEARCH(H$2,'3A. In-Kind Labor '!$G29))=TRUE,('3A. In-Kind Labor '!$E29/COUNTA(_xlfn.TEXTSPLIT('3A. In-Kind Labor '!$G29,";"))),0)+IF(ISNUMBER(SEARCH(H$2,'3B. In-Kind Non-Labor'!$G30))=TRUE,('3B. In-Kind Non-Labor'!$E30/COUNTA(_xlfn.TEXTSPLIT('3B. In-Kind Non-Labor'!$G30,";"))),0) -> 0
A51: =IF(ISNUMBER(SEARCH(A$2,'3A. In-Kind Labor '!$F30))=TRUE,('3A. In-Kind Labor '!$E30/COUNTA(_xlfn.TEXTSPLIT('3A. In-Kind Labor '!$F30,";"))),0)+IF(ISNUMBER(SEARCH(A$2,'3B. In-Kind Non-Labor'!$F31))=TRUE,('3B. In-Kind Non-Labor'!$E31/COUNTA(_xlfn.TEXTSPLIT('3B. In-Kind Non-Labor'!$F31,";"))),0) -> 0 | B51: =IF(ISNUMBER(SEARCH(B$2,'3A. In-Kind Labor '!$F30))=TRUE,('3A. In-Kind Labor '!$E30/COUNTA(_xlfn.TEXTSPLIT('3A. In-Kind Labor '!$F30,";"))),0)+IF(ISNUMBER(SEARCH(B$2,'3B. In-Kind Non-Labor'!$F31))=TRUE,('3B. In-Kind Non-Labor'!$E31/COUNTA(_xlfn.TEXTSPLIT('3B. In-Kind Non-Labor'!$F31,";"))),0) -> 0 | C51: =IF(ISNUMBER(SEARCH(C$2,'3A. In-Kind Labor '!$F30))=TRUE,('3A. In-Kind Labor '!$E30/COUNTA(_xlfn.TEXTSPLIT('3A. In-Kind Labor '!$F30,";"))),0)+IF(ISNUMBER(SEARCH(C$2,'3B. In-Kind Non-Labor'!$F31))=TRUE,('3B. In-Kind Non-Labor'!$E31/COUNTA(_xlfn.TEXTSPLIT('3B. In-Kind Non-Labor'!$F31,";"))),0) -> 0 | E51: =IF(ISNUMBER(SEARCH(E$2,'3A. In-Kind Labor '!$G30))=TRUE,('3A. In-Kind Labor '!$E30/COUNTA(_xlfn.TEXTSPLIT('3A. In-Kind Labor '!$G30,";"))),0)+IF(ISNUMBER(SEARCH(E$2,'3B. In-Kind Non-Labor'!$G31))=TRUE,('3B. In-Kind Non-Labor'!$E31/COUNTA(_xlfn.TEXTSPLIT('3B. In-Kind Non-Labor'!$G31,";"))),0) -> 0 | F51: =IF(ISNUMBER(SEARCH(F$2,'3A. In-Kind Labor '!$G30))=TRUE,('3A. In-Kind Labor '!$E30/COUNTA(_xlfn.TEXTSPLIT('3A. In-Kind Labor '!$G30,";"))),0)+IF(ISNUMBER(SEARCH(F$2,'3B. In-Kind Non-Labor'!$G31))=TRUE,('3B. In-Kind Non-Labor'!$E31/COUNTA(_xlfn.TEXTSPLIT('3B. In-Kind Non-Labor'!$G31,";"))),0) -> 0 | G51: =IF(ISNUMBER(SEARCH(G$2,'3A. In-Kind Labor '!$G30))=TRUE,('3A. In-Kind Labor '!$E30/COUNTA(_xlfn.TEXTSPLIT('3A. In-Kind Labor '!$G30,";"))),0)+IF(ISNUMBER(SEARCH(G$2,'3B. In-Kind Non-Labor'!$G31))=TRUE,('3B. In-Kind Non-Labor'!$E31/COUNTA(_xlfn.TEXTSPLIT('3B. In-Kind Non-Labor'!$G31,";"))),0) -> 0 | H51: =IF(ISNUMBER(SEARCH(H$2,'3A. In-Kind Labor '!$G30))=TRUE,('3A. In-Kind Labor '!$E30/COUNTA(_xlfn.TEXTSPLIT('3A. In-Kind Labor '!$G30,";"))),0)+IF(ISNUMBER(SEARCH(H$2,'3B. In-Kind Non-Labor'!$G31))=TRUE,('3B. In-Kind Non-Labor'!$E31/COUNTA(_xlfn.TEXTSPLIT('3B. In-Kind Non-Labor'!$G31,";"))),0) -> 0
A52: =IF(ISNUMBER(SEARCH(A$2,'3A. In-Kind Labor '!$F31))=TRUE,('3A. In-Kind Labor '!$E31/COUNTA(_xlfn.TEXTSPLIT('3A. In-Kind Labor '!$F31,";"))),0)+IF(ISNUMBER(SEARCH(A$2,'3B. In-Kind Non-Labor'!$F32))=TRUE,('3B. In-Kind Non-Labor'!$E32/COUNTA(_xlfn.TEXTSPLIT('3B. In-Kind Non-Labor'!$F32,";"))),0) -> 0 | B52: =IF(ISNUMBER(SEARCH(B$2,'3A. In-Kind Labor '!$F31))=TRUE,('3A. In-Kind Labor '!$E31/COUNTA(_xlfn.TEXTSPLIT('3A. In-Kind Labor '!$F31,";"))),0)+IF(ISNUMBER(SEARCH(B$2,'3B. In-Kind Non-Labor'!$F32))=TRUE,('3B. In-Kind Non-Labor'!$E32/COUNTA(_xlfn.TEXTSPLIT('3B. In-Kind Non-Labor'!$F32,";"))),0) -> 0 | C52: =IF(ISNUMBER(SEARCH(C$2,'3A. In-Kind Labor '!$F31))=TRUE,('3A. In-Kind Labor '!$E31/COUNTA(_xlfn.TEXTSPLIT('3A. In-Kind Labor '!$F31,";"))),0)+IF(ISNUMBER(SEARCH(C$2,'3B. In-Kind Non-Labor'!$F32))=TRUE,('3B. In-Kind Non-Labor'!$E32/COUNTA(_xlfn.TEXTSPLIT('3B. In-Kind Non-Labor'!$F32,";"))),0) -> 0 | E52: =IF(ISNUMBER(SEARCH(E$2,'3A. In-Kind Labor '!$G31))=TRUE,('3A. In-Kind Labor '!$E31/COUNTA(_xlfn.TEXTSPLIT('3A. In-Kind Labor '!$G31,";"))),0)+IF(ISNUMBER(SEARCH(E$2,'3B. In-Kind Non-Labor'!$G32))=TRUE,('3B. In-Kind Non-Labor'!$E32/COUNTA(_xlfn.TEXTSPLIT('3B. In-Kind Non-Labor'!$G32,";"))),0) -> 0 | F52: =IF(ISNUMBER(SEARCH(F$2,'3A. In-Kind Labor '!$G31))=TRUE,('3A. In-Kind Labor '!$E31/COUNTA(_xlfn.TEXTSPLIT('3A. In-Kind Labor '!$G31,";"))),0)+IF(ISNUMBER(SEARCH(F$2,'3B. In-Kind Non-Labor'!$G32))=TRUE,('3B. In-Kind Non-Labor'!$E32/COUNTA(_xlfn.TEXTSPLIT('3B. In-Kind Non-Labor'!$G32,";"))),0) -> 0 | G52: =IF(ISNUMBER(SEARCH(G$2,'3A. In-Kind Labor '!$G31))=TRUE,('3A. In-Kind Labor '!$E31/COUNTA(_xlfn.TEXTSPLIT('3A. In-Kind Labor '!$G31,";"))),0)+IF(ISNUMBER(SEARCH(G$2,'3B. In-Kind Non-Labor'!$G32))=TRUE,('3B. In-Kind Non-Labor'!$E32/COUNTA(_xlfn.TEXTSPLIT('3B. In-Kind Non-Labor'!$G32,";"))),0) -> 0 | H52: =IF(ISNUMBER(SEARCH(H$2,'3A. In-Kind Labor '!$G31))=TRUE,('3A. In-Kind Labor '!$E31/COUNTA(_xlfn.TEXTSPLIT('3A. In-Kind Labor '!$G31,";"))),0)+IF(ISNUMBER(SEARCH(H$2,'3B. In-Kind Non-Labor'!$G32))=TRUE,('3B. In-Kind Non-Labor'!$E32/COUNTA(_xlfn.TEXTSPLIT('3B. In-Kind Non-Labor'!$G32,";"))),0) -> 0
A53: =IF(ISNUMBER(SEARCH(A$2,'3A. In-Kind Labor '!$F32))=TRUE,('3A. In-Kind Labor '!$E32/COUNTA(_xlfn.TEXTSPLIT('3A. In-Kind Labor '!$F32,";"))),0)+IF(ISNUMBER(SEARCH(A$2,'3B. In-Kind Non-Labor'!$F33))=TRUE,('3B. In-Kind Non-Labor'!$E33/COUNTA(_xlfn.TEXTSPLIT('3B. In-Kind Non-Labor'!$F33,";"))),0) -> 0 | B53: =IF(ISNUMBER(SEARCH(B$2,'3A. In-Kind Labor '!$F32))=TRUE,('3A. In-Kind Labor '!$E32/COUNTA(_xlfn.TEXTSPLIT('3A. In-Kind Labor '!$F32,";"))),0)+IF(ISNUMBER(SEARCH(B$2,'3B. In-Kind Non-Labor'!$F33))=TRUE,('3B. In-Kind Non-Labor'!$E33/COUNTA(_xlfn.TEXTSPLIT('3B. In-Kind Non-Labor'!$F33,";"))),0) -> 0 | C53: =IF(ISNUMBER(SEARCH(C$2,'3A. In-Kind Labor '!$F32))=TRUE,('3A. In-Kind Labor '!$E32/COUNTA(_xlfn.TEXTSPLIT('3A. In-Kind Labor '!$F32,";"))),0)+IF(ISNUMBER(SEARCH(C$2,'3B. In-Kind Non-Labor'!$F33))=TRUE,('3B. In-Kind Non-Labor'!$E33/COUNTA(_xlfn.TEXTSPLIT('3B. In-Kind Non-Labor'!$F33,";"))),0) -> 0 | E53: =IF(ISNUMBER(SEARCH(E$2,'3A. In-Kind Labor '!$G32))=TRUE,('3A. In-Kind Labor '!$E32/COUNTA(_xlfn.TEXTSPLIT('3A. In-Kind Labor '!$G32,";"))),0)+IF(ISNUMBER(SEARCH(E$2,'3B. In-Kind Non-Labor'!$G33))=TRUE,('3B. In-Kind Non-Labor'!$E33/COUNTA(_xlfn.TEXTSPLIT('3B. In-Kind Non-Labor'!$G33,";"))),0) -> 0 | F53: =IF(ISNUMBER(SEARCH(F$2,'3A. In-Kind Labor '!$G32))=TRUE,('3A. In-Kind Labor '!$E32/COUNTA(_xlfn.TEXTSPLIT('3A. In-Kind Labor '!$G32,";"))),0)+IF(ISNUMBER(SEARCH(F$2,'3B. In-Kind Non-Labor'!$G33))=TRUE,('3B. In-Kind Non-Labor'!$E33/COUNTA(_xlfn.TEXTSPLIT('3B. In-Kind Non-Labor'!$G33,";"))),0) -> 0 | G53: =IF(ISNUMBER(SEARCH(G$2,'3A. In-Kind Labor '!$G32))=TRUE,('3A. In-Kind Labor '!$E32/COUNTA(_xlfn.TEXTSPLIT('3A. In-Kind Labor '!$G32,";"))),0)+IF(ISNUMBER(SEARCH(G$2,'3B. In-Kind Non-Labor'!$G33))=TRUE,('3B. In-Kind Non-Labor'!$E33/COUNTA(_xlfn.TEXTSPLIT('3B. In-Kind Non-Labor'!$G33,";"))),0) -> 0 | H53: =IF(ISNUMBER(SEARCH(H$2,'3A. In-Kind Labor '!$G32))=TRUE,('3A. In-Kind Labor '!$E32/COUNTA(_xlfn.TEXTSPLIT('3A. In-Kind Labor '!$G32,";"))),0)+IF(ISNUMBER(SEARCH(H$2,'3B. In-Kind Non-Labor'!$G33))=TRUE,('3B. In-Kind Non-Labor'!$E33/COUNTA(_xlfn.TEXTSPLIT('3B. In-Kind Non-Labor'!$G33,";"))),0) -> 0
A54: =IF(ISNUMBER(SEARCH(A$2,'3A. In-Kind Labor '!$F33))=TRUE,('3A. In-Kind Labor '!$E33/COUNTA(_xlfn.TEXTSPLIT('3A. In-Kind Labor '!$F33,";"))),0)+IF(ISNUMBER(SEARCH(A$2,'3B. In-Kind Non-Labor'!$F34))=TRUE,('3B. In-Kind Non-Labor'!$E34/COUNTA(_xlfn.TEXTSPLIT('3B. In-Kind Non-Labor'!$F34,";"))),0) -> 0 | B54: =IF(ISNUMBER(SEARCH(B$2,'3A. In-Kind Labor '!$F33))=TRUE,('3A. In-Kind Labor '!$E33/COUNTA(_xlfn.TEXTSPLIT('3A. In-Kind Labor '!$F33,";"))),0)+IF(ISNUMBER(SEARCH(B$2,'3B. In-Kind Non-Labor'!$F34))=TRUE,('3B. In-Kind Non-Labor'!$E34/COUNTA(_xlfn.TEXTSPLIT('3B. In-Kind Non-Labor'!$F34,";"))),0) -> 0 | C54: =IF(ISNUMBER(SEARCH(C$2,'3A. In-Kind Labor '!$F33))=TRUE,('3A. In-Kind Labor '!$E33/COUNTA(_xlfn.TEXTSPLIT('3A. In-Kind Labor '!$F33,";"))),0)+IF(ISNUMBER(SEARCH(C$2,'3B. In-Kind Non-Labor'!$F34))=TRUE,('3B. In-Kind Non-Labor'!$E34/COUNTA(_xlfn.TEXTSPLIT('3B. In-Kind Non-Labor'!$F34,";"))),0) -> 0 | E54: =IF(ISNUMBER(SEARCH(E$2,'3A. In-Kind Labor '!$G33))=TRUE,('3A. In-Kind Labor '!$E33/COUNTA(_xlfn.TEXTSPLIT('3A. In-Kind Labor '!$G33,";"))),0)+IF(ISNUMBER(SEARCH(E$2,'3B. In-Kind Non-Labor'!$G34))=TRUE,('3B. In-Kind Non-Labor'!$E34/COUNTA(_xlfn.TEXTSPLIT('3B. In-Kind Non-Labor'!$G34,";"))),0) -> 0 | F54: =IF(ISNUMBER(SEARCH(F$2,'3A. In-Kind Labor '!$G33))=TRUE,('3A. In-Kind Labor '!$E33/COUNTA(_xlfn.TEXTSPLIT('3A. In-Kind Labor '!$G33,";"))),0)+IF(ISNUMBER(SEARCH(F$2,'3B. In-Kind Non-Labor'!$G34))=TRUE,('3B. In-Kind Non-Labor'!$E34/COUNTA(_xlfn.TEXTSPLIT('3B. In-Kind Non-Labor'!$G34,";"))),0) -> 0 | G54: =IF(ISNUMBER(SEARCH(G$2,'3A. In-Kind Labor '!$G33))=TRUE,('3A. In-Kind Labor '!$E33/COUNTA(_xlfn.TEXTSPLIT('3A. In-Kind Labor '!$G33,";"))),0)+IF(ISNUMBER(SEARCH(G$2,'3B. In-Kind Non-Labor'!$G34))=TRUE,('3B. In-Kind Non-Labor'!$E34/COUNTA(_xlfn.TEXTSPLIT('3B. In-Kind Non-Labor'!$G34,";"))),0) -> 0 | H54: =IF(ISNUMBER(SEARCH(H$2,'3A. In-Kind Labor '!$G33))=TRUE,('3A. In-Kind Labor '!$E33/COUNTA(_xlfn.TEXTSPLIT('3A. In-Kind Labor '!$G33,";"))),0)+IF(ISNUMBER(SEARCH(H$2,'3B. In-Kind Non-Labor'!$G34))=TRUE,('3B. In-Kind Non-Labor'!$E34/COUNTA(_xlfn.TEXTSPLIT('3B. In-Kind Non-Labor'!$G34,";"))),0) -> 0
A55: =IF(ISNUMBER(SEARCH(A$2,'3A. In-Kind Labor '!$F34))=TRUE,('3A. In-Kind Labor '!$E34/COUNTA(_xlfn.TEXTSPLIT('3A. In-Kind Labor '!$F34,";"))),0)+IF(ISNUMBER(SEARCH(A$2,'3B. In-Kind Non-Labor'!$F35))=TRUE,('3B. In-Kind Non-Labor'!$E35/COUNTA(_xlfn.TEXTSPLIT('3B. In-Kind Non-Labor'!$F35,";"))),0) -> 0 | B55: =IF(ISNUMBER(SEARCH(B$2,'3A. In-Kind Labor '!$F34))=TRUE,('3A. In-Kind Labor '!$E34/COUNTA(_xlfn.TEXTSPLIT('3A. In-Kind Labor '!$F34,";"))),0)+IF(ISNUMBER(SEARCH(B$2,'3B. In-Kind Non-Labor'!$F35))=TRUE,('3B. In-Kind Non-Labor'!$E35/COUNTA(_xlfn.TEXTSPLIT('3B. In-Kind Non-Labor'!$F35,";"))),0) -> 0 | C55: =IF(ISNUMBER(SEARCH(C$2,'3A. In-Kind Labor '!$F34))=TRUE,('3A. In-Kind Labor '!$E34/COUNTA(_xlfn.TEXTSPLIT('3A. In-Kind Labor '!$F34,";"))),0)+IF(ISNUMBER(SEARCH(C$2,'3B. In-Kind Non-Labor'!$F35))=TRUE,('3B. In-Kind Non-Labor'!$E35/COUNTA(_xlfn.TEXTSPLIT('3B. In-Kind Non-Labor'!$F35,";"))),0) -> 0 | E55: =IF(ISNUMBER(SEARCH(E$2,'3A. In-Kind Labor '!$G34))=TRUE,('3A. In-Kind Labor '!$E34/COUNTA(_xlfn.TEXTSPLIT('3A. In-Kind Labor '!$G34,";"))),0)+IF(ISNUMBER(SEARCH(E$2,'3B. In-Kind Non-Labor'!$G35))=TRUE,('3B. In-Kind Non-Labor'!$E35/COUNTA(_xlfn.TEXTSPLIT('3B. In-Kind Non-Labor'!$G35,";"))),0) -> 0 | F55: =IF(ISNUMBER(SEARCH(F$2,'3A. In-Kind Labor '!$G34))=TRUE,('3A. In-Kind Labor '!$E34/COUNTA(_xlfn.TEXTSPLIT('3A. In-Kind Labor '!$G34,";"))),0)+IF(ISNUMBER(SEARCH(F$2,'3B. In-Kind Non-Labor'!$G35))=TRUE,('3B. In-Kind Non-Labor'!$E35/COUNTA(_xlfn.TEXTSPLIT('3B. In-Kind Non-Labor'!$G35,";"))),0) -> 0 | G55: =IF(ISNUMBER(SEARCH(G$2,'3A. In-Kind Labor '!$G34))=TRUE,('3A. In-Kind Labor '!$E34/COUNTA(_xlfn.TEXTSPLIT('3A. In-Kind Labor '!$G34,";"))),0)+IF(ISNUMBER(SEARCH(G$2,'3B. In-Kind Non-Labor'!$G35))=TRUE,('3B. In-Kind Non-Labor'!$E35/COUNTA(_xlfn.TEXTSPLIT('3B. In-Kind Non-Labor'!$G35,";"))),0) -> 0 | H55: =IF(ISNUMBER(SEARCH(H$2,'3A. In-Kind Labor '!$G34))=TRUE,('3A. In-Kind Labor '!$E34/COUNTA(_xlfn.TEXTSPLIT('3A. In-Kind Labor '!$G34,";"))),0)+IF(ISNUMBER(SEARCH(H$2,'3B. In-Kind Non-Labor'!$G35))=TRUE,('3B. In-Kind Non-Labor'!$E35/COUNTA(_xlfn.TEXTSPLIT('3B. In-Kind Non-Labor'!$G35,";"))),0) -> 0
A56: =IF(ISNUMBER(SEARCH(A$2,'3A. In-Kind Labor '!$F35))=TRUE,('3A. In-Kind Labor '!$E35/COUNTA(_xlfn.TEXTSPLIT('3A. In-Kind Labor '!$F35,";"))),0)+IF(ISNUMBER(SEARCH(A$2,'3B. In-Kind Non-Labor'!$F36))=TRUE,('3B. In-Kind Non-Labor'!$E36/COUNTA(_xlfn.TEXTSPLIT('3B. In-Kind Non-Labor'!$F36,";"))),0) -> 0 | B56: =IF(ISNUMBER(SEARCH(B$2,'3A. In-Kind Labor '!$F35))=TRUE,('3A. In-Kind Labor '!$E35/COUNTA(_xlfn.TEXTSPLIT('3A. In-Kind Labor '!$F35,";"))),0)+IF(ISNUMBER(SEARCH(B$2,'3B. In-Kind Non-Labor'!$F36))=TRUE,('3B. In-Kind Non-Labor'!$E36/COUNTA(_xlfn.TEXTSPLIT('3B. In-Kind Non-Labor'!$F36,";"))),0) -> 0 | C56: =IF(ISNUMBER(SEARCH(C$2,'3A. In-Kind Labor '!$F35))=TRUE,('3A. In-Kind Labor '!$E35/COUNTA(_xlfn.TEXTSPLIT('3A. In-Kind Labor '!$F35,";"))),0)+IF(ISNUMBER(SEARCH(C$2,'3B. In-Kind Non-Labor'!$F36))=TRUE,('3B. In-Kind Non-Labor'!$E36/COUNTA(_xlfn.TEXTSPLIT('3B. In-Kind Non-Labor'!$F36,";"))),0) -> 0 | E56: =IF(ISNUMBER(SEARCH(E$2,'3A. In-Kind Labor '!$G35))=TRUE,('3A. In-Kind Labor '!$E35/COUNTA(_xlfn.TEXTSPLIT('3A. In-Kind Labor '!$G35,";"))),0)+IF(ISNUMBER(SEARCH(E$2,'3B. In-Kind Non-Labor'!$G36))=TRUE,('3B. In-Kind Non-Labor'!$E36/COUNTA(_xlfn.TEXTSPLIT('3B. In-Kind Non-Labor'!$G36,";"))),0) -> 0 | F56: =IF(ISNUMBER(SEARCH(F$2,'3A. In-Kind Labor '!$G35))=TRUE,('3A. In-Kind Labor '!$E35/COUNTA(_xlfn.TEXTSPLIT('3A. In-Kind Labor '!$G35,";"))),0)+IF(ISNUMBER(SEARCH(F$2,'3B. In-Kind Non-Labor'!$G36))=TRUE,('3B. In-Kind Non-Labor'!$E36/COUNTA(_xlfn.TEXTSPLIT('3B. In-Kind Non-Labor'!$G36,";"))),0) -> 0 | G56: =IF(ISNUMBER(SEARCH(G$2,'3A. In-Kind Labor '!$G35))=TRUE,('3A. In-Kind Labor '!$E35/COUNTA(_xlfn.TEXTSPLIT('3A. In-Kind Labor '!$G35,";"))),0)+IF(ISNUMBER(SEARCH(G$2,'3B. In-Kind Non-Labor'!$G36))=TRUE,('3B. In-Kind Non-Labor'!$E36/COUNTA(_xlfn.TEXTSPLIT('3B. In-Kind Non-Labor'!$G36,";"))),0) -> 0 | H56: =IF(ISNUMBER(SEARCH(H$2,'3A. In-Kind Labor '!$G35))=TRUE,('3A. In-Kind Labor '!$E35/COUNTA(_xlfn.TEXTSPLIT('3A. In-Kind Labor '!$G35,";"))),0)+IF(ISNUMBER(SEARCH(H$2,'3B. In-Kind Non-Labor'!$G36))=TRUE,('3B. In-Kind Non-Labor'!$E36/COUNTA(_xlfn.TEXTSPLIT('3B. In-Kind Non-Labor'!$G36,";"))),0) -> 0
A58: Consultants (Tab 7)- Allocation by Strategy | E58: Consultants (Tab 7)- Allocation by Topic
A59: Data and Surveillance | B59: Collaborations and Partnerships | C59: Assessment and Evaluation | E59: Adverse Childhood Experiences (ACEs) | F59: Transportation Safety | G59: Traumatic Brain Injury | H59: Other Topic (please specify in comments)
A60: =IF(ISNUMBER(SEARCH(A$2,'7. Consultant Costs'!$D6))=TRUE,('7. Consultant Costs'!$C6/COUNTA(_xlfn.TEXTSPLIT('7. Consultant Costs'!$D6,";"))),"") ->  | B60: =IF(ISNUMBER(SEARCH(B$2,'7. Consultant Costs'!$D6))=TRUE,('7. Consultant Costs'!$C6/COUNTA(_xlfn.TEXTSPLIT('7. Consultant Costs'!$D6,";"))),"") ->  | C60: =IF(ISNUMBER(SEARCH(C$2,'7. Consultant Costs'!$D6))=TRUE,('7. Consultant Costs'!$C6/COUNTA(_xlfn.TEXTSPLIT('7. Consultant Costs'!$D6,";"))),"") ->  | E60: =IF(ISNUMBER(SEARCH(E$2,'7. Consultant Costs'!$E6))=TRUE,('7. Consultant Costs'!$C6/COUNTA(_xlfn.TEXTSPLIT('7. Consultant Costs'!$E6,";"))),"") ->  | F60: =IF(ISNUMBER(SEARCH(F$2,'7. Consultant Costs'!$E6))=TRUE,('7. Consultant Costs'!$C6/COUNTA(_xlfn.TEXTSPLIT('7. Consultant Costs'!$E6,";"))),"") ->  | G60: =IF(ISNUMBER(SEARCH(G$2,'7. Consultant Costs'!$E6))=TRUE,('7. Consultant Costs'!$C6/COUNTA(_xlfn.TEXTSPLIT('7. Consultant Costs'!$E6,";"))),"") ->  | H60: =IF(ISNUMBER(SEARCH(H$2,'7. Consultant Costs'!$E6))=TRUE,('7. Consultant Costs'!$C6/COUNTA(_xlfn.TEXTSPLIT('7. Consultant Costs'!$E6,";"))),"") -> 
A61: =IF(ISNUMBER(SEARCH(A$2,'7. Consultant Costs'!$D7))=TRUE,('7. Consultant Costs'!$C7/COUNTA(_xlfn.TEXTSPLIT('7. Consultant Costs'!$D7,";"))),"") ->  | B61: =IF(ISNUMBER(SEARCH(B$2,'7. Consultant Costs'!$D7))=TRUE,('7. Consultant Costs'!$C7/COUNTA(_xlfn.TEXTSPLIT('7. Consultant Costs'!$D7,";"))),"") ->  | C61: =IF(ISNUMBER(SEARCH(C$2,'7. Consultant Costs'!$D7))=TRUE,('7. Consultant Costs'!$C7/COUNTA(_xlfn.TEXTSPLIT('7. Consultant Costs'!$D7,";"))),"") ->  | E61: =IF(ISNUMBER(SEARCH(E$2,'7. Consultant Costs'!$E7))=TRUE,('7. Consultant Costs'!$C7/COUNTA(_xlfn.TEXTSPLIT('7. Consultant Costs'!$E7,";"))),"") ->  | F61: =IF(ISNUMBER(SEARCH(F$2,'7. Consultant Costs'!$E7))=TRUE,('7. Consultant Costs'!$C7/COUNTA(_xlfn.TEXTSPLIT('7. Consultant Costs'!$E7,";"))),"") ->  | G61: =IF(ISNUMBER(SEARCH(G$2,'7. Consultant Costs'!$E7))=TRUE,('7. Consultant Costs'!$C7/COUNTA(_xlfn.TEXTSPLIT('7. Consultant Costs'!$E7,";"))),"") ->  | H61: =IF(ISNUMBER(SEARCH(H$2,'7. Consultant Costs'!$E7))=TRUE,('7. Consultant Costs'!$C7/COUNTA(_xlfn.TEXTSPLIT('7. Consultant Costs'!$E7,";"))),"") -> 
A62: =IF(ISNUMBER(SEARCH(A$2,'7. Consultant Costs'!$D8))=TRUE,('7. Consultant Costs'!$C8/COUNTA(_xlfn.TEXTSPLIT('7. Consultant Costs'!$D8,";"))),"") ->  | B62: =IF(ISNUMBER(SEARCH(B$2,'7. Consultant Costs'!$D8))=TRUE,('7. Consultant Costs'!$C8/COUNTA(_xlfn.TEXTSPLIT('7. Consultant Costs'!$D8,";"))),"") ->  | C62: =IF(ISNUMBER(SEARCH(C$2,'7. Consultant Costs'!$D8))=TRUE,('7. Consultant Costs'!$C8/COUNTA(_xlfn.TEXTSPLIT('7. Consultant Costs'!$D8,";"))),"") ->  | E62: =IF(ISNUMBER(SEARCH(E$2,'7. Consultant Costs'!$E8))=TRUE,('7. Consultant Costs'!$C8/COUNTA(_xlfn.TEXTSPLIT('7. Consultant Costs'!$E8,";"))),"") ->  | F62: =IF(ISNUMBER(SEARCH(F$2,'7. Consultant Costs'!$E8))=TRUE,('7. Consultant Costs'!$C8/COUNTA(_xlfn.TEXTSPLIT('7. Consultant Costs'!$E8,";"))),"") ->  | G62: =IF(ISNUMBER(SEARCH(G$2,'7. Consultant Costs'!$E8))=TRUE,('7. Consultant Costs'!$C8/COUNTA(_xlfn.TEXTSPLIT('7. Consultant Costs'!$E8,";"))),"") ->  | H62: =IF(ISNUMBER(SEARCH(H$2,'7. Consultant Costs'!$E8))=TRUE,('7. Consultant Costs'!$C8/COUNTA(_xlfn.TEXTSPLIT('7. Consultant Costs'!$E8,";"))),"") -> 
A63: =IF(ISNUMBER(SEARCH(A$2,'7. Consultant Costs'!$D9))=TRUE,('7. Consultant Costs'!$C9/COUNTA(_xlfn.TEXTSPLIT('7. Consultant Costs'!$D9,";"))),"") ->  | B63: =IF(ISNUMBER(SEARCH(B$2,'7. Consultant Costs'!$D9))=TRUE,('7. Consultant Costs'!$C9/COUNTA(_xlfn.TEXTSPLIT('7. Consultant Costs'!$D9,";"))),"") ->  | C63: =IF(ISNUMBER(SEARCH(C$2,'7. Consultant Costs'!$D9))=TRUE,('7. Consultant Costs'!$C9/COUNTA(_xlfn.TEXTSPLIT('7. Consultant Costs'!$D9,";"))),"") ->  | E63: =IF(ISNUMBER(SEARCH(E$2,'7. Consultant Costs'!$E9))=TRUE,('7. Consultant Costs'!$C9/COUNTA(_xlfn.TEXTSPLIT('7. Consultant Costs'!$E9,";"))),"") ->  | F63: =IF(ISNUMBER(SEARCH(F$2,'7. Consultant Costs'!$E9))=TRUE,('7. Consultant Costs'!$C9/COUNTA(_xlfn.TEXTSPLIT('7. Consultant Costs'!$E9,";"))),"") ->  | G63: =IF(ISNUMBER(SEARCH(G$2,'7. Consultant Costs'!$E9))=TRUE,('7. Consultant Costs'!$C9/COUNTA(_xlfn.TEXTSPLIT('7. Consultant Costs'!$E9,";"))),"") ->  | H63: =IF(ISNUMBER(SEARCH(H$2,'7. Consultant Costs'!$E9))=TRUE,('7. Consultant Costs'!$C9/COUNTA(_xlfn.TEXTSPLIT('7. Consultant Costs'!$E9,";"))),"") -> 
A64: =IF(ISNUMBER(SEARCH(A$2,'7. Consultant Costs'!$D10))=TRUE,('7. Consultant Costs'!$C10/COUNTA(_xlfn.TEXTSPLIT('7. Consultant Costs'!$D10,";"))),"") ->  | B64: =IF(ISNUMBER(SEARCH(B$2,'7. Consultant Costs'!$D10))=TRUE,('7. Consultant Costs'!$C10/COUNTA(_xlfn.TEXTSPLIT('7. Consultant Costs'!$D10,";"))),"") ->  | C64: =IF(ISNUMBER(SEARCH(C$2,'7. Consultant Costs'!$D10))=TRUE,('7. Consultant Costs'!$C10/COUNTA(_xlfn.TEXTSPLIT('7. Consultant Costs'!$D10,";"))),"") ->  | E64: =IF(ISNUMBER(SEARCH(E$2,'7. Consultant Costs'!$E10))=TRUE,('7. Consultant Costs'!$C10/COUNTA(_xlfn.TEXTSPLIT('7. Consultant Costs'!$E10,";"))),"") ->  | F64: =IF(ISNUMBER(SEARCH(F$2,'7. Consultant Costs'!$E10))=TRUE,('7. Consultant Costs'!$C10/COUNTA(_xlfn.TEXTSPLIT('7. Consultant Costs'!$E10,";"))),"") ->  | G64: =IF(ISNUMBER(SEARCH(G$2,'7. Consultant Costs'!$E10))=TRUE,('7. Consultant Costs'!$C10/COUNTA(_xlfn.TEXTSPLIT('7. Consultant Costs'!$E10,";"))),"") ->  | H64: =IF(ISNUMBER(SEARCH(H$2,'7. Consultant Costs'!$E10))=TRUE,('7. Consultant Costs'!$C10/COUNTA(_xlfn.TEXTSPLIT('7. Consultant Costs'!$E10,";"))),"") -> 
A65: =IF(ISNUMBER(SEARCH(A$2,'7. Consultant Costs'!$D11))=TRUE,('7. Consultant Costs'!$C11/COUNTA(_xlfn.TEXTSPLIT('7. Consultant Costs'!$D11,";"))),"") ->  | B65: =IF(ISNUMBER(SEARCH(B$2,'7. Consultant Costs'!$D11))=TRUE,('7. Consultant Costs'!$C11/COUNTA(_xlfn.TEXTSPLIT('7. Consultant Costs'!$D11,";"))),"") ->  | C65: =IF(ISNUMBER(SEARCH(C$2,'7. Consultant Costs'!$D11))=TRUE,('7. Consultant Costs'!$C11/COUNTA(_xlfn.TEXTSPLIT('7. Consultant Costs'!$D11,";"))),"") ->  | E65: =IF(ISNUMBER(SEARCH(E$2,'7. Consultant Costs'!$E11))=TRUE,('7. Consultant Costs'!$C11/COUNTA(_xlfn.TEXTSPLIT('7. Consultant Costs'!$E11,";"))),"") ->  | F65: =IF(ISNUMBER(SEARCH(F$2,'7. Consultant Costs'!$E11))=TRUE,('7. Consultant Costs'!$C11/COUNTA(_xlfn.TEXTSPLIT('7. Consultant Costs'!$E11,";"))),"") ->  | G65: =IF(ISNUMBER(SEARCH(G$2,'7. Consultant Costs'!$E11))=TRUE,('7. Consultant Costs'!$C11/COUNTA(_xlfn.TEXTSPLIT('7. Consultant Costs'!$E11,";"))),"") ->  | H65: =IF(ISNUMBER(SEARCH(H$2,'7. Consultant Costs'!$E11))=TRUE,('7. Consultant Costs'!$C11/COUNTA(_xlfn.TEXTSPLIT('7. Consultant Costs'!$E11,";"))),"") -> 
A66: =IF(ISNUMBER(SEARCH(A$2,'7. Consultant Costs'!$D12))=TRUE,('7. Consultant Costs'!$C12/COUNTA(_xlfn.TEXTSPLIT('7. Consultant Costs'!$D12,";"))),"") ->  | B66: =IF(ISNUMBER(SEARCH(B$2,'7. Consultant Costs'!$D12))=TRUE,('7. Consultant Costs'!$C12/COUNTA(_xlfn.TEXTSPLIT('7. Consultant Costs'!$D12,";"))),"") ->  | C66: =IF(ISNUMBER(SEARCH(C$2,'7. Consultant Costs'!$D12))=TRUE,('7. Consultant Costs'!$C12/COUNTA(_xlfn.TEXTSPLIT('7. Consultant Costs'!$D12,";"))),"") ->  | E66: =IF(ISNUMBER(SEARCH(E$2,'7. Consultant Costs'!$E12))=TRUE,('7. Consultant Costs'!$C12/COUNTA(_xlfn.TEXTSPLIT('7. Consultant Costs'!$E12,";"))),"") ->  | F66: =IF(ISNUMBER(SEARCH(F$2,'7. Consultant Costs'!$E12))=TRUE,('7. Consultant Costs'!$C12/COUNTA(_xlfn.TEXTSPLIT('7. Consultant Costs'!$E12,";"))),"") ->  | G66: =IF(ISNUMBER(SEARCH(G$2,'7. Consultant Costs'!$E12))=TRUE,('7. Consultant Costs'!$C12/COUNTA(_xlfn.TEXTSPLIT('7. Consultant Costs'!$E12,";"))),"") ->  | H66: =IF(ISNUMBER(SEARCH(H$2,'7. Consultant Costs'!$E12))=TRUE,('7. Consultant Costs'!$C12/COUNTA(_xlfn.TEXTSPLIT('7. Consultant Costs'!$E12,";"))),"") -> 
A67: =IF(ISNUMBER(SEARCH(A$2,'7. Consultant Costs'!$D13))=TRUE,('7. Consultant Costs'!$C13/COUNTA(_xlfn.TEXTSPLIT('7. Consultant Costs'!$D13,";"))),"") ->  | B67: =IF(ISNUMBER(SEARCH(B$2,'7. Consultant Costs'!$D13))=TRUE,('7. Consultant Costs'!$C13/COUNTA(_xlfn.TEXTSPLIT('7. Consultant Costs'!$D13,";"))),"") ->  | C67: =IF(ISNUMBER(SEARCH(C$2,'7. Consultant Costs'!$D13))=TRUE,('7. Consultant Costs'!$C13/COUNTA(_xlfn.TEXTSPLIT('7. Consultant Costs'!$D13,";"))),"") ->  | E67: =IF(ISNUMBER(SEARCH(E$2,'7. Consultant Costs'!$E13))=TRUE,('7. Consultant Costs'!$C13/COUNTA(_xlfn.TEXTSPLIT('7. Consultant Costs'!$E13,";"))),"") ->  | F67: =IF(ISNUMBER(SEARCH(F$2,'7. Consultant Costs'!$E13))=TRUE,('7. Consultant Costs'!$C13/COUNTA(_xlfn.TEXTSPLIT('7. Consultant Costs'!$E13,";"))),"") ->  | G67: =IF(ISNUMBER(SEARCH(G$2,'7. Consultant Costs'!$E13))=TRUE,('7. Consultant Costs'!$C13/COUNTA(_xlfn.TEXTSPLIT('7. Consultant Costs'!$E13,";"))),"") ->  | H67: =IF(ISNUMBER(SEARCH(H$2,'7. Consultant Costs'!$E13))=TRUE,('7. Consultant Costs'!$C13/COUNTA(_xlfn.TEXTSPLIT('7. Consultant Costs'!$E13,";"))),"") -> 
A68: =IF(ISNUMBER(SEARCH(A$2,'7. Consultant Costs'!$D14))=TRUE,('7. Consultant Costs'!$C14/COUNTA(_xlfn.TEXTSPLIT('7. Consultant Costs'!$D14,";"))),"") ->  | B68: =IF(ISNUMBER(SEARCH(B$2,'7. Consultant Costs'!$D14))=TRUE,('7. Consultant Costs'!$C14/COUNTA(_xlfn.TEXTSPLIT('7. Consultant Costs'!$D14,";"))),"") ->  | C68: =IF(ISNUMBER(SEARCH(C$2,'7. Consultant Costs'!$D14))=TRUE,('7. Consultant Costs'!$C14/COUNTA(_xlfn.TEXTSPLIT('7. Consultant Costs'!$D14,";"))),"") ->  | E68: =IF(ISNUMBER(SEARCH(E$2,'7. Consultant Costs'!$E14))=TRUE,('7. Consultant Costs'!$C14/COUNTA(_xlfn.TEXTSPLIT('7. Consultant Costs'!$E14,";"))),"") ->  | F68: =IF(ISNUMBER(SEARCH(F$2,'7. Consultant Costs'!$E14))=TRUE,('7. Consultant Costs'!$C14/COUNTA(_xlfn.TEXTSPLIT('7. Consultant Costs'!$E14,";"))),"") ->  | G68: =IF(ISNUMBER(SEARCH(G$2,'7. Consultant Costs'!$E14))=TRUE,('7. Consultant Costs'!$C14/COUNTA(_xlfn.TEXTSPLIT('7. Consultant Costs'!$E14,";"))),"") ->  | H68: =IF(ISNUMBER(SEARCH(H$2,'7. Consultant Costs'!$E14))=TRUE,('7. Consultant Costs'!$C14/COUNTA(_xlfn.TEXTSPLIT('7. Consultant Costs'!$E14,";"))),"") -> 
A69: =IF(ISNUMBER(SEARCH(A$2,'7. Consultant Costs'!$D15))=TRUE,('7. Consultant Costs'!$C15/COUNTA(_xlfn.TEXTSPLIT('7. Consultant Costs'!$D15,";"))),"") ->  | B69: =IF(ISNUMBER(SEARCH(B$2,'7. Consultant Costs'!$D15))=TRUE,('7. Consultant Costs'!$C15/COUNTA(_xlfn.TEXTSPLIT('7. Consultant Costs'!$D15,";"))),"") ->  | C69: =IF(ISNUMBER(SEARCH(C$2,'7. Consultant Costs'!$D15))=TRUE,('7. Consultant Costs'!$C15/COUNTA(_xlfn.TEXTSPLIT('7. Consultant Costs'!$D15,";"))),"") ->  | E69: =IF(ISNUMBER(SEARCH(E$2,'7. Consultant Costs'!$E15))=TRUE,('7. Consultant Costs'!$C15/COUNTA(_xlfn.TEXTSPLIT('7. Consultant Costs'!$E15,";"))),"") ->  | F69: =IF(ISNUMBER(SEARCH(F$2,'7. Consultant Costs'!$E15))=TRUE,('7. Consultant Costs'!$C15/COUNTA(_xlfn.TEXTSPLIT('7. Consultant Costs'!$E15,";"))),"") ->  | G69: =IF(ISNUMBER(SEARCH(G$2,'7. Consultant Costs'!$E15))=TRUE,('7. Consultant Costs'!$C15/COUNTA(_xlfn.TEXTSPLIT('7. Consultant Costs'!$E15,";"))),"") ->  | H69: =IF(ISNUMBER(SEARCH(H$2,'7. Consultant Costs'!$E15))=TRUE,('7. Consultant Costs'!$C15/COUNTA(_xlfn.TEXTSPLIT('7. Consultant Costs'!$E15,";"))),"") -> 
A70: =IF(ISNUMBER(SEARCH(A$2,'7. Consultant Costs'!$D16))=TRUE,('7. Consultant Costs'!$C16/COUNTA(_xlfn.TEXTSPLIT('7. Consultant Costs'!$D16,";"))),"") ->  | B70: =IF(ISNUMBER(SEARCH(B$2,'7. Consultant Costs'!$D16))=TRUE,('7. Consultant Costs'!$C16/COUNTA(_xlfn.TEXTSPLIT('7. Consultant Costs'!$D16,";"))),"") ->  | C70: =IF(ISNUMBER(SEARCH(C$2,'7. Consultant Costs'!$D16))=TRUE,('7. Consultant Costs'!$C16/COUNTA(_xlfn.TEXTSPLIT('7. Consultant Costs'!$D16,";"))),"") ->  | E70: =IF(ISNUMBER(SEARCH(E$2,'7. Consultant Costs'!$E16))=TRUE,('7. Consultant Costs'!$C16/COUNTA(_xlfn.TEXTSPLIT('7. Consultant Costs'!$E16,";"))),"") ->  | F70: =IF(ISNUMBER(SEARCH(F$2,'7. Consultant Costs'!$E16))=TRUE,('7. Consultant Costs'!$C16/COUNTA(_xlfn.TEXTSPLIT('7. Consultant Costs'!$E16,";"))),"") ->  | G70: =IF(ISNUMBER(SEARCH(G$2,'7. Consultant Costs'!$E16))=TRUE,('7. Consultant Costs'!$C16/COUNTA(_xlfn.TEXTSPLIT('7. Consultant Costs'!$E16,";"))),"") ->  | H70: =IF(ISNUMBER(SEARCH(H$2,'7. Consultant Costs'!$E16))=TRUE,('7. Consultant Costs'!$C16/COUNTA(_xlfn.TEXTSPLIT('7. Consultant Costs'!$E16,";"))),"") -> 
A71: =IF(ISNUMBER(SEARCH(A$2,'7. Consultant Costs'!$D17))=TRUE,('7. Consultant Costs'!$C17/COUNTA(_xlfn.TEXTSPLIT('7. Consultant Costs'!$D17,";"))),"") ->  | B71: =IF(ISNUMBER(SEARCH(B$2,'7. Consultant Costs'!$D17))=TRUE,('7. Consultant Costs'!$C17/COUNTA(_xlfn.TEXTSPLIT('7. Consultant Costs'!$D17,";"))),"") ->  | C71: =IF(ISNUMBER(SEARCH(C$2,'7. Consultant Costs'!$D17))=TRUE,('7. Consultant Costs'!$C17/COUNTA(_xlfn.TEXTSPLIT('7. Consultant Costs'!$D17,";"))),"") ->  | E71: =IF(ISNUMBER(SEARCH(E$2,'7. Consultant Costs'!$E17))=TRUE,('7. Consultant Costs'!$C17/COUNTA(_xlfn.TEXTSPLIT('7. Consultant Costs'!$E17,";"))),"") ->  | F71: =IF(ISNUMBER(SEARCH(F$2,'7. Consultant Costs'!$E17))=TRUE,('7. Consultant Costs'!$C17/COUNTA(_xlfn.TEXTSPLIT('7. Consultant Costs'!$E17,";"))),"") ->  | G71: =IF(ISNUMBER(SEARCH(G$2,'7. Consultant Costs'!$E17))=TRUE,('7. Consultant Costs'!$C17/COUNTA(_xlfn.TEXTSPLIT('7. Consultant Costs'!$E17,";"))),"") ->  | H71: =IF(ISNUMBER(SEARCH(H$2,'7. Consultant Costs'!$E17))=TRUE,('7. Consultant Costs'!$C17/COUNTA(_xlfn.TEXTSPLIT('7. Consultant Costs'!$E17,";"))),"") -> 
A72: =IF(ISNUMBER(SEARCH(A$2,'7. Consultant Costs'!$D18))=TRUE,('7. Consultant Costs'!$C18/COUNTA(_xlfn.TEXTSPLIT('7. Consultant Costs'!$D18,";"))),"") ->  | B72: =IF(ISNUMBER(SEARCH(B$2,'7. Consultant Costs'!$D18))=TRUE,('7. Consultant Costs'!$C18/COUNTA(_xlfn.TEXTSPLIT('7. Consultant Costs'!$D18,";"))),"") ->  | C72: =IF(ISNUMBER(SEARCH(C$2,'7. Consultant Costs'!$D18))=TRUE,('7. Consultant Costs'!$C18/COUNTA(_xlfn.TEXTSPLIT('7. Consultant Costs'!$D18,";"))),"") ->  | E72: =IF(ISNUMBER(SEARCH(E$2,'7. Consultant Costs'!$E18))=TRUE,('7. Consultant Costs'!$C18/COUNTA(_xlfn.TEXTSPLIT('7. Consultant Costs'!$E18,";"))),"") ->  | F72: =IF(ISNUMBER(SEARCH(F$2,'7. Consultant Costs'!$E18))=TRUE,('7. Consultant Costs'!$C18/COUNTA(_xlfn.TEXTSPLIT('7. Consultant Costs'!$E18,";"))),"") ->  | G72: =IF(ISNUMBER(SEARCH(G$2,'7. Consultant Costs'!$E18))=TRUE,('7. Consultant Costs'!$C18/COUNTA(_xlfn.TEXTSPLIT('7. Consultant Costs'!$E18,";"))),"") ->  | H72: =IF(ISNUMBER(SEARCH(H$2,'7. Consultant Costs'!$E18))=TRUE,('7. Consultant Costs'!$C18/COUNTA(_xlfn.TEXTSPLIT('7. Consultant Costs'!$E18,";"))),"") -> 
A73: =IF(ISNUMBER(SEARCH(A$2,'7. Consultant Costs'!$D19))=TRUE,('7. Consultant Costs'!$C19/COUNTA(_xlfn.TEXTSPLIT('7. Consultant Costs'!$D19,";"))),"") ->  | B73: =IF(ISNUMBER(SEARCH(B$2,'7. Consultant Costs'!$D19))=TRUE,('7. Consultant Costs'!$C19/COUNTA(_xlfn.TEXTSPLIT('7. Consultant Costs'!$D19,";"))),"") ->  | C73: =IF(ISNUMBER(SEARCH(C$2,'7. Consultant Costs'!$D19))=TRUE,('7. Consultant Costs'!$C19/COUNTA(_xlfn.TEXTSPLIT('7. Consultant Costs'!$D19,";"))),"") ->  | E73: =IF(ISNUMBER(SEARCH(E$2,'7. Consultant Costs'!$E19))=TRUE,('7. Consultant Costs'!$C19/COUNTA(_xlfn.TEXTSPLIT('7. Consultant Costs'!$E19,";"))),"") ->  | F73: =IF(ISNUMBER(SEARCH(F$2,'7. Consultant Costs'!$E19))=TRUE,('7. Consultant Costs'!$C19/COUNTA(_xlfn.TEXTSPLIT('7. Consultant Costs'!$E19,";"))),"") ->  | G73: =IF(ISNUMBER(SEARCH(G$2,'7. Consultant Costs'!$E19))=TRUE,('7. Consultant Costs'!$C19/COUNTA(_xlfn.TEXTSPLIT('7. Consultant Costs'!$E19,";"))),"") ->  | H73: =IF(ISNUMBER(SEARCH(H$2,'7. Consultant Costs'!$E19))=TRUE,('7. Consultant Costs'!$C19/COUNTA(_xlfn.TEXTSPLIT('7. Consultant Costs'!$E19,";"))),"") -> 
A74: =IF(ISNUMBER(SEARCH(A$2,'7. Consultant Costs'!$D20))=TRUE,('7. Consultant Costs'!$C20/COUNTA(_xlfn.TEXTSPLIT('7. Consultant Costs'!$D20,";"))),"") ->  | B74: =IF(ISNUMBER(SEARCH(B$2,'7. Consultant Costs'!$D20))=TRUE,('7. Consultant Costs'!$C20/COUNTA(_xlfn.TEXTSPLIT('7. Consultant Costs'!$D20,";"))),"") ->  | C74: =IF(ISNUMBER(SEARCH(C$2,'7. Consultant Costs'!$D20))=TRUE,('7. Consultant Costs'!$C20/COUNTA(_xlfn.TEXTSPLIT('7. Consultant Costs'!$D20,";"))),"") ->  | E74: =IF(ISNUMBER(SEARCH(E$2,'7. Consultant Costs'!$E20))=TRUE,('7. Consultant Costs'!$C20/COUNTA(_xlfn.TEXTSPLIT('7. Consultant Costs'!$E20,";"))),"") ->  | F74: =IF(ISNUMBER(SEARCH(F$2,'7. Consultant Costs'!$E20))=TRUE,('7. Consultant Costs'!$C20/COUNTA(_xlfn.TEXTSPLIT('7. Consultant Costs'!$E20,";"))),"") ->  | G74: =IF(ISNUMBER(SEARCH(G$2,'7. Consultant Costs'!$E20))=TRUE,('7. Consultant Costs'!$C20/COUNTA(_xlfn.TEXTSPLIT('7. Consultant Costs'!$E20,";"))),"") ->  | H74: =IF(ISNUMBER(SEARCH(H$2,'7. Consultant Costs'!$E20))=TRUE,('7. Consultant Costs'!$C20/COUNTA(_xlfn.TEXTSPLIT('7. Consultant Costs'!$E20,";"))),"") -> 
A75: =IF(ISNUMBER(SEARCH(A$2,'7. Consultant Costs'!$D21))=TRUE,('7. Consultant Costs'!$C21/COUNTA(_xlfn.TEXTSPLIT('7. Consultant Costs'!$D21,";"))),"") ->  | B75: =IF(ISNUMBER(SEARCH(B$2,'7. Consultant Costs'!$D21))=TRUE,('7. Consultant Costs'!$C21/COUNTA(_xlfn.TEXTSPLIT('7. Consultant Costs'!$D21,";"))),"") ->  | C75: =IF(ISNUMBER(SEARCH(C$2,'7. Consultant Costs'!$D21))=TRUE,('7. Consultant Costs'!$C21/COUNTA(_xlfn.TEXTSPLIT('7. Consultant Costs'!$D21,";"))),"") ->  | E75: =IF(ISNUMBER(SEARCH(E$2,'7. Consultant Costs'!$E21))=TRUE,('7. Consultant Costs'!$C21/COUNTA(_xlfn.TEXTSPLIT('7. Consultant Costs'!$E21,";"))),"") ->  | F75: =IF(ISNUMBER(SEARCH(F$2,'7. Consultant Costs'!$E21))=TRUE,('7. Consultant Costs'!$C21/COUNTA(_xlfn.TEXTSPLIT('7. Consultant Costs'!$E21,";"))),"") ->  | G75: =IF(ISNUMBER(SEARCH(G$2,'7. Consultant Costs'!$E21))=TRUE,('7. Consultant Costs'!$C21/COUNTA(_xlfn.TEXTSPLIT('7. Consultant Costs'!$E21,";"))),"") ->  | H75: =IF(ISNUMBER(SEARCH(H$2,'7. Consultant Costs'!$E21))=TRUE,('7. Consultant Costs'!$C21/COUNTA(_xlfn.TEXTSPLIT('7. Consultant Costs'!$E21,";"))),"") -> 
A76: =IF(ISNUMBER(SEARCH(A$2,'7. Consultant Costs'!$D22))=TRUE,('7. Consultant Costs'!$C22/COUNTA(_xlfn.TEXTSPLIT('7. Consultant Costs'!$D22,";"))),"") ->  | B76: =IF(ISNUMBER(SEARCH(B$2,'7. Consultant Costs'!$D22))=TRUE,('7. Consultant Costs'!$C22/COUNTA(_xlfn.TEXTSPLIT('7. Consultant Costs'!$D22,";"))),"") ->  | C76: =IF(ISNUMBER(SEARCH(C$2,'7. Consultant Costs'!$D22))=TRUE,('7. Consultant Costs'!$C22/COUNTA(_xlfn.TEXTSPLIT('7. Consultant Costs'!$D22,";"))),"") ->  | E76: =IF(ISNUMBER(SEARCH(E$2,'7. Consultant Costs'!$E22))=TRUE,('7. Consultant Costs'!$C22/COUNTA(_xlfn.TEXTSPLIT('7. Consultant Costs'!$E22,";"))),"") ->  | F76: =IF(ISNUMBER(SEARCH(F$2,'7. Consultant Costs'!$E22))=TRUE,('7. Consultant Costs'!$C22/COUNTA(_xlfn.TEXTSPLIT('7. Consultant Costs'!$E22,";"))),"") ->  | G76: =IF(ISNUMBER(SEARCH(G$2,'7. Consultant Costs'!$E22))=TRUE,('7. Consultant Costs'!$C22/COUNTA(_xlfn.TEXTSPLIT('7. Consultant Costs'!$E22,";"))),"") ->  | H76: =IF(ISNUMBER(SEARCH(H$2,'7. Consultant Costs'!$E22))=TRUE,('7. Consultant Costs'!$C22/COUNTA(_xlfn.TEXTSPLIT('7. Consultant Costs'!$E22,";"))),"") -> 
A77: =IF(ISNUMBER(SEARCH(A$2,'7. Consultant Costs'!$D23))=TRUE,('7. Consultant Costs'!$C23/COUNTA(_xlfn.TEXTSPLIT('7. Consultant Costs'!$D23,";"))),"") ->  | B77: =IF(ISNUMBER(SEARCH(B$2,'7. Consultant Costs'!$D23))=TRUE,('7. Consultant Costs'!$C23/COUNTA(_xlfn.TEXTSPLIT('7. Consultant Costs'!$D23,";"))),"") ->  | C77: =IF(ISNUMBER(SEARCH(C$2,'7. Consultant Costs'!$D23))=TRUE,('7. Consultant Costs'!$C23/COUNTA(_xlfn.TEXTSPLIT('7. Consultant Costs'!$D23,";"))),"") ->  | E77: =IF(ISNUMBER(SEARCH(E$2,'7. Consultant Costs'!$E23))=TRUE,('7. Consultant Costs'!$C23/COUNTA(_xlfn.TEXTSPLIT('7. Consultant Costs'!$E23,";"))),"") ->  | F77: =IF(ISNUMBER(SEARCH(F$2,'7. Consultant Costs'!$E23))=TRUE,('7. Consultant Costs'!$C23/COUNTA(_xlfn.TEXTSPLIT('7. Consultant Costs'!$E23,";"))),"") ->  | G77: =IF(ISNUMBER(SEARCH(G$2,'7. Consultant Costs'!$E23))=TRUE,('7. Consultant Costs'!$C23/COUNTA(_xlfn.TEXTSPLIT('7. Consultant Costs'!$E23,";"))),"") ->  | H77: =IF(ISNUMBER(SEARCH(H$2,'7. Consultant Costs'!$E23))=TRUE,('7. Consultant Costs'!$C23/COUNTA(_xlfn.TEXTSPLIT('7. Consultant Costs'!$E23,";"))),"") -> 
A78: =IF(ISNUMBER(SEARCH(A$2,'7. Consultant Costs'!$D24))=TRUE,('7. Consultant Costs'!$C24/COUNTA(_xlfn.TEXTSPLIT('7. Consultant Costs'!$D24,";"))),"") ->  | B78: =IF(ISNUMBER(SEARCH(B$2,'7. Consultant Costs'!$D24))=TRUE,('7. Consultant Costs'!$C24/COUNTA(_xlfn.TEXTSPLIT('7. Consultant Costs'!$D24,";"))),"") ->  | C78: =IF(ISNUMBER(SEARCH(C$2,'7. Consultant Costs'!$D24))=TRUE,('7. Consultant Costs'!$C24/COUNTA(_xlfn.TEXTSPLIT('7. Consultant Costs'!$D24,";"))),"") ->  | E78: =IF(ISNUMBER(SEARCH(E$2,'7. Consultant Costs'!$E24))=TRUE,('7. Consultant Costs'!$C24/COUNTA(_xlfn.TEXTSPLIT('7. Consultant Costs'!$E24,";"))),"") ->  | F78: =IF(ISNUMBER(SEARCH(F$2,'7. Consultant Costs'!$E24))=TRUE,('7. Consultant Costs'!$C24/COUNTA(_xlfn.TEXTSPLIT('7. Consultant Costs'!$E24,";"))),"") ->  | G78: =IF(ISNUMBER(SEARCH(G$2,'7. Consultant Costs'!$E24))=TRUE,('7. Consultant Costs'!$C24/COUNTA(_xlfn.TEXTSPLIT('7. Consultant Costs'!$E24,";"))),"") ->  | H78: =IF(ISNUMBER(SEARCH(H$2,'7. Consultant Costs'!$E24))=TRUE,('7. Consultant Costs'!$C24/COUNTA(_xlfn.TEXTSPLIT('7. Consultant Costs'!$E24,";"))),"") -> 
A79: =IF(ISNUMBER(SEARCH(A$2,'7. Consultant Costs'!$D25))=TRUE,('7. Consultant Costs'!$C25/COUNTA(_xlfn.TEXTSPLIT('7. Consultant Costs'!$D25,";"))),"") ->  | B79: =IF(ISNUMBER(SEARCH(B$2,'7. Consultant Costs'!$D25))=TRUE,('7. Consultant Costs'!$C25/COUNTA(_xlfn.TEXTSPLIT('7. Consultant Costs'!$D25,";"))),"") ->  | C79: =IF(ISNUMBER(SEARCH(C$2,'7. Consultant Costs'!$D25))=TRUE,('7. Consultant Costs'!$C25/COUNTA(_xlfn.TEXTSPLIT('7. Consultant Costs'!$D25,";"))),"") ->  | E79: =IF(ISNUMBER(SEARCH(E$2,'7. Consultant Costs'!$E25))=TRUE,('7. Consultant Costs'!$C25/COUNTA(_xlfn.TEXTSPLIT('7. Consultant Costs'!$E25,";"))),"") ->  | F79: =IF(ISNUMBER(SEARCH(F$2,'7. Consultant Costs'!$E25))=TRUE,('7. Consultant Costs'!$C25/COUNTA(_xlfn.TEXTSPLIT('7. Consultant Costs'!$E25,";"))),"") ->  | G79: =IF(ISNUMBER(SEARCH(G$2,'7. Consultant Costs'!$E25))=TRUE,('7. Consultant Costs'!$C25/COUNTA(_xlfn.TEXTSPLIT('7. Consultant Costs'!$E25,";"))),"") ->  | H79: =IF(ISNUMBER(SEARCH(H$2,'7. Consultant Costs'!$E25))=TRUE,('7. Consultant Costs'!$C25/COUNTA(_xlfn.TEXTSPLIT('7. Consultant Costs'!$E25,";"))),"") -> 
A80: =IF(ISNUMBER(SEARCH(A$2,'7. Consultant Costs'!$D26))=TRUE,('7. Consultant Costs'!$C26/COUNTA(_xlfn.TEXTSPLIT('7. Consultant Costs'!$D26,";"))),"") ->  | B80: =IF(ISNUMBER(SEARCH(B$2,'7. Consultant Costs'!$D26))=TRUE,('7. Consultant Costs'!$C26/COUNTA(_xlfn.TEXTSPLIT('7. Consultant Costs'!$D26,";"))),"") ->  | C80: =IF(ISNUMBER(SEARCH(C$2,'7. Consultant Costs'!$D26))=TRUE,('7. Consultant Costs'!$C26/COUNTA(_xlfn.TEXTSPLIT('7. Consultant Costs'!$D26,";"))),"") ->  | E80: =IF(ISNUMBER(SEARCH(E$2,'7. Consultant Costs'!$E26))=TRUE,('7. Consultant Costs'!$C26/COUNTA(_xlfn.TEXTSPLIT('7. Consultant Costs'!$E26,";"))),"") ->  | F80: =IF(ISNUMBER(SEARCH(F$2,'7. Consultant Costs'!$E26))=TRUE,('7. Consultant Costs'!$C26/COUNTA(_xlfn.TEXTSPLIT('7. Consultant Costs'!$E26,";"))),"") ->  | G80: =IF(ISNUMBER(SEARCH(G$2,'7. Consultant Costs'!$E26))=TRUE,('7. Consultant Costs'!$C26/COUNTA(_xlfn.TEXTSPLIT('7. Consultant Costs'!$E26,";"))),"") ->  | H80: =IF(ISNUMBER(SEARCH(H$2,'7. Consultant Costs'!$E26))=TRUE,('7. Consultant Costs'!$C26/COUNTA(_xlfn.TEXTSPLIT('7. Consultant Costs'!$E26,";"))),"") -> 
A81: =IF(ISNUMBER(SEARCH(A$2,'7. Consultant Costs'!$D27))=TRUE,('7. Consultant Costs'!$C27/COUNTA(_xlfn.TEXTSPLIT('7. Consultant Costs'!$D27,";"))),"") ->  | B81: =IF(ISNUMBER(SEARCH(B$2,'7. Consultant Costs'!$D27))=TRUE,('7. Consultant Costs'!$C27/COUNTA(_xlfn.TEXTSPLIT('7. Consultant Costs'!$D27,";"))),"") ->  | C81: =IF(ISNUMBER(SEARCH(C$2,'7. Consultant Costs'!$D27))=TRUE,('7. Consultant Costs'!$C27/COUNTA(_xlfn.TEXTSPLIT('7. Consultant Costs'!$D27,";"))),"") ->  | E81: =IF(ISNUMBER(SEARCH(E$2,'7. Consultant Costs'!$E27))=TRUE,('7. Consultant Costs'!$C27/COUNTA(_xlfn.TEXTSPLIT('7. Consultant Costs'!$E27,";"))),"") ->  | F81: =IF(ISNUMBER(SEARCH(F$2,'7. Consultant Costs'!$E27))=TRUE,('7. Consultant Costs'!$C27/COUNTA(_xlfn.TEXTSPLIT('7. Consultant Costs'!$E27,";"))),"") ->  | G81: =IF(ISNUMBER(SEARCH(G$2,'7. Consultant Costs'!$E27))=TRUE,('7. Consultant Costs'!$C27/COUNTA(_xlfn.TEXTSPLIT('7. Consultant Costs'!$E27,";"))),"") ->  | H81: =IF(ISNUMBER(SEARCH(H$2,'7. Consultant Costs'!$E27))=TRUE,('7. Consultant Costs'!$C27/COUNTA(_xlfn.TEXTSPLIT('7. Consultant Costs'!$E27,";"))),"") -> 
A82: =IF(ISNUMBER(SEARCH(A$2,'7. Consultant Costs'!$D28))=TRUE,('7. Consultant Costs'!$C28/COUNTA(_xlfn.TEXTSPLIT('7. Consultant Costs'!$D28,";"))),"") ->  | B82: =IF(ISNUMBER(SEARCH(B$2,'7. Consultant Costs'!$D28))=TRUE,('7. Consultant Costs'!$C28/COUNTA(_xlfn.TEXTSPLIT('7. Consultant Costs'!$D28,";"))),"") ->  | C82: =IF(ISNUMBER(SEARCH(C$2,'7. Consultant Costs'!$D28))=TRUE,('7. Consultant Costs'!$C28/COUNTA(_xlfn.TEXTSPLIT('7. Consultant Costs'!$D28,";"))),"") ->  | E82: =IF(ISNUMBER(SEARCH(E$2,'7. Consultant Costs'!$E28))=TRUE,('7. Consultant Costs'!$C28/COUNTA(_xlfn.TEXTSPLIT('7. Consultant Costs'!$E28,";"))),"") ->  | F82: =IF(ISNUMBER(SEARCH(F$2,'7. Consultant Costs'!$E28))=TRUE,('7. Consultant Costs'!$C28/COUNTA(_xlfn.TEXTSPLIT('7. Consultant Costs'!$E28,";"))),"") ->  | G82: =IF(ISNUMBER(SEARCH(G$2,'7. Consultant Costs'!$E28))=TRUE,('7. Consultant Costs'!$C28/COUNTA(_xlfn.TEXTSPLIT('7. Consultant Costs'!$E28,";"))),"") ->  | H82: =IF(ISNUMBER(SEARCH(H$2,'7. Consultant Costs'!$E28))=TRUE,('7. Consultant Costs'!$C28/COUNTA(_xlfn.TEXTSPLIT('7. Consultant Costs'!$E28,";"))),"") -> 
A83: =IF(ISNUMBER(SEARCH(A$2,'7. Consultant Costs'!$D29))=TRUE,('7. Consultant Costs'!$C29/COUNTA(_xlfn.TEXTSPLIT('7. Consultant Costs'!$D29,";"))),"") ->  | B83: =IF(ISNUMBER(SEARCH(B$2,'7. Consultant Costs'!$D29))=TRUE,('7. Consultant Costs'!$C29/COUNTA(_xlfn.TEXTSPLIT('7. Consultant Costs'!$D29,";"))),"") ->  | C83: =IF(ISNUMBER(SEARCH(C$2,'7. Consultant Costs'!$D29))=TRUE,('7. Consultant Costs'!$C29/COUNTA(_xlfn.TEXTSPLIT('7. Consultant Costs'!$D29,";"))),"") ->  | E83: =IF(ISNUMBER(SEARCH(E$2,'7. Consultant Costs'!$E29))=TRUE,('7. Consultant Costs'!$C29/COUNTA(_xlfn.TEXTSPLIT('7. Consultant Costs'!$E29,";"))),"") ->  | F83: =IF(ISNUMBER(SEARCH(F$2,'7. Consultant Costs'!$E29))=TRUE,('7. Consultant Costs'!$C29/COUNTA(_xlfn.TEXTSPLIT('7. Consultant Costs'!$E29,";"))),"") ->  | G83: =IF(ISNUMBER(SEARCH(G$2,'7. Consultant Costs'!$E29))=TRUE,('7. Consultant Costs'!$C29/COUNTA(_xlfn.TEXTSPLIT('7. Consultant Costs'!$E29,";"))),"") ->  | H83: =IF(ISNUMBER(SEARCH(H$2,'7. Consultant Costs'!$E29))=TRUE,('7. Consultant Costs'!$C29/COUNTA(_xlfn.TEXTSPLIT('7. Consultant Costs'!$E29,";"))),"") -> 
A84: =IF(ISNUMBER(SEARCH(A$2,'7. Consultant Costs'!$D30))=TRUE,('7. Consultant Costs'!$C30/COUNTA(_xlfn.TEXTSPLIT('7. Consultant Costs'!$D30,";"))),"") ->  | B84: =IF(ISNUMBER(SEARCH(B$2,'7. Consultant Costs'!$D30))=TRUE,('7. Consultant Costs'!$C30/COUNTA(_xlfn.TEXTSPLIT('7. Consultant Costs'!$D30,";"))),"") ->  | C84: =IF(ISNUMBER(SEARCH(C$2,'7. Consultant Costs'!$D30))=TRUE,('7. Consultant Costs'!$C30/COUNTA(_xlfn.TEXTSPLIT('7. Consultant Costs'!$D30,";"))),"") ->  | E84: =IF(ISNUMBER(SEARCH(E$2,'7. Consultant Costs'!$E30))=TRUE,('7. Consultant Costs'!$C30/COUNTA(_xlfn.TEXTSPLIT('7. Consultant Costs'!$E30,";"))),"") ->  | F84: =IF(ISNUMBER(SEARCH(F$2,'7. Consultant Costs'!$E30))=TRUE,('7. Consultant Costs'!$C30/COUNTA(_xlfn.TEXTSPLIT('7. Consultant Costs'!$E30,";"))),"") ->  | G84: =IF(ISNUMBER(SEARCH(G$2,'7. Consultant Costs'!$E30))=TRUE,('7. Consultant Costs'!$C30/COUNTA(_xlfn.TEXTSPLIT('7. Consultant Costs'!$E30,";"))),"") ->  | H84: =IF(ISNUMBER(SEARCH(H$2,'7. Consultant Costs'!$E30))=TRUE,('7. Consultant Costs'!$C30/COUNTA(_xlfn.TEXTSPLIT('7. Consultant Costs'!$E30,";"))),"") -> 
A86: Contracts (Tab 8)- Allocation by Strategy | E86: Contracts (Tab 8)- Allocation by Topic
A87: Data and Surveillance | B87: Collaborations and Partnerships | C87: Assessment and Evaluation | E87: Adverse Childhood Experiences (ACEs) | F87: Transportation Safety | G87: Traumatic Brain Injury | H87: Other Topic (please specify in comments)
A88: =IF(ISNUMBER(SEARCH(A$2,'8. Contracts'!$D6))=TRUE,('8. Contracts'!$C6/COUNTA(_xlfn.TEXTSPLIT('8. Contracts'!$D6,";"))),"") ->  | B88: =IF(ISNUMBER(SEARCH(B$2,'8. Contracts'!$D6))=TRUE,('8. Contracts'!$C6/COUNTA(_xlfn.TEXTSPLIT('8. Contracts'!$D6,";"))),"") ->  | C88: =IF(ISNUMBER(SEARCH(C$2,'8. Contracts'!$D6))=TRUE,('8. Contracts'!$C6/COUNTA(_xlfn.TEXTSPLIT('8. Contracts'!$D6,";"))),"") ->  | E88: =IF(ISNUMBER(SEARCH(E$2,'8. Contracts'!$E6))=TRUE,('8. Contracts'!$C6/COUNTA(_xlfn.TEXTSPLIT('8. Contracts'!$E6,";"))),"") ->  | F88: =IF(ISNUMBER(SEARCH(F$2,'8. Contracts'!$E6))=TRUE,('8. Contracts'!$C6/COUNTA(_xlfn.TEXTSPLIT('8. Contracts'!$E6,";"))),"") ->  | G88: =IF(ISNUMBER(SEARCH(G$2,'8. Contracts'!$E6))=TRUE,('8. Contracts'!$C6/COUNTA(_xlfn.TEXTSPLIT('8. Contracts'!$E6,";"))),"") ->  | H88: =IF(ISNUMBER(SEARCH(H$2,'8. Contracts'!$E6))=TRUE,('8. Contracts'!$C6/COUNTA(_xlfn.TEXTSPLIT('8. Contracts'!$E6,";"))),"") -> 
A89: =IF(ISNUMBER(SEARCH(A$2,'8. Contracts'!$D7))=TRUE,('8. Contracts'!$C7/COUNTA(_xlfn.TEXTSPLIT('8. Contracts'!$D7,";"))),"") ->  | B89: =IF(ISNUMBER(SEARCH(B$2,'8. Contracts'!$D7))=TRUE,('8. Contracts'!$C7/COUNTA(_xlfn.TEXTSPLIT('8. Contracts'!$D7,";"))),"") ->  | C89: =IF(ISNUMBER(SEARCH(C$2,'8. Contracts'!$D7))=TRUE,('8. Contracts'!$C7/COUNTA(_xlfn.TEXTSPLIT('8. Contracts'!$D7,";"))),"") ->  | E89: =IF(ISNUMBER(SEARCH(E$2,'8. Contracts'!$E7))=TRUE,('8. Contracts'!$C7/COUNTA(_xlfn.TEXTSPLIT('8. Contracts'!$E7,";"))),"") ->  | F89: =IF(ISNUMBER(SEARCH(F$2,'8. Contracts'!$E7))=TRUE,('8. Contracts'!$C7/COUNTA(_xlfn.TEXTSPLIT('8. Contracts'!$E7,";"))),"") ->  | G89: =IF(ISNUMBER(SEARCH(G$2,'8. Contracts'!$E7))=TRUE,('8. Contracts'!$C7/COUNTA(_xlfn.TEXTSPLIT('8. Contracts'!$E7,";"))),"") ->  | H89: =IF(ISNUMBER(SEARCH(H$2,'8. Contracts'!$E7))=TRUE,('8. Contracts'!$C7/COUNTA(_xlfn.TEXTSPLIT('8. Contracts'!$E7,";"))),"") -> 
A90: =IF(ISNUMBER(SEARCH(A$2,'8. Contracts'!$D8))=TRUE,('8. Contracts'!$C8/COUNTA(_xlfn.TEXTSPLIT('8. Contracts'!$D8,";"))),"") ->  | B90: =IF(ISNUMBER(SEARCH(B$2,'8. Contracts'!$D8))=TRUE,('8. Contracts'!$C8/COUNTA(_xlfn.TEXTSPLIT('8. Contracts'!$D8,";"))),"") ->  | C90: =IF(ISNUMBER(SEARCH(C$2,'8. Contracts'!$D8))=TRUE,('8. Contracts'!$C8/COUNTA(_xlfn.TEXTSPLIT('8. Contracts'!$D8,";"))),"") ->  | E90: =IF(ISNUMBER(SEARCH(E$2,'8. Contracts'!$E8))=TRUE,('8. Contracts'!$C8/COUNTA(_xlfn.TEXTSPLIT('8. Contracts'!$E8,";"))),"") ->  | F90: =IF(ISNUMBER(SEARCH(F$2,'8. Contracts'!$E8))=TRUE,('8. Contracts'!$C8/COUNTA(_xlfn.TEXTSPLIT('8. Contracts'!$E8,";"))),"") ->  | G90: =IF(ISNUMBER(SEARCH(G$2,'8. Contracts'!$E8))=TRUE,('8. Contracts'!$C8/COUNTA(_xlfn.TEXTSPLIT('8. Contracts'!$E8,";"))),"") ->  | H90: =IF(ISNUMBER(SEARCH(H$2,'8. Contracts'!$E8))=TRUE,('8. Contracts'!$C8/COUNTA(_xlfn.TEXTSPLIT('8. Contracts'!$E8,";"))),"") -> 
A91: =IF(ISNUMBER(SEARCH(A$2,'8. Contracts'!$D9))=TRUE,('8. Contracts'!$C9/COUNTA(_xlfn.TEXTSPLIT('8. Contracts'!$D9,";"))),"") ->  | B91: =IF(ISNUMBER(SEARCH(B$2,'8. Contracts'!$D9))=TRUE,('8. Contracts'!$C9/COUNTA(_xlfn.TEXTSPLIT('8. Contracts'!$D9,";"))),"") ->  | C91: =IF(ISNUMBER(SEARCH(C$2,'8. Contracts'!$D9))=TRUE,('8. Contracts'!$C9/COUNTA(_xlfn.TEXTSPLIT('8. Contracts'!$D9,";"))),"") ->  | E91: =IF(ISNUMBER(SEARCH(E$2,'8. Contracts'!$E9))=TRUE,('8. Contracts'!$C9/COUNTA(_xlfn.TEXTSPLIT('8. Contracts'!$E9,";"))),"") ->  | F91: =IF(ISNUMBER(SEARCH(F$2,'8. Contracts'!$E9))=TRUE,('8. Contracts'!$C9/COUNTA(_xlfn.TEXTSPLIT('8. Contracts'!$E9,";"))),"") ->  | G91: =IF(ISNUMBER(SEARCH(G$2,'8. Contracts'!$E9))=TRUE,('8. Contracts'!$C9/COUNTA(_xlfn.TEXTSPLIT('8. Contracts'!$E9,";"))),"") ->  | H91: =IF(ISNUMBER(SEARCH(H$2,'8. Contracts'!$E9))=TRUE,('8. Contracts'!$C9/COUNTA(_xlfn.TEXTSPLIT('8. Contracts'!$E9,";"))),"") -> 
A92: =IF(ISNUMBER(SEARCH(A$2,'8. Contracts'!$D10))=TRUE,('8. Contracts'!$C10/COUNTA(_xlfn.TEXTSPLIT('8. Contracts'!$D10,";"))),"") ->  | B92: =IF(ISNUMBER(SEARCH(B$2,'8. Contracts'!$D10))=TRUE,('8. Contracts'!$C10/COUNTA(_xlfn.TEXTSPLIT('8. Contracts'!$D10,";"))),"") ->  | C92: =IF(ISNUMBER(SEARCH(C$2,'8. Contracts'!$D10))=TRUE,('8. Contracts'!$C10/COUNTA(_xlfn.TEXTSPLIT('8. Contracts'!$D10,";"))),"") ->  | E92: =IF(ISNUMBER(SEARCH(E$2,'8. Contracts'!$E10))=TRUE,('8. Contracts'!$C10/COUNTA(_xlfn.TEXTSPLIT('8. Contracts'!$E10,";"))),"") ->  | F92: =IF(ISNUMBER(SEARCH(F$2,'8. Contracts'!$E10))=TRUE,('8. Contracts'!$C10/COUNTA(_xlfn.TEXTSPLIT('8. Contracts'!$E10,";"))),"") ->  | G92: =IF(ISNUMBER(SEARCH(G$2,'8. Contracts'!$E10))=TRUE,('8. Contracts'!$C10/COUNTA(_xlfn.TEXTSPLIT('8. Contracts'!$E10,";"))),"") ->  | H92: =IF(ISNUMBER(SEARCH(H$2,'8. Contracts'!$E10))=TRUE,('8. Contracts'!$C10/COUNTA(_xlfn.TEXTSPLIT('8. Contracts'!$E10,";"))),"") -> 
A93: =IF(ISNUMBER(SEARCH(A$2,'8. Contracts'!$D11))=TRUE,('8. Contracts'!$C11/COUNTA(_xlfn.TEXTSPLIT('8. Contracts'!$D11,";"))),"") ->  | B93: =IF(ISNUMBER(SEARCH(B$2,'8. Contracts'!$D11))=TRUE,('8. Contracts'!$C11/COUNTA(_xlfn.TEXTSPLIT('8. Contracts'!$D11,";"))),"") ->  | C93: =IF(ISNUMBER(SEARCH(C$2,'8. Contracts'!$D11))=TRUE,('8. Contracts'!$C11/COUNTA(_xlfn.TEXTSPLIT('8. Contracts'!$D11,";"))),"") ->  | E93: =IF(ISNUMBER(SEARCH(E$2,'8. Contracts'!$E11))=TRUE,('8. Contracts'!$C11/COUNTA(_xlfn.TEXTSPLIT('8. Contracts'!$E11,";"))),"") ->  | F93: =IF(ISNUMBER(SEARCH(F$2,'8. Contracts'!$E11))=TRUE,('8. Contracts'!$C11/COUNTA(_xlfn.TEXTSPLIT('8. Contracts'!$E11,";"))),"") ->  | G93: =IF(ISNUMBER(SEARCH(G$2,'8. Contracts'!$E11))=TRUE,('8. Contracts'!$C11/COUNTA(_xlfn.TEXTSPLIT('8. Contracts'!$E11,";"))),"") ->  | H93: =IF(ISNUMBER(SEARCH(H$2,'8. Contracts'!$E11))=TRUE,('8. Contracts'!$C11/COUNTA(_xlfn.TEXTSPLIT('8. Contracts'!$E11,";"))),"") -> 
A94: =IF(ISNUMBER(SEARCH(A$2,'8. Contracts'!$D12))=TRUE,('8. Contracts'!$C12/COUNTA(_xlfn.TEXTSPLIT('8. Contracts'!$D12,";"))),"") ->  | B94: =IF(ISNUMBER(SEARCH(B$2,'8. Contracts'!$D12))=TRUE,('8. Contracts'!$C12/COUNTA(_xlfn.TEXTSPLIT('8. Contracts'!$D12,";"))),"") ->  | C94: =IF(ISNUMBER(SEARCH(C$2,'8. Contracts'!$D12))=TRUE,('8. Contracts'!$C12/COUNTA(_xlfn.TEXTSPLIT('8. Contracts'!$D12,";"))),"") ->  | E94: =IF(ISNUMBER(SEARCH(E$2,'8. Contracts'!$E12))=TRUE,('8. Contracts'!$C12/COUNTA(_xlfn.TEXTSPLIT('8. Contracts'!$E12,";"))),"") ->  | F94: =IF(ISNUMBER(SEARCH(F$2,'8. Contracts'!$E12))=TRUE,('8. Contracts'!$C12/COUNTA(_xlfn.TEXTSPLIT('8. Contracts'!$E12,";"))),"") ->  | G94: =IF(ISNUMBER(SEARCH(G$2,'8. Contracts'!$E12))=TRUE,('8. Contracts'!$C12/COUNTA(_xlfn.TEXTSPLIT('8. Contracts'!$E12,";"))),"") ->  | H94: =IF(ISNUMBER(SEARCH(H$2,'8. Contracts'!$E12))=TRUE,('8. Contracts'!$C12/COUNTA(_xlfn.TEXTSPLIT('8. Contracts'!$E12,";"))),"") -> 
A95: =IF(ISNUMBER(SEARCH(A$2,'8. Contracts'!$D13))=TRUE,('8. Contracts'!$C13/COUNTA(_xlfn.TEXTSPLIT('8. Contracts'!$D13,";"))),"") ->  | B95: =IF(ISNUMBER(SEARCH(B$2,'8. Contracts'!$D13))=TRUE,('8. Contracts'!$C13/COUNTA(_xlfn.TEXTSPLIT('8. Contracts'!$D13,";"))),"") ->  | C95: =IF(ISNUMBER(SEARCH(C$2,'8. Contracts'!$D13))=TRUE,('8. Contracts'!$C13/COUNTA(_xlfn.TEXTSPLIT('8. Contracts'!$D13,";"))),"") ->  | E95: =IF(ISNUMBER(SEARCH(E$2,'8. Contracts'!$E13))=TRUE,('8. Contracts'!$C13/COUNTA(_xlfn.TEXTSPLIT('8. Contracts'!$E13,";"))),"") ->  | F95: =IF(ISNUMBER(SEARCH(F$2,'8. Contracts'!$E13))=TRUE,('8. Contracts'!$C13/COUNTA(_xlfn.TEXTSPLIT('8. Contracts'!$E13,";"))),"") ->  | G95: =IF(ISNUMBER(SEARCH(G$2,'8. Contracts'!$E13))=TRUE,('8. Contracts'!$C13/COUNTA(_xlfn.TEXTSPLIT('8. Contracts'!$E13,";"))),"") ->  | H95: =IF(ISNUMBER(SEARCH(H$2,'8. Contracts'!$E13))=TRUE,('8. Contracts'!$C13/COUNTA(_xlfn.TEXTSPLIT('8. Contracts'!$E13,";"))),"") -> 
A96: =IF(ISNUMBER(SEARCH(A$2,'8. Contracts'!$D14))=TRUE,('8. Contracts'!$C14/COUNTA(_xlfn.TEXTSPLIT('8. Contracts'!$D14,";"))),"") ->  | B96: =IF(ISNUMBER(SEARCH(B$2,'8. Contracts'!$D14))=TRUE,('8. Contracts'!$C14/COUNTA(_xlfn.TEXTSPLIT('8. Contracts'!$D14,";"))),"") ->  | C96: =IF(ISNUMBER(SEARCH(C$2,'8. Contracts'!$D14))=TRUE,('8. Contracts'!$C14/COUNTA(_xlfn.TEXTSPLIT('8. Contracts'!$D14,";"))),"") ->  | E96: =IF(ISNUMBER(SEARCH(E$2,'8. Contracts'!$E14))=TRUE,('8. Contracts'!$C14/COUNTA(_xlfn.TEXTSPLIT('8. Contracts'!$E14,";"))),"") ->  | F96: =IF(ISNUMBER(SEARCH(F$2,'8. Contracts'!$E14))=TRUE,('8. Contracts'!$C14/COUNTA(_xlfn.TEXTSPLIT('8. Contracts'!$E14,";"))),"") ->  | G96: =IF(ISNUMBER(SEARCH(G$2,'8. Contracts'!$E14))=TRUE,('8. Contracts'!$C14/COUNTA(_xlfn.TEXTSPLIT('8. Contracts'!$E14,";"))),"") ->  | H96: =IF(ISNUMBER(SEARCH(H$2,'8. Contracts'!$E14))=TRUE,('8. Contracts'!$C14/COUNTA(_xlfn.TEXTSPLIT('8. Contracts'!$E14,";"))),"") -> 
A97: =IF(ISNUMBER(SEARCH(A$2,'8. Contracts'!$D15))=TRUE,('8. Contracts'!$C15/COUNTA(_xlfn.TEXTSPLIT('8. Contracts'!$D15,";"))),"") ->  | B97: =IF(ISNUMBER(SEARCH(B$2,'8. Contracts'!$D15))=TRUE,('8. Contracts'!$C15/COUNTA(_xlfn.TEXTSPLIT('8. Contracts'!$D15,";"))),"") ->  | C97: =IF(ISNUMBER(SEARCH(C$2,'8. Contracts'!$D15))=TRUE,('8. Contracts'!$C15/COUNTA(_xlfn.TEXTSPLIT('8. Contracts'!$D15,";"))),"") ->  | E97: =IF(ISNUMBER(SEARCH(E$2,'8. Contracts'!$E15))=TRUE,('8. Contracts'!$C15/COUNTA(_xlfn.TEXTSPLIT('8. Contracts'!$E15,";"))),"") ->  | F97: =IF(ISNUMBER(SEARCH(F$2,'8. Contracts'!$E15))=TRUE,('8. Contracts'!$C15/COUNTA(_xlfn.TEXTSPLIT('8. Contracts'!$E15,";"))),"") ->  | G97: =IF(ISNUMBER(SEARCH(G$2,'8. Contracts'!$E15))=TRUE,('8. Contracts'!$C15/COUNTA(_xlfn.TEXTSPLIT('8. Contracts'!$E15,";"))),"") ->  | H97: =IF(ISNUMBER(SEARCH(H$2,'8. Contracts'!$E15))=TRUE,('8. Contracts'!$C15/COUNTA(_xlfn.TEXTSPLIT('8. Contracts'!$E15,";"))),"") -> 
A98: =IF(ISNUMBER(SEARCH(A$2,'8. Contracts'!$D16))=TRUE,('8. Contracts'!$C16/COUNTA(_xlfn.TEXTSPLIT('8. Contracts'!$D16,";"))),"") ->  | B98: =IF(ISNUMBER(SEARCH(B$2,'8. Contracts'!$D16))=TRUE,('8. Contracts'!$C16/COUNTA(_xlfn.TEXTSPLIT('8. Contracts'!$D16,";"))),"") ->  | C98: =IF(ISNUMBER(SEARCH(C$2,'8. Contracts'!$D16))=TRUE,('8. Contracts'!$C16/COUNTA(_xlfn.TEXTSPLIT('8. Contracts'!$D16,";"))),"") ->  | E98: =IF(ISNUMBER(SEARCH(E$2,'8. Contracts'!$E16))=TRUE,('8. Contracts'!$C16/COUNTA(_xlfn.TEXTSPLIT('8. Contracts'!$E16,";"))),"") ->  | F98: =IF(ISNUMBER(SEARCH(F$2,'8. Contracts'!$E16))=TRUE,('8. Contracts'!$C16/COUNTA(_xlfn.TEXTSPLIT('8. Contracts'!$E16,";"))),"") ->  | G98: =IF(ISNUMBER(SEARCH(G$2,'8. Contracts'!$E16))=TRUE,('8. Contracts'!$C16/COUNTA(_xlfn.TEXTSPLIT('8. Contracts'!$E16,";"))),"") ->  | H98: =IF(ISNUMBER(SEARCH(H$2,'8. Contracts'!$E16))=TRUE,('8. Contracts'!$C16/COUNTA(_xlfn.TEXTSPLIT('8. Contracts'!$E16,";"))),"") -> 
A99: =IF(ISNUMBER(SEARCH(A$2,'8. Contracts'!$D17))=TRUE,('8. Contracts'!$C17/COUNTA(_xlfn.TEXTSPLIT('8. Contracts'!$D17,";"))),"") ->  | B99: =IF(ISNUMBER(SEARCH(B$2,'8. Contracts'!$D17))=TRUE,('8. Contracts'!$C17/COUNTA(_xlfn.TEXTSPLIT('8. Contracts'!$D17,";"))),"") ->  | C99: =IF(ISNUMBER(SEARCH(C$2,'8. Contracts'!$D17))=TRUE,('8. Contracts'!$C17/COUNTA(_xlfn.TEXTSPLIT('8. Contracts'!$D17,";"))),"") ->  | E99: =IF(ISNUMBER(SEARCH(E$2,'8. Contracts'!$E17))=TRUE,('8. Contracts'!$C17/COUNTA(_xlfn.TEXTSPLIT('8. Contracts'!$E17,";"))),"") ->  | F99: =IF(ISNUMBER(SEARCH(F$2,'8. Contracts'!$E17))=TRUE,('8. Contracts'!$C17/COUNTA(_xlfn.TEXTSPLIT('8. Contracts'!$E17,";"))),"") ->  | G99: =IF(ISNUMBER(SEARCH(G$2,'8. Contracts'!$E17))=TRUE,('8. Contracts'!$C17/COUNTA(_xlfn.TEXTSPLIT('8. Contracts'!$E17,";"))),"") ->  | H99: =IF(ISNUMBER(SEARCH(H$2,'8. Contracts'!$E17))=TRUE,('8. Contracts'!$C17/COUNTA(_xlfn.TEXTSPLIT('8. Contracts'!$E17,";"))),"") -> 
A100: =IF(ISNUMBER(SEARCH(A$2,'8. Contracts'!$D18))=TRUE,('8. Contracts'!$C18/COUNTA(_xlfn.TEXTSPLIT('8. Contracts'!$D18,";"))),"") ->  | B100: =IF(ISNUMBER(SEARCH(B$2,'8. Contracts'!$D18))=TRUE,('8. Contracts'!$C18/COUNTA(_xlfn.TEXTSPLIT('8. Contracts'!$D18,";"))),"") ->  | C100: =IF(ISNUMBER(SEARCH(C$2,'8. Contracts'!$D18))=TRUE,('8. Contracts'!$C18/COUNTA(_xlfn.TEXTSPLIT('8. Contracts'!$D18,";"))),"") ->  | E100: =IF(ISNUMBER(SEARCH(E$2,'8. Contracts'!$E18))=TRUE,('8. Contracts'!$C18/COUNTA(_xlfn.TEXTSPLIT('8. Contracts'!$E18,";"))),"") ->  | F100: =IF(ISNUMBER(SEARCH(F$2,'8. Contracts'!$E18))=TRUE,('8. Contracts'!$C18/COUNTA(_xlfn.TEXTSPLIT('8. Contracts'!$E18,";"))),"") ->  | G100: =IF(ISNUMBER(SEARCH(G$2,'8. Contracts'!$E18))=TRUE,('8. Contracts'!$C18/COUNTA(_xlfn.TEXTSPLIT('8. Contracts'!$E18,";"))),"") ->  | H100: =IF(ISNUMBER(SEARCH(H$2,'8. Contracts'!$E18))=TRUE,('8. Contracts'!$C18/COUNTA(_xlfn.TEXTSPLIT('8. Contracts'!$E18,";"))),"") -> 
A101: =IF(ISNUMBER(SEARCH(A$2,'8. Contracts'!$D19))=TRUE,('8. Contracts'!$C19/COUNTA(_xlfn.TEXTSPLIT('8. Contracts'!$D19,";"))),"") ->  | B101: =IF(ISNUMBER(SEARCH(B$2,'8. Contracts'!$D19))=TRUE,('8. Contracts'!$C19/COUNTA(_xlfn.TEXTSPLIT('8. Contracts'!$D19,";"))),"") ->  | C101: =IF(ISNUMBER(SEARCH(C$2,'8. Contracts'!$D19))=TRUE,('8. Contracts'!$C19/COUNTA(_xlfn.TEXTSPLIT('8. Contracts'!$D19,";"))),"") ->  | E101: =IF(ISNUMBER(SEARCH(E$2,'8. Contracts'!$E19))=TRUE,('8. Contracts'!$C19/COUNTA(_xlfn.TEXTSPLIT('8. Contracts'!$E19,";"))),"") ->  | F101: =IF(ISNUMBER(SEARCH(F$2,'8. Contracts'!$E19))=TRUE,('8. Contracts'!$C19/COUNTA(_xlfn.TEXTSPLIT('8. Contracts'!$E19,";"))),"") ->  | G101: =IF(ISNUMBER(SEARCH(G$2,'8. Contracts'!$E19))=TRUE,('8. Contracts'!$C19/COUNTA(_xlfn.TEXTSPLIT('8. Contracts'!$E19,";"))),"") ->  | H101: =IF(ISNUMBER(SEARCH(H$2,'8. Contracts'!$E19))=TRUE,('8. Contracts'!$C19/COUNTA(_xlfn.TEXTSPLIT('8. Contracts'!$E19,";"))),"") -> 
A102: =IF(ISNUMBER(SEARCH(A$2,'8. Contracts'!$D20))=TRUE,('8. Contracts'!$C20/COUNTA(_xlfn.TEXTSPLIT('8. Contracts'!$D20,";"))),"") ->  | B102: =IF(ISNUMBER(SEARCH(B$2,'8. Contracts'!$D20))=TRUE,('8. Contracts'!$C20/COUNTA(_xlfn.TEXTSPLIT('8. Contracts'!$D20,";"))),"") ->  | C102: =IF(ISNUMBER(SEARCH(C$2,'8. Contracts'!$D20))=TRUE,('8. Contracts'!$C20/COUNTA(_xlfn.TEXTSPLIT('8. Contracts'!$D20,";"))),"") ->  | E102: =IF(ISNUMBER(SEARCH(E$2,'8. Contracts'!$E20))=TRUE,('8. Contracts'!$C20/COUNTA(_xlfn.TEXTSPLIT('8. Contracts'!$E20,";"))),"") ->  | F102: =IF(ISNUMBER(SEARCH(F$2,'8. Contracts'!$E20))=TRUE,('8. Contracts'!$C20/COUNTA(_xlfn.TEXTSPLIT('8. Contracts'!$E20,";"))),"") ->  | G102: =IF(ISNUMBER(SEARCH(G$2,'8. Contracts'!$E20))=TRUE,('8. Contracts'!$C20/COUNTA(_xlfn.TEXTSPLIT('8. Contracts'!$E20,";"))),"") ->  | H102: =IF(ISNUMBER(SEARCH(H$2,'8. Contracts'!$E20))=TRUE,('8. Contracts'!$C20/COUNTA(_xlfn.TEXTSPLIT('8. Contracts'!$E20,";"))),"") -> 
A103: =IF(ISNUMBER(SEARCH(A$2,'8. Contracts'!$D21))=TRUE,('8. Contracts'!$C21/COUNTA(_xlfn.TEXTSPLIT('8. Contracts'!$D21,";"))),"") ->  | B103: =IF(ISNUMBER(SEARCH(B$2,'8. Contracts'!$D21))=TRUE,('8. Contracts'!$C21/COUNTA(_xlfn.TEXTSPLIT('8. Contracts'!$D21,";"))),"") ->  | C103: =IF(ISNUMBER(SEARCH(C$2,'8. Contracts'!$D21))=TRUE,('8. Contracts'!$C21/COUNTA(_xlfn.TEXTSPLIT('8. Contracts'!$D21,";"))),"") ->  | E103: =IF(ISNUMBER(SEARCH(E$2,'8. Contracts'!$E21))=TRUE,('8. Contracts'!$C21/COUNTA(_xlfn.TEXTSPLIT('8. Contracts'!$E21,";"))),"") ->  | F103: =IF(ISNUMBER(SEARCH(F$2,'8. Contracts'!$E21))=TRUE,('8. Contracts'!$C21/COUNTA(_xlfn.TEXTSPLIT('8. Contracts'!$E21,";"))),"") ->  | G103: =IF(ISNUMBER(SEARCH(G$2,'8. Contracts'!$E21))=TRUE,('8. Contracts'!$C21/COUNTA(_xlfn.TEXTSPLIT('8. Contracts'!$E21,";"))),"") ->  | H103: =IF(ISNUMBER(SEARCH(H$2,'8. Contracts'!$E21))=TRUE,('8. Contracts'!$C21/COUNTA(_xlfn.TEXTSPLIT('8. Contracts'!$E21,";"))),"") -> 
A104: =IF(ISNUMBER(SEARCH(A$2,'8. Contracts'!$D22))=TRUE,('8. Contracts'!$C22/COUNTA(_xlfn.TEXTSPLIT('8. Contracts'!$D22,";"))),"") ->  | B104: =IF(ISNUMBER(SEARCH(B$2,'8. Contracts'!$D22))=TRUE,('8. Contracts'!$C22/COUNTA(_xlfn.TEXTSPLIT('8. Contracts'!$D22,";"))),"") ->  | C104: =IF(ISNUMBER(SEARCH(C$2,'8. Contracts'!$D22))=TRUE,('8. Contracts'!$C22/COUNTA(_xlfn.TEXTSPLIT('8. Contracts'!$D22,";"))),"") ->  | E104: =IF(ISNUMBER(SEARCH(E$2,'8. Contracts'!$E22))=TRUE,('8. Contracts'!$C22/COUNTA(_xlfn.TEXTSPLIT('8. Contracts'!$E22,";"))),"") ->  | F104: =IF(ISNUMBER(SEARCH(F$2,'8. Contracts'!$E22))=TRUE,('8. Contracts'!$C22/COUNTA(_xlfn.TEXTSPLIT('8. Contracts'!$E22,";"))),"") ->  | G104: =IF(ISNUMBER(SEARCH(G$2,'8. Contracts'!$E22))=TRUE,('8. Contracts'!$C22/COUNTA(_xlfn.TEXTSPLIT('8. Contracts'!$E22,";"))),"") ->  | H104: =IF(ISNUMBER(SEARCH(H$2,'8. Contracts'!$E22))=TRUE,('8. Contracts'!$C22/COUNTA(_xlfn.TEXTSPLIT('8. Contracts'!$E22,";"))),"") -> 
A105: =IF(ISNUMBER(SEARCH(A$2,'8. Contracts'!$D23))=TRUE,('8. Contracts'!$C23/COUNTA(_xlfn.TEXTSPLIT('8. Contracts'!$D23,";"))),"") ->  | B105: =IF(ISNUMBER(SEARCH(B$2,'8. Contracts'!$D23))=TRUE,('8. Contracts'!$C23/COUNTA(_xlfn.TEXTSPLIT('8. Contracts'!$D23,";"))),"") ->  | C105: =IF(ISNUMBER(SEARCH(C$2,'8. Contracts'!$D23))=TRUE,('8. Contracts'!$C23/COUNTA(_xlfn.TEXTSPLIT('8. Contracts'!$D23,";"))),"") ->  | E105: =IF(ISNUMBER(SEARCH(E$2,'8. Contracts'!$E23))=TRUE,('8. Contracts'!$C23/COUNTA(_xlfn.TEXTSPLIT('8. Contracts'!$E23,";"))),"") ->  | F105: =IF(ISNUMBER(SEARCH(F$2,'8. Contracts'!$E23))=TRUE,('8. Contracts'!$C23/COUNTA(_xlfn.TEXTSPLIT('8. Contracts'!$E23,";"))),"") ->  | G105: =IF(ISNUMBER(SEARCH(G$2,'8. Contracts'!$E23))=TRUE,('8. Contracts'!$C23/COUNTA(_xlfn.TEXTSPLIT('8. Contracts'!$E23,";"))),"") ->  | H105: =IF(ISNUMBER(SEARCH(H$2,'8. Contracts'!$E23))=TRUE,('8. Contracts'!$C23/COUNTA(_xlfn.TEXTSPLIT('8. Contracts'!$E23,";"))),"") -> 
A106: =IF(ISNUMBER(SEARCH(A$2,'8. Contracts'!$D24))=TRUE,('8. Contracts'!$C24/COUNTA(_xlfn.TEXTSPLIT('8. Contracts'!$D24,";"))),"") ->  | B106: =IF(ISNUMBER(SEARCH(B$2,'8. Contracts'!$D24))=TRUE,('8. Contracts'!$C24/COUNTA(_xlfn.TEXTSPLIT('8. Contracts'!$D24,";"))),"") ->  | C106: =IF(ISNUMBER(SEARCH(C$2,'8. Contracts'!$D24))=TRUE,('8. Contracts'!$C24/COUNTA(_xlfn.TEXTSPLIT('8. Contracts'!$D24,";"))),"") ->  | E106: =IF(ISNUMBER(SEARCH(E$2,'8. Contracts'!$E24))=TRUE,('8. Contracts'!$C24/COUNTA(_xlfn.TEXTSPLIT('8. Contracts'!$E24,";"))),"") ->  | F106: =IF(ISNUMBER(SEARCH(F$2,'8. Contracts'!$E24))=TRUE,('8. Contracts'!$C24/COUNTA(_xlfn.TEXTSPLIT('8. Contracts'!$E24,";"))),"") ->  | G106: =IF(ISNUMBER(SEARCH(G$2,'8. Contracts'!$E24))=TRUE,('8. Contracts'!$C24/COUNTA(_xlfn.TEXTSPLIT('8. Contracts'!$E24,";"))),"") ->  | H106: =IF(ISNUMBER(SEARCH(H$2,'8. Contracts'!$E24))=TRUE,('8. Contracts'!$C24/COUNTA(_xlfn.TEXTSPLIT('8. Contracts'!$E24,";"))),"") -> 
A107: =IF(ISNUMBER(SEARCH(A$2,'8. Contracts'!$D25))=TRUE,('8. Contracts'!$C25/COUNTA(_xlfn.TEXTSPLIT('8. Contracts'!$D25,";"))),"") ->  | B107: =IF(ISNUMBER(SEARCH(B$2,'8. Contracts'!$D25))=TRUE,('8. Contracts'!$C25/COUNTA(_xlfn.TEXTSPLIT('8. Contracts'!$D25,";"))),"") ->  | C107: =IF(ISNUMBER(SEARCH(C$2,'8. Contracts'!$D25))=TRUE,('8. Contracts'!$C25/COUNTA(_xlfn.TEXTSPLIT('8. Contracts'!$D25,";"))),"") ->  | E107: =IF(ISNUMBER(SEARCH(E$2,'8. Contracts'!$E25))=TRUE,('8. Contracts'!$C25/COUNTA(_xlfn.TEXTSPLIT('8. Contracts'!$E25,";"))),"") ->  | F107: =IF(ISNUMBER(SEARCH(F$2,'8. Contracts'!$E25))=TRUE,('8. Contracts'!$C25/COUNTA(_xlfn.TEXTSPLIT('8. Contracts'!$E25,";"))),"") ->  | G107: =IF(ISNUMBER(SEARCH(G$2,'8. Contracts'!$E25))=TRUE,('8. Contracts'!$C25/COUNTA(_xlfn.TEXTSPLIT('8. Contracts'!$E25,";"))),"") ->  | H107: =IF(ISNUMBER(SEARCH(H$2,'8. Contracts'!$E25))=TRUE,('8. Contracts'!$C25/COUNTA(_xlfn.TEXTSPLIT('8. Contracts'!$E25,";"))),"") -> 
A108: =IF(ISNUMBER(SEARCH(A$2,'8. Contracts'!$D26))=TRUE,('8. Contracts'!$C26/COUNTA(_xlfn.TEXTSPLIT('8. Contracts'!$D26,";"))),"") ->  | B108: =IF(ISNUMBER(SEARCH(B$2,'8. Contracts'!$D26))=TRUE,('8. Contracts'!$C26/COUNTA(_xlfn.TEXTSPLIT('8. Contracts'!$D26,";"))),"") ->  | C108: =IF(ISNUMBER(SEARCH(C$2,'8. Contracts'!$D26))=TRUE,('8. Contracts'!$C26/COUNTA(_xlfn.TEXTSPLIT('8. Contracts'!$D26,";"))),"") ->  | E108: =IF(ISNUMBER(SEARCH(E$2,'8. Contracts'!$E26))=TRUE,('8. Contracts'!$C26/COUNTA(_xlfn.TEXTSPLIT('8. Contracts'!$E26,";"))),"") ->  | F108: =IF(ISNUMBER(SEARCH(F$2,'8. Contracts'!$E26))=TRUE,('8. Contracts'!$C26/COUNTA(_xlfn.TEXTSPLIT('8. Contracts'!$E26,";"))),"") ->  | G108: =IF(ISNUMBER(SEARCH(G$2,'8. Contracts'!$E26))=TRUE,('8. Contracts'!$C26/COUNTA(_xlfn.TEXTSPLIT('8. Contracts'!$E26,";"))),"") ->  | H108: =IF(ISNUMBER(SEARCH(H$2,'8. Contracts'!$E26))=TRUE,('8. Contracts'!$C26/COUNTA(_xlfn.TEXTSPLIT('8. Contracts'!$E26,";"))),"") -> 
A109: =IF(ISNUMBER(SEARCH(A$2,'8. Contracts'!$D27))=TRUE,('8. Contracts'!$C27/COUNTA(_xlfn.TEXTSPLIT('8. Contracts'!$D27,";"))),"") ->  | B109: =IF(ISNUMBER(SEARCH(B$2,'8. Contracts'!$D27))=TRUE,('8. Contracts'!$C27/COUNTA(_xlfn.TEXTSPLIT('8. Contracts'!$D27,";"))),"") ->  | C109: =IF(ISNUMBER(SEARCH(C$2,'8. Contracts'!$D27))=TRUE,('8. Contracts'!$C27/COUNTA(_xlfn.TEXTSPLIT('8. Contracts'!$D27,";"))),"") ->  | E109: =IF(ISNUMBER(SEARCH(E$2,'8. Contracts'!$E27))=TRUE,('8. Contracts'!$C27/COUNTA(_xlfn.TEXTSPLIT('8. Contracts'!$E27,";"))),"") ->  | F109: =IF(ISNUMBER(SEARCH(F$2,'8. Contracts'!$E27))=TRUE,('8. Contracts'!$C27/COUNTA(_xlfn.TEXTSPLIT('8. Contracts'!$E27,";"))),"") ->  | G109: =IF(ISNUMBER(SEARCH(G$2,'8. Contracts'!$E27))=TRUE,('8. Contracts'!$C27/COUNTA(_xlfn.TEXTSPLIT('8. Contracts'!$E27,";"))),"") ->  | H109: =IF(ISNUMBER(SEARCH(H$2,'8. Contracts'!$E27))=TRUE,('8. Contracts'!$C27/COUNTA(_xlfn.TEXTSPLIT('8. Contracts'!$E27,";"))),"") -> 
A110: =IF(ISNUMBER(SEARCH(A$2,'8. Contracts'!$D28))=TRUE,('8. Contracts'!$C28/COUNTA(_xlfn.TEXTSPLIT('8. Contracts'!$D28,";"))),"") ->  | B110: =IF(ISNUMBER(SEARCH(B$2,'8. Contracts'!$D28))=TRUE,('8. Contracts'!$C28/COUNTA(_xlfn.TEXTSPLIT('8. Contracts'!$D28,";"))),"") ->  | C110: =IF(ISNUMBER(SEARCH(C$2,'8. Contracts'!$D28))=TRUE,('8. Contracts'!$C28/COUNTA(_xlfn.TEXTSPLIT('8. Contracts'!$D28,";"))),"") ->  | E110: =IF(ISNUMBER(SEARCH(E$2,'8. Contracts'!$E28))=TRUE,('8. Contracts'!$C28/COUNTA(_xlfn.TEXTSPLIT('8. Contracts'!$E28,";"))),"") ->  | F110: =IF(ISNUMBER(SEARCH(F$2,'8. Contracts'!$E28))=TRUE,('8. Contracts'!$C28/COUNTA(_xlfn.TEXTSPLIT('8. Contracts'!$E28,";"))),"") ->  | G110: =IF(ISNUMBER(SEARCH(G$2,'8. Contracts'!$E28))=TRUE,('8. Contracts'!$C28/COUNTA(_xlfn.TEXTSPLIT('8. Contracts'!$E28,";"))),"") ->  | H110: =IF(ISNUMBER(SEARCH(H$2,'8. Contracts'!$E28))=TRUE,('8. Contracts'!$C28/COUNTA(_xlfn.TEXTSPLIT('8. Contracts'!$E28,";"))),"") -> 
A111: =IF(ISNUMBER(SEARCH(A$2,'8. Contracts'!$D29))=TRUE,('8. Contracts'!$C29/COUNTA(_xlfn.TEXTSPLIT('8. Contracts'!$D29,";"))),"") ->  | B111: =IF(ISNUMBER(SEARCH(B$2,'8. Contracts'!$D29))=TRUE,('8. Contracts'!$C29/COUNTA(_xlfn.TEXTSPLIT('8. Contracts'!$D29,";"))),"") ->  | C111: =IF(ISNUMBER(SEARCH(C$2,'8. Contracts'!$D29))=TRUE,('8. Contracts'!$C29/COUNTA(_xlfn.TEXTSPLIT('8. Contracts'!$D29,";"))),"") ->  | E111: =IF(ISNUMBER(SEARCH(E$2,'8. Contracts'!$E29))=TRUE,('8. Contracts'!$C29/COUNTA(_xlfn.TEXTSPLIT('8. Contracts'!$E29,";"))),"") ->  | F111: =IF(ISNUMBER(SEARCH(F$2,'8. Contracts'!$E29))=TRUE,('8. Contracts'!$C29/COUNTA(_xlfn.TEXTSPLIT('8. Contracts'!$E29,";"))),"") ->  | G111: =IF(ISNUMBER(SEARCH(G$2,'8. Contracts'!$E29))=TRUE,('8. Contracts'!$C29/COUNTA(_xlfn.TEXTSPLIT('8. Contracts'!$E29,";"))),"") ->  | H111: =IF(ISNUMBER(SEARCH(H$2,'8. Contracts'!$E29))=TRUE,('8. Contracts'!$C29/COUNTA(_xlfn.TEXTSPLIT('8. Contracts'!$E29,";"))),"") -> 
A112: =IF(ISNUMBER(SEARCH(A$2,'8. Contracts'!$D30))=TRUE,('8. Contracts'!$C30/COUNTA(_xlfn.TEXTSPLIT('8. Contracts'!$D30,";"))),"") ->  | B112: =IF(ISNUMBER(SEARCH(B$2,'8. Contracts'!$D30))=TRUE,('8. Contracts'!$C30/COUNTA(_xlfn.TEXTSPLIT('8. Contracts'!$D30,";"))),"") ->  | C112: =IF(ISNUMBER(SEARCH(C$2,'8. Contracts'!$D30))=TRUE,('8. Contracts'!$C30/COUNTA(_xlfn.TEXTSPLIT('8. Contracts'!$D30,";"))),"") ->  | E112: =IF(ISNUMBER(SEARCH(E$2,'8. Contracts'!$E30))=TRUE,('8. Contracts'!$C30/COUNTA(_xlfn.TEXTSPLIT('8. Contracts'!$E30,";"))),"") ->  | F112: =IF(ISNUMBER(SEARCH(F$2,'8. Contracts'!$E30))=TRUE,('8. Contracts'!$C30/COUNTA(_xlfn.TEXTSPLIT('8. Contracts'!$E30,";"))),"") ->  | G112: =IF(ISNUMBER(SEARCH(G$2,'8. Contracts'!$E30))=TRUE,('8. Contracts'!$C30/COUNTA(_xlfn.TEXTSPLIT('8. Contracts'!$E30,";"))),"") ->  | H112: =IF(ISNUMBER(SEARCH(H$2,'8. Contracts'!$E30))=TRUE,('8. Contracts'!$C30/COUNTA(_xlfn.TEXTSPLIT('8. Contracts'!$E30,";"))),"") -> 
A114: Supplies (Tab 9)- Allocation by Strategy | E114: Supplies (Tab 9)- Allocation by Topic
A115: Data and Surveillance | B115: Collaborations and Partnerships | C115: Assessment and Evaluation | E115: Adverse Childhood Experiences (ACEs) | F115: Transportation Safety | G115: Traumatic Brain Injury | H115: Other Topic (please specify in comments)
A116: =IF(ISNUMBER(SEARCH(A$2,'9. Supplies'!$H9))=TRUE,((SUM('9. Supplies'!$F9:$G9))/COUNTA(_xlfn.TEXTSPLIT('9. Supplies'!$H9,";"))),"") ->  | B116: =IF(ISNUMBER(SEARCH(B$2,'9. Supplies'!$H9))=TRUE,((SUM('9. Supplies'!$F9:$G9))/COUNTA(_xlfn.TEXTSPLIT('9. Supplies'!$H9,";"))),"") ->  | C116: =IF(ISNUMBER(SEARCH(C$2,'9. Supplies'!$H9))=TRUE,((SUM('9. Supplies'!$F9:$G9))/COUNTA(_xlfn.TEXTSPLIT('9. Supplies'!$H9,";"))),"") ->  | E116: =IF(ISNUMBER(SEARCH(E$2,'9. Supplies'!$I9))=TRUE,((SUM('9. Supplies'!$F9:$G9))/COUNTA(_xlfn.TEXTSPLIT('9. Supplies'!$I9,";"))),"") ->  | F116: =IF(ISNUMBER(SEARCH(F$2,'9. Supplies'!$I9))=TRUE,((SUM('9. Supplies'!$F9:$G9))/COUNTA(_xlfn.TEXTSPLIT('9. Supplies'!$I9,";"))),"") ->  | G116: =IF(ISNUMBER(SEARCH(G$2,'9. Supplies'!$I9))=TRUE,((SUM('9. Supplies'!$F9:$G9))/COUNTA(_xlfn.TEXTSPLIT('9. Supplies'!$I9,";"))),"") ->  | H116: =IF(ISNUMBER(SEARCH(H$2,'9. Supplies'!$I9))=TRUE,((SUM('9. Supplies'!$F9:$G9))/COUNTA(_xlfn.TEXTSPLIT('9. Supplies'!$I9,";"))),"") -> 
A117: =IF(ISNUMBER(SEARCH(A$2,'9. Supplies'!$H10))=TRUE,((SUM('9. Supplies'!$F10:$G10))/COUNTA(_xlfn.TEXTSPLIT('9. Supplies'!$H10,";"))),"") ->  | B117: =IF(ISNUMBER(SEARCH(B$2,'9. Supplies'!$H10))=TRUE,((SUM('9. Supplies'!$F10:$G10))/COUNTA(_xlfn.TEXTSPLIT('9. Supplies'!$H10,";"))),"") ->  | C117: =IF(ISNUMBER(SEARCH(C$2,'9. Supplies'!$H10))=TRUE,((SUM('9. Supplies'!$F10:$G10))/COUNTA(_xlfn.TEXTSPLIT('9. Supplies'!$H10,";"))),"") ->  | E117: =IF(ISNUMBER(SEARCH(E$2,'9. Supplies'!$I10))=TRUE,((SUM('9. Supplies'!$F10:$G10))/COUNTA(_xlfn.TEXTSPLIT('9. Supplies'!$I10,";"))),"") ->  | F117: =IF(ISNUMBER(SEARCH(F$2,'9. Supplies'!$I10))=TRUE,((SUM('9. Supplies'!$F10:$G10))/COUNTA(_xlfn.TEXTSPLIT('9. Supplies'!$I10,";"))),"") ->  | G117: =IF(ISNUMBER(SEARCH(G$2,'9. Supplies'!$I10))=TRUE,((SUM('9. Supplies'!$F10:$G10))/COUNTA(_xlfn.TEXTSPLIT('9. Supplies'!$I10,";"))),"") ->  | H117: =IF(ISNUMBER(SEARCH(H$2,'9. Supplies'!$I10))=TRUE,((SUM('9. Supplies'!$F10:$G10))/COUNTA(_xlfn.TEXTSPLIT('9. Supplies'!$I10,";"))),"") -> 
A118: =IF(ISNUMBER(SEARCH(A$2,'9. Supplies'!$H11))=TRUE,((SUM('9. Supplies'!$F11:$G11))/COUNTA(_xlfn.TEXTSPLIT('9. Supplies'!$H11,";"))),"") ->  | B118: =IF(ISNUMBER(SEARCH(B$2,'9. Supplies'!$H11))=TRUE,((SUM('9. Supplies'!$F11:$G11))/COUNTA(_xlfn.TEXTSPLIT('9. Supplies'!$H11,";"))),"") ->  | C118: =IF(ISNUMBER(SEARCH(C$2,'9. Supplies'!$H11))=TRUE,((SUM('9. Supplies'!$F11:$G11))/COUNTA(_xlfn.TEXTSPLIT('9. Supplies'!$H11,";"))),"") ->  | E118: =IF(ISNUMBER(SEARCH(E$2,'9. Supplies'!$I11))=TRUE,((SUM('9. Supplies'!$F11:$G11))/COUNTA(_xlfn.TEXTSPLIT('9. Supplies'!$I11,";"))),"") ->  | F118: =IF(ISNUMBER(SEARCH(F$2,'9. Supplies'!$I11))=TRUE,((SUM('9. Supplies'!$F11:$G11))/COUNTA(_xlfn.TEXTSPLIT('9. Supplies'!$I11,";"))),"") ->  | G118: =IF(ISNUMBER(SEARCH(G$2,'9. Supplies'!$I11))=TRUE,((SUM('9. Supplies'!$F11:$G11))/COUNTA(_xlfn.TEXTSPLIT('9. Supplies'!$I11,";"))),"") ->  | H118: =IF(ISNUMBER(SEARCH(H$2,'9. Supplies'!$I11))=TRUE,((SUM('9. Supplies'!$F11:$G11))/COUNTA(_xlfn.TEXTSPLIT('9. Supplies'!$I11,";"))),"") -> 
A119: =IF(ISNUMBER(SEARCH(A$2,'9. Supplies'!$H12))=TRUE,((SUM('9. Supplies'!$F12:$G12))/COUNTA(_xlfn.TEXTSPLIT('9. Supplies'!$H12,";"))),"") ->  | B119: =IF(ISNUMBER(SEARCH(B$2,'9. Supplies'!$H12))=TRUE,((SUM('9. Supplies'!$F12:$G12))/COUNTA(_xlfn.TEXTSPLIT('9. Supplies'!$H12,";"))),"") ->  | C119: =IF(ISNUMBER(SEARCH(C$2,'9. Supplies'!$H12))=TRUE,((SUM('9. Supplies'!$F12:$G12))/COUNTA(_xlfn.TEXTSPLIT('9. Supplies'!$H12,";"))),"") ->  | E119: =IF(ISNUMBER(SEARCH(E$2,'9. Supplies'!$I12))=TRUE,((SUM('9. Supplies'!$F12:$G12))/COUNTA(_xlfn.TEXTSPLIT('9. Supplies'!$I12,";"))),"") ->  | F119: =IF(ISNUMBER(SEARCH(F$2,'9. Supplies'!$I12))=TRUE,((SUM('9. Supplies'!$F12:$G12))/COUNTA(_xlfn.TEXTSPLIT('9. Supplies'!$I12,";"))),"") ->  | G119: =IF(ISNUMBER(SEARCH(G$2,'9. Supplies'!$I12))=TRUE,((SUM('9. Supplies'!$F12:$G12))/COUNTA(_xlfn.TEXTSPLIT('9. Supplies'!$I12,";"))),"") ->  | H119: =IF(ISNUMBER(SEARCH(H$2,'9. Supplies'!$I12))=TRUE,((SUM('9. Supplies'!$F12:$G12))/COUNTA(_xlfn.TEXTSPLIT('9. Supplies'!$I12,";"))),"") -> 
A120: =IF(ISNUMBER(SEARCH(A$2,'9. Supplies'!$H13))=TRUE,((SUM('9. Supplies'!$F13:$G13))/COUNTA(_xlfn.TEXTSPLIT('9. Supplies'!$H13,";"))),"") ->  | B120: =IF(ISNUMBER(SEARCH(B$2,'9. Supplies'!$H13))=TRUE,((SUM('9. Supplies'!$F13:$G13))/COUNTA(_xlfn.TEXTSPLIT('9. Supplies'!$H13,";"))),"") ->  | C120: =IF(ISNUMBER(SEARCH(C$2,'9. Supplies'!$H13))=TRUE,((SUM('9. Supplies'!$F13:$G13))/COUNTA(_xlfn.TEXTSPLIT('9. Supplies'!$H13,";"))),"") ->  | E120: =IF(ISNUMBER(SEARCH(E$2,'9. Supplies'!$I13))=TRUE,((SUM('9. Supplies'!$F13:$G13))/COUNTA(_xlfn.TEXTSPLIT('9. Supplies'!$I13,";"))),"") ->  | F120: =IF(ISNUMBER(SEARCH(F$2,'9. Supplies'!$I13))=TRUE,((SUM('9. Supplies'!$F13:$G13))/COUNTA(_xlfn.TEXTSPLIT('9. Supplies'!$I13,";"))),"") ->  | G120: =IF(ISNUMBER(SEARCH(G$2,'9. Supplies'!$I13))=TRUE,((SUM('9. Supplies'!$F13:$G13))/COUNTA(_xlfn.TEXTSPLIT('9. Supplies'!$I13,";"))),"") ->  | H120: =IF(ISNUMBER(SEARCH(H$2,'9. Supplies'!$I13))=TRUE,((SUM('9. Supplies'!$F13:$G13))/COUNTA(_xlfn.TEXTSPLIT('9. Supplies'!$I13,";"))),"") -> 
A121: =IF(ISNUMBER(SEARCH(A$2,'9. Supplies'!$H14))=TRUE,((SUM('9. Supplies'!$F14:$G14))/COUNTA(_xlfn.TEXTSPLIT('9. Supplies'!$H14,";"))),"") ->  | B121: =IF(ISNUMBER(SEARCH(B$2,'9. Supplies'!$H14))=TRUE,((SUM('9. Supplies'!$F14:$G14))/COUNTA(_xlfn.TEXTSPLIT('9. Supplies'!$H14,";"))),"") ->  | C121: =IF(ISNUMBER(SEARCH(C$2,'9. Supplies'!$H14))=TRUE,((SUM('9. Supplies'!$F14:$G14))/COUNTA(_xlfn.TEXTSPLIT('9. Supplies'!$H14,";"))),"") ->  | E121: =IF(ISNUMBER(SEARCH(E$2,'9. Supplies'!$I14))=TRUE,((SUM('9. Supplies'!$F14:$G14))/COUNTA(_xlfn.TEXTSPLIT('9. Supplies'!$I14,";"))),"") ->  | F121: =IF(ISNUMBER(SEARCH(F$2,'9. Supplies'!$I14))=TRUE,((SUM('9. Supplies'!$F14:$G14))/COUNTA(_xlfn.TEXTSPLIT('9. Supplies'!$I14,";"))),"") ->  | G121: =IF(ISNUMBER(SEARCH(G$2,'9. Supplies'!$I14))=TRUE,((SUM('9. Supplies'!$F14:$G14))/COUNTA(_xlfn.TEXTSPLIT('9. Supplies'!$I14,";"))),"") ->  | H121: =IF(ISNUMBER(SEARCH(H$2,'9. Supplies'!$I14))=TRUE,((SUM('9. Supplies'!$F14:$G14))/COUNTA(_xlfn.TEXTSPLIT('9. Supplies'!$I14,";"))),"") -> 
A122: =IF(ISNUMBER(SEARCH(A$2,'9. Supplies'!$H15))=TRUE,((SUM('9. Supplies'!$F15:$G15))/COUNTA(_xlfn.TEXTSPLIT('9. Supplies'!$H15,";"))),"") ->  | B122: =IF(ISNUMBER(SEARCH(B$2,'9. Supplies'!$H15))=TRUE,((SUM('9. Supplies'!$F15:$G15))/COUNTA(_xlfn.TEXTSPLIT('9. Supplies'!$H15,";"))),"") ->  | C122: =IF(ISNUMBER(SEARCH(C$2,'9. Supplies'!$H15))=TRUE,((SUM('9. Supplies'!$F15:$G15))/COUNTA(_xlfn.TEXTSPLIT('9. Supplies'!$H15,";"))),"") ->  | E122: =IF(ISNUMBER(SEARCH(E$2,'9. Supplies'!$I15))=TRUE,((SUM('9. Supplies'!$F15:$G15))/COUNTA(_xlfn.TEXTSPLIT('9. Supplies'!$I15,";"))),"") ->  | F122: =IF(ISNUMBER(SEARCH(F$2,'9. Supplies'!$I15))=TRUE,((SUM('9. Supplies'!$F15:$G15))/COUNTA(_xlfn.TEXTSPLIT('9. Supplies'!$I15,";"))),"") ->  | G122: =IF(ISNUMBER(SEARCH(G$2,'9. Supplies'!$I15))=TRUE,((SUM('9. Supplies'!$F15:$G15))/COUNTA(_xlfn.TEXTSPLIT('9. Supplies'!$I15,";"))),"") ->  | H122: =IF(ISNUMBER(SEARCH(H$2,'9. Supplies'!$I15))=TRUE,((SUM('9. Supplies'!$F15:$G15))/COUNTA(_xlfn.TEXTSPLIT('9. Supplies'!$I15,";"))),"") -> 
A123: =IF(ISNUMBER(SEARCH(A$2,'9. Supplies'!$H16))=TRUE,((SUM('9. Supplies'!$F16:$G16))/COUNTA(_xlfn.TEXTSPLIT('9. Supplies'!$H16,";"))),"") ->  | B123: =IF(ISNUMBER(SEARCH(B$2,'9. Supplies'!$H16))=TRUE,((SUM('9. Supplies'!$F16:$G16))/COUNTA(_xlfn.TEXTSPLIT('9. Supplies'!$H16,";"))),"") ->  | C123: =IF(ISNUMBER(SEARCH(C$2,'9. Supplies'!$H16))=TRUE,((SUM('9. Supplies'!$F16:$G16))/COUNTA(_xlfn.TEXTSPLIT('9. Supplies'!$H16,";"))),"") ->  | E123: =IF(ISNUMBER(SEARCH(E$2,'9. Supplies'!$I16))=TRUE,((SUM('9. Supplies'!$F16:$G16))/COUNTA(_xlfn.TEXTSPLIT('9. Supplies'!$I16,";"))),"") ->  | F123: =IF(ISNUMBER(SEARCH(F$2,'9. Supplies'!$I16))=TRUE,((SUM('9. Supplies'!$F16:$G16))/COUNTA(_xlfn.TEXTSPLIT('9. Supplies'!$I16,";"))),"") ->  | G123: =IF(ISNUMBER(SEARCH(G$2,'9. Supplies'!$I16))=TRUE,((SUM('9. Supplies'!$F16:$G16))/COUNTA(_xlfn.TEXTSPLIT('9. Supplies'!$I16,";"))),"") ->  | H123: =IF(ISNUMBER(SEARCH(H$2,'9. Supplies'!$I16))=TRUE,((SUM('9. Supplies'!$F16:$G16))/COUNTA(_xlfn.TEXTSPLIT('9. Supplies'!$I16,";"))),"") -> 
A124: =IF(ISNUMBER(SEARCH(A$2,'9. Supplies'!$H17))=TRUE,((SUM('9. Supplies'!$F17:$G17))/COUNTA(_xlfn.TEXTSPLIT('9. Supplies'!$H17,";"))),"") ->  | B124: =IF(ISNUMBER(SEARCH(B$2,'9. Supplies'!$H17))=TRUE,((SUM('9. Supplies'!$F17:$G17))/COUNTA(_xlfn.TEXTSPLIT('9. Supplies'!$H17,";"))),"") ->  | C124: =IF(ISNUMBER(SEARCH(C$2,'9. Supplies'!$H17))=TRUE,((SUM('9. Supplies'!$F17:$G17))/COUNTA(_xlfn.TEXTSPLIT('9. Supplies'!$H17,";"))),"") ->  | E124: =IF(ISNUMBER(SEARCH(E$2,'9. Supplies'!$I17))=TRUE,((SUM('9. Supplies'!$F17:$G17))/COUNTA(_xlfn.TEXTSPLIT('9. Supplies'!$I17,";"))),"") ->  | F124: =IF(ISNUMBER(SEARCH(F$2,'9. Supplies'!$I17))=TRUE,((SUM('9. Supplies'!$F17:$G17))/COUNTA(_xlfn.TEXTSPLIT('9. Supplies'!$I17,";"))),"") ->  | G124: =IF(ISNUMBER(SEARCH(G$2,'9. Supplies'!$I17))=TRUE,((SUM('9. Supplies'!$F17:$G17))/COUNTA(_xlfn.TEXTSPLIT('9. Supplies'!$I17,";"))),"") ->  | H124: =IF(ISNUMBER(SEARCH(H$2,'9. Supplies'!$I17))=TRUE,((SUM('9. Supplies'!$F17:$G17))/COUNTA(_xlfn.TEXTSPLIT('9. Supplies'!$I17,";"))),"") -> 
A125: =IF(ISNUMBER(SEARCH(A$2,'9. Supplies'!$H18))=TRUE,((SUM('9. Supplies'!$F18:$G18))/COUNTA(_xlfn.TEXTSPLIT('9. Supplies'!$H18,";"))),"") ->  | B125: =IF(ISNUMBER(SEARCH(B$2,'9. Supplies'!$H18))=TRUE,((SUM('9. Supplies'!$F18:$G18))/COUNTA(_xlfn.TEXTSPLIT('9. Supplies'!$H18,";"))),"") ->  | C125: =IF(ISNUMBER(SEARCH(C$2,'9. Supplies'!$H18))=TRUE,((SUM('9. Supplies'!$F18:$G18))/COUNTA(_xlfn.TEXTSPLIT('9. Supplies'!$H18,";"))),"") ->  | E125: =IF(ISNUMBER(SEARCH(E$2,'9. Supplies'!$I18))=TRUE,((SUM('9. Supplies'!$F18:$G18))/COUNTA(_xlfn.TEXTSPLIT('9. Supplies'!$I18,";"))),"") ->  | F125: =IF(ISNUMBER(SEARCH(F$2,'9. Supplies'!$I18))=TRUE,((SUM('9. Supplies'!$F18:$G18))/COUNTA(_xlfn.TEXTSPLIT('9. Supplies'!$I18,";"))),"") ->  | G125: =IF(ISNUMBER(SEARCH(G$2,'9. Supplies'!$I18))=TRUE,((SUM('9. Supplies'!$F18:$G18))/COUNTA(_xlfn.TEXTSPLIT('9. Supplies'!$I18,";"))),"") ->  | H125: =IF(ISNUMBER(SEARCH(H$2,'9. Supplies'!$I18))=TRUE,((SUM('9. Supplies'!$F18:$G18))/COUNTA(_xlfn.TEXTSPLIT('9. Supplies'!$I18,";"))),"") -> 
A126: =IF(ISNUMBER(SEARCH(A$2,'9. Supplies'!$H19))=TRUE,((SUM('9. Supplies'!$F19:$G19))/COUNTA(_xlfn.TEXTSPLIT('9. Supplies'!$H19,";"))),"") ->  | B126: =IF(ISNUMBER(SEARCH(B$2,'9. Supplies'!$H19))=TRUE,((SUM('9. Supplies'!$F19:$G19))/COUNTA(_xlfn.TEXTSPLIT('9. Supplies'!$H19,";"))),"") ->  | C126: =IF(ISNUMBER(SEARCH(C$2,'9. Supplies'!$H19))=TRUE,((SUM('9. Supplies'!$F19:$G19))/COUNTA(_xlfn.TEXTSPLIT('9. Supplies'!$H19,";"))),"") ->  | E126: =IF(ISNUMBER(SEARCH(E$2,'9. Supplies'!$I19))=TRUE,((SUM('9. Supplies'!$F19:$G19))/COUNTA(_xlfn.TEXTSPLIT('9. Supplies'!$I19,";"))),"") ->  | F126: =IF(ISNUMBER(SEARCH(F$2,'9. Supplies'!$I19))=TRUE,((SUM('9. Supplies'!$F19:$G19))/COUNTA(_xlfn.TEXTSPLIT('9. Supplies'!$I19,";"))),"") ->  | G126: =IF(ISNUMBER(SEARCH(G$2,'9. Supplies'!$I19))=TRUE,((SUM('9. Supplies'!$F19:$G19))/COUNTA(_xlfn.TEXTSPLIT('9. Supplies'!$I19,";"))),"") ->  | H126: =IF(ISNUMBER(SEARCH(H$2,'9. Supplies'!$I19))=TRUE,((SUM('9. Supplies'!$F19:$G19))/COUNTA(_xlfn.TEXTSPLIT('9. Supplies'!$I19,";"))),"") -> 
A127: =IF(ISNUMBER(SEARCH(A$2,'9. Supplies'!$H20))=TRUE,((SUM('9. Supplies'!$F20:$G20))/COUNTA(_xlfn.TEXTSPLIT('9. Supplies'!$H20,";"))),"") ->  | B127: =IF(ISNUMBER(SEARCH(B$2,'9. Supplies'!$H20))=TRUE,((SUM('9. Supplies'!$F20:$G20))/COUNTA(_xlfn.TEXTSPLIT('9. Supplies'!$H20,";"))),"") ->  | C127: =IF(ISNUMBER(SEARCH(C$2,'9. Supplies'!$H20))=TRUE,((SUM('9. Supplies'!$F20:$G20))/COUNTA(_xlfn.TEXTSPLIT('9. Supplies'!$H20,";"))),"") ->  | E127: =IF(ISNUMBER(SEARCH(E$2,'9. Supplies'!$I20))=TRUE,((SUM('9. Supplies'!$F20:$G20))/COUNTA(_xlfn.TEXTSPLIT('9. Supplies'!$I20,";"))),"") ->  | F127: =IF(ISNUMBER(SEARCH(F$2,'9. Supplies'!$I20))=TRUE,((SUM('9. Supplies'!$F20:$G20))/COUNTA(_xlfn.TEXTSPLIT('9. Supplies'!$I20,";"))),"") ->  | G127: =IF(ISNUMBER(SEARCH(G$2,'9. Supplies'!$I20))=TRUE,((SUM('9. Supplies'!$F20:$G20))/COUNTA(_xlfn.TEXTSPLIT('9. Supplies'!$I20,";"))),"") ->  | H127: =IF(ISNUMBER(SEARCH(H$2,'9. Supplies'!$I20))=TRUE,((SUM('9. Supplies'!$F20:$G20))/COUNTA(_xlfn.TEXTSPLIT('9. Supplies'!$I20,";"))),"") -> 
A128: =IF(ISNUMBER(SEARCH(A$2,'9. Supplies'!$H21))=TRUE,((SUM('9. Supplies'!$F21:$G21))/COUNTA(_xlfn.TEXTSPLIT('9. Supplies'!$H21,";"))),"") ->  | B128: =IF(ISNUMBER(SEARCH(B$2,'9. Supplies'!$H21))=TRUE,((SUM('9. Supplies'!$F21:$G21))/COUNTA(_xlfn.TEXTSPLIT('9. Supplies'!$H21,";"))),"") ->  | C128: =IF(ISNUMBER(SEARCH(C$2,'9. Supplies'!$H21))=TRUE,((SUM('9. Supplies'!$F21:$G21))/COUNTA(_xlfn.TEXTSPLIT('9. Supplies'!$H21,";"))),"") ->  | E128: =IF(ISNUMBER(SEARCH(E$2,'9. Supplies'!$I21))=TRUE,((SUM('9. Supplies'!$F21:$G21))/COUNTA(_xlfn.TEXTSPLIT('9. Supplies'!$I21,";"))),"") ->  | F128: =IF(ISNUMBER(SEARCH(F$2,'9. Supplies'!$I21))=TRUE,((SUM('9. Supplies'!$F21:$G21))/COUNTA(_xlfn.TEXTSPLIT('9. Supplies'!$I21,";"))),"") ->  | G128: =IF(ISNUMBER(SEARCH(G$2,'9. Supplies'!$I21))=TRUE,((SUM('9. Supplies'!$F21:$G21))/COUNTA(_xlfn.TEXTSPLIT('9. Supplies'!$I21,";"))),"") ->  | H128: =IF(ISNUMBER(SEARCH(H$2,'9. Supplies'!$I21))=TRUE,((SUM('9. Supplies'!$F21:$G21))/COUNTA(_xlfn.TEXTSPLIT('9. Supplies'!$I21,";"))),"") -> 
A129: =IF(ISNUMBER(SEARCH(A$2,'9. Supplies'!$H22))=TRUE,((SUM('9. Supplies'!$F22:$G22))/COUNTA(_xlfn.TEXTSPLIT('9. Supplies'!$H22,";"))),"") ->  | B129: =IF(ISNUMBER(SEARCH(B$2,'9. Supplies'!$H22))=TRUE,((SUM('9. Supplies'!$F22:$G22))/COUNTA(_xlfn.TEXTSPLIT('9. Supplies'!$H22,";"))),"") ->  | C129: =IF(ISNUMBER(SEARCH(C$2,'9. Supplies'!$H22))=TRUE,((SUM('9. Supplies'!$F22:$G22))/COUNTA(_xlfn.TEXTSPLIT('9. Supplies'!$H22,";"))),"") ->  | E129: =IF(ISNUMBER(SEARCH(E$2,'9. Supplies'!$I22))=TRUE,((SUM('9. Supplies'!$F22:$G22))/COUNTA(_xlfn.TEXTSPLIT('9. Supplies'!$I22,";"))),"") ->  | F129: =IF(ISNUMBER(SEARCH(F$2,'9. Supplies'!$I22))=TRUE,((SUM('9. Supplies'!$F22:$G22))/COUNTA(_xlfn.TEXTSPLIT('9. Supplies'!$I22,";"))),"") ->  | G129: =IF(ISNUMBER(SEARCH(G$2,'9. Supplies'!$I22))=TRUE,((SUM('9. Supplies'!$F22:$G22))/COUNTA(_xlfn.TEXTSPLIT('9. Supplies'!$I22,";"))),"") ->  | H129: =IF(ISNUMBER(SEARCH(H$2,'9. Supplies'!$I22))=TRUE,((SUM('9. Supplies'!$F22:$G22))/COUNTA(_xlfn.TEXTSPLIT('9. Supplies'!$I22,";"))),"") -> 
A130: =IF(ISNUMBER(SEARCH(A$2,'9. Supplies'!$H23))=TRUE,((SUM('9. Supplies'!$F23:$G23))/COUNTA(_xlfn.TEXTSPLIT('9. Supplies'!$H23,";"))),"") ->  | B130: =IF(ISNUMBER(SEARCH(B$2,'9. Supplies'!$H23))=TRUE,((SUM('9. Supplies'!$F23:$G23))/COUNTA(_xlfn.TEXTSPLIT('9. Supplies'!$H23,";"))),"") ->  | C130: =IF(ISNUMBER(SEARCH(C$2,'9. Supplies'!$H23))=TRUE,((SUM('9. Supplies'!$F23:$G23))/COUNTA(_xlfn.TEXTSPLIT('9. Supplies'!$H23,";"))),"") ->  | E130: =IF(ISNUMBER(SEARCH(E$2,'9. Supplies'!$I23))=TRUE,((SUM('9. Supplies'!$F23:$G23))/COUNTA(_xlfn.TEXTSPLIT('9. Supplies'!$I23,";"))),"") ->  | F130: =IF(ISNUMBER(SEARCH(F$2,'9. Supplies'!$I23))=TRUE,((SUM('9. Supplies'!$F23:$G23))/COUNTA(_xlfn.TEXTSPLIT('9. Supplies'!$I23,";"))),"") ->  | G130: =IF(ISNUMBER(SEARCH(G$2,'9. Supplies'!$I23))=TRUE,((SUM('9. Supplies'!$F23:$G23))/COUNTA(_xlfn.TEXTSPLIT('9. Supplies'!$I23,";"))),"") ->  | H130: =IF(ISNUMBER(SEARCH(H$2,'9. Supplies'!$I23))=TRUE,((SUM('9. Supplies'!$F23:$G23))/COUNTA(_xlfn.TEXTSPLIT('9. Supplies'!$I23,";"))),"") -> 
A131: =IF(ISNUMBER(SEARCH(A$2,'9. Supplies'!$H24))=TRUE,((SUM('9. Supplies'!$F24:$G24))/COUNTA(_xlfn.TEXTSPLIT('9. Supplies'!$H24,";"))),"") ->  | B131: =IF(ISNUMBER(SEARCH(B$2,'9. Supplies'!$H24))=TRUE,((SUM('9. Supplies'!$F24:$G24))/COUNTA(_xlfn.TEXTSPLIT('9. Supplies'!$H24,";"))),"") ->  | C131: =IF(ISNUMBER(SEARCH(C$2,'9. Supplies'!$H24))=TRUE,((SUM('9. Supplies'!$F24:$G24))/COUNTA(_xlfn.TEXTSPLIT('9. Supplies'!$H24,";"))),"") ->  | E131: =IF(ISNUMBER(SEARCH(E$2,'9. Supplies'!$I24))=TRUE,((SUM('9. Supplies'!$F24:$G24))/COUNTA(_xlfn.TEXTSPLIT('9. Supplies'!$I24,";"))),"") ->  | F131: =IF(ISNUMBER(SEARCH(F$2,'9. Supplies'!$I24))=TRUE,((SUM('9. Supplies'!$F24:$G24))/COUNTA(_xlfn.TEXTSPLIT('9. Supplies'!$I24,";"))),"") ->  | G131: =IF(ISNUMBER(SEARCH(G$2,'9. Supplies'!$I24))=TRUE,((SUM('9. Supplies'!$F24:$G24))/COUNTA(_xlfn.TEXTSPLIT('9. Supplies'!$I24,";"))),"") ->  | H131: =IF(ISNUMBER(SEARCH(H$2,'9. Supplies'!$I24))=TRUE,((SUM('9. Supplies'!$F24:$G24))/COUNTA(_xlfn.TEXTSPLIT('9. Supplies'!$I24,";"))),"") -> 
A132: =IF(ISNUMBER(SEARCH(A$2,'9. Supplies'!$H25))=TRUE,((SUM('9. Supplies'!$F25:$G25))/COUNTA(_xlfn.TEXTSPLIT('9. Supplies'!$H25,";"))),"") ->  | B132: =IF(ISNUMBER(SEARCH(B$2,'9. Supplies'!$H25))=TRUE,((SUM('9. Supplies'!$F25:$G25))/COUNTA(_xlfn.TEXTSPLIT('9. Supplies'!$H25,";"))),"") ->  | C132: =IF(ISNUMBER(SEARCH(C$2,'9. Supplies'!$H25))=TRUE,((SUM('9. Supplies'!$F25:$G25))/COUNTA(_xlfn.TEXTSPLIT('9. Supplies'!$H25,";"))),"") ->  | E132: =IF(ISNUMBER(SEARCH(E$2,'9. Supplies'!$I25))=TRUE,((SUM('9. Supplies'!$F25:$G25))/COUNTA(_xlfn.TEXTSPLIT('9. Supplies'!$I25,";"))),"") ->  | F132: =IF(ISNUMBER(SEARCH(F$2,'9. Supplies'!$I25))=TRUE,((SUM('9. Supplies'!$F25:$G25))/COUNTA(_xlfn.TEXTSPLIT('9. Supplies'!$I25,";"))),"") ->  | G132: =IF(ISNUMBER(SEARCH(G$2,'9. Supplies'!$I25))=TRUE,((SUM('9. Supplies'!$F25:$G25))/COUNTA(_xlfn.TEXTSPLIT('9. Supplies'!$I25,";"))),"") ->  | H132: =IF(ISNUMBER(SEARCH(H$2,'9. Supplies'!$I25))=TRUE,((SUM('9. Supplies'!$F25:$G25))/COUNTA(_xlfn.TEXTSPLIT('9. Supplies'!$I25,";"))),"") -> 
A133: =IF(ISNUMBER(SEARCH(A$2,'9. Supplies'!$H26))=TRUE,((SUM('9. Supplies'!$F26:$G26))/COUNTA(_xlfn.TEXTSPLIT('9. Supplies'!$H26,";"))),"") ->  | B133: =IF(ISNUMBER(SEARCH(B$2,'9. Supplies'!$H26))=TRUE,((SUM('9. Supplies'!$F26:$G26))/COUNTA(_xlfn.TEXTSPLIT('9. Supplies'!$H26,";"))),"") ->  | C133: =IF(ISNUMBER(SEARCH(C$2,'9. Supplies'!$H26))=TRUE,((SUM('9. Supplies'!$F26:$G26))/COUNTA(_xlfn.TEXTSPLIT('9. Supplies'!$H26,";"))),"") ->  | E133: =IF(ISNUMBER(SEARCH(E$2,'9. Supplies'!$I26))=TRUE,((SUM('9. Supplies'!$F26:$G26))/COUNTA(_xlfn.TEXTSPLIT('9. Supplies'!$I26,";"))),"") ->  | F133: =IF(ISNUMBER(SEARCH(F$2,'9. Supplies'!$I26))=TRUE,((SUM('9. Supplies'!$F26:$G26))/COUNTA(_xlfn.TEXTSPLIT('9. Supplies'!$I26,";"))),"") ->  | G133: =IF(ISNUMBER(SEARCH(G$2,'9. Supplies'!$I26))=TRUE,((SUM('9. Supplies'!$F26:$G26))/COUNTA(_xlfn.TEXTSPLIT('9. Supplies'!$I26,";"))),"") ->  | H133: =IF(ISNUMBER(SEARCH(H$2,'9. Supplies'!$I26))=TRUE,((SUM('9. Supplies'!$F26:$G26))/COUNTA(_xlfn.TEXTSPLIT('9. Supplies'!$I26,";"))),"") -> 
A134: =IF(ISNUMBER(SEARCH(A$2,'9. Supplies'!$H27))=TRUE,((SUM('9. Supplies'!$F27:$G27))/COUNTA(_xlfn.TEXTSPLIT('9. Supplies'!$H27,";"))),"") ->  | B134: =IF(ISNUMBER(SEARCH(B$2,'9. Supplies'!$H27))=TRUE,((SUM('9. Supplies'!$F27:$G27))/COUNTA(_xlfn.TEXTSPLIT('9. Supplies'!$H27,";"))),"") ->  | C134: =IF(ISNUMBER(SEARCH(C$2,'9. Supplies'!$H27))=TRUE,((SUM('9. Supplies'!$F27:$G27))/COUNTA(_xlfn.TEXTSPLIT('9. Supplies'!$H27,";"))),"") ->  | E134: =IF(ISNUMBER(SEARCH(E$2,'9. Supplies'!$I27))=TRUE,((SUM('9. Supplies'!$F27:$G27))/COUNTA(_xlfn.TEXTSPLIT('9. Supplies'!$I27,";"))),"") ->  | F134: =IF(ISNUMBER(SEARCH(F$2,'9. Supplies'!$I27))=TRUE,((SUM('9. Supplies'!$F27:$G27))/COUNTA(_xlfn.TEXTSPLIT('9. Supplies'!$I27,";"))),"") ->  | G134: =IF(ISNUMBER(SEARCH(G$2,'9. Supplies'!$I27))=TRUE,((SUM('9. Supplies'!$F27:$G27))/COUNTA(_xlfn.TEXTSPLIT('9. Supplies'!$I27,";"))),"") ->  | H134: =IF(ISNUMBER(SEARCH(H$2,'9. Supplies'!$I27))=TRUE,((SUM('9. Supplies'!$F27:$G27))/COUNTA(_xlfn.TEXTSPLIT('9. Supplies'!$I27,";"))),"") -> 
A135: =IF(ISNUMBER(SEARCH(A$2,'9. Supplies'!$H28))=TRUE,((SUM('9. Supplies'!$F28:$G28))/COUNTA(_xlfn.TEXTSPLIT('9. Supplies'!$H28,";"))),"") ->  | B135: =IF(ISNUMBER(SEARCH(B$2,'9. Supplies'!$H28))=TRUE,((SUM('9. Supplies'!$F28:$G28))/COUNTA(_xlfn.TEXTSPLIT('9. Supplies'!$H28,";"))),"") ->  | C135: =IF(ISNUMBER(SEARCH(C$2,'9. Supplies'!$H28))=TRUE,((SUM('9. Supplies'!$F28:$G28))/COUNTA(_xlfn.TEXTSPLIT('9. Supplies'!$H28,";"))),"") ->  | E135: =IF(ISNUMBER(SEARCH(E$2,'9. Supplies'!$I28))=TRUE,((SUM('9. Supplies'!$F28:$G28))/COUNTA(_xlfn.TEXTSPLIT('9. Supplies'!$I28,";"))),"") ->  | F135: =IF(ISNUMBER(SEARCH(F$2,'9. Supplies'!$I28))=TRUE,((SUM('9. Supplies'!$F28:$G28))/COUNTA(_xlfn.TEXTSPLIT('9. Supplies'!$I28,";"))),"") ->  | G135: =IF(ISNUMBER(SEARCH(G$2,'9. Supplies'!$I28))=TRUE,((SUM('9. Supplies'!$F28:$G28))/COUNTA(_xlfn.TEXTSPLIT('9. Supplies'!$I28,";"))),"") ->  | H135: =IF(ISNUMBER(SEARCH(H$2,'9. Supplies'!$I28))=TRUE,((SUM('9. Supplies'!$F28:$G28))/COUNTA(_xlfn.TEXTSPLIT('9. Supplies'!$I28,";"))),"") -> 
A136: =IF(ISNUMBER(SEARCH(A$2,'9. Supplies'!$H29))=TRUE,((SUM('9. Supplies'!$F29:$G29))/COUNTA(_xlfn.TEXTSPLIT('9. Supplies'!$H29,";"))),"") ->  | B136: =IF(ISNUMBER(SEARCH(B$2,'9. Supplies'!$H29))=TRUE,((SUM('9. Supplies'!$F29:$G29))/COUNTA(_xlfn.TEXTSPLIT('9. Supplies'!$H29,";"))),"") ->  | C136: =IF(ISNUMBER(SEARCH(C$2,'9. Supplies'!$H29))=TRUE,((SUM('9. Supplies'!$F29:$G29))/COUNTA(_xlfn.TEXTSPLIT('9. Supplies'!$H29,";"))),"") ->  | E136: =IF(ISNUMBER(SEARCH(E$2,'9. Supplies'!$I29))=TRUE,((SUM('9. Supplies'!$F29:$G29))/COUNTA(_xlfn.TEXTSPLIT('9. Supplies'!$I29,";"))),"") ->  | F136: =IF(ISNUMBER(SEARCH(F$2,'9. Supplies'!$I29))=TRUE,((SUM('9. Supplies'!$F29:$G29))/COUNTA(_xlfn.TEXTSPLIT('9. Supplies'!$I29,";"))),"") ->  | G136: =IF(ISNUMBER(SEARCH(G$2,'9. Supplies'!$I29))=TRUE,((SUM('9. Supplies'!$F29:$G29))/COUNTA(_xlfn.TEXTSPLIT('9. Supplies'!$I29,";"))),"") ->  | H136: =IF(ISNUMBER(SEARCH(H$2,'9. Supplies'!$I29))=TRUE,((SUM('9. Supplies'!$F29:$G29))/COUNTA(_xlfn.TEXTSPLIT('9. Supplies'!$I29,";"))),"") -> 
A137: =IF(ISNUMBER(SEARCH(A$2,'9. Supplies'!$H30))=TRUE,((SUM('9. Supplies'!$F30:$G30))/COUNTA(_xlfn.TEXTSPLIT('9. Supplies'!$H30,";"))),"") ->  | B137: =IF(ISNUMBER(SEARCH(B$2,'9. Supplies'!$H30))=TRUE,((SUM('9. Supplies'!$F30:$G30))/COUNTA(_xlfn.TEXTSPLIT('9. Supplies'!$H30,";"))),"") ->  | C137: =IF(ISNUMBER(SEARCH(C$2,'9. Supplies'!$H30))=TRUE,((SUM('9. Supplies'!$F30:$G30))/COUNTA(_xlfn.TEXTSPLIT('9. Supplies'!$H30,";"))),"") ->  | E137: =IF(ISNUMBER(SEARCH(E$2,'9. Supplies'!$I30))=TRUE,((SUM('9. Supplies'!$F30:$G30))/COUNTA(_xlfn.TEXTSPLIT('9. Supplies'!$I30,";"))),"") ->  | F137: =IF(ISNUMBER(SEARCH(F$2,'9. Supplies'!$I30))=TRUE,((SUM('9. Supplies'!$F30:$G30))/COUNTA(_xlfn.TEXTSPLIT('9. Supplies'!$I30,";"))),"") ->  | G137: =IF(ISNUMBER(SEARCH(G$2,'9. Supplies'!$I30))=TRUE,((SUM('9. Supplies'!$F30:$G30))/COUNTA(_xlfn.TEXTSPLIT('9. Supplies'!$I30,";"))),"") ->  | H137: =IF(ISNUMBER(SEARCH(H$2,'9. Supplies'!$I30))=TRUE,((SUM('9. Supplies'!$F30:$G30))/COUNTA(_xlfn.TEXTSPLIT('9. Supplies'!$I30,";"))),"") -> 
A138: =IF(ISNUMBER(SEARCH(A$2,'9. Supplies'!$H31))=TRUE,((SUM('9. Supplies'!$F31:$G31))/COUNTA(_xlfn.TEXTSPLIT('9. Supplies'!$H31,";"))),"") ->  | B138: =IF(ISNUMBER(SEARCH(B$2,'9. Supplies'!$H31))=TRUE,((SUM('9. Supplies'!$F31:$G31))/COUNTA(_xlfn.TEXTSPLIT('9. Supplies'!$H31,";"))),"") ->  | C138: =IF(ISNUMBER(SEARCH(C$2,'9. Supplies'!$H31))=TRUE,((SUM('9. Supplies'!$F31:$G31))/COUNTA(_xlfn.TEXTSPLIT('9. Supplies'!$H31,";"))),"") ->  | E138: =IF(ISNUMBER(SEARCH(E$2,'9. Supplies'!$I31))=TRUE,((SUM('9. Supplies'!$F31:$G31))/COUNTA(_xlfn.TEXTSPLIT('9. Supplies'!$I31,";"))),"") ->  | F138: =IF(ISNUMBER(SEARCH(F$2,'9. Supplies'!$I31))=TRUE,((SUM('9. Supplies'!$F31:$G31))/COUNTA(_xlfn.TEXTSPLIT('9. Supplies'!$I31,";"))),"") ->  | G138: =IF(ISNUMBER(SEARCH(G$2,'9. Supplies'!$I31))=TRUE,((SUM('9. Supplies'!$F31:$G31))/COUNTA(_xlfn.TEXTSPLIT('9. Supplies'!$I31,";"))),"") ->  | H138: =IF(ISNUMBER(SEARCH(H$2,'9. Supplies'!$I31))=TRUE,((SUM('9. Supplies'!$F31:$G31))/COUNTA(_xlfn.TEXTSPLIT('9. Supplies'!$I31,";"))),"") -> 
A139: =IF(ISNUMBER(SEARCH(A$2,'9. Supplies'!$H32))=TRUE,((SUM('9. Supplies'!$F32:$G32))/COUNTA(_xlfn.TEXTSPLIT('9. Supplies'!$H32,";"))),"") ->  | B139: =IF(ISNUMBER(SEARCH(B$2,'9. Supplies'!$H32))=TRUE,((SUM('9. Supplies'!$F32:$G32))/COUNTA(_xlfn.TEXTSPLIT('9. Supplies'!$H32,";"))),"") ->  | C139: =IF(ISNUMBER(SEARCH(C$2,'9. Supplies'!$H32))=TRUE,((SUM('9. Supplies'!$F32:$G32))/COUNTA(_xlfn.TEXTSPLIT('9. Supplies'!$H32,";"))),"") ->  | E139: =IF(ISNUMBER(SEARCH(E$2,'9. Supplies'!$I32))=TRUE,((SUM('9. Supplies'!$F32:$G32))/COUNTA(_xlfn.TEXTSPLIT('9. Supplies'!$I32,";"))),"") ->  | F139: =IF(ISNUMBER(SEARCH(F$2,'9. Supplies'!$I32))=TRUE,((SUM('9. Supplies'!$F32:$G32))/COUNTA(_xlfn.TEXTSPLIT('9. Supplies'!$I32,";"))),"") ->  | G139: =IF(ISNUMBER(SEARCH(G$2,'9. Supplies'!$I32))=TRUE,((SUM('9. Supplies'!$F32:$G32))/COUNTA(_xlfn.TEXTSPLIT('9. Supplies'!$I32,";"))),"") ->  | H139: =IF(ISNUMBER(SEARCH(H$2,'9. Supplies'!$I32))=TRUE,((SUM('9. Supplies'!$F32:$G32))/COUNTA(_xlfn.TEXTSPLIT('9. Supplies'!$I32,";"))),"") -> 
A140: =IF(ISNUMBER(SEARCH(A$2,'9. Supplies'!$H33))=TRUE,((SUM('9. Supplies'!$F33:$G33))/COUNTA(_xlfn.TEXTSPLIT('9. Supplies'!$H33,";"))),"") ->  | B140: =IF(ISNUMBER(SEARCH(B$2,'9. Supplies'!$H33))=TRUE,((SUM('9. Supplies'!$F33:$G33))/COUNTA(_xlfn.TEXTSPLIT('9. Supplies'!$H33,";"))),"") ->  | C140: =IF(ISNUMBER(SEARCH(C$2,'9. Supplies'!$H33))=TRUE,((SUM('9. Supplies'!$F33:$G33))/COUNTA(_xlfn.TEXTSPLIT('9. Supplies'!$H33,";"))),"") ->  | E140: =IF(ISNUMBER(SEARCH(E$2,'9. Supplies'!$I33))=TRUE,((SUM('9. Supplies'!$F33:$G33))/COUNTA(_xlfn.TEXTSPLIT('9. Supplies'!$I33,";"))),"") ->  | F140: =IF(ISNUMBER(SEARCH(F$2,'9. Supplies'!$I33))=TRUE,((SUM('9. Supplies'!$F33:$G33))/COUNTA(_xlfn.TEXTSPLIT('9. Supplies'!$I33,";"))),"") ->  | G140: =IF(ISNUMBER(SEARCH(G$2,'9. Supplies'!$I33))=TRUE,((SUM('9. Supplies'!$F33:$G33))/COUNTA(_xlfn.TEXTSPLIT('9. Supplies'!$I33,";"))),"") ->  | H140: =IF(ISNUMBER(SEARCH(H$2,'9. Supplies'!$I33))=TRUE,((SUM('9. Supplies'!$F33:$G33))/COUNTA(_xlfn.TEXTSPLIT('9. Supplies'!$I33,";"))),"") -> 
A141: =IF(ISNUMBER(SEARCH(A$2,'9. Supplies'!$H34))=TRUE,((SUM('9. Supplies'!$F34:$G34))/COUNTA(_xlfn.TEXTSPLIT('9. Supplies'!$H34,";"))),"") ->  | B141: =IF(ISNUMBER(SEARCH(B$2,'9. Supplies'!$H34))=TRUE,((SUM('9. Supplies'!$F34:$G34))/COUNTA(_xlfn.TEXTSPLIT('9. Supplies'!$H34,";"))),"") ->  | C141: =IF(ISNUMBER(SEARCH(C$2,'9. Supplies'!$H34))=TRUE,((SUM('9. Supplies'!$F34:$G34))/COUNTA(_xlfn.TEXTSPLIT('9. Supplies'!$H34,";"))),"") ->  | E141: =IF(ISNUMBER(SEARCH(E$2,'9. Supplies'!$I34))=TRUE,((SUM('9. Supplies'!$F34:$G34))/COUNTA(_xlfn.TEXTSPLIT('9. Supplies'!$I34,";"))),"") ->  | F141: =IF(ISNUMBER(SEARCH(F$2,'9. Supplies'!$I34))=TRUE,((SUM('9. Supplies'!$F34:$G34))/COUNTA(_xlfn.TEXTSPLIT('9. Supplies'!$I34,";"))),"") ->  | G141: =IF(ISNUMBER(SEARCH(G$2,'9. Supplies'!$I34))=TRUE,((SUM('9. Supplies'!$F34:$G34))/COUNTA(_xlfn.TEXTSPLIT('9. Supplies'!$I34,";"))),"") ->  | H141: =IF(ISNUMBER(SEARCH(H$2,'9. Supplies'!$I34))=TRUE,((SUM('9. Supplies'!$F34:$G34))/COUNTA(_xlfn.TEXTSPLIT('9. Supplies'!$I34,";"))),"") -> 
A142: =IF(ISNUMBER(SEARCH(A$2,'9. Supplies'!$H35))=TRUE,((SUM('9. Supplies'!$F35:$G35))/COUNTA(_xlfn.TEXTSPLIT('9. Supplies'!$H35,";"))),"") ->  | B142: =IF(ISNUMBER(SEARCH(B$2,'9. Supplies'!$H35))=TRUE,((SUM('9. Supplies'!$F35:$G35))/COUNTA(_xlfn.TEXTSPLIT('9. Supplies'!$H35,";"))),"") ->  | C142: =IF(ISNUMBER(SEARCH(C$2,'9. Supplies'!$H35))=TRUE,((SUM('9. Supplies'!$F35:$G35))/COUNTA(_xlfn.TEXTSPLIT('9. Supplies'!$H35,";"))),"") ->  | E142: =IF(ISNUMBER(SEARCH(E$2,'9. Supplies'!$I35))=TRUE,((SUM('9. Supplies'!$F35:$G35))/COUNTA(_xlfn.TEXTSPLIT('9. Supplies'!$I35,";"))),"") ->  | F142: =IF(ISNUMBER(SEARCH(F$2,'9. Supplies'!$I35))=TRUE,((SUM('9. Supplies'!$F35:$G35))/COUNTA(_xlfn.TEXTSPLIT('9. Supplies'!$I35,";"))),"") ->  | G142: =IF(ISNUMBER(SEARCH(G$2,'9. Supplies'!$I35))=TRUE,((SUM('9. Supplies'!$F35:$G35))/COUNTA(_xlfn.TEXTSPLIT('9. Supplies'!$I35,";"))),"") ->  | H142: =IF(ISNUMBER(SEARCH(H$2,'9. Supplies'!$I35))=TRUE,((SUM('9. Supplies'!$F35:$G35))/COUNTA(_xlfn.TEXTSPLIT('9. Supplies'!$I35,";"))),"") -> 
A143: =IF(ISNUMBER(SEARCH(A$2,'9. Supplies'!$H36))=TRUE,((SUM('9. Supplies'!$F36:$G36))/COUNTA(_xlfn.TEXTSPLIT('9. Supplies'!$H36,";"))),"") ->  | B143: =IF(ISNUMBER(SEARCH(B$2,'9. Supplies'!$H36))=TRUE,((SUM('9. Supplies'!$F36:$G36))/COUNTA(_xlfn.TEXTSPLIT('9. Supplies'!$H36,";"))),"") ->  | C143: =IF(ISNUMBER(SEARCH(C$2,'9. Supplies'!$H36))=TRUE,((SUM('9. Supplies'!$F36:$G36))/COUNTA(_xlfn.TEXTSPLIT('9. Supplies'!$H36,";"))),"") ->  | E143: =IF(ISNUMBER(SEARCH(E$2,'9. Supplies'!$I36))=TRUE,((SUM('9. Supplies'!$F36:$G36))/COUNTA(_xlfn.TEXTSPLIT('9. Supplies'!$I36,";"))),"") ->  | F143: =IF(ISNUMBER(SEARCH(F$2,'9. Supplies'!$I36))=TRUE,((SUM('9. Supplies'!$F36:$G36))/COUNTA(_xlfn.TEXTSPLIT('9. Supplies'!$I36,";"))),"") ->  | G143: =IF(ISNUMBER(SEARCH(G$2,'9. Supplies'!$I36))=TRUE,((SUM('9. Supplies'!$F36:$G36))/COUNTA(_xlfn.TEXTSPLIT('9. Supplies'!$I36,";"))),"") ->  | H143: =IF(ISNUMBER(SEARCH(H$2,'9. Supplies'!$I36))=TRUE,((SUM('9. Supplies'!$F36:$G36))/COUNTA(_xlfn.TEXTSPLIT('9. Supplies'!$I36,";"))),"") -> 
A144: =IF(ISNUMBER(SEARCH(A$2,'9. Supplies'!$H37))=TRUE,((SUM('9. Supplies'!$F37:$G37))/COUNTA(_xlfn.TEXTSPLIT('9. Supplies'!$H37,";"))),"") ->  | B144: =IF(ISNUMBER(SEARCH(B$2,'9. Supplies'!$H37))=TRUE,((SUM('9. Supplies'!$F37:$G37))/COUNTA(_xlfn.TEXTSPLIT('9. Supplies'!$H37,";"))),"") ->  | C144: =IF(ISNUMBER(SEARCH(C$2,'9. Supplies'!$H37))=TRUE,((SUM('9. Supplies'!$F37:$G37))/COUNTA(_xlfn.TEXTSPLIT('9. Supplies'!$H37,";"))),"") ->  | E144: =IF(ISNUMBER(SEARCH(E$2,'9. Supplies'!$I37))=TRUE,((SUM('9. Supplies'!$F37:$G37))/COUNTA(_xlfn.TEXTSPLIT('9. Supplies'!$I37,";"))),"") ->  | F144: =IF(ISNUMBER(SEARCH(F$2,'9. Supplies'!$I37))=TRUE,((SUM('9. Supplies'!$F37:$G37))/COUNTA(_xlfn.TEXTSPLIT('9. Supplies'!$I37,";"))),"") ->  | G144: =IF(ISNUMBER(SEARCH(G$2,'9. Supplies'!$I37))=TRUE,((SUM('9. Supplies'!$F37:$G37))/COUNTA(_xlfn.TEXTSPLIT('9. Supplies'!$I37,";"))),"") ->  | H144: =IF(ISNUMBER(SEARCH(H$2,'9. Supplies'!$I37))=TRUE,((SUM('9. Supplies'!$F37:$G37))/COUNTA(_xlfn.TEXTSPLIT('9. Supplies'!$I37,";"))),"") -> 
A145: =IF(ISNUMBER(SEARCH(A$2,'9. Supplies'!$H38))=TRUE,((SUM('9. Supplies'!$F38:$G38))/COUNTA(_xlfn.TEXTSPLIT('9. Supplies'!$H38,";"))),"") ->  | B145: =IF(ISNUMBER(SEARCH(B$2,'9. Supplies'!$H38))=TRUE,((SUM('9. Supplies'!$F38:$G38))/COUNTA(_xlfn.TEXTSPLIT('9. Supplies'!$H38,";"))),"") ->  | C145: =IF(ISNUMBER(SEARCH(C$2,'9. Supplies'!$H38))=TRUE,((SUM('9. Supplies'!$F38:$G38))/COUNTA(_xlfn.TEXTSPLIT('9. Supplies'!$H38,";"))),"") ->  | E145: =IF(ISNUMBER(SEARCH(E$2,'9. Supplies'!$I38))=TRUE,((SUM('9. Supplies'!$F38:$G38))/COUNTA(_xlfn.TEXTSPLIT('9. Supplies'!$I38,";"))),"") ->  | F145: =IF(ISNUMBER(SEARCH(F$2,'9. Supplies'!$I38))=TRUE,((SUM('9. Supplies'!$F38:$G38))/COUNTA(_xlfn.TEXTSPLIT('9. Supplies'!$I38,";"))),"") ->  | G145: =IF(ISNUMBER(SEARCH(G$2,'9. Supplies'!$I38))=TRUE,((SUM('9. Supplies'!$F38:$G38))/COUNTA(_xlfn.TEXTSPLIT('9. Supplies'!$I38,";"))),"") ->  | H145: =IF(ISNUMBER(SEARCH(H$2,'9. Supplies'!$I38))=TRUE,((SUM('9. Supplies'!$F38:$G38))/COUNTA(_xlfn.TEXTSPLIT('9. Supplies'!$I38,";"))),"") -> 
A146: =IF(ISNUMBER(SEARCH(A$2,'9. Supplies'!$H39))=TRUE,((SUM('9. Supplies'!$F39:$G39))/COUNTA(_xlfn.TEXTSPLIT('9. Supplies'!$H39,";"))),"") ->  | B146: =IF(ISNUMBER(SEARCH(B$2,'9. Supplies'!$H39))=TRUE,((SUM('9. Supplies'!$F39:$G39))/COUNTA(_xlfn.TEXTSPLIT('9. Supplies'!$H39,";"))),"") ->  | C146: =IF(ISNUMBER(SEARCH(C$2,'9. Supplies'!$H39))=TRUE,((SUM('9. Supplies'!$F39:$G39))/COUNTA(_xlfn.TEXTSPLIT('9. Supplies'!$H39,";"))),"") ->  | E146: =IF(ISNUMBER(SEARCH(E$2,'9. Supplies'!$I39))=TRUE,((SUM('9. Supplies'!$F39:$G39))/COUNTA(_xlfn.TEXTSPLIT('9. Supplies'!$I39,";"))),"") ->  | F146: =IF(ISNUMBER(SEARCH(F$2,'9. Supplies'!$I39))=TRUE,((SUM('9. Supplies'!$F39:$G39))/COUNTA(_xlfn.TEXTSPLIT('9. Supplies'!$I39,";"))),"") ->  | G146: =IF(ISNUMBER(SEARCH(G$2,'9. Supplies'!$I39))=TRUE,((SUM('9. Supplies'!$F39:$G39))/COUNTA(_xlfn.TEXTSPLIT('9. Supplies'!$I39,";"))),"") ->  | H146: =IF(ISNUMBER(SEARCH(H$2,'9. Supplies'!$I39))=TRUE,((SUM('9. Supplies'!$F39:$G39))/COUNTA(_xlfn.TEXTSPLIT('9. Supplies'!$I39,";"))),"") -> 
A147: =IF(ISNUMBER(SEARCH(A$2,'9. Supplies'!$H40))=TRUE,((SUM('9. Supplies'!$F40:$G40))/COUNTA(_xlfn.TEXTSPLIT('9. Supplies'!$H40,";"))),"") ->  | B147: =IF(ISNUMBER(SEARCH(B$2,'9. Supplies'!$H40))=TRUE,((SUM('9. Supplies'!$F40:$G40))/COUNTA(_xlfn.TEXTSPLIT('9. Supplies'!$H40,";"))),"") ->  | C147: =IF(ISNUMBER(SEARCH(C$2,'9. Supplies'!$H40))=TRUE,((SUM('9. Supplies'!$F40:$G40))/COUNTA(_xlfn.TEXTSPLIT('9. Supplies'!$H40,";"))),"") ->  | E147: =IF(ISNUMBER(SEARCH(E$2,'9. Supplies'!$I40))=TRUE,((SUM('9. Supplies'!$F40:$G40))/COUNTA(_xlfn.TEXTSPLIT('9. Supplies'!$I40,";"))),"") ->  | F147: =IF(ISNUMBER(SEARCH(F$2,'9. Supplies'!$I40))=TRUE,((SUM('9. Supplies'!$F40:$G40))/COUNTA(_xlfn.TEXTSPLIT('9. Supplies'!$I40,";"))),"") ->  | G147: =IF(ISNUMBER(SEARCH(G$2,'9. Supplies'!$I40))=TRUE,((SUM('9. Supplies'!$F40:$G40))/COUNTA(_xlfn.TEXTSPLIT('9. Supplies'!$I40,";"))),"") ->  | H147: =IF(ISNUMBER(SEARCH(H$2,'9. Supplies'!$I40))=TRUE,((SUM('9. Supplies'!$F40:$G40))/COUNTA(_xlfn.TEXTSPLIT('9. Supplies'!$I40,";"))),"") -> 
A148: =IF(ISNUMBER(SEARCH(A$2,'9. Supplies'!$H41))=TRUE,((SUM('9. Supplies'!$F41:$G41))/COUNTA(_xlfn.TEXTSPLIT('9. Supplies'!$H41,";"))),"") ->  | B148: =IF(ISNUMBER(SEARCH(B$2,'9. Supplies'!$H41))=TRUE,((SUM('9. Supplies'!$F41:$G41))/COUNTA(_xlfn.TEXTSPLIT('9. Supplies'!$H41,";"))),"") ->  | C148: =IF(ISNUMBER(SEARCH(C$2,'9. Supplies'!$H41))=TRUE,((SUM('9. Supplies'!$F41:$G41))/COUNTA(_xlfn.TEXTSPLIT('9. Supplies'!$H41,";"))),"") ->  | E148: =IF(ISNUMBER(SEARCH(E$2,'9. Supplies'!$I41))=TRUE,((SUM('9. Supplies'!$F41:$G41))/COUNTA(_xlfn.TEXTSPLIT('9. Supplies'!$I41,";"))),"") ->  | F148: =IF(ISNUMBER(SEARCH(F$2,'9. Supplies'!$I41))=TRUE,((SUM('9. Supplies'!$F41:$G41))/COUNTA(_xlfn.TEXTSPLIT('9. Supplies'!$I41,";"))),"") ->  | G148: =IF(ISNUMBER(SEARCH(G$2,'9. Supplies'!$I41))=TRUE,((SUM('9. Supplies'!$F41:$G41))/COUNTA(_xlfn.TEXTSPLIT('9. Supplies'!$I41,";"))),"") ->  | H148: =IF(ISNUMBER(SEARCH(H$2,'9. Supplies'!$I41))=TRUE,((SUM('9. Supplies'!$F41:$G41))/COUNTA(_xlfn.TEXTSPLIT('9. Supplies'!$I41,";"))),"") -> 
A149: =IF(ISNUMBER(SEARCH(A$2,'9. Supplies'!$H42))=TRUE,((SUM('9. Supplies'!$F42:$G42))/COUNTA(_xlfn.TEXTSPLIT('9. Supplies'!$H42,";"))),"") ->  | B149: =IF(ISNUMBER(SEARCH(B$2,'9. Supplies'!$H42))=TRUE,((SUM('9. Supplies'!$F42:$G42))/COUNTA(_xlfn.TEXTSPLIT('9. Supplies'!$H42,";"))),"") ->  | C149: =IF(ISNUMBER(SEARCH(C$2,'9. Supplies'!$H42))=TRUE,((SUM('9. Supplies'!$F42:$G42))/COUNTA(_xlfn.TEXTSPLIT('9. Supplies'!$H42,";"))),"") ->  | E149: =IF(ISNUMBER(SEARCH(E$2,'9. Supplies'!$I42))=TRUE,((SUM('9. Supplies'!$F42:$G42))/COUNTA(_xlfn.TEXTSPLIT('9. Supplies'!$I42,";"))),"") ->  | F149: =IF(ISNUMBER(SEARCH(F$2,'9. Supplies'!$I42))=TRUE,((SUM('9. Supplies'!$F42:$G42))/COUNTA(_xlfn.TEXTSPLIT('9. Supplies'!$I42,";"))),"") ->  | G149: =IF(ISNUMBER(SEARCH(G$2,'9. Supplies'!$I42))=TRUE,((SUM('9. Supplies'!$F42:$G42))/COUNTA(_xlfn.TEXTSPLIT('9. Supplies'!$I42,";"))),"") ->  | H149: =IF(ISNUMBER(SEARCH(H$2,'9. Supplies'!$I42))=TRUE,((SUM('9. Supplies'!$F42:$G42))/COUNTA(_xlfn.TEXTSPLIT('9. Supplies'!$I42,";"))),"") -> 
A150: =IF(ISNUMBER(SEARCH(A$2,'9. Supplies'!$H43))=TRUE,((SUM('9. Supplies'!$F43:$G43))/COUNTA(_xlfn.TEXTSPLIT('9. Supplies'!$H43,";"))),"") ->  | B150: =IF(ISNUMBER(SEARCH(B$2,'9. Supplies'!$H43))=TRUE,((SUM('9. Supplies'!$F43:$G43))/COUNTA(_xlfn.TEXTSPLIT('9. Supplies'!$H43,";"))),"") ->  | C150: =IF(ISNUMBER(SEARCH(C$2,'9. Supplies'!$H43))=TRUE,((SUM('9. Supplies'!$F43:$G43))/COUNTA(_xlfn.TEXTSPLIT('9. Supplies'!$H43,";"))),"") ->  | E150: =IF(ISNUMBER(SEARCH(E$2,'9. Supplies'!$I43))=TRUE,((SUM('9. Supplies'!$F43:$G43))/COUNTA(_xlfn.TEXTSPLIT('9. Supplies'!$I43,";"))),"") ->  | F150: =IF(ISNUMBER(SEARCH(F$2,'9. Supplies'!$I43))=TRUE,((SUM('9. Supplies'!$F43:$G43))/COUNTA(_xlfn.TEXTSPLIT('9. Supplies'!$I43,";"))),"") ->  | G150: =IF(ISNUMBER(SEARCH(G$2,'9. Supplies'!$I43))=TRUE,((SUM('9. Supplies'!$F43:$G43))/COUNTA(_xlfn.TEXTSPLIT('9. Supplies'!$I43,";"))),"") ->  | H150: =IF(ISNUMBER(SEARCH(H$2,'9. Supplies'!$I43))=TRUE,((SUM('9. Supplies'!$F43:$G43))/COUNTA(_xlfn.TEXTSPLIT('9. Supplies'!$I43,";"))),"") -> 
A151: =IF(ISNUMBER(SEARCH(A$2,'9. Supplies'!$H44))=TRUE,((SUM('9. Supplies'!$F44:$G44))/COUNTA(_xlfn.TEXTSPLIT('9. Supplies'!$H44,";"))),"") ->  | B151: =IF(ISNUMBER(SEARCH(B$2,'9. Supplies'!$H44))=TRUE,((SUM('9. Supplies'!$F44:$G44))/COUNTA(_xlfn.TEXTSPLIT('9. Supplies'!$H44,";"))),"") ->  | C151: =IF(ISNUMBER(SEARCH(C$2,'9. Supplies'!$H44))=TRUE,((SUM('9. Supplies'!$F44:$G44))/COUNTA(_xlfn.TEXTSPLIT('9. Supplies'!$H44,";"))),"") ->  | E151: =IF(ISNUMBER(SEARCH(E$2,'9. Supplies'!$I44))=TRUE,((SUM('9. Supplies'!$F44:$G44))/COUNTA(_xlfn.TEXTSPLIT('9. Supplies'!$I44,";"))),"") ->  | F151: =IF(ISNUMBER(SEARCH(F$2,'9. Supplies'!$I44))=TRUE,((SUM('9. Supplies'!$F44:$G44))/COUNTA(_xlfn.TEXTSPLIT('9. Supplies'!$I44,";"))),"") ->  | G151: =IF(ISNUMBER(SEARCH(G$2,'9. Supplies'!$I44))=TRUE,((SUM('9. Supplies'!$F44:$G44))/COUNTA(_xlfn.TEXTSPLIT('9. Supplies'!$I44,";"))),"") ->  | H151: =IF(ISNUMBER(SEARCH(H$2,'9. Supplies'!$I44))=TRUE,((SUM('9. Supplies'!$F44:$G44))/COUNTA(_xlfn.TEXTSPLIT('9. Supplies'!$I44,";"))),"") -> 
A152: =IF(ISNUMBER(SEARCH(A$2,'9. Supplies'!$H45))=TRUE,((SUM('9. Supplies'!$F45:$G45))/COUNTA(_xlfn.TEXTSPLIT('9. Supplies'!$H45,";"))),"") ->  | B152: =IF(ISNUMBER(SEARCH(B$2,'9. Supplies'!$H45))=TRUE,((SUM('9. Supplies'!$F45:$G45))/COUNTA(_xlfn.TEXTSPLIT('9. Supplies'!$H45,";"))),"") ->  | C152: =IF(ISNUMBER(SEARCH(C$2,'9. Supplies'!$H45))=TRUE,((SUM('9. Supplies'!$F45:$G45))/COUNTA(_xlfn.TEXTSPLIT('9. Supplies'!$H45,";"))),"") ->  | E152: =IF(ISNUMBER(SEARCH(E$2,'9. Supplies'!$I45))=TRUE,((SUM('9. Supplies'!$F45:$G45))/COUNTA(_xlfn.TEXTSPLIT('9. Supplies'!$I45,";"))),"") ->  | F152: =IF(ISNUMBER(SEARCH(F$2,'9. Supplies'!$I45))=TRUE,((SUM('9. Supplies'!$F45:$G45))/COUNTA(_xlfn.TEXTSPLIT('9. Supplies'!$I45,";"))),"") ->  | G152: =IF(ISNUMBER(SEARCH(G$2,'9. Supplies'!$I45))=TRUE,((SUM('9. Supplies'!$F45:$G45))/COUNTA(_xlfn.TEXTSPLIT('9. Supplies'!$I45,";"))),"") ->  | H152: =IF(ISNUMBER(SEARCH(H$2,'9. Supplies'!$I45))=TRUE,((SUM('9. Supplies'!$F45:$G45))/COUNTA(_xlfn.TEXTSPLIT('9. Supplies'!$I45,";"))),"") -> 
A153: =IF(ISNUMBER(SEARCH(A$2,'9. Supplies'!$H46))=TRUE,((SUM('9. Supplies'!$F46:$G46))/COUNTA(_xlfn.TEXTSPLIT('9. Supplies'!$H46,";"))),"") ->  | B153: =IF(ISNUMBER(SEARCH(B$2,'9. Supplies'!$H46))=TRUE,((SUM('9. Supplies'!$F46:$G46))/COUNTA(_xlfn.TEXTSPLIT('9. Supplies'!$H46,";"))),"") ->  | C153: =IF(ISNUMBER(SEARCH(C$2,'9. Supplies'!$H46))=TRUE,((SUM('9. Supplies'!$F46:$G46))/COUNTA(_xlfn.TEXTSPLIT('9. Supplies'!$H46,";"))),"") ->  | E153: =IF(ISNUMBER(SEARCH(E$2,'9. Supplies'!$I46))=TRUE,((SUM('9. Supplies'!$F46:$G46))/COUNTA(_xlfn.TEXTSPLIT('9. Supplies'!$I46,";"))),"") ->  | F153: =IF(ISNUMBER(SEARCH(F$2,'9. Supplies'!$I46))=TRUE,((SUM('9. Supplies'!$F46:$G46))/COUNTA(_xlfn.TEXTSPLIT('9. Supplies'!$I46,";"))),"") ->  | G153: =IF(ISNUMBER(SEARCH(G$2,'9. Supplies'!$I46))=TRUE,((SUM('9. Supplies'!$F46:$G46))/COUNTA(_xlfn.TEXTSPLIT('9. Supplies'!$I46,";"))),"") ->  | H153: =IF(ISNUMBER(SEARCH(H$2,'9. Supplies'!$I46))=TRUE,((SUM('9. Supplies'!$F46:$G46))/COUNTA(_xlfn.TEXTSPLIT('9. Supplies'!$I46,";"))),"") -> 
A154: =IF(ISNUMBER(SEARCH(A$2,'9. Supplies'!$H47))=TRUE,((SUM('9. Supplies'!$F47:$G47))/COUNTA(_xlfn.TEXTSPLIT('9. Supplies'!$H47,";"))),"") ->  | B154: =IF(ISNUMBER(SEARCH(B$2,'9. Supplies'!$H47))=TRUE,((SUM('9. Supplies'!$F47:$G47))/COUNTA(_xlfn.TEXTSPLIT('9. Supplies'!$H47,";"))),"") ->  | C154: =IF(ISNUMBER(SEARCH(C$2,'9. Supplies'!$H47))=TRUE,((SUM('9. Supplies'!$F47:$G47))/COUNTA(_xlfn.TEXTSPLIT('9. Supplies'!$H47,";"))),"") ->  | E154: =IF(ISNUMBER(SEARCH(E$2,'9. Supplies'!$I47))=TRUE,((SUM('9. Supplies'!$F47:$G47))/COUNTA(_xlfn.TEXTSPLIT('9. Supplies'!$I47,";"))),"") ->  | F154: =IF(ISNUMBER(SEARCH(F$2,'9. Supplies'!$I47))=TRUE,((SUM('9. Supplies'!$F47:$G47))/COUNTA(_xlfn.TEXTSPLIT('9. Supplies'!$I47,";"))),"") ->  | G154: =IF(ISNUMBER(SEARCH(G$2,'9. Supplies'!$I47))=TRUE,((SUM('9. Supplies'!$F47:$G47))/COUNTA(_xlfn.TEXTSPLIT('9. Supplies'!$I47,";"))),"") ->  | H154: =IF(ISNUMBER(SEARCH(H$2,'9. Supplies'!$I47))=TRUE,((SUM('9. Supplies'!$F47:$G47))/COUNTA(_xlfn.TEXTSPLIT('9. Supplies'!$I47,";"))),"") -> 
A155: =IF(ISNUMBER(SEARCH(A$2,'9. Supplies'!$H48))=TRUE,((SUM('9. Supplies'!$F48:$G48))/COUNTA(_xlfn.TEXTSPLIT('9. Supplies'!$H48,";"))),"") ->  | B155: =IF(ISNUMBER(SEARCH(B$2,'9. Supplies'!$H48))=TRUE,((SUM('9. Supplies'!$F48:$G48))/COUNTA(_xlfn.TEXTSPLIT('9. Supplies'!$H48,";"))),"") ->  | C155: =IF(ISNUMBER(SEARCH(C$2,'9. Supplies'!$H48))=TRUE,((SUM('9. Supplies'!$F48:$G48))/COUNTA(_xlfn.TEXTSPLIT('9. Supplies'!$H48,";"))),"") ->  | E155: =IF(ISNUMBER(SEARCH(E$2,'9. Supplies'!$I48))=TRUE,((SUM('9. Supplies'!$F48:$G48))/COUNTA(_xlfn.TEXTSPLIT('9. Supplies'!$I48,";"))),"") ->  | F155: =IF(ISNUMBER(SEARCH(F$2,'9. Supplies'!$I48))=TRUE,((SUM('9. Supplies'!$F48:$G48))/COUNTA(_xlfn.TEXTSPLIT('9. Supplies'!$I48,";"))),"") ->  | G155: =IF(ISNUMBER(SEARCH(G$2,'9. Supplies'!$I48))=TRUE,((SUM('9. Supplies'!$F48:$G48))/COUNTA(_xlfn.TEXTSPLIT('9. Supplies'!$I48,";"))),"") ->  | H155: =IF(ISNUMBER(SEARCH(H$2,'9. Supplies'!$I48))=TRUE,((SUM('9. Supplies'!$F48:$G48))/COUNTA(_xlfn.TEXTSPLIT('9. Supplies'!$I48,";"))),"") -> 
A156: =IF(ISNUMBER(SEARCH(A$2,'9. Supplies'!$H49))=TRUE,((SUM('9. Supplies'!$F49:$G49))/COUNTA(_xlfn.TEXTSPLIT('9. Supplies'!$H49,";"))),"") ->  | B156: =IF(ISNUMBER(SEARCH(B$2,'9. Supplies'!$H49))=TRUE,((SUM('9. Supplies'!$F49:$G49))/COUNTA(_xlfn.TEXTSPLIT('9. Supplies'!$H49,";"))),"") ->  | C156: =IF(ISNUMBER(SEARCH(C$2,'9. Supplies'!$H49))=TRUE,((SUM('9. Supplies'!$F49:$G49))/COUNTA(_xlfn.TEXTSPLIT('9. Supplies'!$H49,";"))),"") ->  | E156: =IF(ISNUMBER(SEARCH(E$2,'9. Supplies'!$I49))=TRUE,((SUM('9. Supplies'!$F49:$G49))/COUNTA(_xlfn.TEXTSPLIT('9. Supplies'!$I49,";"))),"") ->  | F156: =IF(ISNUMBER(SEARCH(F$2,'9. Supplies'!$I49))=TRUE,((SUM('9. Supplies'!$F49:$G49))/COUNTA(_xlfn.TEXTSPLIT('9. Supplies'!$I49,";"))),"") ->  | G156: =IF(ISNUMBER(SEARCH(G$2,'9. Supplies'!$I49))=TRUE,((SUM('9. Supplies'!$F49:$G49))/COUNTA(_xlfn.TEXTSPLIT('9. Supplies'!$I49,";"))),"") ->  | H156: =IF(ISNUMBER(SEARCH(H$2,'9. Supplies'!$I49))=TRUE,((SUM('9. Supplies'!$F49:$G49))/COUNTA(_xlfn.TEXTSPLIT('9. Supplies'!$I49,";"))),"") -> 
A157: =IF(ISNUMBER(SEARCH(A$2,'9. Supplies'!$H50))=TRUE,((SUM('9. Supplies'!$F50:$G50))/COUNTA(_xlfn.TEXTSPLIT('9. Supplies'!$H50,";"))),"") ->  | B157: =IF(ISNUMBER(SEARCH(B$2,'9. Supplies'!$H50))=TRUE,((SUM('9. Supplies'!$F50:$G50))/COUNTA(_xlfn.TEXTSPLIT('9. Supplies'!$H50,";"))),"") ->  | C157: =IF(ISNUMBER(SEARCH(C$2,'9. Supplies'!$H50))=TRUE,((SUM('9. Supplies'!$F50:$G50))/COUNTA(_xlfn.TEXTSPLIT('9. Supplies'!$H50,";"))),"") ->  | E157: =IF(ISNUMBER(SEARCH(E$2,'9. Supplies'!$I50))=TRUE,((SUM('9. Supplies'!$F50:$G50))/COUNTA(_xlfn.TEXTSPLIT('9. Supplies'!$I50,";"))),"") ->  | F157: =IF(ISNUMBER(SEARCH(F$2,'9. Supplies'!$I50))=TRUE,((SUM('9. Supplies'!$F50:$G50))/COUNTA(_xlfn.TEXTSPLIT('9. Supplies'!$I50,";"))),"") ->  | G157: =IF(ISNUMBER(SEARCH(G$2,'9. Supplies'!$I50))=TRUE,((SUM('9. Supplies'!$F50:$G50))/COUNTA(_xlfn.TEXTSPLIT('9. Supplies'!$I50,";"))),"") ->  | H157: =IF(ISNUMBER(SEARCH(H$2,'9. Supplies'!$I50))=TRUE,((SUM('9. Supplies'!$F50:$G50))/COUNTA(_xlfn.TEXTSPLIT('9. Supplies'!$I50,";"))),"") -> 
A158: =IF(ISNUMBER(SEARCH(A$2,'9. Supplies'!$H51))=TRUE,((SUM('9. Supplies'!$F51:$G51))/COUNTA(_xlfn.TEXTSPLIT('9. Supplies'!$H51,";"))),"") ->  | B158: =IF(ISNUMBER(SEARCH(B$2,'9. Supplies'!$H51))=TRUE,((SUM('9. Supplies'!$F51:$G51))/COUNTA(_xlfn.TEXTSPLIT('9. Supplies'!$H51,";"))),"") ->  | C158: =IF(ISNUMBER(SEARCH(C$2,'9. Supplies'!$H51))=TRUE,((SUM('9. Supplies'!$F51:$G51))/COUNTA(_xlfn.TEXTSPLIT('9. Supplies'!$H51,";"))),"") ->  | E158: =IF(ISNUMBER(SEARCH(E$2,'9. Supplies'!$I51))=TRUE,((SUM('9. Supplies'!$F51:$G51))/COUNTA(_xlfn.TEXTSPLIT('9. Supplies'!$I51,";"))),"") ->  | F158: =IF(ISNUMBER(SEARCH(F$2,'9. Supplies'!$I51))=TRUE,((SUM('9. Supplies'!$F51:$G51))/COUNTA(_xlfn.TEXTSPLIT('9. Supplies'!$I51,";"))),"") ->  | G158: =IF(ISNUMBER(SEARCH(G$2,'9. Supplies'!$I51))=TRUE,((SUM('9. Supplies'!$F51:$G51))/COUNTA(_xlfn.TEXTSPLIT('9. Supplies'!$I51,";"))),"") ->  | H158: =IF(ISNUMBER(SEARCH(H$2,'9. Supplies'!$I51))=TRUE,((SUM('9. Supplies'!$F51:$G51))/COUNTA(_xlfn.TEXTSPLIT('9. Supplies'!$I51,";"))),"") -> 
A159: =IF(ISNUMBER(SEARCH(A$2,'9. Supplies'!$H52))=TRUE,((SUM('9. Supplies'!$F52:$G52))/COUNTA(_xlfn.TEXTSPLIT('9. Supplies'!$H52,";"))),"") ->  | B159: =IF(ISNUMBER(SEARCH(B$2,'9. Supplies'!$H52))=TRUE,((SUM('9. Supplies'!$F52:$G52))/COUNTA(_xlfn.TEXTSPLIT('9. Supplies'!$H52,";"))),"") ->  | C159: =IF(ISNUMBER(SEARCH(C$2,'9. Supplies'!$H52))=TRUE,((SUM('9. Supplies'!$F52:$G52))/COUNTA(_xlfn.TEXTSPLIT('9. Supplies'!$H52,";"))),"") ->  | E159: =IF(ISNUMBER(SEARCH(E$2,'9. Supplies'!$I52))=TRUE,((SUM('9. Supplies'!$F52:$G52))/COUNTA(_xlfn.TEXTSPLIT('9. Supplies'!$I52,";"))),"") ->  | F159: =IF(ISNUMBER(SEARCH(F$2,'9. Supplies'!$I52))=TRUE,((SUM('9. Supplies'!$F52:$G52))/COUNTA(_xlfn.TEXTSPLIT('9. Supplies'!$I52,";"))),"") ->  | G159: =IF(ISNUMBER(SEARCH(G$2,'9. Supplies'!$I52))=TRUE,((SUM('9. Supplies'!$F52:$G52))/COUNTA(_xlfn.TEXTSPLIT('9. Supplies'!$I52,";"))),"") ->  | H159: =IF(ISNUMBER(SEARCH(H$2,'9. Supplies'!$I52))=TRUE,((SUM('9. Supplies'!$F52:$G52))/COUNTA(_xlfn.TEXTSPLIT('9. Supplies'!$I52,";"))),"") -> 
A160: =IF(ISNUMBER(SEARCH(A$2,'9. Supplies'!$H53))=TRUE,((SUM('9. Supplies'!$F53:$G53))/COUNTA(_xlfn.TEXTSPLIT('9. Supplies'!$H53,";"))),"") ->  | B160: =IF(ISNUMBER(SEARCH(B$2,'9. Supplies'!$H53))=TRUE,((SUM('9. Supplies'!$F53:$G53))/COUNTA(_xlfn.TEXTSPLIT('9. Supplies'!$H53,";"))),"") ->  | C160: =IF(ISNUMBER(SEARCH(C$2,'9. Supplies'!$H53))=TRUE,((SUM('9. Supplies'!$F53:$G53))/COUNTA(_xlfn.TEXTSPLIT('9. Supplies'!$H53,";"))),"") ->  | E160: =IF(ISNUMBER(SEARCH(E$2,'9. Supplies'!$I53))=TRUE,((SUM('9. Supplies'!$F53:$G53))/COUNTA(_xlfn.TEXTSPLIT('9. Supplies'!$I53,";"))),"") ->  | F160: =IF(ISNUMBER(SEARCH(F$2,'9. Supplies'!$I53))=TRUE,((SUM('9. Supplies'!$F53:$G53))/COUNTA(_xlfn.TEXTSPLIT('9. Supplies'!$I53,";"))),"") ->  | G160: =IF(ISNUMBER(SEARCH(G$2,'9. Supplies'!$I53))=TRUE,((SUM('9. Supplies'!$F53:$G53))/COUNTA(_xlfn.TEXTSPLIT('9. Supplies'!$I53,";"))),"") ->  | H160: =IF(ISNUMBER(SEARCH(H$2,'9. Supplies'!$I53))=TRUE,((SUM('9. Supplies'!$F53:$G53))/COUNTA(_xlfn.TEXTSPLIT('9. Supplies'!$I53,";"))),"") -> 
A161: =IF(ISNUMBER(SEARCH(A$2,'9. Supplies'!$H54))=TRUE,((SUM('9. Supplies'!$F54:$G54))/COUNTA(_xlfn.TEXTSPLIT('9. Supplies'!$H54,";"))),"") ->  | B161: =IF(ISNUMBER(SEARCH(B$2,'9. Supplies'!$H54))=TRUE,((SUM('9. Supplies'!$F54:$G54))/COUNTA(_xlfn.TEXTSPLIT('9. Supplies'!$H54,";"))),"") ->  | C161: =IF(ISNUMBER(SEARCH(C$2,'9. Supplies'!$H54))=TRUE,((SUM('9. Supplies'!$F54:$G54))/COUNTA(_xlfn.TEXTSPLIT('9. Supplies'!$H54,";"))),"") ->  | E161: =IF(ISNUMBER(SEARCH(E$2,'9. Supplies'!$I54))=TRUE,((SUM('9. Supplies'!$F54:$G54))/COUNTA(_xlfn.TEXTSPLIT('9. Supplies'!$I54,";"))),"") ->  | F161: =IF(ISNUMBER(SEARCH(F$2,'9. Supplies'!$I54))=TRUE,((SUM('9. Supplies'!$F54:$G54))/COUNTA(_xlfn.TEXTSPLIT('9. Supplies'!$I54,";"))),"") ->  | G161: =IF(ISNUMBER(SEARCH(G$2,'9. Supplies'!$I54))=TRUE,((SUM('9. Supplies'!$F54:$G54))/COUNTA(_xlfn.TEXTSPLIT('9. Supplies'!$I54,";"))),"") ->  | H161: =IF(ISNUMBER(SEARCH(H$2,'9. Supplies'!$I54))=TRUE,((SUM('9. Supplies'!$F54:$G54))/COUNTA(_xlfn.TEXTSPLIT('9. Supplies'!$I54,";"))),"") -> 
A162: =IF(ISNUMBER(SEARCH(A$2,'9. Supplies'!$H55))=TRUE,((SUM('9. Supplies'!$F55:$G55))/COUNTA(_xlfn.TEXTSPLIT('9. Supplies'!$H55,";"))),"") ->  | B162: =IF(ISNUMBER(SEARCH(B$2,'9. Supplies'!$H55))=TRUE,((SUM('9. Supplies'!$F55:$G55))/COUNTA(_xlfn.TEXTSPLIT('9. Supplies'!$H55,";"))),"") ->  | C162: =IF(ISNUMBER(SEARCH(C$2,'9. Supplies'!$H55))=TRUE,((SUM('9. Supplies'!$F55:$G55))/COUNTA(_xlfn.TEXTSPLIT('9. Supplies'!$H55,";"))),"") ->  | E162: =IF(ISNUMBER(SEARCH(E$2,'9. Supplies'!$I55))=TRUE,((SUM('9. Supplies'!$F55:$G55))/COUNTA(_xlfn.TEXTSPLIT('9. Supplies'!$I55,";"))),"") ->  | F162: =IF(ISNUMBER(SEARCH(F$2,'9. Supplies'!$I55))=TRUE,((SUM('9. Supplies'!$F55:$G55))/COUNTA(_xlfn.TEXTSPLIT('9. Supplies'!$I55,";"))),"") ->  | G162: =IF(ISNUMBER(SEARCH(G$2,'9. Supplies'!$I55))=TRUE,((SUM('9. Supplies'!$F55:$G55))/COUNTA(_xlfn.TEXTSPLIT('9. Supplies'!$I55,";"))),"") ->  | H162: =IF(ISNUMBER(SEARCH(H$2,'9. Supplies'!$I55))=TRUE,((SUM('9. Supplies'!$F55:$G55))/COUNTA(_xlfn.TEXTSPLIT('9. Supplies'!$I55,";"))),"") -> 
A163: =IF(ISNUMBER(SEARCH(A$2,'9. Supplies'!$H56))=TRUE,((SUM('9. Supplies'!$F56:$G56))/COUNTA(_xlfn.TEXTSPLIT('9. Supplies'!$H56,";"))),"") ->  | B163: =IF(ISNUMBER(SEARCH(B$2,'9. Supplies'!$H56))=TRUE,((SUM('9. Supplies'!$F56:$G56))/COUNTA(_xlfn.TEXTSPLIT('9. Supplies'!$H56,";"))),"") ->  | C163: =IF(ISNUMBER(SEARCH(C$2,'9. Supplies'!$H56))=TRUE,((SUM('9. Supplies'!$F56:$G56))/COUNTA(_xlfn.TEXTSPLIT('9. Supplies'!$H56,";"))),"") ->  | E163: =IF(ISNUMBER(SEARCH(E$2,'9. Supplies'!$I56))=TRUE,((SUM('9. Supplies'!$F56:$G56))/COUNTA(_xlfn.TEXTSPLIT('9. Supplies'!$I56,";"))),"") ->  | F163: =IF(ISNUMBER(SEARCH(F$2,'9. Supplies'!$I56))=TRUE,((SUM('9. Supplies'!$F56:$G56))/COUNTA(_xlfn.TEXTSPLIT('9. Supplies'!$I56,";"))),"") ->  | G163: =IF(ISNUMBER(SEARCH(G$2,'9. Supplies'!$I56))=TRUE,((SUM('9. Supplies'!$F56:$G56))/COUNTA(_xlfn.TEXTSPLIT('9. Supplies'!$I56,";"))),"") ->  | H163: =IF(ISNUMBER(SEARCH(H$2,'9. Supplies'!$I56))=TRUE,((SUM('9. Supplies'!$F56:$G56))/COUNTA(_xlfn.TEXTSPLIT('9. Supplies'!$I56,";"))),"") -> 
A164: =IF(ISNUMBER(SEARCH(A$2,'9. Supplies'!$H57))=TRUE,((SUM('9. Supplies'!$F57:$G57))/COUNTA(_xlfn.TEXTSPLIT('9. Supplies'!$H57,";"))),"") ->  | B164: =IF(ISNUMBER(SEARCH(B$2,'9. Supplies'!$H57))=TRUE,((SUM('9. Supplies'!$F57:$G57))/COUNTA(_xlfn.TEXTSPLIT('9. Supplies'!$H57,";"))),"") ->  | C164: =IF(ISNUMBER(SEARCH(C$2,'9. Supplies'!$H57))=TRUE,((SUM('9. Supplies'!$F57:$G57))/COUNTA(_xlfn.TEXTSPLIT('9. Supplies'!$H57,";"))),"") ->  | E164: =IF(ISNUMBER(SEARCH(E$2,'9. Supplies'!$I57))=TRUE,((SUM('9. Supplies'!$F57:$G57))/COUNTA(_xlfn.TEXTSPLIT('9. Supplies'!$I57,";"))),"") ->  | F164: =IF(ISNUMBER(SEARCH(F$2,'9. Supplies'!$I57))=TRUE,((SUM('9. Supplies'!$F57:$G57))/COUNTA(_xlfn.TEXTSPLIT('9. Supplies'!$I57,";"))),"") ->  | G164: =IF(ISNUMBER(SEARCH(G$2,'9. Supplies'!$I57))=TRUE,((SUM('9. Supplies'!$F57:$G57))/COUNTA(_xlfn.TEXTSPLIT('9. Supplies'!$I57,";"))),"") ->  | H164: =IF(ISNUMBER(SEARCH(H$2,'9. Supplies'!$I57))=TRUE,((SUM('9. Supplies'!$F57:$G57))/COUNTA(_xlfn.TEXTSPLIT('9. Supplies'!$I57,";"))),"") -> 
A165: =IF(ISNUMBER(SEARCH(A$2,'9. Supplies'!$H58))=TRUE,((SUM('9. Supplies'!$F58:$G58))/COUNTA(_xlfn.TEXTSPLIT('9. Supplies'!$H58,";"))),"") ->  | B165: =IF(ISNUMBER(SEARCH(B$2,'9. Supplies'!$H58))=TRUE,((SUM('9. Supplies'!$F58:$G58))/COUNTA(_xlfn.TEXTSPLIT('9. Supplies'!$H58,";"))),"") ->  | C165: =IF(ISNUMBER(SEARCH(C$2,'9. Supplies'!$H58))=TRUE,((SUM('9. Supplies'!$F58:$G58))/COUNTA(_xlfn.TEXTSPLIT('9. Supplies'!$H58,";"))),"") ->  | E165: =IF(ISNUMBER(SEARCH(E$2,'9. Supplies'!$I58))=TRUE,((SUM('9. Supplies'!$F58:$G58))/COUNTA(_xlfn.TEXTSPLIT('9. Supplies'!$I58,";"))),"") ->  | F165: =IF(ISNUMBER(SEARCH(F$2,'9. Supplies'!$I58))=TRUE,((SUM('9. Supplies'!$F58:$G58))/COUNTA(_xlfn.TEXTSPLIT('9. Supplies'!$I58,";"))),"") ->  | G165: =IF(ISNUMBER(SEARCH(G$2,'9. Supplies'!$I58))=TRUE,((SUM('9. Supplies'!$F58:$G58))/COUNTA(_xlfn.TEXTSPLIT('9. Supplies'!$I58,";"))),"") ->  | H165: =IF(ISNUMBER(SEARCH(H$2,'9. Supplies'!$I58))=TRUE,((SUM('9. Supplies'!$F58:$G58))/COUNTA(_xlfn.TEXTSPLIT('9. Supplies'!$I58,";"))),"") -> 
A167: Travel (Tab 10A + 10B)- Allocation by Strategy | E167: Travel (Tab 10A + 10B)- Allocation by Topic
A168: Data and Surveillance | B168: Collaborations and Partnerships | C168: Assessment and Evaluation | E168: Adverse Childhood Experiences (ACEs) | F168: Transportation Safety | G168: Traumatic Brain Injury | H168: Other Topic (please specify in comments)
A169: =IF(ISNUMBER(SEARCH(A$2,'10a. Travel (Local)'!$J6))=TRUE,('10a. Travel (Local)'!$L6/COUNTA(_xlfn.TEXTSPLIT('10a. Travel (Local)'!$J6,";"))),0)+IF(ISNUMBER(SEARCH(A$2,'10b. Travel (Non-Local)'!$G6))=TRUE,(SUM('10b. Travel (Non-Local)'!$E6:$F6)/COUNTA(_xlfn.TEXTSPLIT('10b. Travel (Non-Local)'!$G6,";"))),0) -> 0 | B169: =IF(ISNUMBER(SEARCH(B$2,'10a. Travel (Local)'!$J6))=TRUE,('10a. Travel (Local)'!$L6/COUNTA(_xlfn.TEXTSPLIT('10a. Travel (Local)'!$J6,";"))),0)+IF(ISNUMBER(SEARCH(B$2,'10b. Travel (Non-Local)'!$G6))=TRUE,(SUM('10b. Travel (Non-Local)'!$E6:$F6)/COUNTA(_xlfn.TEXTSPLIT('10b. Travel (Non-Local)'!$G6,";"))),0) -> 0 | C169: =IF(ISNUMBER(SEARCH(C$2,'10a. Travel (Local)'!$J6))=TRUE,('10a. Travel (Local)'!$L6/COUNTA(_xlfn.TEXTSPLIT('10a. Travel (Local)'!$J6,";"))),0)+IF(ISNUMBER(SEARCH(C$2,'10b. Travel (Non-Local)'!$G6))=TRUE,(SUM('10b. Travel (Non-Local)'!$E6:$F6)/COUNTA(_xlfn.TEXTSPLIT('10b. Travel (Non-Local)'!$G6,";"))),0) -> 0 | E169: =IF(ISNUMBER(SEARCH(E$2,'10a. Travel (Local)'!$K6))=TRUE,('10a. Travel (Local)'!$L6/COUNTA(_xlfn.TEXTSPLIT('10a. Travel (Local)'!$K6,";"))),0)+IF(ISNUMBER(SEARCH(E$2,'10b. Travel (Non-Local)'!$H6))=TRUE,(SUM('10b. Travel (Non-Local)'!$E6:$F6)/COUNTA(_xlfn.TEXTSPLIT('10b. Travel (Non-Local)'!$H6,";"))),0) -> 0 | F169: =IF(ISNUMBER(SEARCH(F$2,'10a. Travel (Local)'!$K6))=TRUE,('10a. Travel (Local)'!$L6/COUNTA(_xlfn.TEXTSPLIT('10a. Travel (Local)'!$K6,";"))),0)+IF(ISNUMBER(SEARCH(F$2,'10b. Travel (Non-Local)'!$H6))=TRUE,(SUM('10b. Travel (Non-Local)'!$E6:$F6)/COUNTA(_xlfn.TEXTSPLIT('10b. Travel (Non-Local)'!$H6,";"))),0) -> 0 | G169: =IF(ISNUMBER(SEARCH(G$2,'10a. Travel (Local)'!$K6))=TRUE,('10a. Travel (Local)'!$L6/COUNTA(_xlfn.TEXTSPLIT('10a. Travel (Local)'!$K6,";"))),0)+IF(ISNUMBER(SEARCH(G$2,'10b. Travel (Non-Local)'!$H6))=TRUE,(SUM('10b. Travel (Non-Local)'!$E6:$F6)/COUNTA(_xlfn.TEXTSPLIT('10b. Travel (Non-Local)'!$H6,";"))),0) -> 0 | H169: =IF(ISNUMBER(SEARCH(H$2,'10a. Travel (Local)'!$K6))=TRUE,('10a. Travel (Local)'!$L6/COUNTA(_xlfn.TEXTSPLIT('10a. Travel (Local)'!$K6,";"))),0)+IF(ISNUMBER(SEARCH(H$2,'10b. Travel (Non-Local)'!$H6))=TRUE,(SUM('10b. Travel (Non-Local)'!$E6:$F6)/COUNTA(_xlfn.TEXTSPLIT('10b. Travel (Non-Local)'!$H6,";"))),0) -> 0
A170: =IF(ISNUMBER(SEARCH(A$2,'10a. Travel (Local)'!$J7))=TRUE,('10a. Travel (Local)'!$L7/COUNTA(_xlfn.TEXTSPLIT('10a. Travel (Local)'!$J7,";"))),0)+IF(ISNUMBER(SEARCH(A$2,'10b. Travel (Non-Local)'!$G7))=TRUE,(SUM('10b. Travel (Non-Local)'!$E7:$F7)/COUNTA(_xlfn.TEXTSPLIT('10b. Travel (Non-Local)'!$G7,";"))),0) -> 0 | B170: =IF(ISNUMBER(SEARCH(B$2,'10a. Travel (Local)'!$J7))=TRUE,('10a. Travel (Local)'!$L7/COUNTA(_xlfn.TEXTSPLIT('10a. Travel (Local)'!$J7,";"))),0)+IF(ISNUMBER(SEARCH(B$2,'10b. Travel (Non-Local)'!$G7))=TRUE,(SUM('10b. Travel (Non-Local)'!$E7:$F7)/COUNTA(_xlfn.TEXTSPLIT('10b. Travel (Non-Local)'!$G7,";"))),0) -> 0 | C170: =IF(ISNUMBER(SEARCH(C$2,'10a. Travel (Local)'!$J7))=TRUE,('10a. Travel (Local)'!$L7/COUNTA(_xlfn.TEXTSPLIT('10a. Travel (Local)'!$J7,";"))),0)+IF(ISNUMBER(SEARCH(C$2,'10b. Travel (Non-Local)'!$G7))=TRUE,(SUM('10b. Travel (Non-Local)'!$E7:$F7)/COUNTA(_xlfn.TEXTSPLIT('10b. Travel (Non-Local)'!$G7,";"))),0) -> 0 | E170: =IF(ISNUMBER(SEARCH(E$2,'10a. Travel (Local)'!$K7))=TRUE,('10a. Travel (Local)'!$L7/COUNTA(_xlfn.TEXTSPLIT('10a. Travel (Local)'!$K7,";"))),0)+IF(ISNUMBER(SEARCH(E$2,'10b. Travel (Non-Local)'!$H7))=TRUE,(SUM('10b. Travel (Non-Local)'!$E7:$F7)/COUNTA(_xlfn.TEXTSPLIT('10b. Travel (Non-Local)'!$H7,";"))),0) -> 0 | F170: =IF(ISNUMBER(SEARCH(F$2,'10a. Travel (Local)'!$K7))=TRUE,('10a. Travel (Local)'!$L7/COUNTA(_xlfn.TEXTSPLIT('10a. Travel (Local)'!$K7,";"))),0)+IF(ISNUMBER(SEARCH(F$2,'10b. Travel (Non-Local)'!$H7))=TRUE,(SUM('10b. Travel (Non-Local)'!$E7:$F7)/COUNTA(_xlfn.TEXTSPLIT('10b. Travel (Non-Local)'!$H7,";"))),0) -> 0 | G170: =IF(ISNUMBER(SEARCH(G$2,'10a. Travel (Local)'!$K7))=TRUE,('10a. Travel (Local)'!$L7/COUNTA(_xlfn.TEXTSPLIT('10a. Travel (Local)'!$K7,";"))),0)+IF(ISNUMBER(SEARCH(G$2,'10b. Travel (Non-Local)'!$H7))=TRUE,(SUM('10b. Travel (Non-Local)'!$E7:$F7)/COUNTA(_xlfn.TEXTSPLIT('10b. Travel (Non-Local)'!$H7,";"))),0) -> 0 | H170: =IF(ISNUMBER(SEARCH(H$2,'10a. Travel (Local)'!$K7))=TRUE,('10a. Travel (Local)'!$L7/COUNTA(_xlfn.TEXTSPLIT('10a. Travel (Local)'!$K7,";"))),0)+IF(ISNUMBER(SEARCH(H$2,'10b. Travel (Non-Local)'!$H7))=TRUE,(SUM('10b. Travel (Non-Local)'!$E7:$F7)/COUNTA(_xlfn.TEXTSPLIT('10b. Travel (Non-Local)'!$H7,";"))),0) -> 0
A171: =IF(ISNUMBER(SEARCH(A$2,'10a. Travel (Local)'!$J8))=TRUE,('10a. Travel (Local)'!$L8/COUNTA(_xlfn.TEXTSPLIT('10a. Travel (Local)'!$J8,";"))),0)+IF(ISNUMBER(SEARCH(A$2,'10b. Travel (Non-Local)'!$G8))=TRUE,(SUM('10b. Travel (Non-Local)'!$E8:$F8)/COUNTA(_xlfn.TEXTSPLIT('10b. Travel (Non-Local)'!$G8,";"))),0) -> 0 | B171: =IF(ISNUMBER(SEARCH(B$2,'10a. Travel (Local)'!$J8))=TRUE,('10a. Travel (Local)'!$L8/COUNTA(_xlfn.TEXTSPLIT('10a. Travel (Local)'!$J8,";"))),0)+IF(ISNUMBER(SEARCH(B$2,'10b. Travel (Non-Local)'!$G8))=TRUE,(SUM('10b. Travel (Non-Local)'!$E8:$F8)/COUNTA(_xlfn.TEXTSPLIT('10b. Travel (Non-Local)'!$G8,";"))),0) -> 0 | C171: =IF(ISNUMBER(SEARCH(C$2,'10a. Travel (Local)'!$J8))=TRUE,('10a. Travel (Local)'!$L8/COUNTA(_xlfn.TEXTSPLIT('10a. Travel (Local)'!$J8,";"))),0)+IF(ISNUMBER(SEARCH(C$2,'10b. Travel (Non-Local)'!$G8))=TRUE,(SUM('10b. Travel (Non-Local)'!$E8:$F8)/COUNTA(_xlfn.TEXTSPLIT('10b. Travel (Non-Local)'!$G8,";"))),0) -> 0 | E171: =IF(ISNUMBER(SEARCH(E$2,'10a. Travel (Local)'!$K8))=TRUE,('10a. Travel (Local)'!$L8/COUNTA(_xlfn.TEXTSPLIT('10a. Travel (Local)'!$K8,";"))),0)+IF(ISNUMBER(SEARCH(E$2,'10b. Travel (Non-Local)'!$H8))=TRUE,(SUM('10b. Travel (Non-Local)'!$E8:$F8)/COUNTA(_xlfn.TEXTSPLIT('10b. Travel (Non-Local)'!$H8,";"))),0) -> 0 | F171: =IF(ISNUMBER(SEARCH(F$2,'10a. Travel (Local)'!$K8))=TRUE,('10a. Travel (Local)'!$L8/COUNTA(_xlfn.TEXTSPLIT('10a. Travel (Local)'!$K8,";"))),0)+IF(ISNUMBER(SEARCH(F$2,'10b. Travel (Non-Local)'!$H8))=TRUE,(SUM('10b. Travel (Non-Local)'!$E8:$F8)/COUNTA(_xlfn.TEXTSPLIT('10b. Travel (Non-Local)'!$H8,";"))),0) -> 0 | G171: =IF(ISNUMBER(SEARCH(G$2,'10a. Travel (Local)'!$K8))=TRUE,('10a. Travel (Local)'!$L8/COUNTA(_xlfn.TEXTSPLIT('10a. Travel (Local)'!$K8,";"))),0)+IF(ISNUMBER(SEARCH(G$2,'10b. Travel (Non-Local)'!$H8))=TRUE,(SUM('10b. Travel (Non-Local)'!$E8:$F8)/COUNTA(_xlfn.TEXTSPLIT('10b. Travel (Non-Local)'!$H8,";"))),0) -> 0 | H171: =IF(ISNUMBER(SEARCH(H$2,'10a. Travel (Local)'!$K8))=TRUE,('10a. Travel (Local)'!$L8/COUNTA(_xlfn.TEXTSPLIT('10a. Travel (Local)'!$K8,";"))),0)+IF(ISNUMBER(SEARCH(H$2,'10b. Travel (Non-Local)'!$H8))=TRUE,(SUM('10b. Travel (Non-Local)'!$E8:$F8)/COUNTA(_xlfn.TEXTSPLIT('10b. Travel (Non-Local)'!$H8,";"))),0) -> 0
A172: =IF(ISNUMBER(SEARCH(A$2,'10a. Travel (Local)'!$J9))=TRUE,('10a. Travel (Local)'!$L9/COUNTA(_xlfn.TEXTSPLIT('10a. Travel (Local)'!$J9,";"))),0)+IF(ISNUMBER(SEARCH(A$2,'10b. Travel (Non-Local)'!$G9))=TRUE,(SUM('10b. Travel (Non-Local)'!$E9:$F9)/COUNTA(_xlfn.TEXTSPLIT('10b. Travel (Non-Local)'!$G9,";"))),0) -> 0 | B172: =IF(ISNUMBER(SEARCH(B$2,'10a. Travel (Local)'!$J9))=TRUE,('10a. Travel (Local)'!$L9/COUNTA(_xlfn.TEXTSPLIT('10a. Travel (Local)'!$J9,";"))),0)+IF(ISNUMBER(SEARCH(B$2,'10b. Travel (Non-Local)'!$G9))=TRUE,(SUM('10b. Travel (Non-Local)'!$E9:$F9)/COUNTA(_xlfn.TEXTSPLIT('10b. Travel (Non-Local)'!$G9,";"))),0) -> 0 | C172: =IF(ISNUMBER(SEARCH(C$2,'10a. Travel (Local)'!$J9))=TRUE,('10a. Travel (Local)'!$L9/COUNTA(_xlfn.TEXTSPLIT('10a. Travel (Local)'!$J9,";"))),0)+IF(ISNUMBER(SEARCH(C$2,'10b. Travel (Non-Local)'!$G9))=TRUE,(SUM('10b. Travel (Non-Local)'!$E9:$F9)/COUNTA(_xlfn.TEXTSPLIT('10b. Travel (Non-Local)'!$G9,";"))),0) -> 0 | E172: =IF(ISNUMBER(SEARCH(E$2,'10a. Travel (Local)'!$K9))=TRUE,('10a. Travel (Local)'!$L9/COUNTA(_xlfn.TEXTSPLIT('10a. Travel (Local)'!$K9,";"))),0)+IF(ISNUMBER(SEARCH(E$2,'10b. Travel (Non-Local)'!$H9))=TRUE,(SUM('10b. Travel (Non-Local)'!$E9:$F9)/COUNTA(_xlfn.TEXTSPLIT('10b. Travel (Non-Local)'!$H9,";"))),0) -> 0 | F172: =IF(ISNUMBER(SEARCH(F$2,'10a. Travel (Local)'!$K9))=TRUE,('10a. Travel (Local)'!$L9/COUNTA(_xlfn.TEXTSPLIT('10a. Travel (Local)'!$K9,";"))),0)+IF(ISNUMBER(SEARCH(F$2,'10b. Travel (Non-Local)'!$H9))=TRUE,(SUM('10b. Travel (Non-Local)'!$E9:$F9)/COUNTA(_xlfn.TEXTSPLIT('10b. Travel (Non-Local)'!$H9,";"))),0) -> 0 | G172: =IF(ISNUMBER(SEARCH(G$2,'10a. Travel (Local)'!$K9))=TRUE,('10a. Travel (Local)'!$L9/COUNTA(_xlfn.TEXTSPLIT('10a. Travel (Local)'!$K9,";"))),0)+IF(ISNUMBER(SEARCH(G$2,'10b. Travel (Non-Local)'!$H9))=TRUE,(SUM('10b. Travel (Non-Local)'!$E9:$F9)/COUNTA(_xlfn.TEXTSPLIT('10b. Travel (Non-Local)'!$H9,";"))),0) -> 0 | H172: =IF(ISNUMBER(SEARCH(H$2,'10a. Travel (Local)'!$K9))=TRUE,('10a. Travel (Local)'!$L9/COUNTA(_xlfn.TEXTSPLIT('10a. Travel (Local)'!$K9,";"))),0)+IF(ISNUMBER(SEARCH(H$2,'10b. Travel (Non-Local)'!$H9))=TRUE,(SUM('10b. Travel (Non-Local)'!$E9:$F9)/COUNTA(_xlfn.TEXTSPLIT('10b. Travel (Non-Local)'!$H9,";"))),0) -> 0
A173: =IF(ISNUMBER(SEARCH(A$2,'10a. Travel (Local)'!$J10))=TRUE,('10a. Travel (Local)'!$L10/COUNTA(_xlfn.TEXTSPLIT('10a. Travel (Local)'!$J10,";"))),0)+IF(ISNUMBER(SEARCH(A$2,'10b. Travel (Non-Local)'!$G10))=TRUE,(SUM('10b. Travel (Non-Local)'!$E10:$F10)/COUNTA(_xlfn.TEXTSPLIT('10b. Travel (Non-Local)'!$G10,";"))),0) -> 0 | B173: =IF(ISNUMBER(SEARCH(B$2,'10a. Travel (Local)'!$J10))=TRUE,('10a. Travel (Local)'!$L10/COUNTA(_xlfn.TEXTSPLIT('10a. Travel (Local)'!$J10,";"))),0)+IF(ISNUMBER(SEARCH(B$2,'10b. Travel (Non-Local)'!$G10))=TRUE,(SUM('10b. Travel (Non-Local)'!$E10:$F10)/COUNTA(_xlfn.TEXTSPLIT('10b. Travel (Non-Local)'!$G10,";"))),0) -> 0 | C173: =IF(ISNUMBER(SEARCH(C$2,'10a. Travel (Local)'!$J10))=TRUE,('10a. Travel (Local)'!$L10/COUNTA(_xlfn.TEXTSPLIT('10a. Travel (Local)'!$J10,";"))),0)+IF(ISNUMBER(SEARCH(C$2,'10b. Travel (Non-Local)'!$G10))=TRUE,(SUM('10b. Travel (Non-Local)'!$E10:$F10)/COUNTA(_xlfn.TEXTSPLIT('10b. Travel (Non-Local)'!$G10,";"))),0) -> 0 | E173: =IF(ISNUMBER(SEARCH(E$2,'10a. Travel (Local)'!$K10))=TRUE,('10a. Travel (Local)'!$L10/COUNTA(_xlfn.TEXTSPLIT('10a. Travel (Local)'!$K10,";"))),0)+IF(ISNUMBER(SEARCH(E$2,'10b. Travel (Non-Local)'!$H10))=TRUE,(SUM('10b. Travel (Non-Local)'!$E10:$F10)/COUNTA(_xlfn.TEXTSPLIT('10b. Travel (Non-Local)'!$H10,";"))),0) -> 0 | F173: =IF(ISNUMBER(SEARCH(F$2,'10a. Travel (Local)'!$K10))=TRUE,('10a. Travel (Local)'!$L10/COUNTA(_xlfn.TEXTSPLIT('10a. Travel (Local)'!$K10,";"))),0)+IF(ISNUMBER(SEARCH(F$2,'10b. Travel (Non-Local)'!$H10))=TRUE,(SUM('10b. Travel (Non-Local)'!$E10:$F10)/COUNTA(_xlfn.TEXTSPLIT('10b. Travel (Non-Local)'!$H10,";"))),0) -> 0 | G173: =IF(ISNUMBER(SEARCH(G$2,'10a. Travel (Local)'!$K10))=TRUE,('10a. Travel (Local)'!$L10/COUNTA(_xlfn.TEXTSPLIT('10a. Travel (Local)'!$K10,";"))),0)+IF(ISNUMBER(SEARCH(G$2,'10b. Travel (Non-Local)'!$H10))=TRUE,(SUM('10b. Travel (Non-Local)'!$E10:$F10)/COUNTA(_xlfn.TEXTSPLIT('10b. Travel (Non-Local)'!$H10,";"))),0) -> 0 | H173: =IF(ISNUMBER(SEARCH(H$2,'10a. Travel (Local)'!$K10))=TRUE,('10a. Travel (Local)'!$L10/COUNTA(_xlfn.TEXTSPLIT('10a. Travel (Local)'!$K10,";"))),0)+IF(ISNUMBER(SEARCH(H$2,'10b. Travel (Non-Local)'!$H10))=TRUE,(SUM('10b. Travel (Non-Local)'!$E10:$F10)/COUNTA(_xlfn.TEXTSPLIT('10b. Travel (Non-Local)'!$H10,";"))),0) -> 0
A174: =IF(ISNUMBER(SEARCH(A$2,'10a. Travel (Local)'!$J11))=TRUE,('10a. Travel (Local)'!$L11/COUNTA(_xlfn.TEXTSPLIT('10a. Travel (Local)'!$J11,";"))),0)+IF(ISNUMBER(SEARCH(A$2,'10b. Travel (Non-Local)'!$G11))=TRUE,(SUM('10b. Travel (Non-Local)'!$E11:$F11)/COUNTA(_xlfn.TEXTSPLIT('10b. Travel (Non-Local)'!$G11,";"))),0) -> 0 | B174: =IF(ISNUMBER(SEARCH(B$2,'10a. Travel (Local)'!$J11))=TRUE,('10a. Travel (Local)'!$L11/COUNTA(_xlfn.TEXTSPLIT('10a. Travel (Local)'!$J11,";"))),0)+IF(ISNUMBER(SEARCH(B$2,'10b. Travel (Non-Local)'!$G11))=TRUE,(SUM('10b. Travel (Non-Local)'!$E11:$F11)/COUNTA(_xlfn.TEXTSPLIT('10b. Travel (Non-Local)'!$G11,";"))),0) -> 0 | C174: =IF(ISNUMBER(SEARCH(C$2,'10a. Travel (Local)'!$J11))=TRUE,('10a. Travel (Local)'!$L11/COUNTA(_xlfn.TEXTSPLIT('10a. Travel (Local)'!$J11,";"))),0)+IF(ISNUMBER(SEARCH(C$2,'10b. Travel (Non-Local)'!$G11))=TRUE,(SUM('10b. Travel (Non-Local)'!$E11:$F11)/COUNTA(_xlfn.TEXTSPLIT('10b. Travel (Non-Local)'!$G11,";"))),0) -> 0 | E174: =IF(ISNUMBER(SEARCH(E$2,'10a. Travel (Local)'!$K11))=TRUE,('10a. Travel (Local)'!$L11/COUNTA(_xlfn.TEXTSPLIT('10a. Travel (Local)'!$K11,";"))),0)+IF(ISNUMBER(SEARCH(E$2,'10b. Travel (Non-Local)'!$H11))=TRUE,(SUM('10b. Travel (Non-Local)'!$E11:$F11)/COUNTA(_xlfn.TEXTSPLIT('10b. Travel (Non-Local)'!$H11,";"))),0) -> 0 | F174: =IF(ISNUMBER(SEARCH(F$2,'10a. Travel (Local)'!$K11))=TRUE,('10a. Travel (Local)'!$L11/COUNTA(_xlfn.TEXTSPLIT('10a. Travel (Local)'!$K11,";"))),0)+IF(ISNUMBER(SEARCH(F$2,'10b. Travel (Non-Local)'!$H11))=TRUE,(SUM('10b. Travel (Non-Local)'!$E11:$F11)/COUNTA(_xlfn.TEXTSPLIT('10b. Travel (Non-Local)'!$H11,";"))),0) -> 0 | G174: =IF(ISNUMBER(SEARCH(G$2,'10a. Travel (Local)'!$K11))=TRUE,('10a. Travel (Local)'!$L11/COUNTA(_xlfn.TEXTSPLIT('10a. Travel (Local)'!$K11,";"))),0)+IF(ISNUMBER(SEARCH(G$2,'10b. Travel (Non-Local)'!$H11))=TRUE,(SUM('10b. Travel (Non-Local)'!$E11:$F11)/COUNTA(_xlfn.TEXTSPLIT('10b. Travel (Non-Local)'!$H11,";"))),0) -> 0 | H174: =IF(ISNUMBER(SEARCH(H$2,'10a. Travel (Local)'!$K11))=TRUE,('10a. Travel (Local)'!$L11/COUNTA(_xlfn.TEXTSPLIT('10a. Travel (Local)'!$K11,";"))),0)+IF(ISNUMBER(SEARCH(H$2,'10b. Travel (Non-Local)'!$H11))=TRUE,(SUM('10b. Travel (Non-Local)'!$E11:$F11)/COUNTA(_xlfn.TEXTSPLIT('10b. Travel (Non-Local)'!$H11,";"))),0) -> 0
A175: =IF(ISNUMBER(SEARCH(A$2,'10a. Travel (Local)'!$J12))=TRUE,('10a. Travel (Local)'!$L12/COUNTA(_xlfn.TEXTSPLIT('10a. Travel (Local)'!$J12,";"))),0)+IF(ISNUMBER(SEARCH(A$2,'10b. Travel (Non-Local)'!$G12))=TRUE,(SUM('10b. Travel (Non-Local)'!$E12:$F12)/COUNTA(_xlfn.TEXTSPLIT('10b. Travel (Non-Local)'!$G12,";"))),0) -> 0 | B175: =IF(ISNUMBER(SEARCH(B$2,'10a. Travel (Local)'!$J12))=TRUE,('10a. Travel (Local)'!$L12/COUNTA(_xlfn.TEXTSPLIT('10a. Travel (Local)'!$J12,";"))),0)+IF(ISNUMBER(SEARCH(B$2,'10b. Travel (Non-Local)'!$G12))=TRUE,(SUM('10b. Travel (Non-Local)'!$E12:$F12)/COUNTA(_xlfn.TEXTSPLIT('10b. Travel (Non-Local)'!$G12,";"))),0) -> 0 | C175: =IF(ISNUMBER(SEARCH(C$2,'10a. Travel (Local)'!$J12))=TRUE,('10a. Travel (Local)'!$L12/COUNTA(_xlfn.TEXTSPLIT('10a. Travel (Local)'!$J12,";"))),0)+IF(ISNUMBER(SEARCH(C$2,'10b. Travel (Non-Local)'!$G12))=TRUE,(SUM('10b. Travel (Non-Local)'!$E12:$F12)/COUNTA(_xlfn.TEXTSPLIT('10b. Travel (Non-Local)'!$G12,";"))),0) -> 0 | E175: =IF(ISNUMBER(SEARCH(E$2,'10a. Travel (Local)'!$K12))=TRUE,('10a. Travel (Local)'!$L12/COUNTA(_xlfn.TEXTSPLIT('10a. Travel (Local)'!$K12,";"))),0)+IF(ISNUMBER(SEARCH(E$2,'10b. Travel (Non-Local)'!$H12))=TRUE,(SUM('10b. Travel (Non-Local)'!$E12:$F12)/COUNTA(_xlfn.TEXTSPLIT('10b. Travel (Non-Local)'!$H12,";"))),0) -> 0 | F175: =IF(ISNUMBER(SEARCH(F$2,'10a. Travel (Local)'!$K12))=TRUE,('10a. Travel (Local)'!$L12/COUNTA(_xlfn.TEXTSPLIT('10a. Travel (Local)'!$K12,";"))),0)+IF(ISNUMBER(SEARCH(F$2,'10b. Travel (Non-Local)'!$H12))=TRUE,(SUM('10b. Travel (Non-Local)'!$E12:$F12)/COUNTA(_xlfn.TEXTSPLIT('10b. Travel (Non-Local)'!$H12,";"))),0) -> 0 | G175: =IF(ISNUMBER(SEARCH(G$2,'10a. Travel (Local)'!$K12))=TRUE,('10a. Travel (Local)'!$L12/COUNTA(_xlfn.TEXTSPLIT('10a. Travel (Local)'!$K12,";"))),0)+IF(ISNUMBER(SEARCH(G$2,'10b. Travel (Non-Local)'!$H12))=TRUE,(SUM('10b. Travel (Non-Local)'!$E12:$F12)/COUNTA(_xlfn.TEXTSPLIT('10b. Travel (Non-Local)'!$H12,";"))),0) -> 0 | H175: =IF(ISNUMBER(SEARCH(H$2,'10a. Travel (Local)'!$K12))=TRUE,('10a. Travel (Local)'!$L12/COUNTA(_xlfn.TEXTSPLIT('10a. Travel (Local)'!$K12,";"))),0)+IF(ISNUMBER(SEARCH(H$2,'10b. Travel (Non-Local)'!$H12))=TRUE,(SUM('10b. Travel (Non-Local)'!$E12:$F12)/COUNTA(_xlfn.TEXTSPLIT('10b. Travel (Non-Local)'!$H12,";"))),0) -> 0
A176: =IF(ISNUMBER(SEARCH(A$2,'10a. Travel (Local)'!$J13))=TRUE,('10a. Travel (Local)'!$L13/COUNTA(_xlfn.TEXTSPLIT('10a. Travel (Local)'!$J13,";"))),0)+IF(ISNUMBER(SEARCH(A$2,'10b. Travel (Non-Local)'!$G13))=TRUE,(SUM('10b. Travel (Non-Local)'!$E13:$F13)/COUNTA(_xlfn.TEXTSPLIT('10b. Travel (Non-Local)'!$G13,";"))),0) -> 0 | B176: =IF(ISNUMBER(SEARCH(B$2,'10a. Travel (Local)'!$J13))=TRUE,('10a. Travel (Local)'!$L13/COUNTA(_xlfn.TEXTSPLIT('10a. Travel (Local)'!$J13,";"))),0)+IF(ISNUMBER(SEARCH(B$2,'10b. Travel (Non-Local)'!$G13))=TRUE,(SUM('10b. Travel (Non-Local)'!$E13:$F13)/COUNTA(_xlfn.TEXTSPLIT('10b. Travel (Non-Local)'!$G13,";"))),0) -> 0 | C176: =IF(ISNUMBER(SEARCH(C$2,'10a. Travel (Local)'!$J13))=TRUE,('10a. Travel (Local)'!$L13/COUNTA(_xlfn.TEXTSPLIT('10a. Travel (Local)'!$J13,";"))),0)+IF(ISNUMBER(SEARCH(C$2,'10b. Travel (Non-Local)'!$G13))=TRUE,(SUM('10b. Travel (Non-Local)'!$E13:$F13)/COUNTA(_xlfn.TEXTSPLIT('10b. Travel (Non-Local)'!$G13,";"))),0) -> 0 | E176: =IF(ISNUMBER(SEARCH(E$2,'10a. Travel (Local)'!$K13))=TRUE,('10a. Travel (Local)'!$L13/COUNTA(_xlfn.TEXTSPLIT('10a. Travel (Local)'!$K13,";"))),0)+IF(ISNUMBER(SEARCH(E$2,'10b. Travel (Non-Local)'!$H13))=TRUE,(SUM('10b. Travel (Non-Local)'!$E13:$F13)/COUNTA(_xlfn.TEXTSPLIT('10b. Travel (Non-Local)'!$H13,";"))),0) -> 0 | F176: =IF(ISNUMBER(SEARCH(F$2,'10a. Travel (Local)'!$K13))=TRUE,('10a. Travel (Local)'!$L13/COUNTA(_xlfn.TEXTSPLIT('10a. Travel (Local)'!$K13,";"))),0)+IF(ISNUMBER(SEARCH(F$2,'10b. Travel (Non-Local)'!$H13))=TRUE,(SUM('10b. Travel (Non-Local)'!$E13:$F13)/COUNTA(_xlfn.TEXTSPLIT('10b. Travel (Non-Local)'!$H13,";"))),0) -> 0 | G176: =IF(ISNUMBER(SEARCH(G$2,'10a. Travel (Local)'!$K13))=TRUE,('10a. Travel (Local)'!$L13/COUNTA(_xlfn.TEXTSPLIT('10a. Travel (Local)'!$K13,";"))),0)+IF(ISNUMBER(SEARCH(G$2,'10b. Travel (Non-Local)'!$H13))=TRUE,(SUM('10b. Travel (Non-Local)'!$E13:$F13)/COUNTA(_xlfn.TEXTSPLIT('10b. Travel (Non-Local)'!$H13,";"))),0) -> 0 | H176: =IF(ISNUMBER(SEARCH(H$2,'10a. Travel (Local)'!$K13))=TRUE,('10a. Travel (Local)'!$L13/COUNTA(_xlfn.TEXTSPLIT('10a. Travel (Local)'!$K13,";"))),0)+IF(ISNUMBER(SEARCH(H$2,'10b. Travel (Non-Local)'!$H13))=TRUE,(SUM('10b. Travel (Non-Local)'!$E13:$F13)/COUNTA(_xlfn.TEXTSPLIT('10b. Travel (Non-Local)'!$H13,";"))),0) -> 0
A177: =IF(ISNUMBER(SEARCH(A$2,'10a. Travel (Local)'!$J14))=TRUE,('10a. Travel (Local)'!$L14/COUNTA(_xlfn.TEXTSPLIT('10a. Travel (Local)'!$J14,";"))),0)+IF(ISNUMBER(SEARCH(A$2,'10b. Travel (Non-Local)'!$G14))=TRUE,(SUM('10b. Travel (Non-Local)'!$E14:$F14)/COUNTA(_xlfn.TEXTSPLIT('10b. Travel (Non-Local)'!$G14,";"))),0) -> 0 | B177: =IF(ISNUMBER(SEARCH(B$2,'10a. Travel (Local)'!$J14))=TRUE,('10a. Travel (Local)'!$L14/COUNTA(_xlfn.TEXTSPLIT('10a. Travel (Local)'!$J14,";"))),0)+IF(ISNUMBER(SEARCH(B$2,'10b. Travel (Non-Local)'!$G14))=TRUE,(SUM('10b. Travel (Non-Local)'!$E14:$F14)/COUNTA(_xlfn.TEXTSPLIT('10b. Travel (Non-Local)'!$G14,";"))),0) -> 0 | C177: =IF(ISNUMBER(SEARCH(C$2,'10a. Travel (Local)'!$J14))=TRUE,('10a. Travel (Local)'!$L14/COUNTA(_xlfn.TEXTSPLIT('10a. Travel (Local)'!$J14,";"))),0)+IF(ISNUMBER(SEARCH(C$2,'10b. Travel (Non-Local)'!$G14))=TRUE,(SUM('10b. Travel (Non-Local)'!$E14:$F14)/COUNTA(_xlfn.TEXTSPLIT('10b. Travel (Non-Local)'!$G14,";"))),0) -> 0 | E177: =IF(ISNUMBER(SEARCH(E$2,'10a. Travel (Local)'!$K14))=TRUE,('10a. Travel (Local)'!$L14/COUNTA(_xlfn.TEXTSPLIT('10a. Travel (Local)'!$K14,";"))),0)+IF(ISNUMBER(SEARCH(E$2,'10b. Travel (Non-Local)'!$H14))=TRUE,(SUM('10b. Travel (Non-Local)'!$E14:$F14)/COUNTA(_xlfn.TEXTSPLIT('10b. Travel (Non-Local)'!$H14,";"))),0) -> 0 | F177: =IF(ISNUMBER(SEARCH(F$2,'10a. Travel (Local)'!$K14))=TRUE,('10a. Travel (Local)'!$L14/COUNTA(_xlfn.TEXTSPLIT('10a. Travel (Local)'!$K14,";"))),0)+IF(ISNUMBER(SEARCH(F$2,'10b. Travel (Non-Local)'!$H14))=TRUE,(SUM('10b. Travel (Non-Local)'!$E14:$F14)/COUNTA(_xlfn.TEXTSPLIT('10b. Travel (Non-Local)'!$H14,";"))),0) -> 0 | G177: =IF(ISNUMBER(SEARCH(G$2,'10a. Travel (Local)'!$K14))=TRUE,('10a. Travel (Local)'!$L14/COUNTA(_xlfn.TEXTSPLIT('10a. Travel (Local)'!$K14,";"))),0)+IF(ISNUMBER(SEARCH(G$2,'10b. Travel (Non-Local)'!$H14))=TRUE,(SUM('10b. Travel (Non-Local)'!$E14:$F14)/COUNTA(_xlfn.TEXTSPLIT('10b. Travel (Non-Local)'!$H14,";"))),0) -> 0 | H177: =IF(ISNUMBER(SEARCH(H$2,'10a. Travel (Local)'!$K14))=TRUE,('10a. Travel (Local)'!$L14/COUNTA(_xlfn.TEXTSPLIT('10a. Travel (Local)'!$K14,";"))),0)+IF(ISNUMBER(SEARCH(H$2,'10b. Travel (Non-Local)'!$H14))=TRUE,(SUM('10b. Travel (Non-Local)'!$E14:$F14)/COUNTA(_xlfn.TEXTSPLIT('10b. Travel (Non-Local)'!$H14,";"))),0) -> 0
A178: =IF(ISNUMBER(SEARCH(A$2,'10a. Travel (Local)'!$J15))=TRUE,('10a. Travel (Local)'!$L15/COUNTA(_xlfn.TEXTSPLIT('10a. Travel (Local)'!$J15,";"))),0)+IF(ISNUMBER(SEARCH(A$2,'10b. Travel (Non-Local)'!$G15))=TRUE,(SUM('10b. Travel (Non-Local)'!$E15:$F15)/COUNTA(_xlfn.TEXTSPLIT('10b. Travel (Non-Local)'!$G15,";"))),0) -> 0 | B178: =IF(ISNUMBER(SEARCH(B$2,'10a. Travel (Local)'!$J15))=TRUE,('10a. Travel (Local)'!$L15/COUNTA(_xlfn.TEXTSPLIT('10a. Travel (Local)'!$J15,";"))),0)+IF(ISNUMBER(SEARCH(B$2,'10b. Travel (Non-Local)'!$G15))=TRUE,(SUM('10b. Travel (Non-Local)'!$E15:$F15)/COUNTA(_xlfn.TEXTSPLIT('10b. Travel (Non-Local)'!$G15,";"))),0) -> 0 | C178: =IF(ISNUMBER(SEARCH(C$2,'10a. Travel (Local)'!$J15))=TRUE,('10a. Travel (Local)'!$L15/COUNTA(_xlfn.TEXTSPLIT('10a. Travel (Local)'!$J15,";"))),0)+IF(ISNUMBER(SEARCH(C$2,'10b. Travel (Non-Local)'!$G15))=TRUE,(SUM('10b. Travel (Non-Local)'!$E15:$F15)/COUNTA(_xlfn.TEXTSPLIT('10b. Travel (Non-Local)'!$G15,";"))),0) -> 0 | E178: =IF(ISNUMBER(SEARCH(E$2,'10a. Travel (Local)'!$K15))=TRUE,('10a. Travel (Local)'!$L15/COUNTA(_xlfn.TEXTSPLIT('10a. Travel (Local)'!$K15,";"))),0)+IF(ISNUMBER(SEARCH(E$2,'10b. Travel (Non-Local)'!$H15))=TRUE,(SUM('10b. Travel (Non-Local)'!$E15:$F15)/COUNTA(_xlfn.TEXTSPLIT('10b. Travel (Non-Local)'!$H15,";"))),0) -> 0 | F178: =IF(ISNUMBER(SEARCH(F$2,'10a. Travel (Local)'!$K15))=TRUE,('10a. Travel (Local)'!$L15/COUNTA(_xlfn.TEXTSPLIT('10a. Travel (Local)'!$K15,";"))),0)+IF(ISNUMBER(SEARCH(F$2,'10b. Travel (Non-Local)'!$H15))=TRUE,(SUM('10b. Travel (Non-Local)'!$E15:$F15)/COUNTA(_xlfn.TEXTSPLIT('10b. Travel (Non-Local)'!$H15,";"))),0) -> 0 | G178: =IF(ISNUMBER(SEARCH(G$2,'10a. Travel (Local)'!$K15))=TRUE,('10a. Travel (Local)'!$L15/COUNTA(_xlfn.TEXTSPLIT('10a. Travel (Local)'!$K15,";"))),0)+IF(ISNUMBER(SEARCH(G$2,'10b. Travel (Non-Local)'!$H15))=TRUE,(SUM('10b. Travel (Non-Local)'!$E15:$F15)/COUNTA(_xlfn.TEXTSPLIT('10b. Travel (Non-Local)'!$H15,";"))),0) -> 0 | H178: =IF(ISNUMBER(SEARCH(H$2,'10a. Travel (Local)'!$K15))=TRUE,('10a. Travel (Local)'!$L15/COUNTA(_xlfn.TEXTSPLIT('10a. Travel (Local)'!$K15,";"))),0)+IF(ISNUMBER(SEARCH(H$2,'10b. Travel (Non-Local)'!$H15))=TRUE,(SUM('10b. Travel (Non-Local)'!$E15:$F15)/COUNTA(_xlfn.TEXTSPLIT('10b. Travel (Non-Local)'!$H15,";"))),0) -> 0
A179: =IF(ISNUMBER(SEARCH(A$2,'10a. Travel (Local)'!$J16))=TRUE,('10a. Travel (Local)'!$L16/COUNTA(_xlfn.TEXTSPLIT('10a. Travel (Local)'!$J16,";"))),0)+IF(ISNUMBER(SEARCH(A$2,'10b. Travel (Non-Local)'!$G16))=TRUE,(SUM('10b. Travel (Non-Local)'!$E16:$F16)/COUNTA(_xlfn.TEXTSPLIT('10b. Travel (Non-Local)'!$G16,";"))),0) -> 0 | B179: =IF(ISNUMBER(SEARCH(B$2,'10a. Travel (Local)'!$J16))=TRUE,('10a. Travel (Local)'!$L16/COUNTA(_xlfn.TEXTSPLIT('10a. Travel (Local)'!$J16,";"))),0)+IF(ISNUMBER(SEARCH(B$2,'10b. Travel (Non-Local)'!$G16))=TRUE,(SUM('10b. Travel (Non-Local)'!$E16:$F16)/COUNTA(_xlfn.TEXTSPLIT('10b. Travel (Non-Local)'!$G16,";"))),0) -> 0 | C179: =IF(ISNUMBER(SEARCH(C$2,'10a. Travel (Local)'!$J16))=TRUE,('10a. Travel (Local)'!$L16/COUNTA(_xlfn.TEXTSPLIT('10a. Travel (Local)'!$J16,";"))),0)+IF(ISNUMBER(SEARCH(C$2,'10b. Travel (Non-Local)'!$G16))=TRUE,(SUM('10b. Travel (Non-Local)'!$E16:$F16)/COUNTA(_xlfn.TEXTSPLIT('10b. Travel (Non-Local)'!$G16,";"))),0) -> 0 | E179: =IF(ISNUMBER(SEARCH(E$2,'10a. Travel (Local)'!$K16))=TRUE,('10a. Travel (Local)'!$L16/COUNTA(_xlfn.TEXTSPLIT('10a. Travel (Local)'!$K16,";"))),0)+IF(ISNUMBER(SEARCH(E$2,'10b. Travel (Non-Local)'!$H16))=TRUE,(SUM('10b. Travel (Non-Local)'!$E16:$F16)/COUNTA(_xlfn.TEXTSPLIT('10b. Travel (Non-Local)'!$H16,";"))),0) -> 0 | F179: =IF(ISNUMBER(SEARCH(F$2,'10a. Travel (Local)'!$K16))=TRUE,('10a. Travel (Local)'!$L16/COUNTA(_xlfn.TEXTSPLIT('10a. Travel (Local)'!$K16,";"))),0)+IF(ISNUMBER(SEARCH(F$2,'10b. Travel (Non-Local)'!$H16))=TRUE,(SUM('10b. Travel (Non-Local)'!$E16:$F16)/COUNTA(_xlfn.TEXTSPLIT('10b. Travel (Non-Local)'!$H16,";"))),0) -> 0 | G179: =IF(ISNUMBER(SEARCH(G$2,'10a. Travel (Local)'!$K16))=TRUE,('10a. Travel (Local)'!$L16/COUNTA(_xlfn.TEXTSPLIT('10a. Travel (Local)'!$K16,";"))),0)+IF(ISNUMBER(SEARCH(G$2,'10b. Travel (Non-Local)'!$H16))=TRUE,(SUM('10b. Travel (Non-Local)'!$E16:$F16)/COUNTA(_xlfn.TEXTSPLIT('10b. Travel (Non-Local)'!$H16,";"))),0) -> 0 | H179: =IF(ISNUMBER(SEARCH(H$2,'10a. Travel (Local)'!$K16))=TRUE,('10a. Travel (Local)'!$L16/COUNTA(_xlfn.TEXTSPLIT('10a. Travel (Local)'!$K16,";"))),0)+IF(ISNUMBER(SEARCH(H$2,'10b. Travel (Non-Local)'!$H16))=TRUE,(SUM('10b. Travel (Non-Local)'!$E16:$F16)/COUNTA(_xlfn.TEXTSPLIT('10b. Travel (Non-Local)'!$H16,";"))),0) -> 0
A180: =IF(ISNUMBER(SEARCH(A$2,'10a. Travel (Local)'!$J17))=TRUE,('10a. Travel (Local)'!$L17/COUNTA(_xlfn.TEXTSPLIT('10a. Travel (Local)'!$J17,";"))),0)+IF(ISNUMBER(SEARCH(A$2,'10b. Travel (Non-Local)'!$G17))=TRUE,(SUM('10b. Travel (Non-Local)'!$E17:$F17)/COUNTA(_xlfn.TEXTSPLIT('10b. Travel (Non-Local)'!$G17,";"))),0) -> 0 | B180: =IF(ISNUMBER(SEARCH(B$2,'10a. Travel (Local)'!$J17))=TRUE,('10a. Travel (Local)'!$L17/COUNTA(_xlfn.TEXTSPLIT('10a. Travel (Local)'!$J17,";"))),0)+IF(ISNUMBER(SEARCH(B$2,'10b. Travel (Non-Local)'!$G17))=TRUE,(SUM('10b. Travel (Non-Local)'!$E17:$F17)/COUNTA(_xlfn.TEXTSPLIT('10b. Travel (Non-Local)'!$G17,";"))),0) -> 0 | C180: =IF(ISNUMBER(SEARCH(C$2,'10a. Travel (Local)'!$J17))=TRUE,('10a. Travel (Local)'!$L17/COUNTA(_xlfn.TEXTSPLIT('10a. Travel (Local)'!$J17,";"))),0)+IF(ISNUMBER(SEARCH(C$2,'10b. Travel (Non-Local)'!$G17))=TRUE,(SUM('10b. Travel (Non-Local)'!$E17:$F17)/COUNTA(_xlfn.TEXTSPLIT('10b. Travel (Non-Local)'!$G17,";"))),0) -> 0 | E180: =IF(ISNUMBER(SEARCH(E$2,'10a. Travel (Local)'!$K17))=TRUE,('10a. Travel (Local)'!$L17/COUNTA(_xlfn.TEXTSPLIT('10a. Travel (Local)'!$K17,";"))),0)+IF(ISNUMBER(SEARCH(E$2,'10b. Travel (Non-Local)'!$H17))=TRUE,(SUM('10b. Travel (Non-Local)'!$E17:$F17)/COUNTA(_xlfn.TEXTSPLIT('10b. Travel (Non-Local)'!$H17,";"))),0) -> 0 | F180: =IF(ISNUMBER(SEARCH(F$2,'10a. Travel (Local)'!$K17))=TRUE,('10a. Travel (Local)'!$L17/COUNTA(_xlfn.TEXTSPLIT('10a. Travel (Local)'!$K17,";"))),0)+IF(ISNUMBER(SEARCH(F$2,'10b. Travel (Non-Local)'!$H17))=TRUE,(SUM('10b. Travel (Non-Local)'!$E17:$F17)/COUNTA(_xlfn.TEXTSPLIT('10b. Travel (Non-Local)'!$H17,";"))),0) -> 0 | G180: =IF(ISNUMBER(SEARCH(G$2,'10a. Travel (Local)'!$K17))=TRUE,('10a. Travel (Local)'!$L17/COUNTA(_xlfn.TEXTSPLIT('10a. Travel (Local)'!$K17,";"))),0)+IF(ISNUMBER(SEARCH(G$2,'10b. Travel (Non-Local)'!$H17))=TRUE,(SUM('10b. Travel (Non-Local)'!$E17:$F17)/COUNTA(_xlfn.TEXTSPLIT('10b. Travel (Non-Local)'!$H17,";"))),0) -> 0 | H180: =IF(ISNUMBER(SEARCH(H$2,'10a. Travel (Local)'!$K17))=TRUE,('10a. Travel (Local)'!$L17/COUNTA(_xlfn.TEXTSPLIT('10a. Travel (Local)'!$K17,";"))),0)+IF(ISNUMBER(SEARCH(H$2,'10b. Travel (Non-Local)'!$H17))=TRUE,(SUM('10b. Travel (Non-Local)'!$E17:$F17)/COUNTA(_xlfn.TEXTSPLIT('10b. Travel (Non-Local)'!$H17,";"))),0) -> 0
A181: =IF(ISNUMBER(SEARCH(A$2,'10a. Travel (Local)'!$J18))=TRUE,('10a. Travel (Local)'!$L18/COUNTA(_xlfn.TEXTSPLIT('10a. Travel (Local)'!$J18,";"))),0)+IF(ISNUMBER(SEARCH(A$2,'10b. Travel (Non-Local)'!$G18))=TRUE,(SUM('10b. Travel (Non-Local)'!$E18:$F18)/COUNTA(_xlfn.TEXTSPLIT('10b. Travel (Non-Local)'!$G18,";"))),0) -> 0 | B181: =IF(ISNUMBER(SEARCH(B$2,'10a. Travel (Local)'!$J18))=TRUE,('10a. Travel (Local)'!$L18/COUNTA(_xlfn.TEXTSPLIT('10a. Travel (Local)'!$J18,";"))),0)+IF(ISNUMBER(SEARCH(B$2,'10b. Travel (Non-Local)'!$G18))=TRUE,(SUM('10b. Travel (Non-Local)'!$E18:$F18)/COUNTA(_xlfn.TEXTSPLIT('10b. Travel (Non-Local)'!$G18,";"))),0) -> 0 | C181: =IF(ISNUMBER(SEARCH(C$2,'10a. Travel (Local)'!$J18))=TRUE,('10a. Travel (Local)'!$L18/COUNTA(_xlfn.TEXTSPLIT('10a. Travel (Local)'!$J18,";"))),0)+IF(ISNUMBER(SEARCH(C$2,'10b. Travel (Non-Local)'!$G18))=TRUE,(SUM('10b. Travel (Non-Local)'!$E18:$F18)/COUNTA(_xlfn.TEXTSPLIT('10b. Travel (Non-Local)'!$G18,";"))),0) -> 0 | E181: =IF(ISNUMBER(SEARCH(E$2,'10a. Travel (Local)'!$K18))=TRUE,('10a. Travel (Local)'!$L18/COUNTA(_xlfn.TEXTSPLIT('10a. Travel (Local)'!$K18,";"))),0)+IF(ISNUMBER(SEARCH(E$2,'10b. Travel (Non-Local)'!$H18))=TRUE,(SUM('10b. Travel (Non-Local)'!$E18:$F18)/COUNTA(_xlfn.TEXTSPLIT('10b. Travel (Non-Local)'!$H18,";"))),0) -> 0 | F181: =IF(ISNUMBER(SEARCH(F$2,'10a. Travel (Local)'!$K18))=TRUE,('10a. Travel (Local)'!$L18/COUNTA(_xlfn.TEXTSPLIT('10a. Travel (Local)'!$K18,";"))),0)+IF(ISNUMBER(SEARCH(F$2,'10b. Travel (Non-Local)'!$H18))=TRUE,(SUM('10b. Travel (Non-Local)'!$E18:$F18)/COUNTA(_xlfn.TEXTSPLIT('10b. Travel (Non-Local)'!$H18,";"))),0) -> 0 | G181: =IF(ISNUMBER(SEARCH(G$2,'10a. Travel (Local)'!$K18))=TRUE,('10a. Travel (Local)'!$L18/COUNTA(_xlfn.TEXTSPLIT('10a. Travel (Local)'!$K18,";"))),0)+IF(ISNUMBER(SEARCH(G$2,'10b. Travel (Non-Local)'!$H18))=TRUE,(SUM('10b. Travel (Non-Local)'!$E18:$F18)/COUNTA(_xlfn.TEXTSPLIT('10b. Travel (Non-Local)'!$H18,";"))),0) -> 0 | H181: =IF(ISNUMBER(SEARCH(H$2,'10a. Travel (Local)'!$K18))=TRUE,('10a. Travel (Local)'!$L18/COUNTA(_xlfn.TEXTSPLIT('10a. Travel (Local)'!$K18,";"))),0)+IF(ISNUMBER(SEARCH(H$2,'10b. Travel (Non-Local)'!$H18))=TRUE,(SUM('10b. Travel (Non-Local)'!$E18:$F18)/COUNTA(_xlfn.TEXTSPLIT('10b. Travel (Non-Local)'!$H18,";"))),0) -> 0
